Workbook

Sheet README
C2: HOW TO USE THE CULTEC STORMWATER DESIGN CALCULATOR | N2: Version 08/20
C3: Click here to watch our How To Instructional Video
A5: 1 | B5: Save a Master Copy: Be sure to keep this initial version as a master copy without user input adjustments
B6: Do a "SAVE AS" of this workbook with a filename which is a unique name to save the integrity of the master file copy each time you use it.
A8: 2 | B8: Project Information Section: Fill the Project Name, Location, Date, etc.
A26: 3 | B26: Select Unit of Measure: Select Imperial or Metric Units from the drop-down list
A28: 4 | B28: Input Maximum Workable Bed Depth: Input the maximum workable bed depth based on site constrains
B29: This will help the Stormwater Design Calculator select an appropriate chamber model
A31: 5 | B31: Input Maximum Bed Width: Input the maximum bed width based on site constraints
B32: This will help the Stormwater Design Calculator select an appropriate chamber configuration
A34: 6 | B34: Input Required Storage Volume: Input the maximum bed width based on site constraints
B35: This will help the Stormwater Design Calculator select an appropriate chamber configuration
A37: 7 | B37: Select Appropriate Chamber Model: The Maximum Workable Bed Depth will help you select the appropriate chamber mode
B38: Chamber sizing information can be located via the links at the bottom of this page.
A55: 8 | B55: Input Stone Void: Industry standard is 40%. You may adjust this percentage as needed
A57: 9 | B57: Manifolds: Select desired manifold configuration | C57: Select desired manifold configuration.
A59: 10 | B59: Input Stone Depth Above Chamber and Below Chamber: Adjust the depth of stone above and below the chamber. The Stormwater Design Calculator will identify
B60: minimum values based on the current chamber selection. You may increase these values based on design intent
A62: 11 | B62: Input Stone Spacing Between Chamber Rows: Adjust the width of stone between the chamber rows. The Stormwater Design Calculator will identify minimum values
B63: based on the current chamber selection. You may increase these values based on design intent
A65: 12 | B65: Separator Row: Check "Include Separator Row" if desired
A67: 13 | B67: Stone Base Elevation: Input the bottom of stone elevation if known
A69: 14 | B69: Get Report: Click the "Get Report" button and the Stormwater Design Calculator will geterate a proposed system configuration
B70: Inputs may be adjusted in order to achieve desired system configuration
A88: Additional Notes
A89: 1 | B89: Reconfiguring the bed layout may effect actual storage provided.
A91: 2 | B91: Storage calculations include the storage provided by the stone border surrounding the perimeter of the bed.
A93: 3 | B93: The model specific web pages have additional information such as CAD and PDF details, spec information, and submittal packages. Brochures, installation instructions and other design tools are also available on the DOWNLOADS page of www.cultec.com.
A95: Helpful Links: | E95: Published by | H95: Copyright Notice
A96: www.cultec.com | E96: CULTEC, Inc. | H96: ©2020 CULTEC, Inc. All rights reserved. Created in the USA.
A97: tech@cultec.com | E97: P.O. Box 280 | H97: This program and any accompanying CULTEC products are copyrighted by CULTEC, Inc.
A98: Contactor & Recharger Models | E98: 878 Federal Road | H98: Any reproduction and/or distribution without prior written consent from CULTEC, Inc. is strictly prohibited.
A99: DOWNLOADS page | E99: Brookfield, CT 06804 USA
E100: www.cultec.com
A102: Contact Information
A103: For general information on our products and services, please contact our offices within the United States at (800)428-5832, (203)775-4416,
A104: or e-mail us at custservice@cultec.com. For technical support, please call (203)775-4416 Ext. 203 or e-mail tech@cultec.com.
A108: CULTEC End-User License Agreement
A110: End-User License Agreement (“EULA") between CULTEC, Inc. ("CULTEC") and the end-user ("Licensee") of CULTEC’s royalty-free software, including but not limited the CULTEC Incremental Storage Calculator (the "Software"). By installing, copying or using any or all of the Software, the Licensee agrees to be bound by the terms of this EULA.
A111: 1 | B111: License
B112: 1.1 | C112: Grant of License: Subject to the terms and conditions set forth in this Agreement, CULTEC grants to Licensee a non-exclusive, non-transferable, non-assignable, royalty-free license to install and use the Software on Licensee’s computers, including servers, solely for the purpose of creating estimates, proposals, materials lists, and specifications for CULTEC Stormwater Systems.
B113: 1.2 | C113: Registration: CULTEC may require Licensee to register Licensee’s correct name, address, and e-mail address with CULTEC prior to or subsequent to receiving and installing the Software.
A114: 2 | B114: Limitations
B115: 2.1 | C115: Restrictions: Licensee shall not:
C116: (a) | D116: reverse engineer, decompile, or disassemble the Software, except and only to the extent that such activity is expressly permitted by applicable law notwithstanding this limitation;
C117: (b) | D117: use the Software for creating estimates, proposals, materials lists, and specifications for non-CULTEC Stormwater Systems
C118: (c ) | D118: use the Incremental Storage Calculator as sole engineering design program.
B119: 2.2 | C119: Ownership: CULTEC or its suppliers own the title, copyright, trademark, and other intellectual property rights in the Software. The Software is protected by copyright and other intellectual property laws and treaties. CULTEC reserves all rights not expressly granted by this EULA.
B120: 2.3 | C120: Copyright and Trademark Notices: Licensee shall not remove, cover or alter any of the copyright, trademark or other proprietary notices placed upon, embedded in or displayed by the Software or on its packaging and related materials.
B121: 2.4 | C121: Maintenance: CULTEC has no obligation under this EULA to provide any support, maintenance, or other services. CULTEC Technical Assistance will be made available at CULTEC’s discretion by telephone at 800-428-5832 or 203-775-4416.
B122: 2.5 | C122: Updates: CULTEC, in its sole discretion, may provide Licensee with Updates to the Software. Nothing herein shall be construed or interpreted as requiring CULTEC to provide Updates.
A123: 3 | B123: Disclaimers
B124: 3.1 | C124: Estimation Only: The Software output should be reviewed, interpreted, applied, and approved by a qualified engineer who is responsible for it the design of the stormwater system. The CULTEC Incremental Storage Calculator should be used for creation of proposals only and should not take the place of a comprehensive engineering design.
B125: 3.2 | C125: Data Entry: The user of this software must select input values suitable to describe their specific engineering situation. Data entry and verification of the data input to and output from the Software shall be the sole responsibility of Licensee.
B126: 3.3 | C126: Disclaimer: THE SOFTWARE AND ANY MANUALS OR DOCUMENTATION ARE PROVIDED "AS IS," AND CULTEC EXPRESSLY DISCLAIMS ANY AND ALL WARRANTIES, WHETHER EXPRESS OR IMPLIED, INCLUDING, WITHOUT LIMITATION, ANY IMPLIED WARRANTIES OF MERCHANTABILITY OR FITNESS FOR A PARTICULAR PURPOSE, OR NONINFRINGEMENT. CULTEC DOES NOT WARRANT THAT THE SOFTWARE WILL MEET LICENSEE’S REQUIREMENTS OR THAT OPERATION OF THE SOFTWARE WILL BE UNINTERRUPTED OR ERROR FREE. LICENSEE ASSUMES RESPONSIBILITY FOR USE OF THE SOFTWARE AND FOR THE RESULTS OBTAINED FROM USE OF THE SOFTWARE.
B127: 3.4 | C127: Limitation of Damages: CULTEC SHALL NOT BE LIABLE TO YOU OR ANY THIRD PARTY FOR ANY INDIRECT, SPECIAL, INCIDENTAL, PUNITIVE, COVER OR CONSEQUENTIAL DAMAGES (INCLUDING, BUT NOT LIMITED TO, DAMAGES FOR THE INABILITY TO USE EQUIPMENT OR ACCESS DATA, LOSS OF BUSINESS, LOSS OF PROFITS, BUSINESS INTERRUPTION OR THE LIKE), ARISING OUT OF THE USE OF, OR INABILITY TO USE, THE SOFTWARE OR BASED ON ANY THEORY OF LIABILITY INCLUDING BREACH OF CONTRACT, BREACH OF WARRANTY, TORT (INCLUDING NEGLIGENCE), PRODUCT LIABILITY OR OTHERWISE, EVEN IF CULTEC OR ITS REPRESENTATIVES HAVE BEEN ADVISED OF THE POSSIBILITY OF SUCH DAMAGES.
A128: 4 | B128: Indemnity
B129: 4.1 | C129: Licensee agrees to defend, indemnify, and hold harmless CULTEC, and its officers, directors and employees, from and against any lawsuits, claims, losses, damages, fines and expenses (including attorneys' fees and costs) arising out of its use of the Software or its breach of this Agreement.
A130: 5 | B130: Term and Termination
B131: 5.1 | C131: Term: This EULA shall commence on the date of installation of the Software by the Licensee and continue in effect until terminated as provided herein.
B132: 5.2 | C132: Termination: CULTEC may terminate this EULA at its sole discretion at any time. Upon termination Licensee must permanently remove the Software from its computer(s) and server(s). All provisions of this EULA that by their nature should survive termination of this Agreement do survive its termination, including, but not limited to, provisions on ownership, proprietary rights, warranty disclaimers, liability and remedy limitations.
A133: 6 | B133: Miscellaneous Provisions
B134: 6.1 | C134: Entire Agreement: This EULA constitutes the entire agreement between the parties to this EULA and supersedes all prior and contemporaneous agreements, understandings, negotiations and discussions of the parties.
B135: 6.2 | C135: Amendments: This EULA may not be modified or amended except by an instrument in writing executed by the duly authorized signing officers of both parties hereto.
B136: 6.3 | C136: Successors: This EULA shall inure to the benefit of and be binding upon the parties hereto and their respective heirs, administrators, executors, successors and assigns.
B137: 6.4 | C137: Governing Law: This EULA shall be governed by and construed in accordance with the laws of State of Connecticut, and the parties hereby agree to the jurisdiction of the courts of State of Connecticut.
B138: 6.5 | C138: Severability: If any Article, Section, paragraph or provision of this EULA is determined to be void or unenforceable in whole or in part, it shall not affect or impair the validity or enforcement of any other provision of this EULA.

Sheet INPUT INFORMATION
B1: CULTEC Stormwater Design Calculator | X1: TRUE
B2: Please Fill in the Shaded Cells
B4: Project Information: | E4: Calculations Performed By: | H4: Date:
B5: Project Name | E5: Name | H5: =TODAY() -> 2020-08-11
B6: Address | E6: Company Name | H6: Project Number:
B7: City | E7: Address
B8: State/Province | E8: City
B9: ZIP/Postal Code | E9: State/Province
B10: Country | E10: ZIP/Postal Code
E11: Country
E12: Phone
E13: Email
B15: Input Project Requirements
B17: Unit of Measure | C17: Imperial
B18: Select Model | C18: Recharger 902HD
B20: Stone Porosity | C20: 0.4
B21: Number of HVLV Internal Manifolds | C21: 2 Internal Manifolds | R21: Check box linked cells
B22: Stone Depth Above Chamber | C22: 12 | D22: =IF($C$17="Imperial","inches","mm") -> inches | E22: =ROUND(VLOOKUP(C18,Data!A:V,20,FALSE)*IF(C17="Metric",25.4,1),0) -> 12 | F22: =IF(C22<E22,"Min. of "&E22&" "&D22&" Required","") ->  | R22: Stone Above | S22: FALSE | T22: =IF(S22=TRUE,0,C22) -> 12
B23: Stone Depth Below Chamber | C23: 9 | D23: =IF($C$17="Imperial","inches","mm") -> inches | E23: =ROUND(VLOOKUP(C18,Data!A:V,21,FALSE)*IF(C17="Metric",25.4,1),0) -> 9 | F23: =IF(C23<E23,"Min. of "&E23&" "&D23&" Required","") ->  | R23: Stone Base | S23: FALSE | T23: =IF(S23=TRUE,0,C23) -> 9
B24: Stone Between Chamber rows | C24: 9 | D24: =IF($C$17="Imperial","inches","mm") -> inches | E24: =ROUND(VLOOKUP(C18,Data!A:V,6,FALSE)*IF(C17="Metric",25.4,1),0) -> 9 | F24: =IF(C24<E24,"Min. of "&E24&" "&D24&" Required","") -> 
B25: Include Separator Row
B26: Workable Bed Depth | C26: 10 | D26: =IF($C$17="Imperial","feet","meters") -> feet | E26: =IF(C26<Data!AI33,Data!AI33,"") ->  | F26: =IF(C26<Data!AI33,Data!AJ33&" Min. Depth","") -> 
B27: Max. Bed Width | C27: 25 | D27: =IF($C$17="Imperial","feet","meters") -> feet | E27: =IF(C27<Data!AI32,Data!AI32,"") ->  | F27: =IF(C27<Data!AI32,Data!AJ32&" Min. Width","") -> 
B28: Storage Volume Required | C28: 10000 | D28: =IF($C$17="Imperial","cu. feet","cu. meters") -> cu. feet
B29: Stone Base Elevation | C29: 0 | D29: =IF($C$17="Imperial","feet","meters") -> feet
B32: Additional Information:
B33: Other models are available if products above do not meet your requirements. Contact CULTEC for further design assistance.
B34: Model "S" Starter is available on Recharger models only. Contactor models use Model "R" Starters.
B35: Call CULTEC at 203-775-4416 for pricing information.
B37: Hyperlinks to product specific webpages:
B38: Please visit our website for more information such as CAD details, spec information, brochures, installation instructions, and other design tools on certain models.
B40: Contactor Field Drain C-4HD | C40: Recharger 280HD | D40: HVLV SFCx2 Feed Connector | F40: CULTEC No. 4800 Woven Geotextile
B41: Contactor 100HD | C41: Recharger 330XLHD | D41: HVLV FC-24 Feed Connector | F41: CULTEC No. 410 Non-Woven Geotextile
B42: Recharger 150XLHD | C42: Recharger 360HD | D42: HVLV FC-48 Feed Connector
B43: Recharger 180HD | C43: Recharger 902HD
B45: Automated CAD Drawings Using CULTEC StormGenie
B46: Now that you have selected your proposed model, save this spreadsheet with a different filename.
B48: If you do not have the CULTEC StormGenie program, go to www.cultec.com/stormgenie.html to download the latest version and instruction guide.
B49: Click here to download CULTEC StormGenie Automated Drawing Program
B51: If you already have the CULTEC StormGenie program, open AutoCAD and generate your project specific CAD drawing.
B52: Check for updates.
B53: For design assistance, drawings and pricing send these calculations to:
B54: mailto:tech@cultec.com
B56: Website:
B57: www.cultec.com
B66: FALSE

Sheet REPORT
B1: CULTEC Stormwater Design Calculator
B2: Date: | C2: ='INPUT INFORMATION'!H5 -> 2020-08-11 | K2: =IF('INPUT INFORMATION'!H7<=0,"","Project Number:") ->  | M2: =IF('INPUT INFORMATION'!H7<=0,"",'INPUT INFORMATION'!H7) -> 
B4: Project Information: | K4: Calculations Performed By:
B5: =IF('INPUT INFORMATION'!C5<=0,"",'INPUT INFORMATION'!C5) ->  | K5: =IF('INPUT INFORMATION'!F5<=0,"",'INPUT INFORMATION'!F5) -> 
B6: =IF('INPUT INFORMATION'!C6<=0,"",'INPUT INFORMATION'!C6) ->  | K6: =IF('INPUT INFORMATION'!F6<=0,"",'INPUT INFORMATION'!F6) -> 
B7: =IF('INPUT INFORMATION'!C7<=0,"",'INPUT INFORMATION'!C7) ->  | K7: =IF('INPUT INFORMATION'!F7<=0,"",'INPUT INFORMATION'!F7) -> 
B8: =IF('INPUT INFORMATION'!C8<=0,"",'INPUT INFORMATION'!C8) ->  | K8: =IF('INPUT INFORMATION'!F8<=0,"",'INPUT INFORMATION'!F8) ->  | M8: =IF('INPUT INFORMATION'!F9<=0,"",'INPUT INFORMATION'!F9) -> 
B9: =IF('INPUT INFORMATION'!C10<=0,"",'INPUT INFORMATION'!C10) ->  | K9: =IF('INPUT INFORMATION'!F10<=0,"",'INPUT INFORMATION'!F10) -> 
K10: =IF('INPUT INFORMATION'!F11<=0,"",'INPUT INFORMATION'!F11) -> 
K11: =IF('INPUT INFORMATION'!F12<=0,"",'INPUT INFORMATION'!F12) -> 
K12: =IF('INPUT INFORMATION'!F13<=0,"",'INPUT INFORMATION'!F13) -> 
B16: ='INPUT INFORMATION'!C18 -> Recharger 902HD | K16: Breakdown of Storage Provided by
B17: Chamber Specifications | K17: =('INPUT INFORMATION'!C18) &" Stormwater System" -> Recharger 902HD Stormwater System
B18: Height | D18: =IF('INPUT INFORMATION'!$C$17="Metric",Data!AA7,Data!Z7) -> 48 | E18: =IF('INPUT INFORMATION'!$C$17="Imperial","inches","mm") -> inches | M18: Within Chambers | N18: =IF('INPUT INFORMATION'!C17="Metric",Data!AH13,Data!AG13) -> 6109.680054 | O18: =IF('INPUT INFORMATION'!$C$17="Imperial","cu. feet","cu. meters") -> cu. feet
B19: Width | D19: =IF('INPUT INFORMATION'!$C$17="Metric",Data!AA8,Data!Z8) -> 78 | E19: =IF('INPUT INFORMATION'!$C$17="Imperial","inches","mm") -> inches | M19: Within Feed Connectors | N19: =IF('INPUT INFORMATION'!$C$17="Metric",Data!AH14,Data!AG14) -> 2.739 | O19: =IF('INPUT INFORMATION'!$C$17="Imperial","cu. feet","cu. meters") -> cu. feet
B20: Length | D20: =IF('INPUT INFORMATION'!$C$17="Metric",Data!AA9,Data!Z9) -> 4.1 | E20: =IF('INPUT INFORMATION'!$C$17="Imperial","feet","meters") -> feet | M20: Within Stone | N20: =IF('INPUT INFORMATION'!$C$17="Metric",Data!AH15,Data!AG15) -> 3920.771512 | O20: =IF('INPUT INFORMATION'!$C$17="Imperial","cu. feet","cu. meters") -> cu. feet
B21: Installed Length | D21: =IF('INPUT INFORMATION'!$C$17="Metric",Data!AA10,Data!Z10) -> 3.666666667 | E21: =IF('INPUT INFORMATION'!$C$17="Imperial","feet","meters") -> feet | M21: Total Storage Provided | N21: =IF('INPUT INFORMATION'!$C$17="Metric",Data!AH16,Data!AG16) -> 10033.19057 | O21: =IF('INPUT INFORMATION'!$C$17="Imperial","cu. feet","cu. meters") -> cu. feet
B22: Bare Chamber Volume | D22: =IF('INPUT INFORMATION'!$C$17="Metric",Data!AA11,Data!Z11) -> 63.47 | E22: =IF('INPUT INFORMATION'!$C$17="Imperial","cu. feet","cu. meters") -> cu. feet | M22: Total Storage Required | N22: ='INPUT INFORMATION'!C28 -> 10000 | O22: ='INPUT INFORMATION'!D28 -> cu. feet
B23: Installed Chamber Volume | D23: =IF('INPUT INFORMATION'!$C$17="Metric",Data!AA12,Data!Z12) -> 99.22366667 | E23: =IF('INPUT INFORMATION'!$C$17="Imperial","cu. feet","cu. meters") -> cu. feet
B25: Materials List
E27: ='INPUT INFORMATION'!C18 -> Recharger 902HD
E28: Total Number of Chambers Required | I28: =IF('INPUT INFORMATION'!C18="Recharger 902HD",REPORT!I31,IF('INPUT INFORMATION'!C18='Chamber Images'!A9,REPORT!I31,Data!AG6+Data!AG7+Data!AG8)) -> 96 | J28: pieces
E29: =IF('INPUT INFORMATION'!$X$1=TRUE,"Separator Row Chambers","") -> Separator Row Chambers | I29: =IF('INPUT INFORMATION'!X1=TRUE,IF('INPUT INFORMATION'!C17="Imperial",Data!AG41,Data!AH41),"") -> 32 | J29: =IF('INPUT INFORMATION'!$X$1=TRUE,"pieces","") -> pieces | L29: =IF('INPUT INFORMATION'!$X$1=TRUE,"Separator Row Qty Included in Total ","") -> Separator Row Qty Included in Total
E30: =IF(OR('INPUT INFORMATION'!C18="Contactor Field Drain C-4HD",'INPUT INFORMATION'!C18="Contactor 100HD",'INPUT INFORMATION'!C18="Recharger 902HD",'INPUT INFORMATION'!C18='Chamber Images'!A9),"","Starter Chambers") ->  | I30: =IF('INPUT INFORMATION'!$C$18="Contactor Field Drain C-4HD","",IF('INPUT INFORMATION'!$C$18="Recharger 902HD","",IF('INPUT INFORMATION'!C18='Chamber Images'!A9,"",IF('INPUT INFORMATION'!$C$18="Contactor 100HD","",IF(Data!AG6<0,0,Data!AG6))))) ->  | J30: =IF(OR('INPUT INFORMATION'!C18="Contactor Field Drain C-4HD",'INPUT INFORMATION'!C18="Contactor 100HD",'INPUT INFORMATION'!C18="Recharger 902HD",'INPUT INFORMATION'!C18='Chamber Images'!A9),"","pieces") -> 
E31: =IF(OR('INPUT INFORMATION'!C18="Recharger 902HD",'INPUT INFORMATION'!C18='Chamber Images'!A9),"Chamber Units",IF(OR('INPUT INFORMATION'!C18="Contactor Field Drain C-4HD",'INPUT INFORMATION'!C18="Contactor 100HD"),"Starter Chambers","Intermediate Chambers")) -> Chamber Units | I31: =IF('INPUT INFORMATION'!$C$18="Contactor Field Drain C-4HD",Data!$AG$6,IF('INPUT INFORMATION'!$C$18="Recharger 902HD",Data!$AG$8,IF('INPUT INFORMATION'!C18='Chamber Images'!A9,Data!$AG$8,IF('INPUT INFORMATION'!$C$18="Contactor 100HD",Data!$AG$6,IF(Data!AG7<0,0,Data!AG7))))) -> 96 | J31: pieces
E32: =IF(OR('INPUT INFORMATION'!C18="Recharger 902HD",'INPUT INFORMATION'!C18='Chamber Images'!A9),"End Caps","End Chambers") -> End Caps | I32: =IF('INPUT INFORMATION'!C18="Recharger 902HD",Data!AG6,IF('INPUT INFORMATION'!C18='Chamber Images'!A9,Data!AG6,IF(Data!AG8<0,0,Data!AG8))) -> 6 | J32: pieces
E33: =Data!AG35 -> HVLV FC-48 Feed Connectors | I33: =Data!AG9 -> 4 | J33: pieces | L33: =IF('INPUT INFORMATION'!$C$18="Contactor Field Drain C-4HD","","Based on") -> Based on | M33: =IF('INPUT INFORMATION'!$C$18="Contactor Field Drain C-4HD","",'INPUT INFORMATION'!$C$21) -> 2 Internal Manifolds
E34: CULTEC No. 410 Non-Woven Geotextile | I34: =IF('INPUT INFORMATION'!$C$17="Metric",Data!AH11,Data!AG11) -> 997.7474537 | J34: =IF('INPUT INFORMATION'!$C$17="Imperial","sq. yards","sq. meters") -> sq. yards
E35: CULTEC No. 4800 Woven Geotextile | I35: =IF('INPUT INFORMATION'!$C$17="Metric",Data!AH10,Data!AG10) -> 171 | J35: =IF('INPUT INFORMATION'!$C$17="Imperial","feet","meters") -> feet
E36: Stone | I36: =IF('INPUT INFORMATION'!$C$17="Metric",Data!AH12,Data!AG12) -> 363.0343992 | J36: =IF('INPUT INFORMATION'!$C$17="Imperial","cu. yards","cu. meters") -> cu. yards
B38: Bed Detail
K42: Bed Layout Information
K44: Number of Rows Wide | N44: =Data!AG17 -> 3 | O44: pieces
K45: Number of Chambers Long | N45: =Data!AG18 -> 32 | O45: pieces
K46: Chamber Row Width | N46: =IF('INPUT INFORMATION'!$C$17="Metric",Data!AH19,Data!AG19) -> 21 | O46: =IF('INPUT INFORMATION'!$C$17="Imperial","feet","meters") -> feet
K47: Chamber Row Length | N47: =IF('INPUT INFORMATION'!$C$17="Metric",Data!AH20,Data!AG20) -> 118.3353333 | O47: =IF('INPUT INFORMATION'!$C$17="Imperial","feet","meters") -> feet
K48: Bed Width | N48: =IF('INPUT INFORMATION'!$C$17="Metric",Data!AH21,Data!AG21) -> 23 | O48: =IF('INPUT INFORMATION'!$C$17="Imperial","feet","meters") -> feet
K49: Bed Length | N49: =IF('INPUT INFORMATION'!$C$17="Metric",Data!AH22,Data!AG22) -> 120.3353333 | O49: =IF('INPUT INFORMATION'!$C$17="Imperial","feet","meters") -> feet
K50: Bed Area Required | N50: =IF('INPUT INFORMATION'!$C$17="Metric",Data!AH23,Data!AG23) -> 2767.712667 | O50: =IF('INPUT INFORMATION'!$C$17="Imperial","sq. feet","sq. meters") -> sq. feet
K51: Length of Separator Row | N51: =IF('INPUT INFORMATION'!X1=TRUE,IF('INPUT INFORMATION'!C17="Imperial",Data!AG39,Data!AH39),"N/A") -> 118.3353333 | O51: =IF('INPUT INFORMATION'!$C$17="Imperial","feet","meters") -> feet
C54: Bed detail for reference only. Not project specific. Not to scale.
C74: Conceptual graphic only. Not job specific.
F75: Cross Section Table Reference
F76: A | G76: Depth of Stone Base | K76: ='INPUT INFORMATION'!C23 -> 9 | L76: =IF('INPUT INFORMATION'!$C$17="Imperial","inches","mm") -> inches
F77: B | G77: Chamber Height | K77: =D18 -> 48 | L77: =IF('INPUT INFORMATION'!$C$17="Imperial","inches","mm") -> inches
F78: C | G78: Depth of Stone Above Units | K78: ='INPUT INFORMATION'!C22 -> 12 | L78: =IF('INPUT INFORMATION'!$C$17="Imperial","inches","mm") -> inches
F79: D | G79: Depth of 95% Compacted Fill | K79: =IF('INPUT INFORMATION'!$C$17="Metric",Data!AH26,Data!AG26) -> 12 | L79: =IF('INPUT INFORMATION'!$C$17="Imperial","inches","mm") -> inches
F80: E | G80: Max. Depth Allowed Above the Chamber | K80: =IF('INPUT INFORMATION'!$C$17="Metric",Data!AH27,Data!AG27) -> 8.33 | L80: =IF('INPUT INFORMATION'!$C$17="Imperial","feet","meters") -> feet
F81: F | G81: Chamber Width | K81: =D19 -> 78 | L81: =IF('INPUT INFORMATION'!$C$17="Imperial","inches","mm") -> inches
F82: G | G82: Center to Center Spacing | K82: =IF('INPUT INFORMATION'!$C$17="Metric",Data!AH30,Data!AG30) -> 7.25 | L82: =IF('INPUT INFORMATION'!$C$17="Imperial","feet","meters") -> feet
F83: H | G83: Effective Depth | K83: =IF('INPUT INFORMATION'!C17="Metric",Data!AH24,Data!AG24) -> 5.75 | L83: =IF('INPUT INFORMATION'!$C$17="Imperial","feet","meters") -> feet
F84: I | G84: Bed Depth | K84: =IF('INPUT INFORMATION'!$C$17="Metric",Data!AH25,Data!AG25) -> 6.75 | L84: =IF('INPUT INFORMATION'!$C$17="Imperial","feet","meters") -> feet

Sheet STAGE-STORAGE
B1: CULTEC Stage-Storage Calculations
B2: Date: | C2: =TODAY() -> 2020-08-11
B4: Project Information: | G4: Project Number:
B5: =IF('INPUT INFORMATION'!C5<=0,"",'INPUT INFORMATION'!C5) ->  | G5: ='INPUT INFORMATION'!H7 -> 0
B6: =IF('INPUT INFORMATION'!C6<=0,"",'INPUT INFORMATION'!C6) -> 
B7: =IF('INPUT INFORMATION'!C7<=0,"",'INPUT INFORMATION'!C7) -> 
B8: =IF('INPUT INFORMATION'!C8<=0,"",'INPUT INFORMATION'!C8) ->  | C8: =IF('INPUT INFORMATION'!C9<=0,"",'INPUT INFORMATION'!C9) -> 
B9: =IF('INPUT INFORMATION'!C10<=0,"",'INPUT INFORMATION'!C10) -> 
B11: Chamber Model - | F11: ='INPUT INFORMATION'!C18 -> Recharger 902HD
B12: Number of Rows- | F12: =Data!$AG$17 -> 3 | G12: units
B13: Total Number of Chambers - | F13: =Data!$AG$17*Data!$AG$18 -> 96 | G13: units
B14: =IF(F11="Contactor 100HD","HVLV SFCx2 Feed Connectors-",IF(F11="Recharger 902HD","HVLV FC-48 Feed Connectors-",IF(F11="Contactor Field Drain C-4HD","","HVLV FC-24 Feed Connectors-"))) -> HVLV FC-48 Feed Connectors- | F14: =IF(F11="Contactor Field Drain C-4HD","",Data!$AG$9) -> 4 | G14: =IF(F11="Contactor Field Drain C-4HD","","units") -> units
B15: Stone Void - | F15: =Data!$Z$22*100 -> 40 | G15: %
B16: Stone Base - | F16: ='INPUT INFORMATION'!C23 -> 9 | G16: =IF('INPUT INFORMATION'!$C$17="Metric","mm","inches") -> inches
B17: Stone Above Units - | F17: ='INPUT INFORMATION'!C22 -> 12 | G17: =IF('INPUT INFORMATION'!$C$17="Metric","mm","inches") -> inches
B18: Area - | F18: =REPORT!N50 -> 2767.712667 | G18: =IF('INPUT INFORMATION'!$C$17="Metric","m2","ft2") -> ft2
B19: Base of Stone Elevation - | F19: ='INPUT INFORMATION'!$C$29 -> 0
B22: =F11 & " Incremental Storage Volumes" -> Recharger 902HD Incremental Storage Volumes
B23: Height of System | D23: =IF(F11="R-902HD","Chamber & End Cap Volume","Chamber Volume") -> Chamber Volume | F23: =IF(F11="Contactor Field Drain C-4HD","","HVLV Feed Connector Volume") -> HVLV Feed Connector Volume | H23: Stone Volume | J23: Cumulative Storage Volume | L23: Total Cumulative Storage Volume | N23: Elevation
B24: in | C24: mm | D24: ft3 | E24: m3 | F24: =IF(F11="Contactor Field Drain C-4HD","","ft3") -> ft3 | G24: =IF(F11="Contactor Field Drain C-4HD","","m3") -> m3 | H24: ft3 | I24: m3 | J24: ft3 | K24: m3 | L24: ft3 | M24: m3 | N24: ft | O24: m
B25: =IF($F$11="Contactor 100HD",'100HD-Imperial'!A15,IF($F$11="Recharger 150XLHD",'150XLHD-Imperial'!A15,IF($F$11="Recharger 280HD",'280HD-Imperial'!A15,IF($F$11="Recharger 330XLHD",'330XLHD-Imperial'!A15,IF($F$11="Recharger 902HD",'902HD-Imperial'!A15,IF($F$11="Contactor Field Drain C-4HD",'C-4HD-Imperial'!A15,IF($F$11="Recharger 180HD",'180HD-Imperial'!A15,IF($F$11='Chamber Images'!$A$9,'360HD-Imperial'!A15)))))))) -> 69 | C25: =B25*25.4 -> 1752.6 | D25: =IF($F$11="Contactor 100HD",'100HD-Imperial'!D15,IF($F$11="Recharger 150XLHD",'150XLHD-Imperial'!D15,IF($F$11="Recharger 280HD",'280HD-Imperial'!D15,IF($F$11="Recharger 330XLHD",'330XLHD-Imperial'!D15,IF($F$11="Recharger 902HD",'902HD-Imperial'!G15,IF($F$11="Contactor Field Drain C-4HD",'C-4HD-Imperial'!C15,IF($F$11="Recharger 180HD",'180HD-Imperial'!D15,IF($F$11='Chamber Images'!$A$9,'360HD-Imperial'!G15,0)))))))) -> 0 | E25: =IF(B25=0,0,IF(B25<0,"",D25*0.0283168)) -> 0 | F25: =IF($F$11="Contactor 100HD",'100HD-Imperial'!E15,IF($F$11="Recharger 150XLHD",'150XLHD-Imperial'!E15,IF($F$11="Recharger 280HD",'280HD-Imperial'!E15,IF($F$11="Recharger 330XLHD",'330XLHD-Imperial'!E15,IF($F$11="Recharger 902HD",'902HD-Imperial'!H15,IF($F$11="Recharger 180HD",'180HD-Imperial'!C15,IF($F$11='Chamber Images'!$A$9,'360HD-Imperial'!H15,""))))))) -> 0 | G25: =IF($F$11="Contactor Field Drain C-4HD","",IF(B25=0,0,IF(B25<0,"",F25*0.0283168))) -> 0 | H25: =IF($F$11="Contactor 100HD",'100HD-Imperial'!F15,IF($F$11="Recharger 150XLHD",'150XLHD-Imperial'!F15,IF($F$11="Recharger 280HD",'280HD-Imperial'!F15,IF($F$11="Recharger 330XLHD",'330XLHD-Imperial'!F15,IF($F$11="Recharger 902HD",'902HD-Imperial'!I15,IF($F$11="Contactor Field Drain C-4HD",'C-4HD-Imperial'!D15,IF($F$11="Recharger 180HD",'180HD-Imperial'!F15,IF($F$11='Chamber Images'!$A$9,'360HD-Imperial'!I15,0)))))))) -> 92.25708889 | I25: =IF(B25=0,0,IF(B25<0,"",H25*0.0283168)) -> 2.612425535 | J25: =IF($F$11="Contactor 100HD",'100HD-Imperial'!G15,IF($F$11="Recharger 150XLHD",'150XLHD-Imperial'!G15,IF($F$11="Recharger 280HD",'280HD-Imperial'!G15,IF($F$11="Recharger 330XLHD",'330XLHD-Imperial'!G15,IF($F$11="Recharger 902HD",'902HD-Imperial'!J15,IF($F$11="Contactor Field Drain C-4HD",'C-4HD-Imperial'!E15,IF($F$11="Recharger 180HD",'180HD-Imperial'!G15,IF($F$11='Chamber Images'!$A$9,'360HD-Imperial'!J15,0)))))))) -> 92.25708889 | K25: =IF(B25=0,0,IF(B25<0,"",J25*0.0283168)) -> 2.612425535 | L25: =IF($F$11="Contactor 100HD",'100HD-Imperial'!H15,IF($F$11="Recharger 150XLHD",'150XLHD-Imperial'!H15,IF($F$11="Recharger 280HD",'280HD-Imperial'!H15,IF($F$11="Recharger 330XLHD",'330XLHD-Imperial'!H15,IF($F$11="Recharger 902HD",'902HD-Imperial'!K15,IF($F$11="Contactor Field Drain C-4HD",'C-4HD-Imperial'!F15,IF($F$11="Recharger 180HD",'180HD-Imperial'!H15,IF($F$11='Chamber Images'!$A$9,'360HD-Imperial'!K15,0)))))))) -> 10032.88304 | M25: =IF(B25=0,0,IF(B25<0,"",L25*0.0283168)) -> 284.0991424 | N25: =IF($F$11="Contactor 100HD",'100HD-Imperial'!I15,IF($F$11="Recharger 150XLHD",'150XLHD-Imperial'!I15,IF($F$11="Recharger 280HD",'280HD-Imperial'!I15,IF($F$11="Recharger 330XLHD",'330XLHD-Imperial'!I15,IF($F$11="Recharger 902HD",'902HD-Imperial'!L15,IF($F$11="Contactor Field Drain C-4HD",'C-4HD-Imperial'!G15,IF($F$11="Recharger 180HD",'180HD-Imperial'!I15,IF($F$11='Chamber Images'!$A$9,'360HD-Imperial'!L15,0)))))))) -> 5.75 | O25: =IF(B25<0,"",F$19+C25/1000) -> 1.7526 | P25: Top of Stone Elevation
B26: =IF($F$11="Contactor 100HD",'100HD-Imperial'!A16,IF($F$11="Recharger 150XLHD",'150XLHD-Imperial'!A16,IF($F$11="Recharger 280HD",'280HD-Imperial'!A16,IF($F$11="Recharger 330XLHD",'330XLHD-Imperial'!A16,IF($F$11="Recharger 902HD",'902HD-Imperial'!A16,IF($F$11="Contactor Field Drain C-4HD",'C-4HD-Imperial'!A16,IF($F$11="Recharger 180HD",'180HD-Imperial'!A16,IF($F$11='Chamber Images'!$A$9,'360HD-Imperial'!A16)))))))) -> 68 | C26: =B26*25.4 -> 1727.2 | D26: =IF($F$11="Contactor 100HD",'100HD-Imperial'!D16,IF($F$11="Recharger 150XLHD",'150XLHD-Imperial'!D16,IF($F$11="Recharger 280HD",'280HD-Imperial'!D16,IF($F$11="Recharger 330XLHD",'330XLHD-Imperial'!D16,IF($F$11="Recharger 902HD",'902HD-Imperial'!G16,IF($F$11="Contactor Field Drain C-4HD",'C-4HD-Imperial'!C16,IF($F$11="Recharger 180HD",'180HD-Imperial'!D16,IF($F$11='Chamber Images'!$A$9,'360HD-Imperial'!G16,0)))))))) -> 0 | E26: =IF(B26=0,0,IF(B26<0,"",D26*0.0283168)) -> 0 | F26: =IF($F$11="Contactor 100HD",'100HD-Imperial'!E16,IF($F$11="Recharger 150XLHD",'150XLHD-Imperial'!E16,IF($F$11="Recharger 280HD",'280HD-Imperial'!E16,IF($F$11="Recharger 330XLHD",'330XLHD-Imperial'!E16,IF($F$11="Recharger 902HD",'902HD-Imperial'!H16,IF($F$11="Recharger 180HD",'180HD-Imperial'!C16,IF($F$11='Chamber Images'!$A$9,'360HD-Imperial'!H16,""))))))) -> 0 | G26: 0 | H26: =IF($F$11="Contactor 100HD",'100HD-Imperial'!F16,IF($F$11="Recharger 150XLHD",'150XLHD-Imperial'!F16,IF($F$11="Recharger 280HD",'280HD-Imperial'!F16,IF($F$11="Recharger 330XLHD",'330XLHD-Imperial'!F16,IF($F$11="Recharger 902HD",'902HD-Imperial'!I16,IF($F$11="Contactor Field Drain C-4HD",'C-4HD-Imperial'!D16,IF($F$11="Recharger 180HD",'180HD-Imperial'!F16,IF($F$11='Chamber Images'!$A$9,'360HD-Imperial'!I16,0)))))))) -> 92.25708889 | I26: =IF(B26=0,0,IF(B26<0,"",H26*0.0283168)) -> 2.612425535 | J26: =IF($F$11="Contactor 100HD",'100HD-Imperial'!G16,IF($F$11="Recharger 150XLHD",'150XLHD-Imperial'!G16,IF($F$11="Recharger 280HD",'280HD-Imperial'!G16,IF($F$11="Recharger 330XLHD",'330XLHD-Imperial'!G16,IF($F$11="Recharger 902HD",'902HD-Imperial'!J16,IF($F$11="Contactor Field Drain C-4HD",'C-4HD-Imperial'!E16,IF($F$11="Recharger 180HD",'180HD-Imperial'!G16,IF($F$11='Chamber Images'!$A$9,'360HD-Imperial'!J16,0)))))))) -> 92.25708889 | K26: =IF(B26=0,0,IF(B26<0,"",J26*0.0283168)) -> 2.612425535 | L26: =IF($F$11="Contactor 100HD",'100HD-Imperial'!H16,IF($F$11="Recharger 150XLHD",'150XLHD-Imperial'!H16,IF($F$11="Recharger 280HD",'280HD-Imperial'!H16,IF($F$11="Recharger 330XLHD",'330XLHD-Imperial'!H16,IF($F$11="Recharger 902HD",'902HD-Imperial'!K16,IF($F$11="Contactor Field Drain C-4HD",'C-4HD-Imperial'!F16,IF($F$11="Recharger 180HD",'180HD-Imperial'!H16,IF($F$11='Chamber Images'!$A$9,'360HD-Imperial'!K16,0)))))))) -> 9940.625947 | M26: =IF(B26=0,0,IF(B26<0,"",L26*0.0283168)) -> 281.4867168 | N26: =IF($F$11="Contactor 100HD",'100HD-Imperial'!I16,IF($F$11="Recharger 150XLHD",'150XLHD-Imperial'!I16,IF($F$11="Recharger 280HD",'280HD-Imperial'!I16,IF($F$11="Recharger 330XLHD",'330XLHD-Imperial'!I16,IF($F$11="Recharger 902HD",'902HD-Imperial'!L16,IF($F$11="Contactor Field Drain C-4HD",'C-4HD-Imperial'!G16,IF($F$11="Recharger 180HD",'180HD-Imperial'!I16,IF($F$11='Chamber Images'!$A$9,'360HD-Imperial'!L16,0)))))))) -> 5.67 | O26: 1.7272 | P26: =IF($F$11="Contactor 100HD",'100HD-Imperial'!J16,IF($F$11="Recharger 150XLHD",'150XLHD-Imperial'!J16,IF($F$11="Recharger 280HD",'280HD-Imperial'!J16,IF($F$11="Recharger 330XLHD",'330XLHD-Imperial'!J16,IF($F$11="Recharger 902HD",'902HD-Imperial'!M16,IF($F$11="Recharger 180HD",'180HD-Imperial'!J16,IF($F$11='Chamber Images'!$A$9,'360HD-Imperial'!M16,IF($F$11='Chamber Images'!A3,'C-4HD-Imperial'!H16,"")))))))) -> 
B27: =IF($F$11="Contactor 100HD",'100HD-Imperial'!A17,IF($F$11="Recharger 150XLHD",'150XLHD-Imperial'!A17,IF($F$11="Recharger 280HD",'280HD-Imperial'!A17,IF($F$11="Recharger 330XLHD",'330XLHD-Imperial'!A17,IF($F$11="Recharger 902HD",'902HD-Imperial'!A17,IF($F$11="Contactor Field Drain C-4HD",'C-4HD-Imperial'!A17,IF($F$11="Recharger 180HD",'180HD-Imperial'!A17,IF($F$11='Chamber Images'!$A$9,'360HD-Imperial'!A17)))))))) -> 67 | C27: 1701.8 | D27: =IF($F$11="Contactor 100HD",'100HD-Imperial'!D17,IF($F$11="Recharger 150XLHD",'150XLHD-Imperial'!D17,IF($F$11="Recharger 280HD",'280HD-Imperial'!D17,IF($F$11="Recharger 330XLHD",'330XLHD-Imperial'!D17,IF($F$11="Recharger 902HD",'902HD-Imperial'!G17,IF($F$11="Contactor Field Drain C-4HD",'C-4HD-Imperial'!C17,IF($F$11="Recharger 180HD",'180HD-Imperial'!D17,IF($F$11='Chamber Images'!$A$9,'360HD-Imperial'!G17,0)))))))) -> 0 | E27: 0 | F27: =IF($F$11="Contactor 100HD",'100HD-Imperial'!E17,IF($F$11="Recharger 150XLHD",'150XLHD-Imperial'!E17,IF($F$11="Recharger 280HD",'280HD-Imperial'!E17,IF($F$11="Recharger 330XLHD",'330XLHD-Imperial'!E17,IF($F$11="Recharger 902HD",'902HD-Imperial'!H17,IF($F$11="Recharger 180HD",'180HD-Imperial'!C17,IF($F$11='Chamber Images'!$A$9,'360HD-Imperial'!H17,""))))))) -> 0 | G27: 0 | H27: =IF($F$11="Contactor 100HD",'100HD-Imperial'!F17,IF($F$11="Recharger 150XLHD",'150XLHD-Imperial'!F17,IF($F$11="Recharger 280HD",'280HD-Imperial'!F17,IF($F$11="Recharger 330XLHD",'330XLHD-Imperial'!F17,IF($F$11="Recharger 902HD",'902HD-Imperial'!I17,IF($F$11="Contactor Field Drain C-4HD",'C-4HD-Imperial'!D17,IF($F$11="Recharger 180HD",'180HD-Imperial'!F17,IF($F$11='Chamber Images'!$A$9,'360HD-Imperial'!I17,0)))))))) -> 92.25708889 | I27: 2.612425535 | J27: =IF($F$11="Contactor 100HD",'100HD-Imperial'!G17,IF($F$11="Recharger 150XLHD",'150XLHD-Imperial'!G17,IF($F$11="Recharger 280HD",'280HD-Imperial'!G17,IF($F$11="Recharger 330XLHD",'330XLHD-Imperial'!G17,IF($F$11="Recharger 902HD",'902HD-Imperial'!J17,IF($F$11="Contactor Field Drain C-4HD",'C-4HD-Imperial'!E17,IF($F$11="Recharger 180HD",'180HD-Imperial'!G17,IF($F$11='Chamber Images'!$A$9,'360HD-Imperial'!J17,0)))))))) -> 92.25708889 | K27: 2.612425535 | L27: =IF($F$11="Contactor 100HD",'100HD-Imperial'!H17,IF($F$11="Recharger 150XLHD",'150XLHD-Imperial'!H17,IF($F$11="Recharger 280HD",'280HD-Imperial'!H17,IF($F$11="Recharger 330XLHD",'330XLHD-Imperial'!H17,IF($F$11="Recharger 902HD",'902HD-Imperial'!K17,IF($F$11="Contactor Field Drain C-4HD",'C-4HD-Imperial'!F17,IF($F$11="Recharger 180HD",'180HD-Imperial'!H17,IF($F$11='Chamber Images'!$A$9,'360HD-Imperial'!K17,0)))))))) -> 9848.368858 | M27: 278.8742913 | N27: =IF($F$11="Contactor 100HD",'100HD-Imperial'!I17,IF($F$11="Recharger 150XLHD",'150XLHD-Imperial'!I17,IF($F$11="Recharger 280HD",'280HD-Imperial'!I17,IF($F$11="Recharger 330XLHD",'330XLHD-Imperial'!I17,IF($F$11="Recharger 902HD",'902HD-Imperial'!L17,IF($F$11="Contactor Field Drain C-4HD",'C-4HD-Imperial'!G17,IF($F$11="Recharger 180HD",'180HD-Imperial'!I17,IF($F$11='Chamber Images'!$A$9,'360HD-Imperial'!L17,0)))))))) -> 5.58 | O27: 1.7018 | P27: =IF($F$11="Contactor 100HD",'100HD-Imperial'!J17,IF($F$11="Recharger 150XLHD",'150XLHD-Imperial'!J17,IF($F$11="Recharger 280HD",'280HD-Imperial'!J17,IF($F$11="Recharger 330XLHD",'330XLHD-Imperial'!J17,IF($F$11="Recharger 902HD",'902HD-Imperial'!M17,IF($F$11="Recharger 180HD",'180HD-Imperial'!J17,IF($F$11='Chamber Images'!$A$9,'360HD-Imperial'!M17,IF($F$11='Chamber Images'!A4,'C-4HD-Imperial'!H17,"")))))))) -> 
B28: =IF($F$11="Contactor 100HD",'100HD-Imperial'!A18,IF($F$11="Recharger 150XLHD",'150XLHD-Imperial'!A18,IF($F$11="Recharger 280HD",'280HD-Imperial'!A18,IF($F$11="Recharger 330XLHD",'330XLHD-Imperial'!A18,IF($F$11="Recharger 902HD",'902HD-Imperial'!A18,IF($F$11="Contactor Field Drain C-4HD",'C-4HD-Imperial'!A18,IF($F$11="Recharger 180HD",'180HD-Imperial'!A18,IF($F$11='Chamber Images'!$A$9,'360HD-Imperial'!A18)))))))) -> 66 | C28: 1676.4 | D28: =IF($F$11="Contactor 100HD",'100HD-Imperial'!D18,IF($F$11="Recharger 150XLHD",'150XLHD-Imperial'!D18,IF($F$11="Recharger 280HD",'280HD-Imperial'!D18,IF($F$11="Recharger 330XLHD",'330XLHD-Imperial'!D18,IF($F$11="Recharger 902HD",'902HD-Imperial'!G18,IF($F$11="Contactor Field Drain C-4HD",'C-4HD-Imperial'!C18,IF($F$11="Recharger 180HD",'180HD-Imperial'!D18,IF($F$11='Chamber Images'!$A$9,'360HD-Imperial'!G18,0)))))))) -> 0 | E28: 0 | F28: =IF($F$11="Contactor 100HD",'100HD-Imperial'!E18,IF($F$11="Recharger 150XLHD",'150XLHD-Imperial'!E18,IF($F$11="Recharger 280HD",'280HD-Imperial'!E18,IF($F$11="Recharger 330XLHD",'330XLHD-Imperial'!E18,IF($F$11="Recharger 902HD",'902HD-Imperial'!H18,IF($F$11="Recharger 180HD",'180HD-Imperial'!C18,IF($F$11='Chamber Images'!$A$9,'360HD-Imperial'!H18,""))))))) -> 0 | G28: 0 | H28: =IF($F$11="Contactor 100HD",'100HD-Imperial'!F18,IF($F$11="Recharger 150XLHD",'150XLHD-Imperial'!F18,IF($F$11="Recharger 280HD",'280HD-Imperial'!F18,IF($F$11="Recharger 330XLHD",'330XLHD-Imperial'!F18,IF($F$11="Recharger 902HD",'902HD-Imperial'!I18,IF($F$11="Contactor Field Drain C-4HD",'C-4HD-Imperial'!D18,IF($F$11="Recharger 180HD",'180HD-Imperial'!F18,IF($F$11='Chamber Images'!$A$9,'360HD-Imperial'!I18,0)))))))) -> 92.25708889 | I28: 2.612425535 | J28: =IF($F$11="Contactor 100HD",'100HD-Imperial'!G18,IF($F$11="Recharger 150XLHD",'150XLHD-Imperial'!G18,IF($F$11="Recharger 280HD",'280HD-Imperial'!G18,IF($F$11="Recharger 330XLHD",'330XLHD-Imperial'!G18,IF($F$11="Recharger 902HD",'902HD-Imperial'!J18,IF($F$11="Contactor Field Drain C-4HD",'C-4HD-Imperial'!E18,IF($F$11="Recharger 180HD",'180HD-Imperial'!G18,IF($F$11='Chamber Images'!$A$9,'360HD-Imperial'!J18,0)))))))) -> 92.25708889 | K28: 2.612425535 | L28: =IF($F$11="Contactor 100HD",'100HD-Imperial'!H18,IF($F$11="Recharger 150XLHD",'150XLHD-Imperial'!H18,IF($F$11="Recharger 280HD",'280HD-Imperial'!H18,IF($F$11="Recharger 330XLHD",'330XLHD-Imperial'!H18,IF($F$11="Recharger 902HD",'902HD-Imperial'!K18,IF($F$11="Contactor Field Drain C-4HD",'C-4HD-Imperial'!F18,IF($F$11="Recharger 180HD",'180HD-Imperial'!H18,IF($F$11='Chamber Images'!$A$9,'360HD-Imperial'!K18,0)))))))) -> 9756.11177 | M28: 276.2618658 | N28: =IF($F$11="Contactor 100HD",'100HD-Imperial'!I18,IF($F$11="Recharger 150XLHD",'150XLHD-Imperial'!I18,IF($F$11="Recharger 280HD",'280HD-Imperial'!I18,IF($F$11="Recharger 330XLHD",'330XLHD-Imperial'!I18,IF($F$11="Recharger 902HD",'902HD-Imperial'!L18,IF($F$11="Contactor Field Drain C-4HD",'C-4HD-Imperial'!G18,IF($F$11="Recharger 180HD",'180HD-Imperial'!I18,IF($F$11='Chamber Images'!$A$9,'360HD-Imperial'!L18,0)))))))) -> 5.5 | O28: 1.6764 | P28: =IF($F$11="Contactor 100HD",'100HD-Imperial'!J18,IF($F$11="Recharger 150XLHD",'150XLHD-Imperial'!J18,IF($F$11="Recharger 280HD",'280HD-Imperial'!J18,IF($F$11="Recharger 330XLHD",'330XLHD-Imperial'!J18,IF($F$11="Recharger 902HD",'902HD-Imperial'!M18,IF($F$11="Recharger 180HD",'180HD-Imperial'!J18,IF($F$11='Chamber Images'!$A$9,'360HD-Imperial'!M18,IF($F$11='Chamber Images'!A5,'C-4HD-Imperial'!H18,"")))))))) -> 
B29: =IF($F$11="Contactor 100HD",'100HD-Imperial'!A19,IF($F$11="Recharger 150XLHD",'150XLHD-Imperial'!A19,IF($F$11="Recharger 280HD",'280HD-Imperial'!A19,IF($F$11="Recharger 330XLHD",'330XLHD-Imperial'!A19,IF($F$11="Recharger 902HD",'902HD-Imperial'!A19,IF($F$11="Contactor Field Drain C-4HD",'C-4HD-Imperial'!A19,IF($F$11="Recharger 180HD",'180HD-Imperial'!A19,IF($F$11='Chamber Images'!$A$9,'360HD-Imperial'!A19)))))))) -> 65 | C29: 1651 | D29: =IF($F$11="Contactor 100HD",'100HD-Imperial'!D19,IF($F$11="Recharger 150XLHD",'150XLHD-Imperial'!D19,IF($F$11="Recharger 280HD",'280HD-Imperial'!D19,IF($F$11="Recharger 330XLHD",'330XLHD-Imperial'!D19,IF($F$11="Recharger 902HD",'902HD-Imperial'!G19,IF($F$11="Contactor Field Drain C-4HD",'C-4HD-Imperial'!C19,IF($F$11="Recharger 180HD",'180HD-Imperial'!D19,IF($F$11='Chamber Images'!$A$9,'360HD-Imperial'!G19,0)))))))) -> 0 | E29: 0 | F29: =IF($F$11="Contactor 100HD",'100HD-Imperial'!E19,IF($F$11="Recharger 150XLHD",'150XLHD-Imperial'!E19,IF($F$11="Recharger 280HD",'280HD-Imperial'!E19,IF($F$11="Recharger 330XLHD",'330XLHD-Imperial'!E19,IF($F$11="Recharger 902HD",'902HD-Imperial'!H19,IF($F$11="Recharger 180HD",'180HD-Imperial'!C19,IF($F$11='Chamber Images'!$A$9,'360HD-Imperial'!H19,""))))))) -> 0 | G29: 0 | H29: =IF($F$11="Contactor 100HD",'100HD-Imperial'!F19,IF($F$11="Recharger 150XLHD",'150XLHD-Imperial'!F19,IF($F$11="Recharger 280HD",'280HD-Imperial'!F19,IF($F$11="Recharger 330XLHD",'330XLHD-Imperial'!F19,IF($F$11="Recharger 902HD",'902HD-Imperial'!I19,IF($F$11="Contactor Field Drain C-4HD",'C-4HD-Imperial'!D19,IF($F$11="Recharger 180HD",'180HD-Imperial'!F19,IF($F$11='Chamber Images'!$A$9,'360HD-Imperial'!I19,0)))))))) -> 92.25708889 | I29: 2.612425535 | J29: =IF($F$11="Contactor 100HD",'100HD-Imperial'!G19,IF($F$11="Recharger 150XLHD",'150XLHD-Imperial'!G19,IF($F$11="Recharger 280HD",'280HD-Imperial'!G19,IF($F$11="Recharger 330XLHD",'330XLHD-Imperial'!G19,IF($F$11="Recharger 902HD",'902HD-Imperial'!J19,IF($F$11="Contactor Field Drain C-4HD",'C-4HD-Imperial'!E19,IF($F$11="Recharger 180HD",'180HD-Imperial'!G19,IF($F$11='Chamber Images'!$A$9,'360HD-Imperial'!J19,0)))))))) -> 92.25708889 | K29: 2.612425535 | L29: =IF($F$11="Contactor 100HD",'100HD-Imperial'!H19,IF($F$11="Recharger 150XLHD",'150XLHD-Imperial'!H19,IF($F$11="Recharger 280HD",'280HD-Imperial'!H19,IF($F$11="Recharger 330XLHD",'330XLHD-Imperial'!H19,IF($F$11="Recharger 902HD",'902HD-Imperial'!K19,IF($F$11="Contactor Field Drain C-4HD",'C-4HD-Imperial'!F19,IF($F$11="Recharger 180HD",'180HD-Imperial'!H19,IF($F$11='Chamber Images'!$A$9,'360HD-Imperial'!K19,0)))))))) -> 9663.854681 | M29: 273.6494402 | N29: =IF($F$11="Contactor 100HD",'100HD-Imperial'!I19,IF($F$11="Recharger 150XLHD",'150XLHD-Imperial'!I19,IF($F$11="Recharger 280HD",'280HD-Imperial'!I19,IF($F$11="Recharger 330XLHD",'330XLHD-Imperial'!I19,IF($F$11="Recharger 902HD",'902HD-Imperial'!L19,IF($F$11="Contactor Field Drain C-4HD",'C-4HD-Imperial'!G19,IF($F$11="Recharger 180HD",'180HD-Imperial'!I19,IF($F$11='Chamber Images'!$A$9,'360HD-Imperial'!L19,0)))))))) -> 5.42 | O29: 1.651 | P29: =IF($F$11="Contactor 100HD",'100HD-Imperial'!J19,IF($F$11="Recharger 150XLHD",'150XLHD-Imperial'!J19,IF($F$11="Recharger 280HD",'280HD-Imperial'!J19,IF($F$11="Recharger 330XLHD",'330XLHD-Imperial'!J19,IF($F$11="Recharger 902HD",'902HD-Imperial'!M19,IF($F$11="Recharger 180HD",'180HD-Imperial'!J19,IF($F$11='Chamber Images'!$A$9,'360HD-Imperial'!M19,IF($F$11='Chamber Images'!A6,'C-4HD-Imperial'!H19,"")))))))) -> 
B30: =IF($F$11="Contactor 100HD",'100HD-Imperial'!A20,IF($F$11="Recharger 150XLHD",'150XLHD-Imperial'!A20,IF($F$11="Recharger 280HD",'280HD-Imperial'!A20,IF($F$11="Recharger 330XLHD",'330XLHD-Imperial'!A20,IF($F$11="Recharger 902HD",'902HD-Imperial'!A20,IF($F$11="Contactor Field Drain C-4HD",'C-4HD-Imperial'!A20,IF($F$11="Recharger 180HD",'180HD-Imperial'!A20,IF($F$11='Chamber Images'!$A$9,'360HD-Imperial'!A20)))))))) -> 64 | C30: 1625.6 | D30: =IF($F$11="Contactor 100HD",'100HD-Imperial'!D20,IF($F$11="Recharger 150XLHD",'150XLHD-Imperial'!D20,IF($F$11="Recharger 280HD",'280HD-Imperial'!D20,IF($F$11="Recharger 330XLHD",'330XLHD-Imperial'!D20,IF($F$11="Recharger 902HD",'902HD-Imperial'!G20,IF($F$11="Contactor Field Drain C-4HD",'C-4HD-Imperial'!C20,IF($F$11="Recharger 180HD",'180HD-Imperial'!D20,IF($F$11='Chamber Images'!$A$9,'360HD-Imperial'!G20,0)))))))) -> 0 | E30: 0 | F30: =IF($F$11="Contactor 100HD",'100HD-Imperial'!E20,IF($F$11="Recharger 150XLHD",'150XLHD-Imperial'!E20,IF($F$11="Recharger 280HD",'280HD-Imperial'!E20,IF($F$11="Recharger 330XLHD",'330XLHD-Imperial'!E20,IF($F$11="Recharger 902HD",'902HD-Imperial'!H20,IF($F$11="Recharger 180HD",'180HD-Imperial'!C20,IF($F$11='Chamber Images'!$A$9,'360HD-Imperial'!H20,""))))))) -> 0 | G30: 0 | H30: =IF($F$11="Contactor 100HD",'100HD-Imperial'!F20,IF($F$11="Recharger 150XLHD",'150XLHD-Imperial'!F20,IF($F$11="Recharger 280HD",'280HD-Imperial'!F20,IF($F$11="Recharger 330XLHD",'330XLHD-Imperial'!F20,IF($F$11="Recharger 902HD",'902HD-Imperial'!I20,IF($F$11="Contactor Field Drain C-4HD",'C-4HD-Imperial'!D20,IF($F$11="Recharger 180HD",'180HD-Imperial'!F20,IF($F$11='Chamber Images'!$A$9,'360HD-Imperial'!I20,0)))))))) -> 92.25708889 | I30: 2.612425535 | J30: =IF($F$11="Contactor 100HD",'100HD-Imperial'!G20,IF($F$11="Recharger 150XLHD",'150XLHD-Imperial'!G20,IF($F$11="Recharger 280HD",'280HD-Imperial'!G20,IF($F$11="Recharger 330XLHD",'330XLHD-Imperial'!G20,IF($F$11="Recharger 902HD",'902HD-Imperial'!J20,IF($F$11="Contactor Field Drain C-4HD",'C-4HD-Imperial'!E20,IF($F$11="Recharger 180HD",'180HD-Imperial'!G20,IF($F$11='Chamber Images'!$A$9,'360HD-Imperial'!J20,0)))))))) -> 92.25708889 | K30: 2.612425535 | L30: =IF($F$11="Contactor 100HD",'100HD-Imperial'!H20,IF($F$11="Recharger 150XLHD",'150XLHD-Imperial'!H20,IF($F$11="Recharger 280HD",'280HD-Imperial'!H20,IF($F$11="Recharger 330XLHD",'330XLHD-Imperial'!H20,IF($F$11="Recharger 902HD",'902HD-Imperial'!K20,IF($F$11="Contactor Field Drain C-4HD",'C-4HD-Imperial'!F20,IF($F$11="Recharger 180HD",'180HD-Imperial'!H20,IF($F$11='Chamber Images'!$A$9,'360HD-Imperial'!K20,0)))))))) -> 9571.597592 | M30: 271.0370147 | N30: =IF($F$11="Contactor 100HD",'100HD-Imperial'!I20,IF($F$11="Recharger 150XLHD",'150XLHD-Imperial'!I20,IF($F$11="Recharger 280HD",'280HD-Imperial'!I20,IF($F$11="Recharger 330XLHD",'330XLHD-Imperial'!I20,IF($F$11="Recharger 902HD",'902HD-Imperial'!L20,IF($F$11="Contactor Field Drain C-4HD",'C-4HD-Imperial'!G20,IF($F$11="Recharger 180HD",'180HD-Imperial'!I20,IF($F$11='Chamber Images'!$A$9,'360HD-Imperial'!L20,0)))))))) -> 5.33 | O30: 1.6256 | P30: =IF($F$11="Contactor 100HD",'100HD-Imperial'!J20,IF($F$11="Recharger 150XLHD",'150XLHD-Imperial'!J20,IF($F$11="Recharger 280HD",'280HD-Imperial'!J20,IF($F$11="Recharger 330XLHD",'330XLHD-Imperial'!J20,IF($F$11="Recharger 902HD",'902HD-Imperial'!M20,IF($F$11="Recharger 180HD",'180HD-Imperial'!J20,IF($F$11='Chamber Images'!$A$9,'360HD-Imperial'!M20,IF($F$11='Chamber Images'!A7,'C-4HD-Imperial'!H20,"")))))))) -> 
B31: =IF($F$11="Contactor 100HD",'100HD-Imperial'!A21,IF($F$11="Recharger 150XLHD",'150XLHD-Imperial'!A21,IF($F$11="Recharger 280HD",'280HD-Imperial'!A21,IF($F$11="Recharger 330XLHD",'330XLHD-Imperial'!A21,IF($F$11="Recharger 902HD",'902HD-Imperial'!A21,IF($F$11="Contactor Field Drain C-4HD",'C-4HD-Imperial'!A21,IF($F$11="Recharger 180HD",'180HD-Imperial'!A21,IF($F$11='Chamber Images'!$A$9,'360HD-Imperial'!A21)))))))) -> 63 | C31: 1600.2 | D31: =IF($F$11="Contactor 100HD",'100HD-Imperial'!D21,IF($F$11="Recharger 150XLHD",'150XLHD-Imperial'!D21,IF($F$11="Recharger 280HD",'280HD-Imperial'!D21,IF($F$11="Recharger 330XLHD",'330XLHD-Imperial'!D21,IF($F$11="Recharger 902HD",'902HD-Imperial'!G21,IF($F$11="Contactor Field Drain C-4HD",'C-4HD-Imperial'!C21,IF($F$11="Recharger 180HD",'180HD-Imperial'!D21,IF($F$11='Chamber Images'!$A$9,'360HD-Imperial'!G21,0)))))))) -> 0 | E31: 0 | F31: =IF($F$11="Contactor 100HD",'100HD-Imperial'!E21,IF($F$11="Recharger 150XLHD",'150XLHD-Imperial'!E21,IF($F$11="Recharger 280HD",'280HD-Imperial'!E21,IF($F$11="Recharger 330XLHD",'330XLHD-Imperial'!E21,IF($F$11="Recharger 902HD",'902HD-Imperial'!H21,IF($F$11="Recharger 180HD",'180HD-Imperial'!C21,IF($F$11='Chamber Images'!$A$9,'360HD-Imperial'!H21,""))))))) -> 0 | G31: 0 | H31: =IF($F$11="Contactor 100HD",'100HD-Imperial'!F21,IF($F$11="Recharger 150XLHD",'150XLHD-Imperial'!F21,IF($F$11="Recharger 280HD",'280HD-Imperial'!F21,IF($F$11="Recharger 330XLHD",'330XLHD-Imperial'!F21,IF($F$11="Recharger 902HD",'902HD-Imperial'!I21,IF($F$11="Contactor Field Drain C-4HD",'C-4HD-Imperial'!D21,IF($F$11="Recharger 180HD",'180HD-Imperial'!F21,IF($F$11='Chamber Images'!$A$9,'360HD-Imperial'!I21,0)))))))) -> 92.25708889 | I31: 2.612425535 | J31: =IF($F$11="Contactor 100HD",'100HD-Imperial'!G21,IF($F$11="Recharger 150XLHD",'150XLHD-Imperial'!G21,IF($F$11="Recharger 280HD",'280HD-Imperial'!G21,IF($F$11="Recharger 330XLHD",'330XLHD-Imperial'!G21,IF($F$11="Recharger 902HD",'902HD-Imperial'!J21,IF($F$11="Contactor Field Drain C-4HD",'C-4HD-Imperial'!E21,IF($F$11="Recharger 180HD",'180HD-Imperial'!G21,IF($F$11='Chamber Images'!$A$9,'360HD-Imperial'!J21,0)))))))) -> 92.25708889 | K31: 2.612425535 | L31: =IF($F$11="Contactor 100HD",'100HD-Imperial'!H21,IF($F$11="Recharger 150XLHD",'150XLHD-Imperial'!H21,IF($F$11="Recharger 280HD",'280HD-Imperial'!H21,IF($F$11="Recharger 330XLHD",'330XLHD-Imperial'!H21,IF($F$11="Recharger 902HD",'902HD-Imperial'!K21,IF($F$11="Contactor Field Drain C-4HD",'C-4HD-Imperial'!F21,IF($F$11="Recharger 180HD",'180HD-Imperial'!H21,IF($F$11='Chamber Images'!$A$9,'360HD-Imperial'!K21,0)))))))) -> 9479.340503 | M31: 268.4245892 | N31: =IF($F$11="Contactor 100HD",'100HD-Imperial'!I21,IF($F$11="Recharger 150XLHD",'150XLHD-Imperial'!I21,IF($F$11="Recharger 280HD",'280HD-Imperial'!I21,IF($F$11="Recharger 330XLHD",'330XLHD-Imperial'!I21,IF($F$11="Recharger 902HD",'902HD-Imperial'!L21,IF($F$11="Contactor Field Drain C-4HD",'C-4HD-Imperial'!G21,IF($F$11="Recharger 180HD",'180HD-Imperial'!I21,IF($F$11='Chamber Images'!$A$9,'360HD-Imperial'!L21,0)))))))) -> 5.25 | O31: 1.6002 | P31: =IF($F$11="Contactor 100HD",'100HD-Imperial'!J21,IF($F$11="Recharger 150XLHD",'150XLHD-Imperial'!J21,IF($F$11="Recharger 280HD",'280HD-Imperial'!J21,IF($F$11="Recharger 330XLHD",'330XLHD-Imperial'!J21,IF($F$11="Recharger 902HD",'902HD-Imperial'!M21,IF($F$11="Recharger 180HD",'180HD-Imperial'!J21,IF($F$11='Chamber Images'!$A$9,'360HD-Imperial'!M21,IF($F$11='Chamber Images'!A8,'C-4HD-Imperial'!H21,"")))))))) -> 
B32: =IF($F$11="Contactor 100HD",'100HD-Imperial'!A22,IF($F$11="Recharger 150XLHD",'150XLHD-Imperial'!A22,IF($F$11="Recharger 280HD",'280HD-Imperial'!A22,IF($F$11="Recharger 330XLHD",'330XLHD-Imperial'!A22,IF($F$11="Recharger 902HD",'902HD-Imperial'!A22,IF($F$11="Contactor Field Drain C-4HD",'C-4HD-Imperial'!A22,IF($F$11="Recharger 180HD",'180HD-Imperial'!A22,IF($F$11='Chamber Images'!$A$9,'360HD-Imperial'!A22)))))))) -> 62 | C32: 1574.8 | D32: =IF($F$11="Contactor 100HD",'100HD-Imperial'!D22,IF($F$11="Recharger 150XLHD",'150XLHD-Imperial'!D22,IF($F$11="Recharger 280HD",'280HD-Imperial'!D22,IF($F$11="Recharger 330XLHD",'330XLHD-Imperial'!D22,IF($F$11="Recharger 902HD",'902HD-Imperial'!G22,IF($F$11="Contactor Field Drain C-4HD",'C-4HD-Imperial'!C22,IF($F$11="Recharger 180HD",'180HD-Imperial'!D22,IF($F$11='Chamber Images'!$A$9,'360HD-Imperial'!G22,0)))))))) -> 0 | E32: 0 | F32: =IF($F$11="Contactor 100HD",'100HD-Imperial'!E22,IF($F$11="Recharger 150XLHD",'150XLHD-Imperial'!E22,IF($F$11="Recharger 280HD",'280HD-Imperial'!E22,IF($F$11="Recharger 330XLHD",'330XLHD-Imperial'!E22,IF($F$11="Recharger 902HD",'902HD-Imperial'!H22,IF($F$11="Recharger 180HD",'180HD-Imperial'!C22,IF($F$11='Chamber Images'!$A$9,'360HD-Imperial'!H22,""))))))) -> 0 | G32: 0 | H32: =IF($F$11="Contactor 100HD",'100HD-Imperial'!F22,IF($F$11="Recharger 150XLHD",'150XLHD-Imperial'!F22,IF($F$11="Recharger 280HD",'280HD-Imperial'!F22,IF($F$11="Recharger 330XLHD",'330XLHD-Imperial'!F22,IF($F$11="Recharger 902HD",'902HD-Imperial'!I22,IF($F$11="Contactor Field Drain C-4HD",'C-4HD-Imperial'!D22,IF($F$11="Recharger 180HD",'180HD-Imperial'!F22,IF($F$11='Chamber Images'!$A$9,'360HD-Imperial'!I22,0)))))))) -> 92.25708889 | I32: 2.612425535 | J32: =IF($F$11="Contactor 100HD",'100HD-Imperial'!G22,IF($F$11="Recharger 150XLHD",'150XLHD-Imperial'!G22,IF($F$11="Recharger 280HD",'280HD-Imperial'!G22,IF($F$11="Recharger 330XLHD",'330XLHD-Imperial'!G22,IF($F$11="Recharger 902HD",'902HD-Imperial'!J22,IF($F$11="Contactor Field Drain C-4HD",'C-4HD-Imperial'!E22,IF($F$11="Recharger 180HD",'180HD-Imperial'!G22,IF($F$11='Chamber Images'!$A$9,'360HD-Imperial'!J22,0)))))))) -> 92.25708889 | K32: 2.612425535 | L32: =IF($F$11="Contactor 100HD",'100HD-Imperial'!H22,IF($F$11="Recharger 150XLHD",'150XLHD-Imperial'!H22,IF($F$11="Recharger 280HD",'280HD-Imperial'!H22,IF($F$11="Recharger 330XLHD",'330XLHD-Imperial'!H22,IF($F$11="Recharger 902HD",'902HD-Imperial'!K22,IF($F$11="Contactor Field Drain C-4HD",'C-4HD-Imperial'!F22,IF($F$11="Recharger 180HD",'180HD-Imperial'!H22,IF($F$11='Chamber Images'!$A$9,'360HD-Imperial'!K22,0)))))))) -> 9387.083414 | M32: 265.8121636 | N32: =IF($F$11="Contactor 100HD",'100HD-Imperial'!I22,IF($F$11="Recharger 150XLHD",'150XLHD-Imperial'!I22,IF($F$11="Recharger 280HD",'280HD-Imperial'!I22,IF($F$11="Recharger 330XLHD",'330XLHD-Imperial'!I22,IF($F$11="Recharger 902HD",'902HD-Imperial'!L22,IF($F$11="Contactor Field Drain C-4HD",'C-4HD-Imperial'!G22,IF($F$11="Recharger 180HD",'180HD-Imperial'!I22,IF($F$11='Chamber Images'!$A$9,'360HD-Imperial'!L22,0)))))))) -> 5.17 | O32: 1.5748 | P32: =IF($F$11="Contactor 100HD",'100HD-Imperial'!J22,IF($F$11="Recharger 150XLHD",'150XLHD-Imperial'!J22,IF($F$11="Recharger 280HD",'280HD-Imperial'!J22,IF($F$11="Recharger 330XLHD",'330XLHD-Imperial'!J22,IF($F$11="Recharger 902HD",'902HD-Imperial'!M22,IF($F$11="Recharger 180HD",'180HD-Imperial'!J22,IF($F$11='Chamber Images'!$A$9,'360HD-Imperial'!M22,IF($F$11='Chamber Images'!A9,'C-4HD-Imperial'!H22,"")))))))) -> 
B33: =IF($F$11="Contactor 100HD",'100HD-Imperial'!A23,IF($F$11="Recharger 150XLHD",'150XLHD-Imperial'!A23,IF($F$11="Recharger 280HD",'280HD-Imperial'!A23,IF($F$11="Recharger 330XLHD",'330XLHD-Imperial'!A23,IF($F$11="Recharger 902HD",'902HD-Imperial'!A23,IF($F$11="Contactor Field Drain C-4HD",'C-4HD-Imperial'!A23,IF($F$11="Recharger 180HD",'180HD-Imperial'!A23,IF($F$11='Chamber Images'!$A$9,'360HD-Imperial'!A23)))))))) -> 61 | C33: 1549.4 | D33: =IF($F$11="Contactor 100HD",'100HD-Imperial'!D23,IF($F$11="Recharger 150XLHD",'150XLHD-Imperial'!D23,IF($F$11="Recharger 280HD",'280HD-Imperial'!D23,IF($F$11="Recharger 330XLHD",'330XLHD-Imperial'!D23,IF($F$11="Recharger 902HD",'902HD-Imperial'!G23,IF($F$11="Contactor Field Drain C-4HD",'C-4HD-Imperial'!C23,IF($F$11="Recharger 180HD",'180HD-Imperial'!D23,IF($F$11='Chamber Images'!$A$9,'360HD-Imperial'!G23,0)))))))) -> 0 | E33: 0 | F33: =IF($F$11="Contactor 100HD",'100HD-Imperial'!E23,IF($F$11="Recharger 150XLHD",'150XLHD-Imperial'!E23,IF($F$11="Recharger 280HD",'280HD-Imperial'!E23,IF($F$11="Recharger 330XLHD",'330XLHD-Imperial'!E23,IF($F$11="Recharger 902HD",'902HD-Imperial'!H23,IF($F$11="Recharger 180HD",'180HD-Imperial'!C23,IF($F$11='Chamber Images'!$A$9,'360HD-Imperial'!H23,""))))))) -> 0 | G33: 0 | H33: =IF($F$11="Contactor 100HD",'100HD-Imperial'!F23,IF($F$11="Recharger 150XLHD",'150XLHD-Imperial'!F23,IF($F$11="Recharger 280HD",'280HD-Imperial'!F23,IF($F$11="Recharger 330XLHD",'330XLHD-Imperial'!F23,IF($F$11="Recharger 902HD",'902HD-Imperial'!I23,IF($F$11="Contactor Field Drain C-4HD",'C-4HD-Imperial'!D23,IF($F$11="Recharger 180HD",'180HD-Imperial'!F23,IF($F$11='Chamber Images'!$A$9,'360HD-Imperial'!I23,0)))))))) -> 92.25708889 | I33: 2.612425535 | J33: =IF($F$11="Contactor 100HD",'100HD-Imperial'!G23,IF($F$11="Recharger 150XLHD",'150XLHD-Imperial'!G23,IF($F$11="Recharger 280HD",'280HD-Imperial'!G23,IF($F$11="Recharger 330XLHD",'330XLHD-Imperial'!G23,IF($F$11="Recharger 902HD",'902HD-Imperial'!J23,IF($F$11="Contactor Field Drain C-4HD",'C-4HD-Imperial'!E23,IF($F$11="Recharger 180HD",'180HD-Imperial'!G23,IF($F$11='Chamber Images'!$A$9,'360HD-Imperial'!J23,0)))))))) -> 92.25708889 | K33: 2.612425535 | L33: =IF($F$11="Contactor 100HD",'100HD-Imperial'!H23,IF($F$11="Recharger 150XLHD",'150XLHD-Imperial'!H23,IF($F$11="Recharger 280HD",'280HD-Imperial'!H23,IF($F$11="Recharger 330XLHD",'330XLHD-Imperial'!H23,IF($F$11="Recharger 902HD",'902HD-Imperial'!K23,IF($F$11="Contactor Field Drain C-4HD",'C-4HD-Imperial'!F23,IF($F$11="Recharger 180HD",'180HD-Imperial'!H23,IF($F$11='Chamber Images'!$A$9,'360HD-Imperial'!K23,0)))))))) -> 9294.826325 | M33: 263.1997381 | N33: =IF($F$11="Contactor 100HD",'100HD-Imperial'!I23,IF($F$11="Recharger 150XLHD",'150XLHD-Imperial'!I23,IF($F$11="Recharger 280HD",'280HD-Imperial'!I23,IF($F$11="Recharger 330XLHD",'330XLHD-Imperial'!I23,IF($F$11="Recharger 902HD",'902HD-Imperial'!L23,IF($F$11="Contactor Field Drain C-4HD",'C-4HD-Imperial'!G23,IF($F$11="Recharger 180HD",'180HD-Imperial'!I23,IF($F$11='Chamber Images'!$A$9,'360HD-Imperial'!L23,0)))))))) -> 5.08 | O33: 1.5494 | P33: =IF($F$11="Contactor 100HD",'100HD-Imperial'!J23,IF($F$11="Recharger 150XLHD",'150XLHD-Imperial'!J23,IF($F$11="Recharger 280HD",'280HD-Imperial'!J23,IF($F$11="Recharger 330XLHD",'330XLHD-Imperial'!J23,IF($F$11="Recharger 902HD",'902HD-Imperial'!M23,IF($F$11="Recharger 180HD",'180HD-Imperial'!J23,IF($F$11='Chamber Images'!$A$9,'360HD-Imperial'!M23,IF($F$11='Chamber Images'!A10,'C-4HD-Imperial'!H23,"")))))))) -> 
B34: =IF($F$11="Contactor 100HD",'100HD-Imperial'!A24,IF($F$11="Recharger 150XLHD",'150XLHD-Imperial'!A24,IF($F$11="Recharger 280HD",'280HD-Imperial'!A24,IF($F$11="Recharger 330XLHD",'330XLHD-Imperial'!A24,IF($F$11="Recharger 902HD",'902HD-Imperial'!A24,IF($F$11="Contactor Field Drain C-4HD",'C-4HD-Imperial'!A24,IF($F$11="Recharger 180HD",'180HD-Imperial'!A24,IF($F$11='Chamber Images'!$A$9,'360HD-Imperial'!A24)))))))) -> 60 | C34: 1524 | D34: =IF($F$11="Contactor 100HD",'100HD-Imperial'!D24,IF($F$11="Recharger 150XLHD",'150XLHD-Imperial'!D24,IF($F$11="Recharger 280HD",'280HD-Imperial'!D24,IF($F$11="Recharger 330XLHD",'330XLHD-Imperial'!D24,IF($F$11="Recharger 902HD",'902HD-Imperial'!G24,IF($F$11="Contactor Field Drain C-4HD",'C-4HD-Imperial'!C24,IF($F$11="Recharger 180HD",'180HD-Imperial'!D24,IF($F$11='Chamber Images'!$A$9,'360HD-Imperial'!G24,0)))))))) -> 0 | E34: 0 | F34: =IF($F$11="Contactor 100HD",'100HD-Imperial'!E24,IF($F$11="Recharger 150XLHD",'150XLHD-Imperial'!E24,IF($F$11="Recharger 280HD",'280HD-Imperial'!E24,IF($F$11="Recharger 330XLHD",'330XLHD-Imperial'!E24,IF($F$11="Recharger 902HD",'902HD-Imperial'!H24,IF($F$11="Recharger 180HD",'180HD-Imperial'!C24,IF($F$11='Chamber Images'!$A$9,'360HD-Imperial'!H24,""))))))) -> 0 | G34: 0 | H34: =IF($F$11="Contactor 100HD",'100HD-Imperial'!F24,IF($F$11="Recharger 150XLHD",'150XLHD-Imperial'!F24,IF($F$11="Recharger 280HD",'280HD-Imperial'!F24,IF($F$11="Recharger 330XLHD",'330XLHD-Imperial'!F24,IF($F$11="Recharger 902HD",'902HD-Imperial'!I24,IF($F$11="Contactor Field Drain C-4HD",'C-4HD-Imperial'!D24,IF($F$11="Recharger 180HD",'180HD-Imperial'!F24,IF($F$11='Chamber Images'!$A$9,'360HD-Imperial'!I24,0)))))))) -> 92.25708889 | I34: 2.612425535 | J34: =IF($F$11="Contactor 100HD",'100HD-Imperial'!G24,IF($F$11="Recharger 150XLHD",'150XLHD-Imperial'!G24,IF($F$11="Recharger 280HD",'280HD-Imperial'!G24,IF($F$11="Recharger 330XLHD",'330XLHD-Imperial'!G24,IF($F$11="Recharger 902HD",'902HD-Imperial'!J24,IF($F$11="Contactor Field Drain C-4HD",'C-4HD-Imperial'!E24,IF($F$11="Recharger 180HD",'180HD-Imperial'!G24,IF($F$11='Chamber Images'!$A$9,'360HD-Imperial'!J24,0)))))))) -> 92.25708889 | K34: 2.612425535 | L34: =IF($F$11="Contactor 100HD",'100HD-Imperial'!H24,IF($F$11="Recharger 150XLHD",'150XLHD-Imperial'!H24,IF($F$11="Recharger 280HD",'280HD-Imperial'!H24,IF($F$11="Recharger 330XLHD",'330XLHD-Imperial'!H24,IF($F$11="Recharger 902HD",'902HD-Imperial'!K24,IF($F$11="Contactor Field Drain C-4HD",'C-4HD-Imperial'!F24,IF($F$11="Recharger 180HD",'180HD-Imperial'!H24,IF($F$11='Chamber Images'!$A$9,'360HD-Imperial'!K24,0)))))))) -> 9202.569236 | M34: 260.5873125 | N34: =IF($F$11="Contactor 100HD",'100HD-Imperial'!I24,IF($F$11="Recharger 150XLHD",'150XLHD-Imperial'!I24,IF($F$11="Recharger 280HD",'280HD-Imperial'!I24,IF($F$11="Recharger 330XLHD",'330XLHD-Imperial'!I24,IF($F$11="Recharger 902HD",'902HD-Imperial'!L24,IF($F$11="Contactor Field Drain C-4HD",'C-4HD-Imperial'!G24,IF($F$11="Recharger 180HD",'180HD-Imperial'!I24,IF($F$11='Chamber Images'!$A$9,'360HD-Imperial'!L24,0)))))))) -> 5 | O34: 1.524 | P34: =IF($F$11="Contactor 100HD",'100HD-Imperial'!J24,IF($F$11="Recharger 150XLHD",'150XLHD-Imperial'!J24,IF($F$11="Recharger 280HD",'280HD-Imperial'!J24,IF($F$11="Recharger 330XLHD",'330XLHD-Imperial'!J24,IF($F$11="Recharger 902HD",'902HD-Imperial'!M24,IF($F$11="Recharger 180HD",'180HD-Imperial'!J24,IF($F$11='Chamber Images'!$A$9,'360HD-Imperial'!M24,IF($F$11='Chamber Images'!#REF!,'C-4HD-Imperial'!H24,"")))))))) -> 
B35: =IF($F$11="Contactor 100HD",'100HD-Imperial'!A25,IF($F$11="Recharger 150XLHD",'150XLHD-Imperial'!A25,IF($F$11="Recharger 280HD",'280HD-Imperial'!A25,IF($F$11="Recharger 330XLHD",'330XLHD-Imperial'!A25,IF($F$11="Recharger 902HD",'902HD-Imperial'!A25,IF($F$11="Contactor Field Drain C-4HD",'C-4HD-Imperial'!A25,IF($F$11="Recharger 180HD",'180HD-Imperial'!A25,IF($F$11='Chamber Images'!$A$9,'360HD-Imperial'!A25)))))))) -> 59 | C35: 1498.6 | D35: =IF($F$11="Contactor 100HD",'100HD-Imperial'!D25,IF($F$11="Recharger 150XLHD",'150XLHD-Imperial'!D25,IF($F$11="Recharger 280HD",'280HD-Imperial'!D25,IF($F$11="Recharger 330XLHD",'330XLHD-Imperial'!D25,IF($F$11="Recharger 902HD",'902HD-Imperial'!G25,IF($F$11="Contactor Field Drain C-4HD",'C-4HD-Imperial'!C25,IF($F$11="Recharger 180HD",'180HD-Imperial'!D25,IF($F$11='Chamber Images'!$A$9,'360HD-Imperial'!G25,0)))))))) -> 0 | E35: 0 | F35: =IF($F$11="Contactor 100HD",'100HD-Imperial'!E25,IF($F$11="Recharger 150XLHD",'150XLHD-Imperial'!E25,IF($F$11="Recharger 280HD",'280HD-Imperial'!E25,IF($F$11="Recharger 330XLHD",'330XLHD-Imperial'!E25,IF($F$11="Recharger 902HD",'902HD-Imperial'!H25,IF($F$11="Recharger 180HD",'180HD-Imperial'!C25,IF($F$11='Chamber Images'!$A$9,'360HD-Imperial'!H25,""))))))) -> 0 | G35: 0 | H35: =IF($F$11="Contactor 100HD",'100HD-Imperial'!F25,IF($F$11="Recharger 150XLHD",'150XLHD-Imperial'!F25,IF($F$11="Recharger 280HD",'280HD-Imperial'!F25,IF($F$11="Recharger 330XLHD",'330XLHD-Imperial'!F25,IF($F$11="Recharger 902HD",'902HD-Imperial'!I25,IF($F$11="Contactor Field Drain C-4HD",'C-4HD-Imperial'!D25,IF($F$11="Recharger 180HD",'180HD-Imperial'!F25,IF($F$11='Chamber Images'!$A$9,'360HD-Imperial'!I25,0)))))))) -> 92.25708889 | I35: 2.612425535 | J35: =IF($F$11="Contactor 100HD",'100HD-Imperial'!G25,IF($F$11="Recharger 150XLHD",'150XLHD-Imperial'!G25,IF($F$11="Recharger 280HD",'280HD-Imperial'!G25,IF($F$11="Recharger 330XLHD",'330XLHD-Imperial'!G25,IF($F$11="Recharger 902HD",'902HD-Imperial'!J25,IF($F$11="Contactor Field Drain C-4HD",'C-4HD-Imperial'!E25,IF($F$11="Recharger 180HD",'180HD-Imperial'!G25,IF($F$11='Chamber Images'!$A$9,'360HD-Imperial'!J25,0)))))))) -> 92.25708889 | K35: 2.612425535 | L35: =IF($F$11="Contactor 100HD",'100HD-Imperial'!H25,IF($F$11="Recharger 150XLHD",'150XLHD-Imperial'!H25,IF($F$11="Recharger 280HD",'280HD-Imperial'!H25,IF($F$11="Recharger 330XLHD",'330XLHD-Imperial'!H25,IF($F$11="Recharger 902HD",'902HD-Imperial'!K25,IF($F$11="Contactor Field Drain C-4HD",'C-4HD-Imperial'!F25,IF($F$11="Recharger 180HD",'180HD-Imperial'!H25,IF($F$11='Chamber Images'!$A$9,'360HD-Imperial'!K25,0)))))))) -> 9110.312147 | M35: 257.974887 | N35: =IF($F$11="Contactor 100HD",'100HD-Imperial'!I25,IF($F$11="Recharger 150XLHD",'150XLHD-Imperial'!I25,IF($F$11="Recharger 280HD",'280HD-Imperial'!I25,IF($F$11="Recharger 330XLHD",'330XLHD-Imperial'!I25,IF($F$11="Recharger 902HD",'902HD-Imperial'!L25,IF($F$11="Contactor Field Drain C-4HD",'C-4HD-Imperial'!G25,IF($F$11="Recharger 180HD",'180HD-Imperial'!I25,IF($F$11='Chamber Images'!$A$9,'360HD-Imperial'!L25,0)))))))) -> 4.92 | O35: 1.4986 | P35: =IF($F$11="Contactor 100HD",'100HD-Imperial'!J25,IF($F$11="Recharger 150XLHD",'150XLHD-Imperial'!J25,IF($F$11="Recharger 280HD",'280HD-Imperial'!J25,IF($F$11="Recharger 330XLHD",'330XLHD-Imperial'!J25,IF($F$11="Recharger 902HD",'902HD-Imperial'!M25,IF($F$11="Recharger 180HD",'180HD-Imperial'!J25,IF($F$11='Chamber Images'!$A$9,'360HD-Imperial'!M25,IF($F$11='Chamber Images'!A11,'C-4HD-Imperial'!H25,"")))))))) -> 
B36: =IF($F$11="Contactor 100HD",'100HD-Imperial'!A26,IF($F$11="Recharger 150XLHD",'150XLHD-Imperial'!A26,IF($F$11="Recharger 280HD",'280HD-Imperial'!A26,IF($F$11="Recharger 330XLHD",'330XLHD-Imperial'!A26,IF($F$11="Recharger 902HD",'902HD-Imperial'!A26,IF($F$11="Contactor Field Drain C-4HD",'C-4HD-Imperial'!A26,IF($F$11="Recharger 180HD",'180HD-Imperial'!A26,IF($F$11='Chamber Images'!$A$9,'360HD-Imperial'!A26)))))))) -> 58 | C36: 1473.2 | D36: =IF($F$11="Contactor 100HD",'100HD-Imperial'!D26,IF($F$11="Recharger 150XLHD",'150XLHD-Imperial'!D26,IF($F$11="Recharger 280HD",'280HD-Imperial'!D26,IF($F$11="Recharger 330XLHD",'330XLHD-Imperial'!D26,IF($F$11="Recharger 902HD",'902HD-Imperial'!G26,IF($F$11="Contactor Field Drain C-4HD",'C-4HD-Imperial'!C26,IF($F$11="Recharger 180HD",'180HD-Imperial'!D26,IF($F$11='Chamber Images'!$A$9,'360HD-Imperial'!G26,0)))))))) -> 0 | E36: 0 | F36: =IF($F$11="Contactor 100HD",'100HD-Imperial'!E26,IF($F$11="Recharger 150XLHD",'150XLHD-Imperial'!E26,IF($F$11="Recharger 280HD",'280HD-Imperial'!E26,IF($F$11="Recharger 330XLHD",'330XLHD-Imperial'!E26,IF($F$11="Recharger 902HD",'902HD-Imperial'!H26,IF($F$11="Recharger 180HD",'180HD-Imperial'!C26,IF($F$11='Chamber Images'!$A$9,'360HD-Imperial'!H26,""))))))) -> 0 | G36: 0 | H36: =IF($F$11="Contactor 100HD",'100HD-Imperial'!F26,IF($F$11="Recharger 150XLHD",'150XLHD-Imperial'!F26,IF($F$11="Recharger 280HD",'280HD-Imperial'!F26,IF($F$11="Recharger 330XLHD",'330XLHD-Imperial'!F26,IF($F$11="Recharger 902HD",'902HD-Imperial'!I26,IF($F$11="Contactor Field Drain C-4HD",'C-4HD-Imperial'!D26,IF($F$11="Recharger 180HD",'180HD-Imperial'!F26,IF($F$11='Chamber Images'!$A$9,'360HD-Imperial'!I26,0)))))))) -> 92.25708889 | I36: 2.612425535 | J36: =IF($F$11="Contactor 100HD",'100HD-Imperial'!G26,IF($F$11="Recharger 150XLHD",'150XLHD-Imperial'!G26,IF($F$11="Recharger 280HD",'280HD-Imperial'!G26,IF($F$11="Recharger 330XLHD",'330XLHD-Imperial'!G26,IF($F$11="Recharger 902HD",'902HD-Imperial'!J26,IF($F$11="Contactor Field Drain C-4HD",'C-4HD-Imperial'!E26,IF($F$11="Recharger 180HD",'180HD-Imperial'!G26,IF($F$11='Chamber Images'!$A$9,'360HD-Imperial'!J26,0)))))))) -> 92.25708889 | K36: 2.612425535 | L36: =IF($F$11="Contactor 100HD",'100HD-Imperial'!H26,IF($F$11="Recharger 150XLHD",'150XLHD-Imperial'!H26,IF($F$11="Recharger 280HD",'280HD-Imperial'!H26,IF($F$11="Recharger 330XLHD",'330XLHD-Imperial'!H26,IF($F$11="Recharger 902HD",'902HD-Imperial'!K26,IF($F$11="Contactor Field Drain C-4HD",'C-4HD-Imperial'!F26,IF($F$11="Recharger 180HD",'180HD-Imperial'!H26,IF($F$11='Chamber Images'!$A$9,'360HD-Imperial'!K26,0)))))))) -> 9018.055058 | M36: 255.3624615 | N36: =IF($F$11="Contactor 100HD",'100HD-Imperial'!I26,IF($F$11="Recharger 150XLHD",'150XLHD-Imperial'!I26,IF($F$11="Recharger 280HD",'280HD-Imperial'!I26,IF($F$11="Recharger 330XLHD",'330XLHD-Imperial'!I26,IF($F$11="Recharger 902HD",'902HD-Imperial'!L26,IF($F$11="Contactor Field Drain C-4HD",'C-4HD-Imperial'!G26,IF($F$11="Recharger 180HD",'180HD-Imperial'!I26,IF($F$11='Chamber Images'!$A$9,'360HD-Imperial'!L26,0)))))))) -> 4.83 | O36: 1.4732 | P36: =IF($F$11="Contactor 100HD",'100HD-Imperial'!J26,IF($F$11="Recharger 150XLHD",'150XLHD-Imperial'!J26,IF($F$11="Recharger 280HD",'280HD-Imperial'!J26,IF($F$11="Recharger 330XLHD",'330XLHD-Imperial'!J26,IF($F$11="Recharger 902HD",'902HD-Imperial'!M26,IF($F$11="Recharger 180HD",'180HD-Imperial'!J26,IF($F$11='Chamber Images'!$A$9,'360HD-Imperial'!M26,IF($F$11='Chamber Images'!A12,'C-4HD-Imperial'!H26,"")))))))) -> 
B37: =IF($F$11="Contactor 100HD",'100HD-Imperial'!A27,IF($F$11="Recharger 150XLHD",'150XLHD-Imperial'!A27,IF($F$11="Recharger 280HD",'280HD-Imperial'!A27,IF($F$11="Recharger 330XLHD",'330XLHD-Imperial'!A27,IF($F$11="Recharger 902HD",'902HD-Imperial'!A27,IF($F$11="Contactor Field Drain C-4HD",'C-4HD-Imperial'!A27,IF($F$11="Recharger 180HD",'180HD-Imperial'!A27,IF($F$11='Chamber Images'!$A$9,'360HD-Imperial'!A27)))))))) -> 57 | C37: 1447.8 | D37: =IF($F$11="Contactor 100HD",'100HD-Imperial'!D27,IF($F$11="Recharger 150XLHD",'150XLHD-Imperial'!D27,IF($F$11="Recharger 280HD",'280HD-Imperial'!D27,IF($F$11="Recharger 330XLHD",'330XLHD-Imperial'!D27,IF($F$11="Recharger 902HD",'902HD-Imperial'!G27,IF($F$11="Contactor Field Drain C-4HD",'C-4HD-Imperial'!C27,IF($F$11="Recharger 180HD",'180HD-Imperial'!D27,IF($F$11='Chamber Images'!$A$9,'360HD-Imperial'!G27,0)))))))) -> 7.156286267 | E37: 0.202643127 | F37: =IF($F$11="Contactor 100HD",'100HD-Imperial'!E27,IF($F$11="Recharger 150XLHD",'150XLHD-Imperial'!E27,IF($F$11="Recharger 280HD",'280HD-Imperial'!E27,IF($F$11="Recharger 330XLHD",'330XLHD-Imperial'!E27,IF($F$11="Recharger 902HD",'902HD-Imperial'!H27,IF($F$11="Recharger 180HD",'180HD-Imperial'!C27,IF($F$11='Chamber Images'!$A$9,'360HD-Imperial'!H27,""))))))) -> 0 | G37: 0 | H37: =IF($F$11="Contactor 100HD",'100HD-Imperial'!F27,IF($F$11="Recharger 150XLHD",'150XLHD-Imperial'!F27,IF($F$11="Recharger 280HD",'280HD-Imperial'!F27,IF($F$11="Recharger 330XLHD",'330XLHD-Imperial'!F27,IF($F$11="Recharger 902HD",'902HD-Imperial'!I27,IF($F$11="Contactor Field Drain C-4HD",'C-4HD-Imperial'!D27,IF($F$11="Recharger 180HD",'180HD-Imperial'!F27,IF($F$11='Chamber Images'!$A$9,'360HD-Imperial'!I27,0)))))))) -> 89.39457438 | I37: 2.531368284 | J37: =IF($F$11="Contactor 100HD",'100HD-Imperial'!G27,IF($F$11="Recharger 150XLHD",'150XLHD-Imperial'!G27,IF($F$11="Recharger 280HD",'280HD-Imperial'!G27,IF($F$11="Recharger 330XLHD",'330XLHD-Imperial'!G27,IF($F$11="Recharger 902HD",'902HD-Imperial'!J27,IF($F$11="Contactor Field Drain C-4HD",'C-4HD-Imperial'!E27,IF($F$11="Recharger 180HD",'180HD-Imperial'!G27,IF($F$11='Chamber Images'!$A$9,'360HD-Imperial'!J27,0)))))))) -> 96.55086065 | K37: 2.734011411 | L37: =IF($F$11="Contactor 100HD",'100HD-Imperial'!H27,IF($F$11="Recharger 150XLHD",'150XLHD-Imperial'!H27,IF($F$11="Recharger 280HD",'280HD-Imperial'!H27,IF($F$11="Recharger 330XLHD",'330XLHD-Imperial'!H27,IF($F$11="Recharger 902HD",'902HD-Imperial'!K27,IF($F$11="Contactor Field Drain C-4HD",'C-4HD-Imperial'!F27,IF($F$11="Recharger 180HD",'180HD-Imperial'!H27,IF($F$11='Chamber Images'!$A$9,'360HD-Imperial'!K27,0)))))))) -> 8925.79797 | M37: 252.7500359 | N37: =IF($F$11="Contactor 100HD",'100HD-Imperial'!I27,IF($F$11="Recharger 150XLHD",'150XLHD-Imperial'!I27,IF($F$11="Recharger 280HD",'280HD-Imperial'!I27,IF($F$11="Recharger 330XLHD",'330XLHD-Imperial'!I27,IF($F$11="Recharger 902HD",'902HD-Imperial'!L27,IF($F$11="Contactor Field Drain C-4HD",'C-4HD-Imperial'!G27,IF($F$11="Recharger 180HD",'180HD-Imperial'!I27,IF($F$11='Chamber Images'!$A$9,'360HD-Imperial'!L27,0)))))))) -> 4.75 | O37: 1.4478 | P37: =IF($F$11="Contactor 100HD",'100HD-Imperial'!J27,IF($F$11="Recharger 150XLHD",'150XLHD-Imperial'!J27,IF($F$11="Recharger 280HD",'280HD-Imperial'!J27,IF($F$11="Recharger 330XLHD",'330XLHD-Imperial'!J27,IF($F$11="Recharger 902HD",'902HD-Imperial'!M27,IF($F$11="Recharger 180HD",'180HD-Imperial'!J27,IF($F$11='Chamber Images'!$A$9,'360HD-Imperial'!M27,IF($F$11='Chamber Images'!A13,'C-4HD-Imperial'!H27,"")))))))) -> Top of Chamber Elevation
B38: =IF($F$11="Contactor 100HD",'100HD-Imperial'!A28,IF($F$11="Recharger 150XLHD",'150XLHD-Imperial'!A28,IF($F$11="Recharger 280HD",'280HD-Imperial'!A28,IF($F$11="Recharger 330XLHD",'330XLHD-Imperial'!A28,IF($F$11="Recharger 902HD",'902HD-Imperial'!A28,IF($F$11="Contactor Field Drain C-4HD",'C-4HD-Imperial'!A28,IF($F$11="Recharger 180HD",'180HD-Imperial'!A28,IF($F$11='Chamber Images'!$A$9,'360HD-Imperial'!A28)))))))) -> 56 | C38: 1422.4 | D38: =IF($F$11="Contactor 100HD",'100HD-Imperial'!D28,IF($F$11="Recharger 150XLHD",'150XLHD-Imperial'!D28,IF($F$11="Recharger 280HD",'280HD-Imperial'!D28,IF($F$11="Recharger 330XLHD",'330XLHD-Imperial'!D28,IF($F$11="Recharger 902HD",'902HD-Imperial'!G28,IF($F$11="Contactor Field Drain C-4HD",'C-4HD-Imperial'!C28,IF($F$11="Recharger 180HD",'180HD-Imperial'!D28,IF($F$11='Chamber Images'!$A$9,'360HD-Imperial'!G28,0)))))))) -> 17.7744294 | E38: 0.5033149624 | F38: =IF($F$11="Contactor 100HD",'100HD-Imperial'!E28,IF($F$11="Recharger 150XLHD",'150XLHD-Imperial'!E28,IF($F$11="Recharger 280HD",'280HD-Imperial'!E28,IF($F$11="Recharger 330XLHD",'330XLHD-Imperial'!E28,IF($F$11="Recharger 902HD",'902HD-Imperial'!H28,IF($F$11="Recharger 180HD",'180HD-Imperial'!C28,IF($F$11='Chamber Images'!$A$9,'360HD-Imperial'!H28,""))))))) -> 0 | G38: 0 | H38: =IF($F$11="Contactor 100HD",'100HD-Imperial'!F28,IF($F$11="Recharger 150XLHD",'150XLHD-Imperial'!F28,IF($F$11="Recharger 280HD",'280HD-Imperial'!F28,IF($F$11="Recharger 330XLHD",'330XLHD-Imperial'!F28,IF($F$11="Recharger 902HD",'902HD-Imperial'!I28,IF($F$11="Contactor Field Drain C-4HD",'C-4HD-Imperial'!D28,IF($F$11="Recharger 180HD",'180HD-Imperial'!F28,IF($F$11='Chamber Images'!$A$9,'360HD-Imperial'!I28,0)))))))) -> 85.14731713 | I38: 2.41109955 | J38: =IF($F$11="Contactor 100HD",'100HD-Imperial'!G28,IF($F$11="Recharger 150XLHD",'150XLHD-Imperial'!G28,IF($F$11="Recharger 280HD",'280HD-Imperial'!G28,IF($F$11="Recharger 330XLHD",'330XLHD-Imperial'!G28,IF($F$11="Recharger 902HD",'902HD-Imperial'!J28,IF($F$11="Contactor Field Drain C-4HD",'C-4HD-Imperial'!E28,IF($F$11="Recharger 180HD",'180HD-Imperial'!G28,IF($F$11='Chamber Images'!$A$9,'360HD-Imperial'!J28,0)))))))) -> 102.9217465 | K38: 2.914414512 | L38: =IF($F$11="Contactor 100HD",'100HD-Imperial'!H28,IF($F$11="Recharger 150XLHD",'150XLHD-Imperial'!H28,IF($F$11="Recharger 280HD",'280HD-Imperial'!H28,IF($F$11="Recharger 330XLHD",'330XLHD-Imperial'!H28,IF($F$11="Recharger 902HD",'902HD-Imperial'!K28,IF($F$11="Contactor Field Drain C-4HD",'C-4HD-Imperial'!F28,IF($F$11="Recharger 180HD",'180HD-Imperial'!H28,IF($F$11='Chamber Images'!$A$9,'360HD-Imperial'!K28,0)))))))) -> 8829.247109 | M38: 250.0160245 | N38: =IF($F$11="Contactor 100HD",'100HD-Imperial'!I28,IF($F$11="Recharger 150XLHD",'150XLHD-Imperial'!I28,IF($F$11="Recharger 280HD",'280HD-Imperial'!I28,IF($F$11="Recharger 330XLHD",'330XLHD-Imperial'!I28,IF($F$11="Recharger 902HD",'902HD-Imperial'!L28,IF($F$11="Contactor Field Drain C-4HD",'C-4HD-Imperial'!G28,IF($F$11="Recharger 180HD",'180HD-Imperial'!I28,IF($F$11='Chamber Images'!$A$9,'360HD-Imperial'!L28,0)))))))) -> 4.67 | O38: 1.4224 | P38: =IF($F$11="Contactor 100HD",'100HD-Imperial'!J28,IF($F$11="Recharger 150XLHD",'150XLHD-Imperial'!J28,IF($F$11="Recharger 280HD",'280HD-Imperial'!J28,IF($F$11="Recharger 330XLHD",'330XLHD-Imperial'!J28,IF($F$11="Recharger 902HD",'902HD-Imperial'!M28,IF($F$11="Recharger 180HD",'180HD-Imperial'!J28,IF($F$11='Chamber Images'!$A$9,'360HD-Imperial'!M28,IF($F$11='Chamber Images'!A14,'C-4HD-Imperial'!H28,"")))))))) -> 
B39: =IF($F$11="Contactor 100HD",'100HD-Imperial'!A29,IF($F$11="Recharger 150XLHD",'150XLHD-Imperial'!A29,IF($F$11="Recharger 280HD",'280HD-Imperial'!A29,IF($F$11="Recharger 330XLHD",'330XLHD-Imperial'!A29,IF($F$11="Recharger 902HD",'902HD-Imperial'!A29,IF($F$11="Contactor Field Drain C-4HD",'C-4HD-Imperial'!A29,IF($F$11="Recharger 180HD",'180HD-Imperial'!A29,IF($F$11='Chamber Images'!$A$9,'360HD-Imperial'!A29)))))))) -> 55 | C39: 1397 | D39: =IF($F$11="Contactor 100HD",'100HD-Imperial'!D29,IF($F$11="Recharger 150XLHD",'150XLHD-Imperial'!D29,IF($F$11="Recharger 280HD",'280HD-Imperial'!D29,IF($F$11="Recharger 330XLHD",'330XLHD-Imperial'!D29,IF($F$11="Recharger 902HD",'902HD-Imperial'!G29,IF($F$11="Contactor Field Drain C-4HD",'C-4HD-Imperial'!C29,IF($F$11="Recharger 180HD",'180HD-Imperial'!D29,IF($F$11='Chamber Images'!$A$9,'360HD-Imperial'!G29,0)))))))) -> 24.8144294 | E39: 0.7026652344 | F39: =IF($F$11="Contactor 100HD",'100HD-Imperial'!E29,IF($F$11="Recharger 150XLHD",'150XLHD-Imperial'!E29,IF($F$11="Recharger 280HD",'280HD-Imperial'!E29,IF($F$11="Recharger 330XLHD",'330XLHD-Imperial'!E29,IF($F$11="Recharger 902HD",'902HD-Imperial'!H29,IF($F$11="Recharger 180HD",'180HD-Imperial'!C29,IF($F$11='Chamber Images'!$A$9,'360HD-Imperial'!H29,""))))))) -> 0 | G39: 0 | H39: =IF($F$11="Contactor 100HD",'100HD-Imperial'!F29,IF($F$11="Recharger 150XLHD",'150XLHD-Imperial'!F29,IF($F$11="Recharger 280HD",'280HD-Imperial'!F29,IF($F$11="Recharger 330XLHD",'330XLHD-Imperial'!F29,IF($F$11="Recharger 902HD",'902HD-Imperial'!I29,IF($F$11="Contactor Field Drain C-4HD",'C-4HD-Imperial'!D29,IF($F$11="Recharger 180HD",'180HD-Imperial'!F29,IF($F$11='Chamber Images'!$A$9,'360HD-Imperial'!I29,0)))))))) -> 82.33131713 | I39: 2.331359441 | J39: =IF($F$11="Contactor 100HD",'100HD-Imperial'!G29,IF($F$11="Recharger 150XLHD",'150XLHD-Imperial'!G29,IF($F$11="Recharger 280HD",'280HD-Imperial'!G29,IF($F$11="Recharger 330XLHD",'330XLHD-Imperial'!G29,IF($F$11="Recharger 902HD",'902HD-Imperial'!J29,IF($F$11="Contactor Field Drain C-4HD",'C-4HD-Imperial'!E29,IF($F$11="Recharger 180HD",'180HD-Imperial'!G29,IF($F$11='Chamber Images'!$A$9,'360HD-Imperial'!J29,0)))))))) -> 107.1457465 | K39: 3.034024675 | L39: =IF($F$11="Contactor 100HD",'100HD-Imperial'!H29,IF($F$11="Recharger 150XLHD",'150XLHD-Imperial'!H29,IF($F$11="Recharger 280HD",'280HD-Imperial'!H29,IF($F$11="Recharger 330XLHD",'330XLHD-Imperial'!H29,IF($F$11="Recharger 902HD",'902HD-Imperial'!K29,IF($F$11="Contactor Field Drain C-4HD",'C-4HD-Imperial'!F29,IF($F$11="Recharger 180HD",'180HD-Imperial'!H29,IF($F$11='Chamber Images'!$A$9,'360HD-Imperial'!K29,0)))))))) -> 8726.325362 | M39: 247.10161 | N39: =IF($F$11="Contactor 100HD",'100HD-Imperial'!I29,IF($F$11="Recharger 150XLHD",'150XLHD-Imperial'!I29,IF($F$11="Recharger 280HD",'280HD-Imperial'!I29,IF($F$11="Recharger 330XLHD",'330XLHD-Imperial'!I29,IF($F$11="Recharger 902HD",'902HD-Imperial'!L29,IF($F$11="Contactor Field Drain C-4HD",'C-4HD-Imperial'!G29,IF($F$11="Recharger 180HD",'180HD-Imperial'!I29,IF($F$11='Chamber Images'!$A$9,'360HD-Imperial'!L29,0)))))))) -> 4.58 | O39: 1.397 | P39: =IF($F$11="Contactor 100HD",'100HD-Imperial'!J29,IF($F$11="Recharger 150XLHD",'150XLHD-Imperial'!J29,IF($F$11="Recharger 280HD",'280HD-Imperial'!J29,IF($F$11="Recharger 330XLHD",'330XLHD-Imperial'!J29,IF($F$11="Recharger 902HD",'902HD-Imperial'!M29,IF($F$11="Recharger 180HD",'180HD-Imperial'!J29,IF($F$11='Chamber Images'!$A$9,'360HD-Imperial'!M29,IF($F$11='Chamber Images'!A15,'C-4HD-Imperial'!H29,"")))))))) -> 
B40: =IF($F$11="Contactor 100HD",'100HD-Imperial'!A30,IF($F$11="Recharger 150XLHD",'150XLHD-Imperial'!A30,IF($F$11="Recharger 280HD",'280HD-Imperial'!A30,IF($F$11="Recharger 330XLHD",'330XLHD-Imperial'!A30,IF($F$11="Recharger 902HD",'902HD-Imperial'!A30,IF($F$11="Contactor Field Drain C-4HD",'C-4HD-Imperial'!A30,IF($F$11="Recharger 180HD",'180HD-Imperial'!A30,IF($F$11='Chamber Images'!$A$9,'360HD-Imperial'!A30)))))))) -> 54 | C40: 1371.6 | D40: =IF($F$11="Contactor 100HD",'100HD-Imperial'!D30,IF($F$11="Recharger 150XLHD",'150XLHD-Imperial'!D30,IF($F$11="Recharger 280HD",'280HD-Imperial'!D30,IF($F$11="Recharger 330XLHD",'330XLHD-Imperial'!D30,IF($F$11="Recharger 902HD",'902HD-Imperial'!G30,IF($F$11="Contactor Field Drain C-4HD",'C-4HD-Imperial'!C30,IF($F$11="Recharger 180HD",'180HD-Imperial'!D30,IF($F$11='Chamber Images'!$A$9,'360HD-Imperial'!G30,0)))))))) -> 42.47257253 | E40: 1.202687342 | F40: =IF($F$11="Contactor 100HD",'100HD-Imperial'!E30,IF($F$11="Recharger 150XLHD",'150XLHD-Imperial'!E30,IF($F$11="Recharger 280HD",'280HD-Imperial'!E30,IF($F$11="Recharger 330XLHD",'330XLHD-Imperial'!E30,IF($F$11="Recharger 902HD",'902HD-Imperial'!H30,IF($F$11="Recharger 180HD",'180HD-Imperial'!C30,IF($F$11='Chamber Images'!$A$9,'360HD-Imperial'!H30,""))))))) -> 0 | G40: 0 | H40: =IF($F$11="Contactor 100HD",'100HD-Imperial'!F30,IF($F$11="Recharger 150XLHD",'150XLHD-Imperial'!F30,IF($F$11="Recharger 280HD",'280HD-Imperial'!F30,IF($F$11="Recharger 330XLHD",'330XLHD-Imperial'!F30,IF($F$11="Recharger 902HD",'902HD-Imperial'!I30,IF($F$11="Contactor Field Drain C-4HD",'C-4HD-Imperial'!D30,IF($F$11="Recharger 180HD",'180HD-Imperial'!F30,IF($F$11='Chamber Images'!$A$9,'360HD-Imperial'!I30,0)))))))) -> 75.26805988 | I40: 2.131350598 | J40: =IF($F$11="Contactor 100HD",'100HD-Imperial'!G30,IF($F$11="Recharger 150XLHD",'150XLHD-Imperial'!G30,IF($F$11="Recharger 280HD",'280HD-Imperial'!G30,IF($F$11="Recharger 330XLHD",'330XLHD-Imperial'!G30,IF($F$11="Recharger 902HD",'902HD-Imperial'!J30,IF($F$11="Contactor Field Drain C-4HD",'C-4HD-Imperial'!E30,IF($F$11="Recharger 180HD",'180HD-Imperial'!G30,IF($F$11='Chamber Images'!$A$9,'360HD-Imperial'!J30,0)))))))) -> 117.7406324 | K40: 3.33403794 | L40: =IF($F$11="Contactor 100HD",'100HD-Imperial'!H30,IF($F$11="Recharger 150XLHD",'150XLHD-Imperial'!H30,IF($F$11="Recharger 280HD",'280HD-Imperial'!H30,IF($F$11="Recharger 330XLHD",'330XLHD-Imperial'!H30,IF($F$11="Recharger 902HD",'902HD-Imperial'!K30,IF($F$11="Contactor Field Drain C-4HD",'C-4HD-Imperial'!F30,IF($F$11="Recharger 180HD",'180HD-Imperial'!H30,IF($F$11='Chamber Images'!$A$9,'360HD-Imperial'!K30,0)))))))) -> 8619.179616 | M40: 244.0675853 | N40: =IF($F$11="Contactor 100HD",'100HD-Imperial'!I30,IF($F$11="Recharger 150XLHD",'150XLHD-Imperial'!I30,IF($F$11="Recharger 280HD",'280HD-Imperial'!I30,IF($F$11="Recharger 330XLHD",'330XLHD-Imperial'!I30,IF($F$11="Recharger 902HD",'902HD-Imperial'!L30,IF($F$11="Contactor Field Drain C-4HD",'C-4HD-Imperial'!G30,IF($F$11="Recharger 180HD",'180HD-Imperial'!I30,IF($F$11='Chamber Images'!$A$9,'360HD-Imperial'!L30,0)))))))) -> 4.5 | O40: 1.3716 | P40: =IF($F$11="Contactor 100HD",'100HD-Imperial'!J30,IF($F$11="Recharger 150XLHD",'150XLHD-Imperial'!J30,IF($F$11="Recharger 280HD",'280HD-Imperial'!J30,IF($F$11="Recharger 330XLHD",'330XLHD-Imperial'!J30,IF($F$11="Recharger 902HD",'902HD-Imperial'!M30,IF($F$11="Recharger 180HD",'180HD-Imperial'!J30,IF($F$11='Chamber Images'!$A$9,'360HD-Imperial'!M30,IF($F$11='Chamber Images'!A16,'C-4HD-Imperial'!H30,"")))))))) -> 
B41: =IF($F$11="Contactor 100HD",'100HD-Imperial'!A31,IF($F$11="Recharger 150XLHD",'150XLHD-Imperial'!A31,IF($F$11="Recharger 280HD",'280HD-Imperial'!A31,IF($F$11="Recharger 330XLHD",'330XLHD-Imperial'!A31,IF($F$11="Recharger 902HD",'902HD-Imperial'!A31,IF($F$11="Contactor Field Drain C-4HD",'C-4HD-Imperial'!A31,IF($F$11="Recharger 180HD",'180HD-Imperial'!A31,IF($F$11='Chamber Images'!$A$9,'360HD-Imperial'!A31)))))))) -> 53 | C41: 1346.2 | D41: =IF($F$11="Contactor 100HD",'100HD-Imperial'!D31,IF($F$11="Recharger 150XLHD",'150XLHD-Imperial'!D31,IF($F$11="Recharger 280HD",'280HD-Imperial'!D31,IF($F$11="Recharger 330XLHD",'330XLHD-Imperial'!D31,IF($F$11="Recharger 902HD",'902HD-Imperial'!G31,IF($F$11="Contactor Field Drain C-4HD",'C-4HD-Imperial'!C31,IF($F$11="Recharger 180HD",'180HD-Imperial'!D31,IF($F$11='Chamber Images'!$A$9,'360HD-Imperial'!G31,0)))))))) -> 56.61071567 | E41: 1.603034313 | F41: =IF($F$11="Contactor 100HD",'100HD-Imperial'!E31,IF($F$11="Recharger 150XLHD",'150XLHD-Imperial'!E31,IF($F$11="Recharger 280HD",'280HD-Imperial'!E31,IF($F$11="Recharger 330XLHD",'330XLHD-Imperial'!E31,IF($F$11="Recharger 902HD",'902HD-Imperial'!H31,IF($F$11="Recharger 180HD",'180HD-Imperial'!C31,IF($F$11='Chamber Images'!$A$9,'360HD-Imperial'!H31,""))))))) -> 0 | G41: 0 | H41: =IF($F$11="Contactor 100HD",'100HD-Imperial'!F31,IF($F$11="Recharger 150XLHD",'150XLHD-Imperial'!F31,IF($F$11="Recharger 280HD",'280HD-Imperial'!F31,IF($F$11="Recharger 330XLHD",'330XLHD-Imperial'!F31,IF($F$11="Recharger 902HD",'902HD-Imperial'!I31,IF($F$11="Contactor Field Drain C-4HD",'C-4HD-Imperial'!D31,IF($F$11="Recharger 180HD",'180HD-Imperial'!F31,IF($F$11='Chamber Images'!$A$9,'360HD-Imperial'!I31,0)))))))) -> 69.61280262 | I41: 1.971211809 | J41: =IF($F$11="Contactor 100HD",'100HD-Imperial'!G31,IF($F$11="Recharger 150XLHD",'150XLHD-Imperial'!G31,IF($F$11="Recharger 280HD",'280HD-Imperial'!G31,IF($F$11="Recharger 330XLHD",'330XLHD-Imperial'!G31,IF($F$11="Recharger 902HD",'902HD-Imperial'!J31,IF($F$11="Contactor Field Drain C-4HD",'C-4HD-Imperial'!E31,IF($F$11="Recharger 180HD",'180HD-Imperial'!G31,IF($F$11='Chamber Images'!$A$9,'360HD-Imperial'!J31,0)))))))) -> 126.2235183 | K41: 3.574246123 | L41: =IF($F$11="Contactor 100HD",'100HD-Imperial'!H31,IF($F$11="Recharger 150XLHD",'150XLHD-Imperial'!H31,IF($F$11="Recharger 280HD",'280HD-Imperial'!H31,IF($F$11="Recharger 330XLHD",'330XLHD-Imperial'!H31,IF($F$11="Recharger 902HD",'902HD-Imperial'!K31,IF($F$11="Contactor Field Drain C-4HD",'C-4HD-Imperial'!F31,IF($F$11="Recharger 180HD",'180HD-Imperial'!H31,IF($F$11='Chamber Images'!$A$9,'360HD-Imperial'!K31,0)))))))) -> 8501.438983 | M41: 240.7335474 | N41: =IF($F$11="Contactor 100HD",'100HD-Imperial'!I31,IF($F$11="Recharger 150XLHD",'150XLHD-Imperial'!I31,IF($F$11="Recharger 280HD",'280HD-Imperial'!I31,IF($F$11="Recharger 330XLHD",'330XLHD-Imperial'!I31,IF($F$11="Recharger 902HD",'902HD-Imperial'!L31,IF($F$11="Contactor Field Drain C-4HD",'C-4HD-Imperial'!G31,IF($F$11="Recharger 180HD",'180HD-Imperial'!I31,IF($F$11='Chamber Images'!$A$9,'360HD-Imperial'!L31,0)))))))) -> 4.42 | O41: 1.3462 | P41: =IF($F$11="Contactor 100HD",'100HD-Imperial'!J31,IF($F$11="Recharger 150XLHD",'150XLHD-Imperial'!J31,IF($F$11="Recharger 280HD",'280HD-Imperial'!J31,IF($F$11="Recharger 330XLHD",'330XLHD-Imperial'!J31,IF($F$11="Recharger 902HD",'902HD-Imperial'!M31,IF($F$11="Recharger 180HD",'180HD-Imperial'!J31,IF($F$11='Chamber Images'!$A$9,'360HD-Imperial'!M31,IF($F$11='Chamber Images'!A17,'C-4HD-Imperial'!H31,"")))))))) -> 
B42: =IF($F$11="Contactor 100HD",'100HD-Imperial'!A32,IF($F$11="Recharger 150XLHD",'150XLHD-Imperial'!A32,IF($F$11="Recharger 280HD",'280HD-Imperial'!A32,IF($F$11="Recharger 330XLHD",'330XLHD-Imperial'!A32,IF($F$11="Recharger 902HD",'902HD-Imperial'!A32,IF($F$11="Contactor Field Drain C-4HD",'C-4HD-Imperial'!A32,IF($F$11="Recharger 180HD",'180HD-Imperial'!A32,IF($F$11='Chamber Images'!$A$9,'360HD-Imperial'!A32)))))))) -> 52 | C42: 1320.8 | D42: =IF($F$11="Contactor 100HD",'100HD-Imperial'!D32,IF($F$11="Recharger 150XLHD",'150XLHD-Imperial'!D32,IF($F$11="Recharger 280HD",'280HD-Imperial'!D32,IF($F$11="Recharger 330XLHD",'330XLHD-Imperial'!D32,IF($F$11="Recharger 902HD",'902HD-Imperial'!G32,IF($F$11="Contactor Field Drain C-4HD",'C-4HD-Imperial'!C32,IF($F$11="Recharger 180HD",'180HD-Imperial'!D32,IF($F$11='Chamber Images'!$A$9,'360HD-Imperial'!G32,0)))))))) -> 70.63257253 | E42: 2.00008843 | F42: =IF($F$11="Contactor 100HD",'100HD-Imperial'!E32,IF($F$11="Recharger 150XLHD",'150XLHD-Imperial'!E32,IF($F$11="Recharger 280HD",'280HD-Imperial'!E32,IF($F$11="Recharger 330XLHD",'330XLHD-Imperial'!E32,IF($F$11="Recharger 902HD",'902HD-Imperial'!H32,IF($F$11="Recharger 180HD",'180HD-Imperial'!C32,IF($F$11='Chamber Images'!$A$9,'360HD-Imperial'!H32,""))))))) -> 0 | G42: 0 | H42: =IF($F$11="Contactor 100HD",'100HD-Imperial'!F32,IF($F$11="Recharger 150XLHD",'150XLHD-Imperial'!F32,IF($F$11="Recharger 280HD",'280HD-Imperial'!F32,IF($F$11="Recharger 330XLHD",'330XLHD-Imperial'!F32,IF($F$11="Recharger 902HD",'902HD-Imperial'!I32,IF($F$11="Contactor Field Drain C-4HD",'C-4HD-Imperial'!D32,IF($F$11="Recharger 180HD",'180HD-Imperial'!F32,IF($F$11='Chamber Images'!$A$9,'360HD-Imperial'!I32,0)))))))) -> 64.00405988 | I42: 1.812390163 | J42: =IF($F$11="Contactor 100HD",'100HD-Imperial'!G32,IF($F$11="Recharger 150XLHD",'150XLHD-Imperial'!G32,IF($F$11="Recharger 280HD",'280HD-Imperial'!G32,IF($F$11="Recharger 330XLHD",'330XLHD-Imperial'!G32,IF($F$11="Recharger 902HD",'902HD-Imperial'!J32,IF($F$11="Contactor Field Drain C-4HD",'C-4HD-Imperial'!E32,IF($F$11="Recharger 180HD",'180HD-Imperial'!G32,IF($F$11='Chamber Images'!$A$9,'360HD-Imperial'!J32,0)))))))) -> 134.6366324 | K42: 3.812478593 | L42: =IF($F$11="Contactor 100HD",'100HD-Imperial'!H32,IF($F$11="Recharger 150XLHD",'150XLHD-Imperial'!H32,IF($F$11="Recharger 280HD",'280HD-Imperial'!H32,IF($F$11="Recharger 330XLHD",'330XLHD-Imperial'!H32,IF($F$11="Recharger 902HD",'902HD-Imperial'!K32,IF($F$11="Contactor Field Drain C-4HD",'C-4HD-Imperial'!F32,IF($F$11="Recharger 180HD",'180HD-Imperial'!H32,IF($F$11='Chamber Images'!$A$9,'360HD-Imperial'!K32,0)))))))) -> 8375.215465 | M42: 237.1593013 | N42: =IF($F$11="Contactor 100HD",'100HD-Imperial'!I32,IF($F$11="Recharger 150XLHD",'150XLHD-Imperial'!I32,IF($F$11="Recharger 280HD",'280HD-Imperial'!I32,IF($F$11="Recharger 330XLHD",'330XLHD-Imperial'!I32,IF($F$11="Recharger 902HD",'902HD-Imperial'!L32,IF($F$11="Contactor Field Drain C-4HD",'C-4HD-Imperial'!G32,IF($F$11="Recharger 180HD",'180HD-Imperial'!I32,IF($F$11='Chamber Images'!$A$9,'360HD-Imperial'!L32,0)))))))) -> 4.33 | O42: 1.3208 | P42: =IF($F$11="Contactor 100HD",'100HD-Imperial'!J32,IF($F$11="Recharger 150XLHD",'150XLHD-Imperial'!J32,IF($F$11="Recharger 280HD",'280HD-Imperial'!J32,IF($F$11="Recharger 330XLHD",'330XLHD-Imperial'!J32,IF($F$11="Recharger 902HD",'902HD-Imperial'!M32,IF($F$11="Recharger 180HD",'180HD-Imperial'!J32,IF($F$11='Chamber Images'!$A$9,'360HD-Imperial'!M32,IF($F$11='Chamber Images'!A18,'C-4HD-Imperial'!H32,"")))))))) -> 
B43: =IF($F$11="Contactor 100HD",'100HD-Imperial'!A33,IF($F$11="Recharger 150XLHD",'150XLHD-Imperial'!A33,IF($F$11="Recharger 280HD",'280HD-Imperial'!A33,IF($F$11="Recharger 330XLHD",'330XLHD-Imperial'!A33,IF($F$11="Recharger 902HD",'902HD-Imperial'!A33,IF($F$11="Contactor Field Drain C-4HD",'C-4HD-Imperial'!A33,IF($F$11="Recharger 180HD",'180HD-Imperial'!A33,IF($F$11='Chamber Images'!$A$9,'360HD-Imperial'!A33)))))))) -> 51 | C43: 1295.4 | D43: =IF($F$11="Contactor 100HD",'100HD-Imperial'!D33,IF($F$11="Recharger 150XLHD",'150XLHD-Imperial'!D33,IF($F$11="Recharger 280HD",'280HD-Imperial'!D33,IF($F$11="Recharger 330XLHD",'330XLHD-Imperial'!D33,IF($F$11="Recharger 902HD",'902HD-Imperial'!G33,IF($F$11="Contactor Field Drain C-4HD",'C-4HD-Imperial'!C33,IF($F$11="Recharger 180HD",'180HD-Imperial'!D33,IF($F$11='Chamber Images'!$A$9,'360HD-Imperial'!G33,0)))))))) -> 77.73071567 | E43: 2.201085129 | F43: =IF($F$11="Contactor 100HD",'100HD-Imperial'!E33,IF($F$11="Recharger 150XLHD",'150XLHD-Imperial'!E33,IF($F$11="Recharger 280HD",'280HD-Imperial'!E33,IF($F$11="Recharger 330XLHD",'330XLHD-Imperial'!E33,IF($F$11="Recharger 902HD",'902HD-Imperial'!H33,IF($F$11="Recharger 180HD",'180HD-Imperial'!C33,IF($F$11='Chamber Images'!$A$9,'360HD-Imperial'!H33,""))))))) -> 0 | G43: 0 | H43: =IF($F$11="Contactor 100HD",'100HD-Imperial'!F33,IF($F$11="Recharger 150XLHD",'150XLHD-Imperial'!F33,IF($F$11="Recharger 280HD",'280HD-Imperial'!F33,IF($F$11="Recharger 330XLHD",'330XLHD-Imperial'!F33,IF($F$11="Recharger 902HD",'902HD-Imperial'!I33,IF($F$11="Contactor Field Drain C-4HD",'C-4HD-Imperial'!D33,IF($F$11="Recharger 180HD",'180HD-Imperial'!F33,IF($F$11='Chamber Images'!$A$9,'360HD-Imperial'!I33,0)))))))) -> 61.16480262 | I43: 1.731991483 | J43: =IF($F$11="Contactor 100HD",'100HD-Imperial'!G33,IF($F$11="Recharger 150XLHD",'150XLHD-Imperial'!G33,IF($F$11="Recharger 280HD",'280HD-Imperial'!G33,IF($F$11="Recharger 330XLHD",'330XLHD-Imperial'!G33,IF($F$11="Recharger 902HD",'902HD-Imperial'!J33,IF($F$11="Contactor Field Drain C-4HD",'C-4HD-Imperial'!E33,IF($F$11="Recharger 180HD",'180HD-Imperial'!G33,IF($F$11='Chamber Images'!$A$9,'360HD-Imperial'!J33,0)))))))) -> 138.8955183 | K43: 3.933076612 | L43: =IF($F$11="Contactor 100HD",'100HD-Imperial'!H33,IF($F$11="Recharger 150XLHD",'150XLHD-Imperial'!H33,IF($F$11="Recharger 280HD",'280HD-Imperial'!H33,IF($F$11="Recharger 330XLHD",'330XLHD-Imperial'!H33,IF($F$11="Recharger 902HD",'902HD-Imperial'!K33,IF($F$11="Contactor Field Drain C-4HD",'C-4HD-Imperial'!F33,IF($F$11="Recharger 180HD",'180HD-Imperial'!H33,IF($F$11='Chamber Images'!$A$9,'360HD-Imperial'!K33,0)))))))) -> 8240.578833 | M43: 233.3468227 | N43: =IF($F$11="Contactor 100HD",'100HD-Imperial'!I33,IF($F$11="Recharger 150XLHD",'150XLHD-Imperial'!I33,IF($F$11="Recharger 280HD",'280HD-Imperial'!I33,IF($F$11="Recharger 330XLHD",'330XLHD-Imperial'!I33,IF($F$11="Recharger 902HD",'902HD-Imperial'!L33,IF($F$11="Contactor Field Drain C-4HD",'C-4HD-Imperial'!G33,IF($F$11="Recharger 180HD",'180HD-Imperial'!I33,IF($F$11='Chamber Images'!$A$9,'360HD-Imperial'!L33,0)))))))) -> 4.25 | O43: 1.2954 | P43: =IF($F$11="Contactor 100HD",'100HD-Imperial'!J33,IF($F$11="Recharger 150XLHD",'150XLHD-Imperial'!J33,IF($F$11="Recharger 280HD",'280HD-Imperial'!J33,IF($F$11="Recharger 330XLHD",'330XLHD-Imperial'!J33,IF($F$11="Recharger 902HD",'902HD-Imperial'!M33,IF($F$11="Recharger 180HD",'180HD-Imperial'!J33,IF($F$11='Chamber Images'!$A$9,'360HD-Imperial'!M33,IF($F$11='Chamber Images'!A19,'C-4HD-Imperial'!H33,"")))))))) -> 
B44: =IF($F$11="Contactor 100HD",'100HD-Imperial'!A34,IF($F$11="Recharger 150XLHD",'150XLHD-Imperial'!A34,IF($F$11="Recharger 280HD",'280HD-Imperial'!A34,IF($F$11="Recharger 330XLHD",'330XLHD-Imperial'!A34,IF($F$11="Recharger 902HD",'902HD-Imperial'!A34,IF($F$11="Contactor Field Drain C-4HD",'C-4HD-Imperial'!A34,IF($F$11="Recharger 180HD",'180HD-Imperial'!A34,IF($F$11='Chamber Images'!$A$9,'360HD-Imperial'!A34)))))))) -> 50 | C44: 1270 | D44: =IF($F$11="Contactor 100HD",'100HD-Imperial'!D34,IF($F$11="Recharger 150XLHD",'150XLHD-Imperial'!D34,IF($F$11="Recharger 280HD",'280HD-Imperial'!D34,IF($F$11="Recharger 330XLHD",'330XLHD-Imperial'!D34,IF($F$11="Recharger 902HD",'902HD-Imperial'!G34,IF($F$11="Contactor Field Drain C-4HD",'C-4HD-Imperial'!C34,IF($F$11="Recharger 180HD",'180HD-Imperial'!D34,IF($F$11='Chamber Images'!$A$9,'360HD-Imperial'!G34,0)))))))) -> 84.77071567 | E44: 2.400435401 | F44: =IF($F$11="Contactor 100HD",'100HD-Imperial'!E34,IF($F$11="Recharger 150XLHD",'150XLHD-Imperial'!E34,IF($F$11="Recharger 280HD",'280HD-Imperial'!E34,IF($F$11="Recharger 330XLHD",'330XLHD-Imperial'!E34,IF($F$11="Recharger 902HD",'902HD-Imperial'!H34,IF($F$11="Recharger 180HD",'180HD-Imperial'!C34,IF($F$11='Chamber Images'!$A$9,'360HD-Imperial'!H34,""))))))) -> 0 | G44: 0 | H44: =IF($F$11="Contactor 100HD",'100HD-Imperial'!F34,IF($F$11="Recharger 150XLHD",'150XLHD-Imperial'!F34,IF($F$11="Recharger 280HD",'280HD-Imperial'!F34,IF($F$11="Recharger 330XLHD",'330XLHD-Imperial'!F34,IF($F$11="Recharger 902HD",'902HD-Imperial'!I34,IF($F$11="Contactor Field Drain C-4HD",'C-4HD-Imperial'!D34,IF($F$11="Recharger 180HD",'180HD-Imperial'!F34,IF($F$11='Chamber Images'!$A$9,'360HD-Imperial'!I34,0)))))))) -> 58.34880262 | I44: 1.652251374 | J44: =IF($F$11="Contactor 100HD",'100HD-Imperial'!G34,IF($F$11="Recharger 150XLHD",'150XLHD-Imperial'!G34,IF($F$11="Recharger 280HD",'280HD-Imperial'!G34,IF($F$11="Recharger 330XLHD",'330XLHD-Imperial'!G34,IF($F$11="Recharger 902HD",'902HD-Imperial'!J34,IF($F$11="Contactor Field Drain C-4HD",'C-4HD-Imperial'!E34,IF($F$11="Recharger 180HD",'180HD-Imperial'!G34,IF($F$11='Chamber Images'!$A$9,'360HD-Imperial'!J34,0)))))))) -> 143.1195183 | K44: 4.052686775 | L44: =IF($F$11="Contactor 100HD",'100HD-Imperial'!H34,IF($F$11="Recharger 150XLHD",'150XLHD-Imperial'!H34,IF($F$11="Recharger 280HD",'280HD-Imperial'!H34,IF($F$11="Recharger 330XLHD",'330XLHD-Imperial'!H34,IF($F$11="Recharger 902HD",'902HD-Imperial'!K34,IF($F$11="Contactor Field Drain C-4HD",'C-4HD-Imperial'!F34,IF($F$11="Recharger 180HD",'180HD-Imperial'!H34,IF($F$11='Chamber Images'!$A$9,'360HD-Imperial'!K34,0)))))))) -> 8101.683314 | M44: 229.4137461 | N44: =IF($F$11="Contactor 100HD",'100HD-Imperial'!I34,IF($F$11="Recharger 150XLHD",'150XLHD-Imperial'!I34,IF($F$11="Recharger 280HD",'280HD-Imperial'!I34,IF($F$11="Recharger 330XLHD",'330XLHD-Imperial'!I34,IF($F$11="Recharger 902HD",'902HD-Imperial'!L34,IF($F$11="Contactor Field Drain C-4HD",'C-4HD-Imperial'!G34,IF($F$11="Recharger 180HD",'180HD-Imperial'!I34,IF($F$11='Chamber Images'!$A$9,'360HD-Imperial'!L34,0)))))))) -> 4.17 | O44: 1.27 | P44: =IF($F$11="Contactor 100HD",'100HD-Imperial'!J34,IF($F$11="Recharger 150XLHD",'150XLHD-Imperial'!J34,IF($F$11="Recharger 280HD",'280HD-Imperial'!J34,IF($F$11="Recharger 330XLHD",'330XLHD-Imperial'!J34,IF($F$11="Recharger 902HD",'902HD-Imperial'!M34,IF($F$11="Recharger 180HD",'180HD-Imperial'!J34,IF($F$11='Chamber Images'!$A$9,'360HD-Imperial'!M34,IF($F$11='Chamber Images'!A20,'C-4HD-Imperial'!H34,"")))))))) -> 
B45: =IF($F$11="Contactor 100HD",'100HD-Imperial'!A35,IF($F$11="Recharger 150XLHD",'150XLHD-Imperial'!A35,IF($F$11="Recharger 280HD",'280HD-Imperial'!A35,IF($F$11="Recharger 330XLHD",'330XLHD-Imperial'!A35,IF($F$11="Recharger 902HD",'902HD-Imperial'!A35,IF($F$11="Contactor Field Drain C-4HD",'C-4HD-Imperial'!A35,IF($F$11="Recharger 180HD",'180HD-Imperial'!A35,IF($F$11='Chamber Images'!$A$9,'360HD-Imperial'!A35)))))))) -> 49 | C45: 1244.6 | D45: =IF($F$11="Contactor 100HD",'100HD-Imperial'!D35,IF($F$11="Recharger 150XLHD",'150XLHD-Imperial'!D35,IF($F$11="Recharger 280HD",'280HD-Imperial'!D35,IF($F$11="Recharger 330XLHD",'330XLHD-Imperial'!D35,IF($F$11="Recharger 902HD",'902HD-Imperial'!G35,IF($F$11="Contactor Field Drain C-4HD",'C-4HD-Imperial'!C35,IF($F$11="Recharger 180HD",'180HD-Imperial'!D35,IF($F$11='Chamber Images'!$A$9,'360HD-Imperial'!G35,0)))))))) -> 95.33071567 | E45: 2.699460809 | F45: =IF($F$11="Contactor 100HD",'100HD-Imperial'!E35,IF($F$11="Recharger 150XLHD",'150XLHD-Imperial'!E35,IF($F$11="Recharger 280HD",'280HD-Imperial'!E35,IF($F$11="Recharger 330XLHD",'330XLHD-Imperial'!E35,IF($F$11="Recharger 902HD",'902HD-Imperial'!H35,IF($F$11="Recharger 180HD",'180HD-Imperial'!C35,IF($F$11='Chamber Images'!$A$9,'360HD-Imperial'!H35,""))))))) -> 0 | G45: 0 | H45: =IF($F$11="Contactor 100HD",'100HD-Imperial'!F35,IF($F$11="Recharger 150XLHD",'150XLHD-Imperial'!F35,IF($F$11="Recharger 280HD",'280HD-Imperial'!F35,IF($F$11="Recharger 330XLHD",'330XLHD-Imperial'!F35,IF($F$11="Recharger 902HD",'902HD-Imperial'!I35,IF($F$11="Contactor Field Drain C-4HD",'C-4HD-Imperial'!D35,IF($F$11="Recharger 180HD",'180HD-Imperial'!F35,IF($F$11='Chamber Images'!$A$9,'360HD-Imperial'!I35,0)))))))) -> 54.12480262 | I45: 1.532641211 | J45: =IF($F$11="Contactor 100HD",'100HD-Imperial'!G35,IF($F$11="Recharger 150XLHD",'150XLHD-Imperial'!G35,IF($F$11="Recharger 280HD",'280HD-Imperial'!G35,IF($F$11="Recharger 330XLHD",'330XLHD-Imperial'!G35,IF($F$11="Recharger 902HD",'902HD-Imperial'!J35,IF($F$11="Contactor Field Drain C-4HD",'C-4HD-Imperial'!E35,IF($F$11="Recharger 180HD",'180HD-Imperial'!G35,IF($F$11='Chamber Images'!$A$9,'360HD-Imperial'!J35,0)))))))) -> 149.4555183 | K45: 4.23210202 | L45: =IF($F$11="Contactor 100HD",'100HD-Imperial'!H35,IF($F$11="Recharger 150XLHD",'150XLHD-Imperial'!H35,IF($F$11="Recharger 280HD",'280HD-Imperial'!H35,IF($F$11="Recharger 330XLHD",'330XLHD-Imperial'!H35,IF($F$11="Recharger 902HD",'902HD-Imperial'!K35,IF($F$11="Contactor Field Drain C-4HD",'C-4HD-Imperial'!F35,IF($F$11="Recharger 180HD",'180HD-Imperial'!H35,IF($F$11='Chamber Images'!$A$9,'360HD-Imperial'!K35,0)))))))) -> 7958.563796 | M45: 225.3610593 | N45: =IF($F$11="Contactor 100HD",'100HD-Imperial'!I35,IF($F$11="Recharger 150XLHD",'150XLHD-Imperial'!I35,IF($F$11="Recharger 280HD",'280HD-Imperial'!I35,IF($F$11="Recharger 330XLHD",'330XLHD-Imperial'!I35,IF($F$11="Recharger 902HD",'902HD-Imperial'!L35,IF($F$11="Contactor Field Drain C-4HD",'C-4HD-Imperial'!G35,IF($F$11="Recharger 180HD",'180HD-Imperial'!I35,IF($F$11='Chamber Images'!$A$9,'360HD-Imperial'!L35,0)))))))) -> 4.08 | O45: 1.2446 | P45: =IF($F$11="Contactor 100HD",'100HD-Imperial'!J35,IF($F$11="Recharger 150XLHD",'150XLHD-Imperial'!J35,IF($F$11="Recharger 280HD",'280HD-Imperial'!J35,IF($F$11="Recharger 330XLHD",'330XLHD-Imperial'!J35,IF($F$11="Recharger 902HD",'902HD-Imperial'!M35,IF($F$11="Recharger 180HD",'180HD-Imperial'!J35,IF($F$11='Chamber Images'!$A$9,'360HD-Imperial'!M35,IF($F$11='Chamber Images'!A21,'C-4HD-Imperial'!H35,"")))))))) -> 
B46: =IF($F$11="Contactor 100HD",'100HD-Imperial'!A36,IF($F$11="Recharger 150XLHD",'150XLHD-Imperial'!A36,IF($F$11="Recharger 280HD",'280HD-Imperial'!A36,IF($F$11="Recharger 330XLHD",'330XLHD-Imperial'!A36,IF($F$11="Recharger 902HD",'902HD-Imperial'!A36,IF($F$11="Contactor Field Drain C-4HD",'C-4HD-Imperial'!A36,IF($F$11="Recharger 180HD",'180HD-Imperial'!A36,IF($F$11='Chamber Images'!$A$9,'360HD-Imperial'!A36)))))))) -> 48 | C46: 1219.2 | D46: =IF($F$11="Contactor 100HD",'100HD-Imperial'!D36,IF($F$11="Recharger 150XLHD",'150XLHD-Imperial'!D36,IF($F$11="Recharger 280HD",'280HD-Imperial'!D36,IF($F$11="Recharger 330XLHD",'330XLHD-Imperial'!D36,IF($F$11="Recharger 902HD",'902HD-Imperial'!G36,IF($F$11="Contactor Field Drain C-4HD",'C-4HD-Imperial'!C36,IF($F$11="Recharger 180HD",'180HD-Imperial'!D36,IF($F$11='Chamber Images'!$A$9,'360HD-Imperial'!G36,0)))))))) -> 95.33071567 | E46: 2.699460809 | F46: =IF($F$11="Contactor 100HD",'100HD-Imperial'!E36,IF($F$11="Recharger 150XLHD",'150XLHD-Imperial'!E36,IF($F$11="Recharger 280HD",'280HD-Imperial'!E36,IF($F$11="Recharger 330XLHD",'330XLHD-Imperial'!E36,IF($F$11="Recharger 902HD",'902HD-Imperial'!H36,IF($F$11="Recharger 180HD",'180HD-Imperial'!C36,IF($F$11='Chamber Images'!$A$9,'360HD-Imperial'!H36,""))))))) -> 0 | G46: 0 | H46: =IF($F$11="Contactor 100HD",'100HD-Imperial'!F36,IF($F$11="Recharger 150XLHD",'150XLHD-Imperial'!F36,IF($F$11="Recharger 280HD",'280HD-Imperial'!F36,IF($F$11="Recharger 330XLHD",'330XLHD-Imperial'!F36,IF($F$11="Recharger 902HD",'902HD-Imperial'!I36,IF($F$11="Contactor Field Drain C-4HD",'C-4HD-Imperial'!D36,IF($F$11="Recharger 180HD",'180HD-Imperial'!F36,IF($F$11='Chamber Images'!$A$9,'360HD-Imperial'!I36,0)))))))) -> 54.12480262 | I46: 1.532641211 | J46: =IF($F$11="Contactor 100HD",'100HD-Imperial'!G36,IF($F$11="Recharger 150XLHD",'150XLHD-Imperial'!G36,IF($F$11="Recharger 280HD",'280HD-Imperial'!G36,IF($F$11="Recharger 330XLHD",'330XLHD-Imperial'!G36,IF($F$11="Recharger 902HD",'902HD-Imperial'!J36,IF($F$11="Contactor Field Drain C-4HD",'C-4HD-Imperial'!E36,IF($F$11="Recharger 180HD",'180HD-Imperial'!G36,IF($F$11='Chamber Images'!$A$9,'360HD-Imperial'!J36,0)))))))) -> 149.4555183 | K46: 4.23210202 | L46: =IF($F$11="Contactor 100HD",'100HD-Imperial'!H36,IF($F$11="Recharger 150XLHD",'150XLHD-Imperial'!H36,IF($F$11="Recharger 280HD",'280HD-Imperial'!H36,IF($F$11="Recharger 330XLHD",'330XLHD-Imperial'!H36,IF($F$11="Recharger 902HD",'902HD-Imperial'!K36,IF($F$11="Contactor Field Drain C-4HD",'C-4HD-Imperial'!F36,IF($F$11="Recharger 180HD",'180HD-Imperial'!H36,IF($F$11='Chamber Images'!$A$9,'360HD-Imperial'!K36,0)))))))) -> 7809.108278 | M46: 221.1289573 | N46: =IF($F$11="Contactor 100HD",'100HD-Imperial'!I36,IF($F$11="Recharger 150XLHD",'150XLHD-Imperial'!I36,IF($F$11="Recharger 280HD",'280HD-Imperial'!I36,IF($F$11="Recharger 330XLHD",'330XLHD-Imperial'!I36,IF($F$11="Recharger 902HD",'902HD-Imperial'!L36,IF($F$11="Contactor Field Drain C-4HD",'C-4HD-Imperial'!G36,IF($F$11="Recharger 180HD",'180HD-Imperial'!I36,IF($F$11='Chamber Images'!$A$9,'360HD-Imperial'!L36,0)))))))) -> 4 | O46: 1.2192 | P46: =IF($F$11="Contactor 100HD",'100HD-Imperial'!J36,IF($F$11="Recharger 150XLHD",'150XLHD-Imperial'!J36,IF($F$11="Recharger 280HD",'280HD-Imperial'!J36,IF($F$11="Recharger 330XLHD",'330XLHD-Imperial'!J36,IF($F$11="Recharger 902HD",'902HD-Imperial'!M36,IF($F$11="Recharger 180HD",'180HD-Imperial'!J36,IF($F$11='Chamber Images'!$A$9,'360HD-Imperial'!M36,IF($F$11='Chamber Images'!A22,'C-4HD-Imperial'!H36,"")))))))) -> 
B47: =IF($F$11="Contactor 100HD",'100HD-Imperial'!A37,IF($F$11="Recharger 150XLHD",'150XLHD-Imperial'!A37,IF($F$11="Recharger 280HD",'280HD-Imperial'!A37,IF($F$11="Recharger 330XLHD",'330XLHD-Imperial'!A37,IF($F$11="Recharger 902HD",'902HD-Imperial'!A37,IF($F$11="Contactor Field Drain C-4HD",'C-4HD-Imperial'!A37,IF($F$11="Recharger 180HD",'180HD-Imperial'!A37,IF($F$11='Chamber Images'!$A$9,'360HD-Imperial'!A37)))))))) -> 47 | C47: 1193.8 | D47: =IF($F$11="Contactor 100HD",'100HD-Imperial'!D37,IF($F$11="Recharger 150XLHD",'150XLHD-Imperial'!D37,IF($F$11="Recharger 280HD",'280HD-Imperial'!D37,IF($F$11="Recharger 330XLHD",'330XLHD-Imperial'!D37,IF($F$11="Recharger 902HD",'902HD-Imperial'!G37,IF($F$11="Contactor Field Drain C-4HD",'C-4HD-Imperial'!C37,IF($F$11="Recharger 180HD",'180HD-Imperial'!D37,IF($F$11='Chamber Images'!$A$9,'360HD-Imperial'!G37,0)))))))) -> 102.3707157 | E47: 2.898811081 | F47: =IF($F$11="Contactor 100HD",'100HD-Imperial'!E37,IF($F$11="Recharger 150XLHD",'150XLHD-Imperial'!E37,IF($F$11="Recharger 280HD",'280HD-Imperial'!E37,IF($F$11="Recharger 330XLHD",'330XLHD-Imperial'!E37,IF($F$11="Recharger 902HD",'902HD-Imperial'!H37,IF($F$11="Recharger 180HD",'180HD-Imperial'!C37,IF($F$11='Chamber Images'!$A$9,'360HD-Imperial'!H37,""))))))) -> 0 | G47: 0 | H47: =IF($F$11="Contactor 100HD",'100HD-Imperial'!F37,IF($F$11="Recharger 150XLHD",'150XLHD-Imperial'!F37,IF($F$11="Recharger 280HD",'280HD-Imperial'!F37,IF($F$11="Recharger 330XLHD",'330XLHD-Imperial'!F37,IF($F$11="Recharger 902HD",'902HD-Imperial'!I37,IF($F$11="Contactor Field Drain C-4HD",'C-4HD-Imperial'!D37,IF($F$11="Recharger 180HD",'180HD-Imperial'!F37,IF($F$11='Chamber Images'!$A$9,'360HD-Imperial'!I37,0)))))))) -> 51.30880262 | I47: 1.452901102 | J47: =IF($F$11="Contactor 100HD",'100HD-Imperial'!G37,IF($F$11="Recharger 150XLHD",'150XLHD-Imperial'!G37,IF($F$11="Recharger 280HD",'280HD-Imperial'!G37,IF($F$11="Recharger 330XLHD",'330XLHD-Imperial'!G37,IF($F$11="Recharger 902HD",'902HD-Imperial'!J37,IF($F$11="Contactor Field Drain C-4HD",'C-4HD-Imperial'!E37,IF($F$11="Recharger 180HD",'180HD-Imperial'!G37,IF($F$11='Chamber Images'!$A$9,'360HD-Imperial'!J37,0)))))))) -> 153.6795183 | K47: 4.351712183 | L47: =IF($F$11="Contactor 100HD",'100HD-Imperial'!H37,IF($F$11="Recharger 150XLHD",'150XLHD-Imperial'!H37,IF($F$11="Recharger 280HD",'280HD-Imperial'!H37,IF($F$11="Recharger 330XLHD",'330XLHD-Imperial'!H37,IF($F$11="Recharger 902HD",'902HD-Imperial'!K37,IF($F$11="Contactor Field Drain C-4HD",'C-4HD-Imperial'!F37,IF($F$11="Recharger 180HD",'180HD-Imperial'!H37,IF($F$11='Chamber Images'!$A$9,'360HD-Imperial'!K37,0)))))))) -> 7659.65276 | M47: 216.8968553 | N47: =IF($F$11="Contactor 100HD",'100HD-Imperial'!I37,IF($F$11="Recharger 150XLHD",'150XLHD-Imperial'!I37,IF($F$11="Recharger 280HD",'280HD-Imperial'!I37,IF($F$11="Recharger 330XLHD",'330XLHD-Imperial'!I37,IF($F$11="Recharger 902HD",'902HD-Imperial'!L37,IF($F$11="Contactor Field Drain C-4HD",'C-4HD-Imperial'!G37,IF($F$11="Recharger 180HD",'180HD-Imperial'!I37,IF($F$11='Chamber Images'!$A$9,'360HD-Imperial'!L37,0)))))))) -> 3.92 | O47: 1.1938 | P47: =IF($F$11="Contactor 100HD",'100HD-Imperial'!J37,IF($F$11="Recharger 150XLHD",'150XLHD-Imperial'!J37,IF($F$11="Recharger 280HD",'280HD-Imperial'!J37,IF($F$11="Recharger 330XLHD",'330XLHD-Imperial'!J37,IF($F$11="Recharger 902HD",'902HD-Imperial'!M37,IF($F$11="Recharger 180HD",'180HD-Imperial'!J37,IF($F$11='Chamber Images'!$A$9,'360HD-Imperial'!M37,IF($F$11='Chamber Images'!A23,'C-4HD-Imperial'!H37,"")))))))) -> 
B48: =IF($F$11="Contactor 100HD",'100HD-Imperial'!A38,IF($F$11="Recharger 150XLHD",'150XLHD-Imperial'!A38,IF($F$11="Recharger 280HD",'280HD-Imperial'!A38,IF($F$11="Recharger 330XLHD",'330XLHD-Imperial'!A38,IF($F$11="Recharger 902HD",'902HD-Imperial'!A38,IF($F$11="Contactor Field Drain C-4HD",'C-4HD-Imperial'!A38,IF($F$11="Recharger 180HD",'180HD-Imperial'!A38,IF($F$11='Chamber Images'!$A$9,'360HD-Imperial'!A38)))))))) -> 46 | C48: 1168.4 | D48: =IF($F$11="Contactor 100HD",'100HD-Imperial'!D38,IF($F$11="Recharger 150XLHD",'150XLHD-Imperial'!D38,IF($F$11="Recharger 280HD",'280HD-Imperial'!D38,IF($F$11="Recharger 330XLHD",'330XLHD-Imperial'!D38,IF($F$11="Recharger 902HD",'902HD-Imperial'!G38,IF($F$11="Contactor Field Drain C-4HD",'C-4HD-Imperial'!C38,IF($F$11="Recharger 180HD",'180HD-Imperial'!D38,IF($F$11='Chamber Images'!$A$9,'360HD-Imperial'!G38,0)))))))) -> 105.9488588 | E48: 3.000132645 | F48: =IF($F$11="Contactor 100HD",'100HD-Imperial'!E38,IF($F$11="Recharger 150XLHD",'150XLHD-Imperial'!E38,IF($F$11="Recharger 280HD",'280HD-Imperial'!E38,IF($F$11="Recharger 330XLHD",'330XLHD-Imperial'!E38,IF($F$11="Recharger 902HD",'902HD-Imperial'!H38,IF($F$11="Recharger 180HD",'180HD-Imperial'!C38,IF($F$11='Chamber Images'!$A$9,'360HD-Imperial'!H38,""))))))) -> 0 | G48: 0 | H48: =IF($F$11="Contactor 100HD",'100HD-Imperial'!F38,IF($F$11="Recharger 150XLHD",'150XLHD-Imperial'!F38,IF($F$11="Recharger 280HD",'280HD-Imperial'!F38,IF($F$11="Recharger 330XLHD",'330XLHD-Imperial'!F38,IF($F$11="Recharger 902HD",'902HD-Imperial'!I38,IF($F$11="Contactor Field Drain C-4HD",'C-4HD-Imperial'!D38,IF($F$11="Recharger 180HD",'180HD-Imperial'!F38,IF($F$11='Chamber Images'!$A$9,'360HD-Imperial'!I38,0)))))))) -> 49.87754537 | I48: 1.412372477 | J48: =IF($F$11="Contactor 100HD",'100HD-Imperial'!G38,IF($F$11="Recharger 150XLHD",'150XLHD-Imperial'!G38,IF($F$11="Recharger 280HD",'280HD-Imperial'!G38,IF($F$11="Recharger 330XLHD",'330XLHD-Imperial'!G38,IF($F$11="Recharger 902HD",'902HD-Imperial'!J38,IF($F$11="Contactor Field Drain C-4HD",'C-4HD-Imperial'!E38,IF($F$11="Recharger 180HD",'180HD-Imperial'!G38,IF($F$11='Chamber Images'!$A$9,'360HD-Imperial'!J38,0)))))))) -> 155.8264042 | K48: 4.412505122 | L48: =IF($F$11="Contactor 100HD",'100HD-Imperial'!H38,IF($F$11="Recharger 150XLHD",'150XLHD-Imperial'!H38,IF($F$11="Recharger 280HD",'280HD-Imperial'!H38,IF($F$11="Recharger 330XLHD",'330XLHD-Imperial'!H38,IF($F$11="Recharger 902HD",'902HD-Imperial'!K38,IF($F$11="Contactor Field Drain C-4HD",'C-4HD-Imperial'!F38,IF($F$11="Recharger 180HD",'180HD-Imperial'!H38,IF($F$11='Chamber Images'!$A$9,'360HD-Imperial'!K38,0)))))))) -> 7505.973241 | M48: 212.5451431 | N48: =IF($F$11="Contactor 100HD",'100HD-Imperial'!I38,IF($F$11="Recharger 150XLHD",'150XLHD-Imperial'!I38,IF($F$11="Recharger 280HD",'280HD-Imperial'!I38,IF($F$11="Recharger 330XLHD",'330XLHD-Imperial'!I38,IF($F$11="Recharger 902HD",'902HD-Imperial'!L38,IF($F$11="Contactor Field Drain C-4HD",'C-4HD-Imperial'!G38,IF($F$11="Recharger 180HD",'180HD-Imperial'!I38,IF($F$11='Chamber Images'!$A$9,'360HD-Imperial'!L38,0)))))))) -> 3.83 | O48: 1.1684 | P48: =IF($F$11="Contactor 100HD",'100HD-Imperial'!J38,IF($F$11="Recharger 150XLHD",'150XLHD-Imperial'!J38,IF($F$11="Recharger 280HD",'280HD-Imperial'!J38,IF($F$11="Recharger 330XLHD",'330XLHD-Imperial'!J38,IF($F$11="Recharger 902HD",'902HD-Imperial'!M38,IF($F$11="Recharger 180HD",'180HD-Imperial'!J38,IF($F$11='Chamber Images'!$A$9,'360HD-Imperial'!M38,IF($F$11='Chamber Images'!A24,'C-4HD-Imperial'!H38,"")))))))) -> 
B49: =IF($F$11="Contactor 100HD",'100HD-Imperial'!A39,IF($F$11="Recharger 150XLHD",'150XLHD-Imperial'!A39,IF($F$11="Recharger 280HD",'280HD-Imperial'!A39,IF($F$11="Recharger 330XLHD",'330XLHD-Imperial'!A39,IF($F$11="Recharger 902HD",'902HD-Imperial'!A39,IF($F$11="Contactor Field Drain C-4HD",'C-4HD-Imperial'!A39,IF($F$11="Recharger 180HD",'180HD-Imperial'!A39,IF($F$11='Chamber Images'!$A$9,'360HD-Imperial'!A39)))))))) -> 45 | C49: 1143 | D49: =IF($F$11="Contactor 100HD",'100HD-Imperial'!D39,IF($F$11="Recharger 150XLHD",'150XLHD-Imperial'!D39,IF($F$11="Recharger 280HD",'280HD-Imperial'!D39,IF($F$11="Recharger 330XLHD",'330XLHD-Imperial'!D39,IF($F$11="Recharger 902HD",'902HD-Imperial'!G39,IF($F$11="Contactor Field Drain C-4HD",'C-4HD-Imperial'!C39,IF($F$11="Recharger 180HD",'180HD-Imperial'!D39,IF($F$11='Chamber Images'!$A$9,'360HD-Imperial'!G39,0)))))))) -> 109.4107157 | E49: 3.098161353 | F49: =IF($F$11="Contactor 100HD",'100HD-Imperial'!E39,IF($F$11="Recharger 150XLHD",'150XLHD-Imperial'!E39,IF($F$11="Recharger 280HD",'280HD-Imperial'!E39,IF($F$11="Recharger 330XLHD",'330XLHD-Imperial'!E39,IF($F$11="Recharger 902HD",'902HD-Imperial'!H39,IF($F$11="Recharger 180HD",'180HD-Imperial'!C39,IF($F$11='Chamber Images'!$A$9,'360HD-Imperial'!H39,""))))))) -> 0 | G49: 0 | H49: =IF($F$11="Contactor 100HD",'100HD-Imperial'!F39,IF($F$11="Recharger 150XLHD",'150XLHD-Imperial'!F39,IF($F$11="Recharger 280HD",'280HD-Imperial'!F39,IF($F$11="Recharger 330XLHD",'330XLHD-Imperial'!F39,IF($F$11="Recharger 902HD",'902HD-Imperial'!I39,IF($F$11="Contactor Field Drain C-4HD",'C-4HD-Imperial'!D39,IF($F$11="Recharger 180HD",'180HD-Imperial'!F39,IF($F$11='Chamber Images'!$A$9,'360HD-Imperial'!I39,0)))))))) -> 48.49280262 | I49: 1.373160993 | J49: =IF($F$11="Contactor 100HD",'100HD-Imperial'!G39,IF($F$11="Recharger 150XLHD",'150XLHD-Imperial'!G39,IF($F$11="Recharger 280HD",'280HD-Imperial'!G39,IF($F$11="Recharger 330XLHD",'330XLHD-Imperial'!G39,IF($F$11="Recharger 902HD",'902HD-Imperial'!J39,IF($F$11="Contactor Field Drain C-4HD",'C-4HD-Imperial'!E39,IF($F$11="Recharger 180HD",'180HD-Imperial'!G39,IF($F$11='Chamber Images'!$A$9,'360HD-Imperial'!J39,0)))))))) -> 157.9035183 | K49: 4.471322347 | L49: =IF($F$11="Contactor 100HD",'100HD-Imperial'!H39,IF($F$11="Recharger 150XLHD",'150XLHD-Imperial'!H39,IF($F$11="Recharger 280HD",'280HD-Imperial'!H39,IF($F$11="Recharger 330XLHD",'330XLHD-Imperial'!H39,IF($F$11="Recharger 902HD",'902HD-Imperial'!K39,IF($F$11="Contactor Field Drain C-4HD",'C-4HD-Imperial'!F39,IF($F$11="Recharger 180HD",'180HD-Imperial'!H39,IF($F$11='Chamber Images'!$A$9,'360HD-Imperial'!K39,0)))))))) -> 7350.146837 | M49: 208.132638 | N49: =IF($F$11="Contactor 100HD",'100HD-Imperial'!I39,IF($F$11="Recharger 150XLHD",'150XLHD-Imperial'!I39,IF($F$11="Recharger 280HD",'280HD-Imperial'!I39,IF($F$11="Recharger 330XLHD",'330XLHD-Imperial'!I39,IF($F$11="Recharger 902HD",'902HD-Imperial'!L39,IF($F$11="Contactor Field Drain C-4HD",'C-4HD-Imperial'!G39,IF($F$11="Recharger 180HD",'180HD-Imperial'!I39,IF($F$11='Chamber Images'!$A$9,'360HD-Imperial'!L39,0)))))))) -> 3.75 | O49: 1.143 | P49: =IF($F$11="Contactor 100HD",'100HD-Imperial'!J39,IF($F$11="Recharger 150XLHD",'150XLHD-Imperial'!J39,IF($F$11="Recharger 280HD",'280HD-Imperial'!J39,IF($F$11="Recharger 330XLHD",'330XLHD-Imperial'!J39,IF($F$11="Recharger 902HD",'902HD-Imperial'!M39,IF($F$11="Recharger 180HD",'180HD-Imperial'!J39,IF($F$11='Chamber Images'!$A$9,'360HD-Imperial'!M39,IF($F$11='Chamber Images'!A25,'C-4HD-Imperial'!H39,"")))))))) -> 
B50: =IF($F$11="Contactor 100HD",'100HD-Imperial'!A40,IF($F$11="Recharger 150XLHD",'150XLHD-Imperial'!A40,IF($F$11="Recharger 280HD",'280HD-Imperial'!A40,IF($F$11="Recharger 330XLHD",'330XLHD-Imperial'!A40,IF($F$11="Recharger 902HD",'902HD-Imperial'!A40,IF($F$11="Contactor Field Drain C-4HD",'C-4HD-Imperial'!A40,IF($F$11="Recharger 180HD",'180HD-Imperial'!A40,IF($F$11='Chamber Images'!$A$9,'360HD-Imperial'!A40)))))))) -> 44 | C50: 1117.6 | D50: =IF($F$11="Contactor 100HD",'100HD-Imperial'!D40,IF($F$11="Recharger 150XLHD",'150XLHD-Imperial'!D40,IF($F$11="Recharger 280HD",'280HD-Imperial'!D40,IF($F$11="Recharger 330XLHD",'330XLHD-Imperial'!D40,IF($F$11="Recharger 902HD",'902HD-Imperial'!G40,IF($F$11="Contactor Field Drain C-4HD",'C-4HD-Imperial'!C40,IF($F$11="Recharger 180HD",'180HD-Imperial'!D40,IF($F$11='Chamber Images'!$A$9,'360HD-Imperial'!G40,0)))))))) -> 116.4507157 | E50: 3.297511625 | F50: =IF($F$11="Contactor 100HD",'100HD-Imperial'!E40,IF($F$11="Recharger 150XLHD",'150XLHD-Imperial'!E40,IF($F$11="Recharger 280HD",'280HD-Imperial'!E40,IF($F$11="Recharger 330XLHD",'330XLHD-Imperial'!E40,IF($F$11="Recharger 902HD",'902HD-Imperial'!H40,IF($F$11="Recharger 180HD",'180HD-Imperial'!C40,IF($F$11='Chamber Images'!$A$9,'360HD-Imperial'!H40,""))))))) -> 0 | G50: 0 | H50: =IF($F$11="Contactor 100HD",'100HD-Imperial'!F40,IF($F$11="Recharger 150XLHD",'150XLHD-Imperial'!F40,IF($F$11="Recharger 280HD",'280HD-Imperial'!F40,IF($F$11="Recharger 330XLHD",'330XLHD-Imperial'!F40,IF($F$11="Recharger 902HD",'902HD-Imperial'!I40,IF($F$11="Contactor Field Drain C-4HD",'C-4HD-Imperial'!D40,IF($F$11="Recharger 180HD",'180HD-Imperial'!F40,IF($F$11='Chamber Images'!$A$9,'360HD-Imperial'!I40,0)))))))) -> 45.67680262 | I50: 1.293420884 | J50: =IF($F$11="Contactor 100HD",'100HD-Imperial'!G40,IF($F$11="Recharger 150XLHD",'150XLHD-Imperial'!G40,IF($F$11="Recharger 280HD",'280HD-Imperial'!G40,IF($F$11="Recharger 330XLHD",'330XLHD-Imperial'!G40,IF($F$11="Recharger 902HD",'902HD-Imperial'!J40,IF($F$11="Contactor Field Drain C-4HD",'C-4HD-Imperial'!E40,IF($F$11="Recharger 180HD",'180HD-Imperial'!G40,IF($F$11='Chamber Images'!$A$9,'360HD-Imperial'!J40,0)))))))) -> 162.1275183 | K50: 4.59093251 | L50: =IF($F$11="Contactor 100HD",'100HD-Imperial'!H40,IF($F$11="Recharger 150XLHD",'150XLHD-Imperial'!H40,IF($F$11="Recharger 280HD",'280HD-Imperial'!H40,IF($F$11="Recharger 330XLHD",'330XLHD-Imperial'!H40,IF($F$11="Recharger 902HD",'902HD-Imperial'!K40,IF($F$11="Contactor Field Drain C-4HD",'C-4HD-Imperial'!F40,IF($F$11="Recharger 180HD",'180HD-Imperial'!H40,IF($F$11='Chamber Images'!$A$9,'360HD-Imperial'!K40,0)))))))) -> 7192.243319 | M50: 203.6613156 | N50: =IF($F$11="Contactor 100HD",'100HD-Imperial'!I40,IF($F$11="Recharger 150XLHD",'150XLHD-Imperial'!I40,IF($F$11="Recharger 280HD",'280HD-Imperial'!I40,IF($F$11="Recharger 330XLHD",'330XLHD-Imperial'!I40,IF($F$11="Recharger 902HD",'902HD-Imperial'!L40,IF($F$11="Contactor Field Drain C-4HD",'C-4HD-Imperial'!G40,IF($F$11="Recharger 180HD",'180HD-Imperial'!I40,IF($F$11='Chamber Images'!$A$9,'360HD-Imperial'!L40,0)))))))) -> 3.67 | O50: 1.1176 | P50: =IF($F$11="Contactor 100HD",'100HD-Imperial'!J40,IF($F$11="Recharger 150XLHD",'150XLHD-Imperial'!J40,IF($F$11="Recharger 280HD",'280HD-Imperial'!J40,IF($F$11="Recharger 330XLHD",'330XLHD-Imperial'!J40,IF($F$11="Recharger 902HD",'902HD-Imperial'!M40,IF($F$11="Recharger 180HD",'180HD-Imperial'!J40,IF($F$11='Chamber Images'!$A$9,'360HD-Imperial'!M40,IF($F$11='Chamber Images'!A26,'C-4HD-Imperial'!H40,"")))))))) -> 
B51: =IF($F$11="Contactor 100HD",'100HD-Imperial'!A41,IF($F$11="Recharger 150XLHD",'150XLHD-Imperial'!A41,IF($F$11="Recharger 280HD",'280HD-Imperial'!A41,IF($F$11="Recharger 330XLHD",'330XLHD-Imperial'!A41,IF($F$11="Recharger 902HD",'902HD-Imperial'!A41,IF($F$11="Contactor Field Drain C-4HD",'C-4HD-Imperial'!A41,IF($F$11="Recharger 180HD",'180HD-Imperial'!A41,IF($F$11='Chamber Images'!$A$9,'360HD-Imperial'!A41)))))))) -> 43 | C51: 1092.2 | D51: =IF($F$11="Contactor 100HD",'100HD-Imperial'!D41,IF($F$11="Recharger 150XLHD",'150XLHD-Imperial'!D41,IF($F$11="Recharger 280HD",'280HD-Imperial'!D41,IF($F$11="Recharger 330XLHD",'330XLHD-Imperial'!D41,IF($F$11="Recharger 902HD",'902HD-Imperial'!G41,IF($F$11="Contactor Field Drain C-4HD",'C-4HD-Imperial'!C41,IF($F$11="Recharger 180HD",'180HD-Imperial'!D41,IF($F$11='Chamber Images'!$A$9,'360HD-Imperial'!G41,0)))))))) -> 120.0288588 | E51: 3.398833189 | F51: =IF($F$11="Contactor 100HD",'100HD-Imperial'!E41,IF($F$11="Recharger 150XLHD",'150XLHD-Imperial'!E41,IF($F$11="Recharger 280HD",'280HD-Imperial'!E41,IF($F$11="Recharger 330XLHD",'330XLHD-Imperial'!E41,IF($F$11="Recharger 902HD",'902HD-Imperial'!H41,IF($F$11="Recharger 180HD",'180HD-Imperial'!C41,IF($F$11='Chamber Images'!$A$9,'360HD-Imperial'!H41,""))))))) -> 0 | G51: 0 | H51: =IF($F$11="Contactor 100HD",'100HD-Imperial'!F41,IF($F$11="Recharger 150XLHD",'150XLHD-Imperial'!F41,IF($F$11="Recharger 280HD",'280HD-Imperial'!F41,IF($F$11="Recharger 330XLHD",'330XLHD-Imperial'!F41,IF($F$11="Recharger 902HD",'902HD-Imperial'!I41,IF($F$11="Contactor Field Drain C-4HD",'C-4HD-Imperial'!D41,IF($F$11="Recharger 180HD",'180HD-Imperial'!F41,IF($F$11='Chamber Images'!$A$9,'360HD-Imperial'!I41,0)))))))) -> 44.24554537 | I51: 1.252892259 | J51: =IF($F$11="Contactor 100HD",'100HD-Imperial'!G41,IF($F$11="Recharger 150XLHD",'150XLHD-Imperial'!G41,IF($F$11="Recharger 280HD",'280HD-Imperial'!G41,IF($F$11="Recharger 330XLHD",'330XLHD-Imperial'!G41,IF($F$11="Recharger 902HD",'902HD-Imperial'!J41,IF($F$11="Contactor Field Drain C-4HD",'C-4HD-Imperial'!E41,IF($F$11="Recharger 180HD",'180HD-Imperial'!G41,IF($F$11='Chamber Images'!$A$9,'360HD-Imperial'!J41,0)))))))) -> 164.2744042 | K51: 4.651725448 | L51: =IF($F$11="Contactor 100HD",'100HD-Imperial'!H41,IF($F$11="Recharger 150XLHD",'150XLHD-Imperial'!H41,IF($F$11="Recharger 280HD",'280HD-Imperial'!H41,IF($F$11="Recharger 330XLHD",'330XLHD-Imperial'!H41,IF($F$11="Recharger 902HD",'902HD-Imperial'!K41,IF($F$11="Contactor Field Drain C-4HD",'C-4HD-Imperial'!F41,IF($F$11="Recharger 180HD",'180HD-Imperial'!H41,IF($F$11='Chamber Images'!$A$9,'360HD-Imperial'!K41,0)))))))) -> 7030.115801 | M51: 199.0703831 | N51: =IF($F$11="Contactor 100HD",'100HD-Imperial'!I41,IF($F$11="Recharger 150XLHD",'150XLHD-Imperial'!I41,IF($F$11="Recharger 280HD",'280HD-Imperial'!I41,IF($F$11="Recharger 330XLHD",'330XLHD-Imperial'!I41,IF($F$11="Recharger 902HD",'902HD-Imperial'!L41,IF($F$11="Contactor Field Drain C-4HD",'C-4HD-Imperial'!G41,IF($F$11="Recharger 180HD",'180HD-Imperial'!I41,IF($F$11='Chamber Images'!$A$9,'360HD-Imperial'!L41,0)))))))) -> 3.58 | O51: 1.0922 | P51: =IF($F$11="Contactor 100HD",'100HD-Imperial'!J41,IF($F$11="Recharger 150XLHD",'150XLHD-Imperial'!J41,IF($F$11="Recharger 280HD",'280HD-Imperial'!J41,IF($F$11="Recharger 330XLHD",'330XLHD-Imperial'!J41,IF($F$11="Recharger 902HD",'902HD-Imperial'!M41,IF($F$11="Recharger 180HD",'180HD-Imperial'!J41,IF($F$11='Chamber Images'!$A$9,'360HD-Imperial'!M41,IF($F$11='Chamber Images'!A27,'C-4HD-Imperial'!H41,"")))))))) -> 
B52: =IF($F$11="Contactor 100HD",'100HD-Imperial'!A42,IF($F$11="Recharger 150XLHD",'150XLHD-Imperial'!A42,IF($F$11="Recharger 280HD",'280HD-Imperial'!A42,IF($F$11="Recharger 330XLHD",'330XLHD-Imperial'!A42,IF($F$11="Recharger 902HD",'902HD-Imperial'!A42,IF($F$11="Contactor Field Drain C-4HD",'C-4HD-Imperial'!A42,IF($F$11="Recharger 180HD",'180HD-Imperial'!A42,IF($F$11='Chamber Images'!$A$9,'360HD-Imperial'!A42)))))))) -> 42 | C52: 1066.8 | D52: =IF($F$11="Contactor 100HD",'100HD-Imperial'!D42,IF($F$11="Recharger 150XLHD",'150XLHD-Imperial'!D42,IF($F$11="Recharger 280HD",'280HD-Imperial'!D42,IF($F$11="Recharger 330XLHD",'330XLHD-Imperial'!D42,IF($F$11="Recharger 902HD",'902HD-Imperial'!G42,IF($F$11="Contactor Field Drain C-4HD",'C-4HD-Imperial'!C42,IF($F$11="Recharger 180HD",'180HD-Imperial'!D42,IF($F$11='Chamber Images'!$A$9,'360HD-Imperial'!G42,0)))))))) -> 123.4907157 | E52: 3.496861897 | F52: =IF($F$11="Contactor 100HD",'100HD-Imperial'!E42,IF($F$11="Recharger 150XLHD",'150XLHD-Imperial'!E42,IF($F$11="Recharger 280HD",'280HD-Imperial'!E42,IF($F$11="Recharger 330XLHD",'330XLHD-Imperial'!E42,IF($F$11="Recharger 902HD",'902HD-Imperial'!H42,IF($F$11="Recharger 180HD",'180HD-Imperial'!C42,IF($F$11='Chamber Images'!$A$9,'360HD-Imperial'!H42,""))))))) -> 0 | G52: 0 | H52: =IF($F$11="Contactor 100HD",'100HD-Imperial'!F42,IF($F$11="Recharger 150XLHD",'150XLHD-Imperial'!F42,IF($F$11="Recharger 280HD",'280HD-Imperial'!F42,IF($F$11="Recharger 330XLHD",'330XLHD-Imperial'!F42,IF($F$11="Recharger 902HD",'902HD-Imperial'!I42,IF($F$11="Contactor Field Drain C-4HD",'C-4HD-Imperial'!D42,IF($F$11="Recharger 180HD",'180HD-Imperial'!F42,IF($F$11='Chamber Images'!$A$9,'360HD-Imperial'!I42,0)))))))) -> 42.86080262 | I52: 1.213680776 | J52: =IF($F$11="Contactor 100HD",'100HD-Imperial'!G42,IF($F$11="Recharger 150XLHD",'150XLHD-Imperial'!G42,IF($F$11="Recharger 280HD",'280HD-Imperial'!G42,IF($F$11="Recharger 330XLHD",'330XLHD-Imperial'!G42,IF($F$11="Recharger 902HD",'902HD-Imperial'!J42,IF($F$11="Contactor Field Drain C-4HD",'C-4HD-Imperial'!E42,IF($F$11="Recharger 180HD",'180HD-Imperial'!G42,IF($F$11='Chamber Images'!$A$9,'360HD-Imperial'!J42,0)))))))) -> 166.3515183 | K52: 4.710542673 | L52: =IF($F$11="Contactor 100HD",'100HD-Imperial'!H42,IF($F$11="Recharger 150XLHD",'150XLHD-Imperial'!H42,IF($F$11="Recharger 280HD",'280HD-Imperial'!H42,IF($F$11="Recharger 330XLHD",'330XLHD-Imperial'!H42,IF($F$11="Recharger 902HD",'902HD-Imperial'!K42,IF($F$11="Contactor Field Drain C-4HD",'C-4HD-Imperial'!F42,IF($F$11="Recharger 180HD",'180HD-Imperial'!H42,IF($F$11='Chamber Images'!$A$9,'360HD-Imperial'!K42,0)))))))) -> 6865.841396 | M52: 194.4186577 | N52: =IF($F$11="Contactor 100HD",'100HD-Imperial'!I42,IF($F$11="Recharger 150XLHD",'150XLHD-Imperial'!I42,IF($F$11="Recharger 280HD",'280HD-Imperial'!I42,IF($F$11="Recharger 330XLHD",'330XLHD-Imperial'!I42,IF($F$11="Recharger 902HD",'902HD-Imperial'!L42,IF($F$11="Contactor Field Drain C-4HD",'C-4HD-Imperial'!G42,IF($F$11="Recharger 180HD",'180HD-Imperial'!I42,IF($F$11='Chamber Images'!$A$9,'360HD-Imperial'!L42,0)))))))) -> 3.5 | O52: 1.0668 | P52: =IF($F$11="Contactor 100HD",'100HD-Imperial'!J42,IF($F$11="Recharger 150XLHD",'150XLHD-Imperial'!J42,IF($F$11="Recharger 280HD",'280HD-Imperial'!J42,IF($F$11="Recharger 330XLHD",'330XLHD-Imperial'!J42,IF($F$11="Recharger 902HD",'902HD-Imperial'!M42,IF($F$11="Recharger 180HD",'180HD-Imperial'!J42,IF($F$11='Chamber Images'!$A$9,'360HD-Imperial'!M42,IF($F$11='Chamber Images'!A28,'C-4HD-Imperial'!H42,"")))))))) -> 
B53: =IF($F$11="Contactor 100HD",'100HD-Imperial'!A43,IF($F$11="Recharger 150XLHD",'150XLHD-Imperial'!A43,IF($F$11="Recharger 280HD",'280HD-Imperial'!A43,IF($F$11="Recharger 330XLHD",'330XLHD-Imperial'!A43,IF($F$11="Recharger 902HD",'902HD-Imperial'!A43,IF($F$11="Contactor Field Drain C-4HD",'C-4HD-Imperial'!A43,IF($F$11="Recharger 180HD",'180HD-Imperial'!A43,IF($F$11='Chamber Images'!$A$9,'360HD-Imperial'!A43)))))))) -> 41 | C53: 1041.4 | D53: =IF($F$11="Contactor 100HD",'100HD-Imperial'!D43,IF($F$11="Recharger 150XLHD",'150XLHD-Imperial'!D43,IF($F$11="Recharger 280HD",'280HD-Imperial'!D43,IF($F$11="Recharger 330XLHD",'330XLHD-Imperial'!D43,IF($F$11="Recharger 902HD",'902HD-Imperial'!G43,IF($F$11="Contactor Field Drain C-4HD",'C-4HD-Imperial'!C43,IF($F$11="Recharger 180HD",'180HD-Imperial'!D43,IF($F$11='Chamber Images'!$A$9,'360HD-Imperial'!G43,0)))))))) -> 123.4907157 | E53: 3.496861897 | F53: =IF($F$11="Contactor 100HD",'100HD-Imperial'!E43,IF($F$11="Recharger 150XLHD",'150XLHD-Imperial'!E43,IF($F$11="Recharger 280HD",'280HD-Imperial'!E43,IF($F$11="Recharger 330XLHD",'330XLHD-Imperial'!E43,IF($F$11="Recharger 902HD",'902HD-Imperial'!H43,IF($F$11="Recharger 180HD",'180HD-Imperial'!C43,IF($F$11='Chamber Images'!$A$9,'360HD-Imperial'!H43,""))))))) -> 0 | G53: 0 | H53: =IF($F$11="Contactor 100HD",'100HD-Imperial'!F43,IF($F$11="Recharger 150XLHD",'150XLHD-Imperial'!F43,IF($F$11="Recharger 280HD",'280HD-Imperial'!F43,IF($F$11="Recharger 330XLHD",'330XLHD-Imperial'!F43,IF($F$11="Recharger 902HD",'902HD-Imperial'!I43,IF($F$11="Contactor Field Drain C-4HD",'C-4HD-Imperial'!D43,IF($F$11="Recharger 180HD",'180HD-Imperial'!F43,IF($F$11='Chamber Images'!$A$9,'360HD-Imperial'!I43,0)))))))) -> 42.86080262 | I53: 1.213680776 | J53: =IF($F$11="Contactor 100HD",'100HD-Imperial'!G43,IF($F$11="Recharger 150XLHD",'150XLHD-Imperial'!G43,IF($F$11="Recharger 280HD",'280HD-Imperial'!G43,IF($F$11="Recharger 330XLHD",'330XLHD-Imperial'!G43,IF($F$11="Recharger 902HD",'902HD-Imperial'!J43,IF($F$11="Contactor Field Drain C-4HD",'C-4HD-Imperial'!E43,IF($F$11="Recharger 180HD",'180HD-Imperial'!G43,IF($F$11='Chamber Images'!$A$9,'360HD-Imperial'!J43,0)))))))) -> 166.3515183 | K53: 4.710542673 | L53: =IF($F$11="Contactor 100HD",'100HD-Imperial'!H43,IF($F$11="Recharger 150XLHD",'150XLHD-Imperial'!H43,IF($F$11="Recharger 280HD",'280HD-Imperial'!H43,IF($F$11="Recharger 330XLHD",'330XLHD-Imperial'!H43,IF($F$11="Recharger 902HD",'902HD-Imperial'!K43,IF($F$11="Contactor Field Drain C-4HD",'C-4HD-Imperial'!F43,IF($F$11="Recharger 180HD",'180HD-Imperial'!H43,IF($F$11='Chamber Images'!$A$9,'360HD-Imperial'!K43,0)))))))) -> 6699.489878 | M53: 189.708115 | N53: =IF($F$11="Contactor 100HD",'100HD-Imperial'!I43,IF($F$11="Recharger 150XLHD",'150XLHD-Imperial'!I43,IF($F$11="Recharger 280HD",'280HD-Imperial'!I43,IF($F$11="Recharger 330XLHD",'330XLHD-Imperial'!I43,IF($F$11="Recharger 902HD",'902HD-Imperial'!L43,IF($F$11="Contactor Field Drain C-4HD",'C-4HD-Imperial'!G43,IF($F$11="Recharger 180HD",'180HD-Imperial'!I43,IF($F$11='Chamber Images'!$A$9,'360HD-Imperial'!L43,0)))))))) -> 3.42 | O53: 1.0414 | P53: =IF($F$11="Contactor 100HD",'100HD-Imperial'!J43,IF($F$11="Recharger 150XLHD",'150XLHD-Imperial'!J43,IF($F$11="Recharger 280HD",'280HD-Imperial'!J43,IF($F$11="Recharger 330XLHD",'330XLHD-Imperial'!J43,IF($F$11="Recharger 902HD",'902HD-Imperial'!M43,IF($F$11="Recharger 180HD",'180HD-Imperial'!J43,IF($F$11='Chamber Images'!$A$9,'360HD-Imperial'!M43,IF($F$11='Chamber Images'!A29,'C-4HD-Imperial'!H43,"")))))))) -> 
B54: =IF($F$11="Contactor 100HD",'100HD-Imperial'!A44,IF($F$11="Recharger 150XLHD",'150XLHD-Imperial'!A44,IF($F$11="Recharger 280HD",'280HD-Imperial'!A44,IF($F$11="Recharger 330XLHD",'330XLHD-Imperial'!A44,IF($F$11="Recharger 902HD",'902HD-Imperial'!A44,IF($F$11="Contactor Field Drain C-4HD",'C-4HD-Imperial'!A44,IF($F$11="Recharger 180HD",'180HD-Imperial'!A44,IF($F$11='Chamber Images'!$A$9,'360HD-Imperial'!A44)))))))) -> 40 | C54: 1016 | D54: =IF($F$11="Contactor 100HD",'100HD-Imperial'!D44,IF($F$11="Recharger 150XLHD",'150XLHD-Imperial'!D44,IF($F$11="Recharger 280HD",'280HD-Imperial'!D44,IF($F$11="Recharger 330XLHD",'330XLHD-Imperial'!D44,IF($F$11="Recharger 902HD",'902HD-Imperial'!G44,IF($F$11="Contactor Field Drain C-4HD",'C-4HD-Imperial'!C44,IF($F$11="Recharger 180HD",'180HD-Imperial'!D44,IF($F$11='Chamber Images'!$A$9,'360HD-Imperial'!G44,0)))))))) -> 127.0688588 | E54: 3.598183461 | F54: =IF($F$11="Contactor 100HD",'100HD-Imperial'!E44,IF($F$11="Recharger 150XLHD",'150XLHD-Imperial'!E44,IF($F$11="Recharger 280HD",'280HD-Imperial'!E44,IF($F$11="Recharger 330XLHD",'330XLHD-Imperial'!E44,IF($F$11="Recharger 902HD",'902HD-Imperial'!H44,IF($F$11="Recharger 180HD",'180HD-Imperial'!C44,IF($F$11='Chamber Images'!$A$9,'360HD-Imperial'!H44,""))))))) -> 0 | G54: 0 | H54: =IF($F$11="Contactor 100HD",'100HD-Imperial'!F44,IF($F$11="Recharger 150XLHD",'150XLHD-Imperial'!F44,IF($F$11="Recharger 280HD",'280HD-Imperial'!F44,IF($F$11="Recharger 330XLHD",'330XLHD-Imperial'!F44,IF($F$11="Recharger 902HD",'902HD-Imperial'!I44,IF($F$11="Contactor Field Drain C-4HD",'C-4HD-Imperial'!D44,IF($F$11="Recharger 180HD",'180HD-Imperial'!F44,IF($F$11='Chamber Images'!$A$9,'360HD-Imperial'!I44,0)))))))) -> 41.42954537 | I54: 1.17315215 | J54: =IF($F$11="Contactor 100HD",'100HD-Imperial'!G44,IF($F$11="Recharger 150XLHD",'150XLHD-Imperial'!G44,IF($F$11="Recharger 280HD",'280HD-Imperial'!G44,IF($F$11="Recharger 330XLHD",'330XLHD-Imperial'!G44,IF($F$11="Recharger 902HD",'902HD-Imperial'!J44,IF($F$11="Contactor Field Drain C-4HD",'C-4HD-Imperial'!E44,IF($F$11="Recharger 180HD",'180HD-Imperial'!G44,IF($F$11='Chamber Images'!$A$9,'360HD-Imperial'!J44,0)))))))) -> 168.4984042 | K54: 4.771335611 | L54: =IF($F$11="Contactor 100HD",'100HD-Imperial'!H44,IF($F$11="Recharger 150XLHD",'150XLHD-Imperial'!H44,IF($F$11="Recharger 280HD",'280HD-Imperial'!H44,IF($F$11="Recharger 330XLHD",'330XLHD-Imperial'!H44,IF($F$11="Recharger 902HD",'902HD-Imperial'!K44,IF($F$11="Contactor Field Drain C-4HD",'C-4HD-Imperial'!F44,IF($F$11="Recharger 180HD",'180HD-Imperial'!H44,IF($F$11='Chamber Images'!$A$9,'360HD-Imperial'!K44,0)))))))) -> 6533.13836 | M54: 184.9975723 | N54: =IF($F$11="Contactor 100HD",'100HD-Imperial'!I44,IF($F$11="Recharger 150XLHD",'150XLHD-Imperial'!I44,IF($F$11="Recharger 280HD",'280HD-Imperial'!I44,IF($F$11="Recharger 330XLHD",'330XLHD-Imperial'!I44,IF($F$11="Recharger 902HD",'902HD-Imperial'!L44,IF($F$11="Contactor Field Drain C-4HD",'C-4HD-Imperial'!G44,IF($F$11="Recharger 180HD",'180HD-Imperial'!I44,IF($F$11='Chamber Images'!$A$9,'360HD-Imperial'!L44,0)))))))) -> 3.33 | O54: 1.016 | P54: =IF($F$11="Contactor 100HD",'100HD-Imperial'!J44,IF($F$11="Recharger 150XLHD",'150XLHD-Imperial'!J44,IF($F$11="Recharger 280HD",'280HD-Imperial'!J44,IF($F$11="Recharger 330XLHD",'330XLHD-Imperial'!J44,IF($F$11="Recharger 902HD",'902HD-Imperial'!M44,IF($F$11="Recharger 180HD",'180HD-Imperial'!J44,IF($F$11='Chamber Images'!$A$9,'360HD-Imperial'!M44,IF($F$11='Chamber Images'!A30,'C-4HD-Imperial'!H44,"")))))))) -> 
B55: =IF($F$11="Contactor 100HD",'100HD-Imperial'!A45,IF($F$11="Recharger 150XLHD",'150XLHD-Imperial'!A45,IF($F$11="Recharger 280HD",'280HD-Imperial'!A45,IF($F$11="Recharger 330XLHD",'330XLHD-Imperial'!A45,IF($F$11="Recharger 902HD",'902HD-Imperial'!A45,IF($F$11="Contactor Field Drain C-4HD",'C-4HD-Imperial'!A45,IF($F$11="Recharger 180HD",'180HD-Imperial'!A45,IF($F$11='Chamber Images'!$A$9,'360HD-Imperial'!A45)))))))) -> 39 | C55: 990.6 | D55: =IF($F$11="Contactor 100HD",'100HD-Imperial'!D45,IF($F$11="Recharger 150XLHD",'150XLHD-Imperial'!D45,IF($F$11="Recharger 280HD",'280HD-Imperial'!D45,IF($F$11="Recharger 330XLHD",'330XLHD-Imperial'!D45,IF($F$11="Recharger 902HD",'902HD-Imperial'!G45,IF($F$11="Contactor Field Drain C-4HD",'C-4HD-Imperial'!C45,IF($F$11="Recharger 180HD",'180HD-Imperial'!D45,IF($F$11='Chamber Images'!$A$9,'360HD-Imperial'!G45,0)))))))) -> 130.5307157 | E55: 3.696212169 | F55: =IF($F$11="Contactor 100HD",'100HD-Imperial'!E45,IF($F$11="Recharger 150XLHD",'150XLHD-Imperial'!E45,IF($F$11="Recharger 280HD",'280HD-Imperial'!E45,IF($F$11="Recharger 330XLHD",'330XLHD-Imperial'!E45,IF($F$11="Recharger 902HD",'902HD-Imperial'!H45,IF($F$11="Recharger 180HD",'180HD-Imperial'!C45,IF($F$11='Chamber Images'!$A$9,'360HD-Imperial'!H45,""))))))) -> 0 | G55: 0 | H55: =IF($F$11="Contactor 100HD",'100HD-Imperial'!F45,IF($F$11="Recharger 150XLHD",'150XLHD-Imperial'!F45,IF($F$11="Recharger 280HD",'280HD-Imperial'!F45,IF($F$11="Recharger 330XLHD",'330XLHD-Imperial'!F45,IF($F$11="Recharger 902HD",'902HD-Imperial'!I45,IF($F$11="Contactor Field Drain C-4HD",'C-4HD-Imperial'!D45,IF($F$11="Recharger 180HD",'180HD-Imperial'!F45,IF($F$11='Chamber Images'!$A$9,'360HD-Imperial'!I45,0)))))))) -> 40.04480262 | I55: 1.133940667 | J55: =IF($F$11="Contactor 100HD",'100HD-Imperial'!G45,IF($F$11="Recharger 150XLHD",'150XLHD-Imperial'!G45,IF($F$11="Recharger 280HD",'280HD-Imperial'!G45,IF($F$11="Recharger 330XLHD",'330XLHD-Imperial'!G45,IF($F$11="Recharger 902HD",'902HD-Imperial'!J45,IF($F$11="Contactor Field Drain C-4HD",'C-4HD-Imperial'!E45,IF($F$11="Recharger 180HD",'180HD-Imperial'!G45,IF($F$11='Chamber Images'!$A$9,'360HD-Imperial'!J45,0)))))))) -> 170.5755183 | K55: 4.830152836 | L55: =IF($F$11="Contactor 100HD",'100HD-Imperial'!H45,IF($F$11="Recharger 150XLHD",'150XLHD-Imperial'!H45,IF($F$11="Recharger 280HD",'280HD-Imperial'!H45,IF($F$11="Recharger 330XLHD",'330XLHD-Imperial'!H45,IF($F$11="Recharger 902HD",'902HD-Imperial'!K45,IF($F$11="Contactor Field Drain C-4HD",'C-4HD-Imperial'!F45,IF($F$11="Recharger 180HD",'180HD-Imperial'!H45,IF($F$11='Chamber Images'!$A$9,'360HD-Imperial'!K45,0)))))))) -> 6364.639956 | M55: 180.2262367 | N55: =IF($F$11="Contactor 100HD",'100HD-Imperial'!I45,IF($F$11="Recharger 150XLHD",'150XLHD-Imperial'!I45,IF($F$11="Recharger 280HD",'280HD-Imperial'!I45,IF($F$11="Recharger 330XLHD",'330XLHD-Imperial'!I45,IF($F$11="Recharger 902HD",'902HD-Imperial'!L45,IF($F$11="Contactor Field Drain C-4HD",'C-4HD-Imperial'!G45,IF($F$11="Recharger 180HD",'180HD-Imperial'!I45,IF($F$11='Chamber Images'!$A$9,'360HD-Imperial'!L45,0)))))))) -> 3.25 | O55: 0.9906 | P55: =IF($F$11="Contactor 100HD",'100HD-Imperial'!J45,IF($F$11="Recharger 150XLHD",'150XLHD-Imperial'!J45,IF($F$11="Recharger 280HD",'280HD-Imperial'!J45,IF($F$11="Recharger 330XLHD",'330XLHD-Imperial'!J45,IF($F$11="Recharger 902HD",'902HD-Imperial'!M45,IF($F$11="Recharger 180HD",'180HD-Imperial'!J45,IF($F$11='Chamber Images'!$A$9,'360HD-Imperial'!M45,IF($F$11='Chamber Images'!A31,'C-4HD-Imperial'!H45,"")))))))) -> 
B56: =IF($F$11="Contactor 100HD",'100HD-Imperial'!A46,IF($F$11="Recharger 150XLHD",'150XLHD-Imperial'!A46,IF($F$11="Recharger 280HD",'280HD-Imperial'!A46,IF($F$11="Recharger 330XLHD",'330XLHD-Imperial'!A46,IF($F$11="Recharger 902HD",'902HD-Imperial'!A46,IF($F$11="Contactor Field Drain C-4HD",'C-4HD-Imperial'!A46,IF($F$11="Recharger 180HD",'180HD-Imperial'!A46,IF($F$11='Chamber Images'!$A$9,'360HD-Imperial'!A46)))))))) -> 38 | C56: 965.2 | D56: =IF($F$11="Contactor 100HD",'100HD-Imperial'!D46,IF($F$11="Recharger 150XLHD",'150XLHD-Imperial'!D46,IF($F$11="Recharger 280HD",'280HD-Imperial'!D46,IF($F$11="Recharger 330XLHD",'330XLHD-Imperial'!D46,IF($F$11="Recharger 902HD",'902HD-Imperial'!G46,IF($F$11="Contactor Field Drain C-4HD",'C-4HD-Imperial'!C46,IF($F$11="Recharger 180HD",'180HD-Imperial'!D46,IF($F$11='Chamber Images'!$A$9,'360HD-Imperial'!G46,0)))))))) -> 134.1670019 | E56: 3.79918016 | F56: =IF($F$11="Contactor 100HD",'100HD-Imperial'!E46,IF($F$11="Recharger 150XLHD",'150XLHD-Imperial'!E46,IF($F$11="Recharger 280HD",'280HD-Imperial'!E46,IF($F$11="Recharger 330XLHD",'330XLHD-Imperial'!E46,IF($F$11="Recharger 902HD",'902HD-Imperial'!H46,IF($F$11="Recharger 180HD",'180HD-Imperial'!C46,IF($F$11='Chamber Images'!$A$9,'360HD-Imperial'!H46,""))))))) -> 0 | G56: 0 | H56: =IF($F$11="Contactor 100HD",'100HD-Imperial'!F46,IF($F$11="Recharger 150XLHD",'150XLHD-Imperial'!F46,IF($F$11="Recharger 280HD",'280HD-Imperial'!F46,IF($F$11="Recharger 330XLHD",'330XLHD-Imperial'!F46,IF($F$11="Recharger 902HD",'902HD-Imperial'!I46,IF($F$11="Contactor Field Drain C-4HD",'C-4HD-Imperial'!D46,IF($F$11="Recharger 180HD",'180HD-Imperial'!F46,IF($F$11='Chamber Images'!$A$9,'360HD-Imperial'!I46,0)))))))) -> 38.59028812 | I56: 1.092753471 | J56: =IF($F$11="Contactor 100HD",'100HD-Imperial'!G46,IF($F$11="Recharger 150XLHD",'150XLHD-Imperial'!G46,IF($F$11="Recharger 280HD",'280HD-Imperial'!G46,IF($F$11="Recharger 330XLHD",'330XLHD-Imperial'!G46,IF($F$11="Recharger 902HD",'902HD-Imperial'!J46,IF($F$11="Contactor Field Drain C-4HD",'C-4HD-Imperial'!E46,IF($F$11="Recharger 180HD",'180HD-Imperial'!G46,IF($F$11='Chamber Images'!$A$9,'360HD-Imperial'!J46,0)))))))) -> 172.75729 | K56: 4.891933631 | L56: =IF($F$11="Contactor 100HD",'100HD-Imperial'!H46,IF($F$11="Recharger 150XLHD",'150XLHD-Imperial'!H46,IF($F$11="Recharger 280HD",'280HD-Imperial'!H46,IF($F$11="Recharger 330XLHD",'330XLHD-Imperial'!H46,IF($F$11="Recharger 902HD",'902HD-Imperial'!K46,IF($F$11="Contactor Field Drain C-4HD",'C-4HD-Imperial'!F46,IF($F$11="Recharger 180HD",'180HD-Imperial'!H46,IF($F$11='Chamber Images'!$A$9,'360HD-Imperial'!K46,0)))))))) -> 6194.064437 | M56: 175.3960839 | N56: =IF($F$11="Contactor 100HD",'100HD-Imperial'!I46,IF($F$11="Recharger 150XLHD",'150XLHD-Imperial'!I46,IF($F$11="Recharger 280HD",'280HD-Imperial'!I46,IF($F$11="Recharger 330XLHD",'330XLHD-Imperial'!I46,IF($F$11="Recharger 902HD",'902HD-Imperial'!L46,IF($F$11="Contactor Field Drain C-4HD",'C-4HD-Imperial'!G46,IF($F$11="Recharger 180HD",'180HD-Imperial'!I46,IF($F$11='Chamber Images'!$A$9,'360HD-Imperial'!L46,0)))))))) -> 3.17 | O56: 0.9652 | P56: =IF($F$11="Contactor 100HD",'100HD-Imperial'!J46,IF($F$11="Recharger 150XLHD",'150XLHD-Imperial'!J46,IF($F$11="Recharger 280HD",'280HD-Imperial'!J46,IF($F$11="Recharger 330XLHD",'330XLHD-Imperial'!J46,IF($F$11="Recharger 902HD",'902HD-Imperial'!M46,IF($F$11="Recharger 180HD",'180HD-Imperial'!J46,IF($F$11='Chamber Images'!$A$9,'360HD-Imperial'!M46,IF($F$11='Chamber Images'!A32,'C-4HD-Imperial'!H46,"")))))))) -> 
B57: =IF($F$11="Contactor 100HD",'100HD-Imperial'!A47,IF($F$11="Recharger 150XLHD",'150XLHD-Imperial'!A47,IF($F$11="Recharger 280HD",'280HD-Imperial'!A47,IF($F$11="Recharger 330XLHD",'330XLHD-Imperial'!A47,IF($F$11="Recharger 902HD",'902HD-Imperial'!A47,IF($F$11="Contactor Field Drain C-4HD",'C-4HD-Imperial'!A47,IF($F$11="Recharger 180HD",'180HD-Imperial'!A47,IF($F$11='Chamber Images'!$A$9,'360HD-Imperial'!A47)))))))) -> 37 | C57: 939.8 | D57: =IF($F$11="Contactor 100HD",'100HD-Imperial'!D47,IF($F$11="Recharger 150XLHD",'150XLHD-Imperial'!D47,IF($F$11="Recharger 280HD",'280HD-Imperial'!D47,IF($F$11="Recharger 330XLHD",'330XLHD-Imperial'!D47,IF($F$11="Recharger 902HD",'902HD-Imperial'!G47,IF($F$11="Contactor Field Drain C-4HD",'C-4HD-Imperial'!C47,IF($F$11="Recharger 180HD",'180HD-Imperial'!D47,IF($F$11='Chamber Images'!$A$9,'360HD-Imperial'!G47,0)))))))) -> 137.5707157 | E57: 3.895562441 | F57: =IF($F$11="Contactor 100HD",'100HD-Imperial'!E47,IF($F$11="Recharger 150XLHD",'150XLHD-Imperial'!E47,IF($F$11="Recharger 280HD",'280HD-Imperial'!E47,IF($F$11="Recharger 330XLHD",'330XLHD-Imperial'!E47,IF($F$11="Recharger 902HD",'902HD-Imperial'!H47,IF($F$11="Recharger 180HD",'180HD-Imperial'!C47,IF($F$11='Chamber Images'!$A$9,'360HD-Imperial'!H47,""))))))) -> 0 | G57: =IF($F$11="Contactor Field Drain C-4HD","",IF(B57=0,0,IF(B57<0,"",F57*0.0283168))) -> 0 | H57: =IF($F$11="Contactor 100HD",'100HD-Imperial'!F47,IF($F$11="Recharger 150XLHD",'150XLHD-Imperial'!F47,IF($F$11="Recharger 280HD",'280HD-Imperial'!F47,IF($F$11="Recharger 330XLHD",'330XLHD-Imperial'!F47,IF($F$11="Recharger 902HD",'902HD-Imperial'!I47,IF($F$11="Contactor Field Drain C-4HD",'C-4HD-Imperial'!D47,IF($F$11="Recharger 180HD",'180HD-Imperial'!F47,IF($F$11='Chamber Images'!$A$9,'360HD-Imperial'!I47,0)))))))) -> 37.22880262 | I57: 1.054200558 | J57: =IF($F$11="Contactor 100HD",'100HD-Imperial'!G47,IF($F$11="Recharger 150XLHD",'150XLHD-Imperial'!G47,IF($F$11="Recharger 280HD",'280HD-Imperial'!G47,IF($F$11="Recharger 330XLHD",'330XLHD-Imperial'!G47,IF($F$11="Recharger 902HD",'902HD-Imperial'!J47,IF($F$11="Contactor Field Drain C-4HD",'C-4HD-Imperial'!E47,IF($F$11="Recharger 180HD",'180HD-Imperial'!G47,IF($F$11='Chamber Images'!$A$9,'360HD-Imperial'!J47,0)))))))) -> 174.7995183 | K57: 4.949762999 | L57: =IF($F$11="Contactor 100HD",'100HD-Imperial'!H47,IF($F$11="Recharger 150XLHD",'150XLHD-Imperial'!H47,IF($F$11="Recharger 280HD",'280HD-Imperial'!H47,IF($F$11="Recharger 330XLHD",'330XLHD-Imperial'!H47,IF($F$11="Recharger 902HD",'902HD-Imperial'!K47,IF($F$11="Contactor Field Drain C-4HD",'C-4HD-Imperial'!F47,IF($F$11="Recharger 180HD",'180HD-Imperial'!H47,IF($F$11='Chamber Images'!$A$9,'360HD-Imperial'!K47,0)))))))) -> 6021.307147 | M57: 170.5041502 | N57: =IF($F$11="Contactor 100HD",'100HD-Imperial'!I47,IF($F$11="Recharger 150XLHD",'150XLHD-Imperial'!I47,IF($F$11="Recharger 280HD",'280HD-Imperial'!I47,IF($F$11="Recharger 330XLHD",'330XLHD-Imperial'!I47,IF($F$11="Recharger 902HD",'902HD-Imperial'!L47,IF($F$11="Contactor Field Drain C-4HD",'C-4HD-Imperial'!G47,IF($F$11="Recharger 180HD",'180HD-Imperial'!I47,IF($F$11='Chamber Images'!$A$9,'360HD-Imperial'!L47,0)))))))) -> 3.08 | O57: =IF(B57<0,"",F$19+C57/1000) -> 0.9398 | P57: =IF($F$11="Contactor 100HD",'100HD-Imperial'!J47,IF($F$11="Recharger 150XLHD",'150XLHD-Imperial'!J47,IF($F$11="Recharger 280HD",'280HD-Imperial'!J47,IF($F$11="Recharger 330XLHD",'330XLHD-Imperial'!J47,IF($F$11="Recharger 902HD",'902HD-Imperial'!M47,IF($F$11="Recharger 180HD",'180HD-Imperial'!J47,IF($F$11='Chamber Images'!$A$9,'360HD-Imperial'!M47,IF($F$11='Chamber Images'!A33,'C-4HD-Imperial'!H47,"")))))))) -> 
B58: =IF($F$11="Contactor 100HD",'100HD-Imperial'!A48,IF($F$11="Recharger 150XLHD",'150XLHD-Imperial'!A48,IF($F$11="Recharger 280HD",'280HD-Imperial'!A48,IF($F$11="Recharger 330XLHD",'330XLHD-Imperial'!A48,IF($F$11="Recharger 902HD",'902HD-Imperial'!A48,IF($F$11="Contactor Field Drain C-4HD",'C-4HD-Imperial'!A48,IF($F$11="Recharger 180HD",'180HD-Imperial'!A48,IF($F$11='Chamber Images'!$A$9,'360HD-Imperial'!A48)))))))) -> 36 | C58: 914.4 | D58: =IF($F$11="Contactor 100HD",'100HD-Imperial'!D48,IF($F$11="Recharger 150XLHD",'150XLHD-Imperial'!D48,IF($F$11="Recharger 280HD",'280HD-Imperial'!D48,IF($F$11="Recharger 330XLHD",'330XLHD-Imperial'!D48,IF($F$11="Recharger 902HD",'902HD-Imperial'!G48,IF($F$11="Contactor Field Drain C-4HD",'C-4HD-Imperial'!C48,IF($F$11="Recharger 180HD",'180HD-Imperial'!D48,IF($F$11='Chamber Images'!$A$9,'360HD-Imperial'!G48,0)))))))) -> 137.6288588 | E58: 3.897208869 | F58: =IF($F$11="Contactor 100HD",'100HD-Imperial'!E48,IF($F$11="Recharger 150XLHD",'150XLHD-Imperial'!E48,IF($F$11="Recharger 280HD",'280HD-Imperial'!E48,IF($F$11="Recharger 330XLHD",'330XLHD-Imperial'!E48,IF($F$11="Recharger 902HD",'902HD-Imperial'!H48,IF($F$11="Recharger 180HD",'180HD-Imperial'!C48,IF($F$11='Chamber Images'!$A$9,'360HD-Imperial'!H48,""))))))) -> 0 | G58: 0 | H58: =IF($F$11="Contactor 100HD",'100HD-Imperial'!F48,IF($F$11="Recharger 150XLHD",'150XLHD-Imperial'!F48,IF($F$11="Recharger 280HD",'280HD-Imperial'!F48,IF($F$11="Recharger 330XLHD",'330XLHD-Imperial'!F48,IF($F$11="Recharger 902HD",'902HD-Imperial'!I48,IF($F$11="Contactor Field Drain C-4HD",'C-4HD-Imperial'!D48,IF($F$11="Recharger 180HD",'180HD-Imperial'!F48,IF($F$11='Chamber Images'!$A$9,'360HD-Imperial'!I48,0)))))))) -> 37.20554537 | I58: 1.053541987 | J58: =IF($F$11="Contactor 100HD",'100HD-Imperial'!G48,IF($F$11="Recharger 150XLHD",'150XLHD-Imperial'!G48,IF($F$11="Recharger 280HD",'280HD-Imperial'!G48,IF($F$11="Recharger 330XLHD",'330XLHD-Imperial'!G48,IF($F$11="Recharger 902HD",'902HD-Imperial'!J48,IF($F$11="Contactor Field Drain C-4HD",'C-4HD-Imperial'!E48,IF($F$11="Recharger 180HD",'180HD-Imperial'!G48,IF($F$11='Chamber Images'!$A$9,'360HD-Imperial'!J48,0)))))))) -> 174.8344042 | K58: 4.950750856 | L58: =IF($F$11="Contactor 100HD",'100HD-Imperial'!H48,IF($F$11="Recharger 150XLHD",'150XLHD-Imperial'!H48,IF($F$11="Recharger 280HD",'280HD-Imperial'!H48,IF($F$11="Recharger 330XLHD",'330XLHD-Imperial'!H48,IF($F$11="Recharger 902HD",'902HD-Imperial'!K48,IF($F$11="Contactor Field Drain C-4HD",'C-4HD-Imperial'!F48,IF($F$11="Recharger 180HD",'180HD-Imperial'!H48,IF($F$11='Chamber Images'!$A$9,'360HD-Imperial'!K48,0)))))))) -> 5846.507629 | M58: 165.5543872 | N58: =IF($F$11="Contactor 100HD",'100HD-Imperial'!I48,IF($F$11="Recharger 150XLHD",'150XLHD-Imperial'!I48,IF($F$11="Recharger 280HD",'280HD-Imperial'!I48,IF($F$11="Recharger 330XLHD",'330XLHD-Imperial'!I48,IF($F$11="Recharger 902HD",'902HD-Imperial'!L48,IF($F$11="Contactor Field Drain C-4HD",'C-4HD-Imperial'!G48,IF($F$11="Recharger 180HD",'180HD-Imperial'!I48,IF($F$11='Chamber Images'!$A$9,'360HD-Imperial'!L48,0)))))))) -> 3 | O58: 0.9144 | P58: =IF($F$11="Contactor 100HD",'100HD-Imperial'!J48,IF($F$11="Recharger 150XLHD",'150XLHD-Imperial'!J48,IF($F$11="Recharger 280HD",'280HD-Imperial'!J48,IF($F$11="Recharger 330XLHD",'330XLHD-Imperial'!J48,IF($F$11="Recharger 902HD",'902HD-Imperial'!M48,IF($F$11="Recharger 180HD",'180HD-Imperial'!J48,IF($F$11='Chamber Images'!$A$9,'360HD-Imperial'!M48,IF($F$11='Chamber Images'!A34,'C-4HD-Imperial'!H48,"")))))))) -> 
B59: =IF($F$11="Contactor 100HD",'100HD-Imperial'!A49,IF($F$11="Recharger 150XLHD",'150XLHD-Imperial'!A49,IF($F$11="Recharger 280HD",'280HD-Imperial'!A49,IF($F$11="Recharger 330XLHD",'330XLHD-Imperial'!A49,IF($F$11="Recharger 902HD",'902HD-Imperial'!A49,IF($F$11="Contactor Field Drain C-4HD",'C-4HD-Imperial'!A49,IF($F$11="Recharger 180HD",'180HD-Imperial'!A49,IF($F$11='Chamber Images'!$A$9,'360HD-Imperial'!A49)))))))) -> 35 | C59: 889 | D59: =IF($F$11="Contactor 100HD",'100HD-Imperial'!D49,IF($F$11="Recharger 150XLHD",'150XLHD-Imperial'!D49,IF($F$11="Recharger 280HD",'280HD-Imperial'!D49,IF($F$11="Recharger 330XLHD",'330XLHD-Imperial'!D49,IF($F$11="Recharger 902HD",'902HD-Imperial'!G49,IF($F$11="Contactor Field Drain C-4HD",'C-4HD-Imperial'!C49,IF($F$11="Recharger 180HD",'180HD-Imperial'!D49,IF($F$11='Chamber Images'!$A$9,'360HD-Imperial'!G49,0)))))))) -> 141.1488588 | E59: 3.996884005 | F59: =IF($F$11="Contactor 100HD",'100HD-Imperial'!E49,IF($F$11="Recharger 150XLHD",'150XLHD-Imperial'!E49,IF($F$11="Recharger 280HD",'280HD-Imperial'!E49,IF($F$11="Recharger 330XLHD",'330XLHD-Imperial'!E49,IF($F$11="Recharger 902HD",'902HD-Imperial'!H49,IF($F$11="Recharger 180HD",'180HD-Imperial'!C49,IF($F$11='Chamber Images'!$A$9,'360HD-Imperial'!H49,""))))))) -> 0 | G59: 0 | H59: =IF($F$11="Contactor 100HD",'100HD-Imperial'!F49,IF($F$11="Recharger 150XLHD",'150XLHD-Imperial'!F49,IF($F$11="Recharger 280HD",'280HD-Imperial'!F49,IF($F$11="Recharger 330XLHD",'330XLHD-Imperial'!F49,IF($F$11="Recharger 902HD",'902HD-Imperial'!I49,IF($F$11="Contactor Field Drain C-4HD",'C-4HD-Imperial'!D49,IF($F$11="Recharger 180HD",'180HD-Imperial'!F49,IF($F$11='Chamber Images'!$A$9,'360HD-Imperial'!I49,0)))))))) -> 35.79754537 | I59: 1.013671933 | J59: =IF($F$11="Contactor 100HD",'100HD-Imperial'!G49,IF($F$11="Recharger 150XLHD",'150XLHD-Imperial'!G49,IF($F$11="Recharger 280HD",'280HD-Imperial'!G49,IF($F$11="Recharger 330XLHD",'330XLHD-Imperial'!G49,IF($F$11="Recharger 902HD",'902HD-Imperial'!J49,IF($F$11="Contactor Field Drain C-4HD",'C-4HD-Imperial'!E49,IF($F$11="Recharger 180HD",'180HD-Imperial'!G49,IF($F$11='Chamber Images'!$A$9,'360HD-Imperial'!J49,0)))))))) -> 176.9464042 | K59: 5.010555938 | L59: =IF($F$11="Contactor 100HD",'100HD-Imperial'!H49,IF($F$11="Recharger 150XLHD",'150XLHD-Imperial'!H49,IF($F$11="Recharger 280HD",'280HD-Imperial'!H49,IF($F$11="Recharger 330XLHD",'330XLHD-Imperial'!H49,IF($F$11="Recharger 902HD",'902HD-Imperial'!K49,IF($F$11="Contactor Field Drain C-4HD",'C-4HD-Imperial'!F49,IF($F$11="Recharger 180HD",'180HD-Imperial'!H49,IF($F$11='Chamber Images'!$A$9,'360HD-Imperial'!K49,0)))))))) -> 5671.673225 | M59: 160.6036364 | N59: =IF($F$11="Contactor 100HD",'100HD-Imperial'!I49,IF($F$11="Recharger 150XLHD",'150XLHD-Imperial'!I49,IF($F$11="Recharger 280HD",'280HD-Imperial'!I49,IF($F$11="Recharger 330XLHD",'330XLHD-Imperial'!I49,IF($F$11="Recharger 902HD",'902HD-Imperial'!L49,IF($F$11="Contactor Field Drain C-4HD",'C-4HD-Imperial'!G49,IF($F$11="Recharger 180HD",'180HD-Imperial'!I49,IF($F$11='Chamber Images'!$A$9,'360HD-Imperial'!L49,0)))))))) -> 2.92 | O59: 0.889 | P59: =IF($F$11="Contactor 100HD",'100HD-Imperial'!J49,IF($F$11="Recharger 150XLHD",'150XLHD-Imperial'!J49,IF($F$11="Recharger 280HD",'280HD-Imperial'!J49,IF($F$11="Recharger 330XLHD",'330XLHD-Imperial'!J49,IF($F$11="Recharger 902HD",'902HD-Imperial'!M49,IF($F$11="Recharger 180HD",'180HD-Imperial'!J49,IF($F$11='Chamber Images'!$A$9,'360HD-Imperial'!M49,IF($F$11='Chamber Images'!A35,'C-4HD-Imperial'!H49,"")))))))) -> 
B60: =IF($F$11="Contactor 100HD",'100HD-Imperial'!A50,IF($F$11="Recharger 150XLHD",'150XLHD-Imperial'!A50,IF($F$11="Recharger 280HD",'280HD-Imperial'!A50,IF($F$11="Recharger 330XLHD",'330XLHD-Imperial'!A50,IF($F$11="Recharger 902HD",'902HD-Imperial'!A50,IF($F$11="Contactor Field Drain C-4HD",'C-4HD-Imperial'!A50,IF($F$11="Recharger 180HD",'180HD-Imperial'!A50,IF($F$11='Chamber Images'!$A$9,'360HD-Imperial'!A50)))))))) -> 34 | C60: 863.6 | D60: =IF($F$11="Contactor 100HD",'100HD-Imperial'!D50,IF($F$11="Recharger 150XLHD",'150XLHD-Imperial'!D50,IF($F$11="Recharger 280HD",'280HD-Imperial'!D50,IF($F$11="Recharger 330XLHD",'330XLHD-Imperial'!D50,IF($F$11="Recharger 902HD",'902HD-Imperial'!G50,IF($F$11="Contactor Field Drain C-4HD",'C-4HD-Imperial'!C50,IF($F$11="Recharger 180HD",'180HD-Imperial'!D50,IF($F$11='Chamber Images'!$A$9,'360HD-Imperial'!G50,0)))))))) -> 141.0907157 | E60: 3.995237577 | F60: =IF($F$11="Contactor 100HD",'100HD-Imperial'!E50,IF($F$11="Recharger 150XLHD",'150XLHD-Imperial'!E50,IF($F$11="Recharger 280HD",'280HD-Imperial'!E50,IF($F$11="Recharger 330XLHD",'330XLHD-Imperial'!E50,IF($F$11="Recharger 902HD",'902HD-Imperial'!H50,IF($F$11="Recharger 180HD",'180HD-Imperial'!C50,IF($F$11='Chamber Images'!$A$9,'360HD-Imperial'!H50,""))))))) -> 0 | G60: 0 | H60: =IF($F$11="Contactor 100HD",'100HD-Imperial'!F50,IF($F$11="Recharger 150XLHD",'150XLHD-Imperial'!F50,IF($F$11="Recharger 280HD",'280HD-Imperial'!F50,IF($F$11="Recharger 330XLHD",'330XLHD-Imperial'!F50,IF($F$11="Recharger 902HD",'902HD-Imperial'!I50,IF($F$11="Contactor Field Drain C-4HD",'C-4HD-Imperial'!D50,IF($F$11="Recharger 180HD",'180HD-Imperial'!F50,IF($F$11='Chamber Images'!$A$9,'360HD-Imperial'!I50,0)))))))) -> 35.82080262 | I60: 1.014330504 | J60: =IF($F$11="Contactor 100HD",'100HD-Imperial'!G50,IF($F$11="Recharger 150XLHD",'150XLHD-Imperial'!G50,IF($F$11="Recharger 280HD",'280HD-Imperial'!G50,IF($F$11="Recharger 330XLHD",'330XLHD-Imperial'!G50,IF($F$11="Recharger 902HD",'902HD-Imperial'!J50,IF($F$11="Contactor Field Drain C-4HD",'C-4HD-Imperial'!E50,IF($F$11="Recharger 180HD",'180HD-Imperial'!G50,IF($F$11='Chamber Images'!$A$9,'360HD-Imperial'!J50,0)))))))) -> 176.9115183 | K60: 5.009568081 | L60: =IF($F$11="Contactor 100HD",'100HD-Imperial'!H50,IF($F$11="Recharger 150XLHD",'150XLHD-Imperial'!H50,IF($F$11="Recharger 280HD",'280HD-Imperial'!H50,IF($F$11="Recharger 330XLHD",'330XLHD-Imperial'!H50,IF($F$11="Recharger 902HD",'902HD-Imperial'!K50,IF($F$11="Contactor Field Drain C-4HD",'C-4HD-Imperial'!F50,IF($F$11="Recharger 180HD",'180HD-Imperial'!H50,IF($F$11='Chamber Images'!$A$9,'360HD-Imperial'!K50,0)))))))) -> 5494.726821 | M60: 155.5930804 | N60: =IF($F$11="Contactor 100HD",'100HD-Imperial'!I50,IF($F$11="Recharger 150XLHD",'150XLHD-Imperial'!I50,IF($F$11="Recharger 280HD",'280HD-Imperial'!I50,IF($F$11="Recharger 330XLHD",'330XLHD-Imperial'!I50,IF($F$11="Recharger 902HD",'902HD-Imperial'!L50,IF($F$11="Contactor Field Drain C-4HD",'C-4HD-Imperial'!G50,IF($F$11="Recharger 180HD",'180HD-Imperial'!I50,IF($F$11='Chamber Images'!$A$9,'360HD-Imperial'!L50,0)))))))) -> 2.83 | O60: 0.8636 | P60: =IF($F$11="Contactor 100HD",'100HD-Imperial'!J50,IF($F$11="Recharger 150XLHD",'150XLHD-Imperial'!J50,IF($F$11="Recharger 280HD",'280HD-Imperial'!J50,IF($F$11="Recharger 330XLHD",'330XLHD-Imperial'!J50,IF($F$11="Recharger 902HD",'902HD-Imperial'!M50,IF($F$11="Recharger 180HD",'180HD-Imperial'!J50,IF($F$11='Chamber Images'!$A$9,'360HD-Imperial'!M50,IF($F$11='Chamber Images'!A36,'C-4HD-Imperial'!H50,"")))))))) -> 
B61: =IF($F$11="Contactor 100HD",'100HD-Imperial'!A51,IF($F$11="Recharger 150XLHD",'150XLHD-Imperial'!A51,IF($F$11="Recharger 280HD",'280HD-Imperial'!A51,IF($F$11="Recharger 330XLHD",'330XLHD-Imperial'!A51,IF($F$11="Recharger 902HD",'902HD-Imperial'!A51,IF($F$11="Contactor Field Drain C-4HD",'C-4HD-Imperial'!A51,IF($F$11="Recharger 180HD",'180HD-Imperial'!A51,IF($F$11='Chamber Images'!$A$9,'360HD-Imperial'!A51)))))))) -> 33 | C61: 838.2 | D61: =IF($F$11="Contactor 100HD",'100HD-Imperial'!D51,IF($F$11="Recharger 150XLHD",'150XLHD-Imperial'!D51,IF($F$11="Recharger 280HD",'280HD-Imperial'!D51,IF($F$11="Recharger 330XLHD",'330XLHD-Imperial'!D51,IF($F$11="Recharger 902HD",'902HD-Imperial'!G51,IF($F$11="Contactor Field Drain C-4HD",'C-4HD-Imperial'!C51,IF($F$11="Recharger 180HD",'180HD-Imperial'!D51,IF($F$11='Chamber Images'!$A$9,'360HD-Imperial'!G51,0)))))))) -> 144.6688588 | E61: 4.096559141 | F61: =IF($F$11="Contactor 100HD",'100HD-Imperial'!E51,IF($F$11="Recharger 150XLHD",'150XLHD-Imperial'!E51,IF($F$11="Recharger 280HD",'280HD-Imperial'!E51,IF($F$11="Recharger 330XLHD",'330XLHD-Imperial'!E51,IF($F$11="Recharger 902HD",'902HD-Imperial'!H51,IF($F$11="Recharger 180HD",'180HD-Imperial'!C51,IF($F$11='Chamber Images'!$A$9,'360HD-Imperial'!H51,""))))))) -> 0 | G61: 0 | H61: =IF($F$11="Contactor 100HD",'100HD-Imperial'!F51,IF($F$11="Recharger 150XLHD",'150XLHD-Imperial'!F51,IF($F$11="Recharger 280HD",'280HD-Imperial'!F51,IF($F$11="Recharger 330XLHD",'330XLHD-Imperial'!F51,IF($F$11="Recharger 902HD",'902HD-Imperial'!I51,IF($F$11="Contactor Field Drain C-4HD",'C-4HD-Imperial'!D51,IF($F$11="Recharger 180HD",'180HD-Imperial'!F51,IF($F$11='Chamber Images'!$A$9,'360HD-Imperial'!I51,0)))))))) -> 34.38954537 | I61: 0.9738018783 | J61: =IF($F$11="Contactor 100HD",'100HD-Imperial'!G51,IF($F$11="Recharger 150XLHD",'150XLHD-Imperial'!G51,IF($F$11="Recharger 280HD",'280HD-Imperial'!G51,IF($F$11="Recharger 330XLHD",'330XLHD-Imperial'!G51,IF($F$11="Recharger 902HD",'902HD-Imperial'!J51,IF($F$11="Contactor Field Drain C-4HD",'C-4HD-Imperial'!E51,IF($F$11="Recharger 180HD",'180HD-Imperial'!G51,IF($F$11='Chamber Images'!$A$9,'360HD-Imperial'!J51,0)))))))) -> 179.0584042 | K61: 5.070361019 | L61: =IF($F$11="Contactor 100HD",'100HD-Imperial'!H51,IF($F$11="Recharger 150XLHD",'150XLHD-Imperial'!H51,IF($F$11="Recharger 280HD",'280HD-Imperial'!H51,IF($F$11="Recharger 330XLHD",'330XLHD-Imperial'!H51,IF($F$11="Recharger 902HD",'902HD-Imperial'!K51,IF($F$11="Contactor Field Drain C-4HD",'C-4HD-Imperial'!F51,IF($F$11="Recharger 180HD",'180HD-Imperial'!H51,IF($F$11='Chamber Images'!$A$9,'360HD-Imperial'!K51,0)))))))) -> 5317.815302 | M61: 150.5835124 | N61: =IF($F$11="Contactor 100HD",'100HD-Imperial'!I51,IF($F$11="Recharger 150XLHD",'150XLHD-Imperial'!I51,IF($F$11="Recharger 280HD",'280HD-Imperial'!I51,IF($F$11="Recharger 330XLHD",'330XLHD-Imperial'!I51,IF($F$11="Recharger 902HD",'902HD-Imperial'!L51,IF($F$11="Contactor Field Drain C-4HD",'C-4HD-Imperial'!G51,IF($F$11="Recharger 180HD",'180HD-Imperial'!I51,IF($F$11='Chamber Images'!$A$9,'360HD-Imperial'!L51,0)))))))) -> 2.75 | O61: 0.8382 | P61: =IF($F$11="Contactor 100HD",'100HD-Imperial'!J51,IF($F$11="Recharger 150XLHD",'150XLHD-Imperial'!J51,IF($F$11="Recharger 280HD",'280HD-Imperial'!J51,IF($F$11="Recharger 330XLHD",'330XLHD-Imperial'!J51,IF($F$11="Recharger 902HD",'902HD-Imperial'!M51,IF($F$11="Recharger 180HD",'180HD-Imperial'!J51,IF($F$11='Chamber Images'!$A$9,'360HD-Imperial'!M51,IF($F$11='Chamber Images'!A37,'C-4HD-Imperial'!H51,"")))))))) -> 
B62: =IF($F$11="Contactor 100HD",'100HD-Imperial'!A52,IF($F$11="Recharger 150XLHD",'150XLHD-Imperial'!A52,IF($F$11="Recharger 280HD",'280HD-Imperial'!A52,IF($F$11="Recharger 330XLHD",'330XLHD-Imperial'!A52,IF($F$11="Recharger 902HD",'902HD-Imperial'!A52,IF($F$11="Contactor Field Drain C-4HD",'C-4HD-Imperial'!A52,IF($F$11="Recharger 180HD",'180HD-Imperial'!A52,IF($F$11='Chamber Images'!$A$9,'360HD-Imperial'!A52)))))))) -> 32 | C62: 812.8 | D62: =IF($F$11="Contactor 100HD",'100HD-Imperial'!D52,IF($F$11="Recharger 150XLHD",'150XLHD-Imperial'!D52,IF($F$11="Recharger 280HD",'280HD-Imperial'!D52,IF($F$11="Recharger 330XLHD",'330XLHD-Imperial'!D52,IF($F$11="Recharger 902HD",'902HD-Imperial'!G52,IF($F$11="Contactor Field Drain C-4HD",'C-4HD-Imperial'!C52,IF($F$11="Recharger 180HD",'180HD-Imperial'!D52,IF($F$11='Chamber Images'!$A$9,'360HD-Imperial'!G52,0)))))))) -> 144.6688588 | E62: 4.096559141 | F62: =IF($F$11="Contactor 100HD",'100HD-Imperial'!E52,IF($F$11="Recharger 150XLHD",'150XLHD-Imperial'!E52,IF($F$11="Recharger 280HD",'280HD-Imperial'!E52,IF($F$11="Recharger 330XLHD",'330XLHD-Imperial'!E52,IF($F$11="Recharger 902HD",'902HD-Imperial'!H52,IF($F$11="Recharger 180HD",'180HD-Imperial'!C52,IF($F$11='Chamber Images'!$A$9,'360HD-Imperial'!H52,""))))))) -> 0 | G62: 0 | H62: =IF($F$11="Contactor 100HD",'100HD-Imperial'!F52,IF($F$11="Recharger 150XLHD",'150XLHD-Imperial'!F52,IF($F$11="Recharger 280HD",'280HD-Imperial'!F52,IF($F$11="Recharger 330XLHD",'330XLHD-Imperial'!F52,IF($F$11="Recharger 902HD",'902HD-Imperial'!I52,IF($F$11="Contactor Field Drain C-4HD",'C-4HD-Imperial'!D52,IF($F$11="Recharger 180HD",'180HD-Imperial'!F52,IF($F$11='Chamber Images'!$A$9,'360HD-Imperial'!I52,0)))))))) -> 34.38954537 | I62: 0.9738018783 | J62: =IF($F$11="Contactor 100HD",'100HD-Imperial'!G52,IF($F$11="Recharger 150XLHD",'150XLHD-Imperial'!G52,IF($F$11="Recharger 280HD",'280HD-Imperial'!G52,IF($F$11="Recharger 330XLHD",'330XLHD-Imperial'!G52,IF($F$11="Recharger 902HD",'902HD-Imperial'!J52,IF($F$11="Contactor Field Drain C-4HD",'C-4HD-Imperial'!E52,IF($F$11="Recharger 180HD",'180HD-Imperial'!G52,IF($F$11='Chamber Images'!$A$9,'360HD-Imperial'!J52,0)))))))) -> 179.0584042 | K62: 5.070361019 | L62: =IF($F$11="Contactor 100HD",'100HD-Imperial'!H52,IF($F$11="Recharger 150XLHD",'150XLHD-Imperial'!H52,IF($F$11="Recharger 280HD",'280HD-Imperial'!H52,IF($F$11="Recharger 330XLHD",'330XLHD-Imperial'!H52,IF($F$11="Recharger 902HD",'902HD-Imperial'!K52,IF($F$11="Contactor Field Drain C-4HD",'C-4HD-Imperial'!F52,IF($F$11="Recharger 180HD",'180HD-Imperial'!H52,IF($F$11='Chamber Images'!$A$9,'360HD-Imperial'!K52,0)))))))) -> 5138.756898 | M62: 145.5131513 | N62: =IF($F$11="Contactor 100HD",'100HD-Imperial'!I52,IF($F$11="Recharger 150XLHD",'150XLHD-Imperial'!I52,IF($F$11="Recharger 280HD",'280HD-Imperial'!I52,IF($F$11="Recharger 330XLHD",'330XLHD-Imperial'!I52,IF($F$11="Recharger 902HD",'902HD-Imperial'!L52,IF($F$11="Contactor Field Drain C-4HD",'C-4HD-Imperial'!G52,IF($F$11="Recharger 180HD",'180HD-Imperial'!I52,IF($F$11='Chamber Images'!$A$9,'360HD-Imperial'!L52,0)))))))) -> 2.67 | O62: 0.8128 | P62: =IF($F$11="Contactor 100HD",'100HD-Imperial'!J52,IF($F$11="Recharger 150XLHD",'150XLHD-Imperial'!J52,IF($F$11="Recharger 280HD",'280HD-Imperial'!J52,IF($F$11="Recharger 330XLHD",'330XLHD-Imperial'!J52,IF($F$11="Recharger 902HD",'902HD-Imperial'!M52,IF($F$11="Recharger 180HD",'180HD-Imperial'!J52,IF($F$11='Chamber Images'!$A$9,'360HD-Imperial'!M52,IF($F$11='Chamber Images'!A38,'C-4HD-Imperial'!H52,"")))))))) -> 
B63: =IF($F$11="Contactor 100HD",'100HD-Imperial'!A53,IF($F$11="Recharger 150XLHD",'150XLHD-Imperial'!A53,IF($F$11="Recharger 280HD",'280HD-Imperial'!A53,IF($F$11="Recharger 330XLHD",'330XLHD-Imperial'!A53,IF($F$11="Recharger 902HD",'902HD-Imperial'!A53,IF($F$11="Contactor Field Drain C-4HD",'C-4HD-Imperial'!A53,IF($F$11="Recharger 180HD",'180HD-Imperial'!A53,IF($F$11='Chamber Images'!$A$9,'360HD-Imperial'!A53)))))))) -> 31 | C63: 787.4 | D63: =IF($F$11="Contactor 100HD",'100HD-Imperial'!D53,IF($F$11="Recharger 150XLHD",'150XLHD-Imperial'!D53,IF($F$11="Recharger 280HD",'280HD-Imperial'!D53,IF($F$11="Recharger 330XLHD",'330XLHD-Imperial'!D53,IF($F$11="Recharger 902HD",'902HD-Imperial'!G53,IF($F$11="Contactor Field Drain C-4HD",'C-4HD-Imperial'!C53,IF($F$11="Recharger 180HD",'180HD-Imperial'!D53,IF($F$11='Chamber Images'!$A$9,'360HD-Imperial'!G53,0)))))))) -> 144.7270019 | E63: 4.098205568 | F63: =IF($F$11="Contactor 100HD",'100HD-Imperial'!E53,IF($F$11="Recharger 150XLHD",'150XLHD-Imperial'!E53,IF($F$11="Recharger 280HD",'280HD-Imperial'!E53,IF($F$11="Recharger 330XLHD",'330XLHD-Imperial'!E53,IF($F$11="Recharger 902HD",'902HD-Imperial'!H53,IF($F$11="Recharger 180HD",'180HD-Imperial'!C53,IF($F$11='Chamber Images'!$A$9,'360HD-Imperial'!H53,""))))))) -> 0 | G63: 0 | H63: =IF($F$11="Contactor 100HD",'100HD-Imperial'!F53,IF($F$11="Recharger 150XLHD",'150XLHD-Imperial'!F53,IF($F$11="Recharger 280HD",'280HD-Imperial'!F53,IF($F$11="Recharger 330XLHD",'330XLHD-Imperial'!F53,IF($F$11="Recharger 902HD",'902HD-Imperial'!I53,IF($F$11="Contactor Field Drain C-4HD",'C-4HD-Imperial'!D53,IF($F$11="Recharger 180HD",'180HD-Imperial'!F53,IF($F$11='Chamber Images'!$A$9,'360HD-Imperial'!I53,0)))))))) -> 34.36628812 | I63: 0.9731433073 | J63: =IF($F$11="Contactor 100HD",'100HD-Imperial'!G53,IF($F$11="Recharger 150XLHD",'150XLHD-Imperial'!G53,IF($F$11="Recharger 280HD",'280HD-Imperial'!G53,IF($F$11="Recharger 330XLHD",'330XLHD-Imperial'!G53,IF($F$11="Recharger 902HD",'902HD-Imperial'!J53,IF($F$11="Contactor Field Drain C-4HD",'C-4HD-Imperial'!E53,IF($F$11="Recharger 180HD",'180HD-Imperial'!G53,IF($F$11='Chamber Images'!$A$9,'360HD-Imperial'!J53,0)))))))) -> 179.09329 | K63: 5.071348876 | L63: =IF($F$11="Contactor 100HD",'100HD-Imperial'!H53,IF($F$11="Recharger 150XLHD",'150XLHD-Imperial'!H53,IF($F$11="Recharger 280HD",'280HD-Imperial'!H53,IF($F$11="Recharger 330XLHD",'330XLHD-Imperial'!H53,IF($F$11="Recharger 902HD",'902HD-Imperial'!K53,IF($F$11="Contactor Field Drain C-4HD",'C-4HD-Imperial'!F53,IF($F$11="Recharger 180HD",'180HD-Imperial'!H53,IF($F$11='Chamber Images'!$A$9,'360HD-Imperial'!K53,0)))))))) -> 4959.698494 | M63: 140.4427903 | N63: =IF($F$11="Contactor 100HD",'100HD-Imperial'!I53,IF($F$11="Recharger 150XLHD",'150XLHD-Imperial'!I53,IF($F$11="Recharger 280HD",'280HD-Imperial'!I53,IF($F$11="Recharger 330XLHD",'330XLHD-Imperial'!I53,IF($F$11="Recharger 902HD",'902HD-Imperial'!L53,IF($F$11="Contactor Field Drain C-4HD",'C-4HD-Imperial'!G53,IF($F$11="Recharger 180HD",'180HD-Imperial'!I53,IF($F$11='Chamber Images'!$A$9,'360HD-Imperial'!L53,0)))))))) -> 2.58 | O63: 0.7874 | P63: =IF($F$11="Contactor 100HD",'100HD-Imperial'!J53,IF($F$11="Recharger 150XLHD",'150XLHD-Imperial'!J53,IF($F$11="Recharger 280HD",'280HD-Imperial'!J53,IF($F$11="Recharger 330XLHD",'330XLHD-Imperial'!J53,IF($F$11="Recharger 902HD",'902HD-Imperial'!M53,IF($F$11="Recharger 180HD",'180HD-Imperial'!J53,IF($F$11='Chamber Images'!$A$9,'360HD-Imperial'!M53,IF($F$11='Chamber Images'!A39,'C-4HD-Imperial'!H53,"")))))))) -> 
B64: =IF($F$11="Contactor 100HD",'100HD-Imperial'!A54,IF($F$11="Recharger 150XLHD",'150XLHD-Imperial'!A54,IF($F$11="Recharger 280HD",'280HD-Imperial'!A54,IF($F$11="Recharger 330XLHD",'330XLHD-Imperial'!A54,IF($F$11="Recharger 902HD",'902HD-Imperial'!A54,IF($F$11="Contactor Field Drain C-4HD",'C-4HD-Imperial'!A54,IF($F$11="Recharger 180HD",'180HD-Imperial'!A54,IF($F$11='Chamber Images'!$A$9,'360HD-Imperial'!A54)))))))) -> 30 | C64: 762 | D64: =IF($F$11="Contactor 100HD",'100HD-Imperial'!D54,IF($F$11="Recharger 150XLHD",'150XLHD-Imperial'!D54,IF($F$11="Recharger 280HD",'280HD-Imperial'!D54,IF($F$11="Recharger 330XLHD",'330XLHD-Imperial'!D54,IF($F$11="Recharger 902HD",'902HD-Imperial'!G54,IF($F$11="Contactor Field Drain C-4HD",'C-4HD-Imperial'!C54,IF($F$11="Recharger 180HD",'180HD-Imperial'!D54,IF($F$11='Chamber Images'!$A$9,'360HD-Imperial'!G54,0)))))))) -> 148.1888588 | E64: 4.196234277 | F64: =IF($F$11="Contactor 100HD",'100HD-Imperial'!E54,IF($F$11="Recharger 150XLHD",'150XLHD-Imperial'!E54,IF($F$11="Recharger 280HD",'280HD-Imperial'!E54,IF($F$11="Recharger 330XLHD",'330XLHD-Imperial'!E54,IF($F$11="Recharger 902HD",'902HD-Imperial'!H54,IF($F$11="Recharger 180HD",'180HD-Imperial'!C54,IF($F$11='Chamber Images'!$A$9,'360HD-Imperial'!H54,""))))))) -> 0 | G64: 0 | H64: =IF($F$11="Contactor 100HD",'100HD-Imperial'!F54,IF($F$11="Recharger 150XLHD",'150XLHD-Imperial'!F54,IF($F$11="Recharger 280HD",'280HD-Imperial'!F54,IF($F$11="Recharger 330XLHD",'330XLHD-Imperial'!F54,IF($F$11="Recharger 902HD",'902HD-Imperial'!I54,IF($F$11="Contactor Field Drain C-4HD",'C-4HD-Imperial'!D54,IF($F$11="Recharger 180HD",'180HD-Imperial'!F54,IF($F$11='Chamber Images'!$A$9,'360HD-Imperial'!I54,0)))))))) -> 32.98154537 | I64: 0.9339318239 | J64: =IF($F$11="Contactor 100HD",'100HD-Imperial'!G54,IF($F$11="Recharger 150XLHD",'150XLHD-Imperial'!G54,IF($F$11="Recharger 280HD",'280HD-Imperial'!G54,IF($F$11="Recharger 330XLHD",'330XLHD-Imperial'!G54,IF($F$11="Recharger 902HD",'902HD-Imperial'!J54,IF($F$11="Contactor Field Drain C-4HD",'C-4HD-Imperial'!E54,IF($F$11="Recharger 180HD",'180HD-Imperial'!G54,IF($F$11='Chamber Images'!$A$9,'360HD-Imperial'!J54,0)))))))) -> 181.1704042 | K64: 5.130166101 | L64: =IF($F$11="Contactor 100HD",'100HD-Imperial'!H54,IF($F$11="Recharger 150XLHD",'150XLHD-Imperial'!H54,IF($F$11="Recharger 280HD",'280HD-Imperial'!H54,IF($F$11="Recharger 330XLHD",'330XLHD-Imperial'!H54,IF($F$11="Recharger 902HD",'902HD-Imperial'!K54,IF($F$11="Contactor Field Drain C-4HD",'C-4HD-Imperial'!F54,IF($F$11="Recharger 180HD",'180HD-Imperial'!H54,IF($F$11='Chamber Images'!$A$9,'360HD-Imperial'!K54,0)))))))) -> 4780.605204 | M64: 135.3714414 | N64: =IF($F$11="Contactor 100HD",'100HD-Imperial'!I54,IF($F$11="Recharger 150XLHD",'150XLHD-Imperial'!I54,IF($F$11="Recharger 280HD",'280HD-Imperial'!I54,IF($F$11="Recharger 330XLHD",'330XLHD-Imperial'!I54,IF($F$11="Recharger 902HD",'902HD-Imperial'!L54,IF($F$11="Contactor Field Drain C-4HD",'C-4HD-Imperial'!G54,IF($F$11="Recharger 180HD",'180HD-Imperial'!I54,IF($F$11='Chamber Images'!$A$9,'360HD-Imperial'!L54,0)))))))) -> 2.5 | O64: 0.762 | P64: =IF($F$11="Contactor 100HD",'100HD-Imperial'!J54,IF($F$11="Recharger 150XLHD",'150XLHD-Imperial'!J54,IF($F$11="Recharger 280HD",'280HD-Imperial'!J54,IF($F$11="Recharger 330XLHD",'330XLHD-Imperial'!J54,IF($F$11="Recharger 902HD",'902HD-Imperial'!M54,IF($F$11="Recharger 180HD",'180HD-Imperial'!J54,IF($F$11='Chamber Images'!$A$9,'360HD-Imperial'!M54,IF($F$11='Chamber Images'!A40,'C-4HD-Imperial'!H54,"")))))))) -> 
B65: =IF($F$11="Contactor 100HD",'100HD-Imperial'!A55,IF($F$11="Recharger 150XLHD",'150XLHD-Imperial'!A55,IF($F$11="Recharger 280HD",'280HD-Imperial'!A55,IF($F$11="Recharger 330XLHD",'330XLHD-Imperial'!A55,IF($F$11="Recharger 902HD",'902HD-Imperial'!A55,IF($F$11="Contactor Field Drain C-4HD",'C-4HD-Imperial'!A55,IF($F$11="Recharger 180HD",'180HD-Imperial'!A55,IF($F$11='Chamber Images'!$A$9,'360HD-Imperial'!A55)))))))) -> 29 | C65: 736.6 | D65: =IF($F$11="Contactor 100HD",'100HD-Imperial'!D55,IF($F$11="Recharger 150XLHD",'150XLHD-Imperial'!D55,IF($F$11="Recharger 280HD",'280HD-Imperial'!D55,IF($F$11="Recharger 330XLHD",'330XLHD-Imperial'!D55,IF($F$11="Recharger 902HD",'902HD-Imperial'!G55,IF($F$11="Contactor Field Drain C-4HD",'C-4HD-Imperial'!C55,IF($F$11="Recharger 180HD",'180HD-Imperial'!D55,IF($F$11='Chamber Images'!$A$9,'360HD-Imperial'!G55,0)))))))) -> 148.1888588 | E65: 4.196234277 | F65: =IF($F$11="Contactor 100HD",'100HD-Imperial'!E55,IF($F$11="Recharger 150XLHD",'150XLHD-Imperial'!E55,IF($F$11="Recharger 280HD",'280HD-Imperial'!E55,IF($F$11="Recharger 330XLHD",'330XLHD-Imperial'!E55,IF($F$11="Recharger 902HD",'902HD-Imperial'!H55,IF($F$11="Recharger 180HD",'180HD-Imperial'!C55,IF($F$11='Chamber Images'!$A$9,'360HD-Imperial'!H55,""))))))) -> 0 | G65: 0 | H65: =IF($F$11="Contactor 100HD",'100HD-Imperial'!F55,IF($F$11="Recharger 150XLHD",'150XLHD-Imperial'!F55,IF($F$11="Recharger 280HD",'280HD-Imperial'!F55,IF($F$11="Recharger 330XLHD",'330XLHD-Imperial'!F55,IF($F$11="Recharger 902HD",'902HD-Imperial'!I55,IF($F$11="Contactor Field Drain C-4HD",'C-4HD-Imperial'!D55,IF($F$11="Recharger 180HD",'180HD-Imperial'!F55,IF($F$11='Chamber Images'!$A$9,'360HD-Imperial'!I55,0)))))))) -> 32.98154537 | I65: 0.9339318239 | J65: =IF($F$11="Contactor 100HD",'100HD-Imperial'!G55,IF($F$11="Recharger 150XLHD",'150XLHD-Imperial'!G55,IF($F$11="Recharger 280HD",'280HD-Imperial'!G55,IF($F$11="Recharger 330XLHD",'330XLHD-Imperial'!G55,IF($F$11="Recharger 902HD",'902HD-Imperial'!J55,IF($F$11="Contactor Field Drain C-4HD",'C-4HD-Imperial'!E55,IF($F$11="Recharger 180HD",'180HD-Imperial'!G55,IF($F$11='Chamber Images'!$A$9,'360HD-Imperial'!J55,0)))))))) -> 181.1704042 | K65: 5.130166101 | L65: =IF($F$11="Contactor 100HD",'100HD-Imperial'!H55,IF($F$11="Recharger 150XLHD",'150XLHD-Imperial'!H55,IF($F$11="Recharger 280HD",'280HD-Imperial'!H55,IF($F$11="Recharger 330XLHD",'330XLHD-Imperial'!H55,IF($F$11="Recharger 902HD",'902HD-Imperial'!K55,IF($F$11="Contactor Field Drain C-4HD",'C-4HD-Imperial'!F55,IF($F$11="Recharger 180HD",'180HD-Imperial'!H55,IF($F$11='Chamber Images'!$A$9,'360HD-Imperial'!K55,0)))))))) -> 4599.4348 | M65: 130.2412753 | N65: =IF($F$11="Contactor 100HD",'100HD-Imperial'!I55,IF($F$11="Recharger 150XLHD",'150XLHD-Imperial'!I55,IF($F$11="Recharger 280HD",'280HD-Imperial'!I55,IF($F$11="Recharger 330XLHD",'330XLHD-Imperial'!I55,IF($F$11="Recharger 902HD",'902HD-Imperial'!L55,IF($F$11="Contactor Field Drain C-4HD",'C-4HD-Imperial'!G55,IF($F$11="Recharger 180HD",'180HD-Imperial'!I55,IF($F$11='Chamber Images'!$A$9,'360HD-Imperial'!L55,0)))))))) -> 2.42 | O65: 0.7366 | P65: =IF($F$11="Contactor 100HD",'100HD-Imperial'!J55,IF($F$11="Recharger 150XLHD",'150XLHD-Imperial'!J55,IF($F$11="Recharger 280HD",'280HD-Imperial'!J55,IF($F$11="Recharger 330XLHD",'330XLHD-Imperial'!J55,IF($F$11="Recharger 902HD",'902HD-Imperial'!M55,IF($F$11="Recharger 180HD",'180HD-Imperial'!J55,IF($F$11='Chamber Images'!$A$9,'360HD-Imperial'!M55,IF($F$11='Chamber Images'!A41,'C-4HD-Imperial'!H55,"")))))))) -> 
B66: =IF($F$11="Contactor 100HD",'100HD-Imperial'!A56,IF($F$11="Recharger 150XLHD",'150XLHD-Imperial'!A56,IF($F$11="Recharger 280HD",'280HD-Imperial'!A56,IF($F$11="Recharger 330XLHD",'330XLHD-Imperial'!A56,IF($F$11="Recharger 902HD",'902HD-Imperial'!A56,IF($F$11="Contactor Field Drain C-4HD",'C-4HD-Imperial'!A56,IF($F$11="Recharger 180HD",'180HD-Imperial'!A56,IF($F$11='Chamber Images'!$A$9,'360HD-Imperial'!A56)))))))) -> 28 | C66: 711.2 | D66: =IF($F$11="Contactor 100HD",'100HD-Imperial'!D56,IF($F$11="Recharger 150XLHD",'150XLHD-Imperial'!D56,IF($F$11="Recharger 280HD",'280HD-Imperial'!D56,IF($F$11="Recharger 330XLHD",'330XLHD-Imperial'!D56,IF($F$11="Recharger 902HD",'902HD-Imperial'!G56,IF($F$11="Contactor Field Drain C-4HD",'C-4HD-Imperial'!C56,IF($F$11="Recharger 180HD",'180HD-Imperial'!D56,IF($F$11='Chamber Images'!$A$9,'360HD-Imperial'!G56,0)))))))) -> 148.1888588 | E66: 4.196234277 | F66: =IF($F$11="Contactor 100HD",'100HD-Imperial'!E56,IF($F$11="Recharger 150XLHD",'150XLHD-Imperial'!E56,IF($F$11="Recharger 280HD",'280HD-Imperial'!E56,IF($F$11="Recharger 330XLHD",'330XLHD-Imperial'!E56,IF($F$11="Recharger 902HD",'902HD-Imperial'!H56,IF($F$11="Recharger 180HD",'180HD-Imperial'!C56,IF($F$11='Chamber Images'!$A$9,'360HD-Imperial'!H56,""))))))) -> 0 | G66: 0 | H66: =IF($F$11="Contactor 100HD",'100HD-Imperial'!F56,IF($F$11="Recharger 150XLHD",'150XLHD-Imperial'!F56,IF($F$11="Recharger 280HD",'280HD-Imperial'!F56,IF($F$11="Recharger 330XLHD",'330XLHD-Imperial'!F56,IF($F$11="Recharger 902HD",'902HD-Imperial'!I56,IF($F$11="Contactor Field Drain C-4HD",'C-4HD-Imperial'!D56,IF($F$11="Recharger 180HD",'180HD-Imperial'!F56,IF($F$11='Chamber Images'!$A$9,'360HD-Imperial'!I56,0)))))))) -> 32.98154537 | I66: 0.9339318239 | J66: =IF($F$11="Contactor 100HD",'100HD-Imperial'!G56,IF($F$11="Recharger 150XLHD",'150XLHD-Imperial'!G56,IF($F$11="Recharger 280HD",'280HD-Imperial'!G56,IF($F$11="Recharger 330XLHD",'330XLHD-Imperial'!G56,IF($F$11="Recharger 902HD",'902HD-Imperial'!J56,IF($F$11="Contactor Field Drain C-4HD",'C-4HD-Imperial'!E56,IF($F$11="Recharger 180HD",'180HD-Imperial'!G56,IF($F$11='Chamber Images'!$A$9,'360HD-Imperial'!J56,0)))))))) -> 181.1704042 | K66: 5.130166101 | L66: =IF($F$11="Contactor 100HD",'100HD-Imperial'!H56,IF($F$11="Recharger 150XLHD",'150XLHD-Imperial'!H56,IF($F$11="Recharger 280HD",'280HD-Imperial'!H56,IF($F$11="Recharger 330XLHD",'330XLHD-Imperial'!H56,IF($F$11="Recharger 902HD",'902HD-Imperial'!K56,IF($F$11="Contactor Field Drain C-4HD",'C-4HD-Imperial'!F56,IF($F$11="Recharger 180HD",'180HD-Imperial'!H56,IF($F$11='Chamber Images'!$A$9,'360HD-Imperial'!K56,0)))))))) -> 4418.264396 | M66: 125.1111092 | N66: =IF($F$11="Contactor 100HD",'100HD-Imperial'!I56,IF($F$11="Recharger 150XLHD",'150XLHD-Imperial'!I56,IF($F$11="Recharger 280HD",'280HD-Imperial'!I56,IF($F$11="Recharger 330XLHD",'330XLHD-Imperial'!I56,IF($F$11="Recharger 902HD",'902HD-Imperial'!L56,IF($F$11="Contactor Field Drain C-4HD",'C-4HD-Imperial'!G56,IF($F$11="Recharger 180HD",'180HD-Imperial'!I56,IF($F$11='Chamber Images'!$A$9,'360HD-Imperial'!L56,0)))))))) -> 2.33 | O66: 0.7112 | P66: =IF($F$11="Contactor 100HD",'100HD-Imperial'!J56,IF($F$11="Recharger 150XLHD",'150XLHD-Imperial'!J56,IF($F$11="Recharger 280HD",'280HD-Imperial'!J56,IF($F$11="Recharger 330XLHD",'330XLHD-Imperial'!J56,IF($F$11="Recharger 902HD",'902HD-Imperial'!M56,IF($F$11="Recharger 180HD",'180HD-Imperial'!J56,IF($F$11='Chamber Images'!$A$9,'360HD-Imperial'!M56,IF($F$11='Chamber Images'!A42,'C-4HD-Imperial'!H56,"")))))))) -> 
B67: =IF($F$11="Contactor 100HD",'100HD-Imperial'!A57,IF($F$11="Recharger 150XLHD",'150XLHD-Imperial'!A57,IF($F$11="Recharger 280HD",'280HD-Imperial'!A57,IF($F$11="Recharger 330XLHD",'330XLHD-Imperial'!A57,IF($F$11="Recharger 902HD",'902HD-Imperial'!A57,IF($F$11="Contactor Field Drain C-4HD",'C-4HD-Imperial'!A57,IF($F$11="Recharger 180HD",'180HD-Imperial'!A57,IF($F$11='Chamber Images'!$A$9,'360HD-Imperial'!A57)))))))) -> 27 | C67: 685.8 | D67: =IF($F$11="Contactor 100HD",'100HD-Imperial'!D57,IF($F$11="Recharger 150XLHD",'150XLHD-Imperial'!D57,IF($F$11="Recharger 280HD",'280HD-Imperial'!D57,IF($F$11="Recharger 330XLHD",'330XLHD-Imperial'!D57,IF($F$11="Recharger 902HD",'902HD-Imperial'!G57,IF($F$11="Contactor Field Drain C-4HD",'C-4HD-Imperial'!C57,IF($F$11="Recharger 180HD",'180HD-Imperial'!D57,IF($F$11='Chamber Images'!$A$9,'360HD-Imperial'!G57,0)))))))) -> 151.7088588 | E67: 4.295909413 | F67: =IF($F$11="Contactor 100HD",'100HD-Imperial'!E57,IF($F$11="Recharger 150XLHD",'150XLHD-Imperial'!E57,IF($F$11="Recharger 280HD",'280HD-Imperial'!E57,IF($F$11="Recharger 330XLHD",'330XLHD-Imperial'!E57,IF($F$11="Recharger 902HD",'902HD-Imperial'!H57,IF($F$11="Recharger 180HD",'180HD-Imperial'!C57,IF($F$11='Chamber Images'!$A$9,'360HD-Imperial'!H57,""))))))) -> 0 | G67: 0 | H67: =IF($F$11="Contactor 100HD",'100HD-Imperial'!F57,IF($F$11="Recharger 150XLHD",'150XLHD-Imperial'!F57,IF($F$11="Recharger 280HD",'280HD-Imperial'!F57,IF($F$11="Recharger 330XLHD",'330XLHD-Imperial'!F57,IF($F$11="Recharger 902HD",'902HD-Imperial'!I57,IF($F$11="Contactor Field Drain C-4HD",'C-4HD-Imperial'!D57,IF($F$11="Recharger 180HD",'180HD-Imperial'!F57,IF($F$11='Chamber Images'!$A$9,'360HD-Imperial'!I57,0)))))))) -> 31.57354537 | I67: 0.8940617695 | J67: =IF($F$11="Contactor 100HD",'100HD-Imperial'!G57,IF($F$11="Recharger 150XLHD",'150XLHD-Imperial'!G57,IF($F$11="Recharger 280HD",'280HD-Imperial'!G57,IF($F$11="Recharger 330XLHD",'330XLHD-Imperial'!G57,IF($F$11="Recharger 902HD",'902HD-Imperial'!J57,IF($F$11="Contactor Field Drain C-4HD",'C-4HD-Imperial'!E57,IF($F$11="Recharger 180HD",'180HD-Imperial'!G57,IF($F$11='Chamber Images'!$A$9,'360HD-Imperial'!J57,0)))))))) -> 183.2824042 | K67: 5.189971182 | L67: =IF($F$11="Contactor 100HD",'100HD-Imperial'!H57,IF($F$11="Recharger 150XLHD",'150XLHD-Imperial'!H57,IF($F$11="Recharger 280HD",'280HD-Imperial'!H57,IF($F$11="Recharger 330XLHD",'330XLHD-Imperial'!H57,IF($F$11="Recharger 902HD",'902HD-Imperial'!K57,IF($F$11="Contactor Field Drain C-4HD",'C-4HD-Imperial'!F57,IF($F$11="Recharger 180HD",'180HD-Imperial'!H57,IF($F$11='Chamber Images'!$A$9,'360HD-Imperial'!K57,0)))))))) -> 4237.093991 | M67: 119.9809431 | N67: =IF($F$11="Contactor 100HD",'100HD-Imperial'!I57,IF($F$11="Recharger 150XLHD",'150XLHD-Imperial'!I57,IF($F$11="Recharger 280HD",'280HD-Imperial'!I57,IF($F$11="Recharger 330XLHD",'330XLHD-Imperial'!I57,IF($F$11="Recharger 902HD",'902HD-Imperial'!L57,IF($F$11="Contactor Field Drain C-4HD",'C-4HD-Imperial'!G57,IF($F$11="Recharger 180HD",'180HD-Imperial'!I57,IF($F$11='Chamber Images'!$A$9,'360HD-Imperial'!L57,0)))))))) -> 2.25 | O67: 0.6858 | P67: =IF($F$11="Contactor 100HD",'100HD-Imperial'!J57,IF($F$11="Recharger 150XLHD",'150XLHD-Imperial'!J57,IF($F$11="Recharger 280HD",'280HD-Imperial'!J57,IF($F$11="Recharger 330XLHD",'330XLHD-Imperial'!J57,IF($F$11="Recharger 902HD",'902HD-Imperial'!M57,IF($F$11="Recharger 180HD",'180HD-Imperial'!J57,IF($F$11='Chamber Images'!$A$9,'360HD-Imperial'!M57,IF($F$11='Chamber Images'!A43,'C-4HD-Imperial'!H57,"")))))))) -> 
B68: =IF($F$11="Contactor 100HD",'100HD-Imperial'!A58,IF($F$11="Recharger 150XLHD",'150XLHD-Imperial'!A58,IF($F$11="Recharger 280HD",'280HD-Imperial'!A58,IF($F$11="Recharger 330XLHD",'330XLHD-Imperial'!A58,IF($F$11="Recharger 902HD",'902HD-Imperial'!A58,IF($F$11="Contactor Field Drain C-4HD",'C-4HD-Imperial'!A58,IF($F$11="Recharger 180HD",'180HD-Imperial'!A58,IF($F$11='Chamber Images'!$A$9,'360HD-Imperial'!A58)))))))) -> 26 | C68: 660.4 | D68: =IF($F$11="Contactor 100HD",'100HD-Imperial'!D58,IF($F$11="Recharger 150XLHD",'150XLHD-Imperial'!D58,IF($F$11="Recharger 280HD",'280HD-Imperial'!D58,IF($F$11="Recharger 330XLHD",'330XLHD-Imperial'!D58,IF($F$11="Recharger 902HD",'902HD-Imperial'!G58,IF($F$11="Contactor Field Drain C-4HD",'C-4HD-Imperial'!C58,IF($F$11="Recharger 180HD",'180HD-Imperial'!D58,IF($F$11='Chamber Images'!$A$9,'360HD-Imperial'!G58,0)))))))) -> 151.7088588 | E68: 4.295909413 | F68: =IF($F$11="Contactor 100HD",'100HD-Imperial'!E58,IF($F$11="Recharger 150XLHD",'150XLHD-Imperial'!E58,IF($F$11="Recharger 280HD",'280HD-Imperial'!E58,IF($F$11="Recharger 330XLHD",'330XLHD-Imperial'!E58,IF($F$11="Recharger 902HD",'902HD-Imperial'!H58,IF($F$11="Recharger 180HD",'180HD-Imperial'!C58,IF($F$11='Chamber Images'!$A$9,'360HD-Imperial'!H58,""))))))) -> 0 | G68: 0 | H68: =IF($F$11="Contactor 100HD",'100HD-Imperial'!F58,IF($F$11="Recharger 150XLHD",'150XLHD-Imperial'!F58,IF($F$11="Recharger 280HD",'280HD-Imperial'!F58,IF($F$11="Recharger 330XLHD",'330XLHD-Imperial'!F58,IF($F$11="Recharger 902HD",'902HD-Imperial'!I58,IF($F$11="Contactor Field Drain C-4HD",'C-4HD-Imperial'!D58,IF($F$11="Recharger 180HD",'180HD-Imperial'!F58,IF($F$11='Chamber Images'!$A$9,'360HD-Imperial'!I58,0)))))))) -> 31.57354537 | I68: 0.8940617695 | J68: =IF($F$11="Contactor 100HD",'100HD-Imperial'!G58,IF($F$11="Recharger 150XLHD",'150XLHD-Imperial'!G58,IF($F$11="Recharger 280HD",'280HD-Imperial'!G58,IF($F$11="Recharger 330XLHD",'330XLHD-Imperial'!G58,IF($F$11="Recharger 902HD",'902HD-Imperial'!J58,IF($F$11="Contactor Field Drain C-4HD",'C-4HD-Imperial'!E58,IF($F$11="Recharger 180HD",'180HD-Imperial'!G58,IF($F$11='Chamber Images'!$A$9,'360HD-Imperial'!J58,0)))))))) -> 183.2824042 | K68: 5.189971182 | L68: =IF($F$11="Contactor 100HD",'100HD-Imperial'!H58,IF($F$11="Recharger 150XLHD",'150XLHD-Imperial'!H58,IF($F$11="Recharger 280HD",'280HD-Imperial'!H58,IF($F$11="Recharger 330XLHD",'330XLHD-Imperial'!H58,IF($F$11="Recharger 902HD",'902HD-Imperial'!K58,IF($F$11="Contactor Field Drain C-4HD",'C-4HD-Imperial'!F58,IF($F$11="Recharger 180HD",'180HD-Imperial'!H58,IF($F$11='Chamber Images'!$A$9,'360HD-Imperial'!K58,0)))))))) -> 4053.811587 | M68: 114.790972 | N68: =IF($F$11="Contactor 100HD",'100HD-Imperial'!I58,IF($F$11="Recharger 150XLHD",'150XLHD-Imperial'!I58,IF($F$11="Recharger 280HD",'280HD-Imperial'!I58,IF($F$11="Recharger 330XLHD",'330XLHD-Imperial'!I58,IF($F$11="Recharger 902HD",'902HD-Imperial'!L58,IF($F$11="Contactor Field Drain C-4HD",'C-4HD-Imperial'!G58,IF($F$11="Recharger 180HD",'180HD-Imperial'!I58,IF($F$11='Chamber Images'!$A$9,'360HD-Imperial'!L58,0)))))))) -> 2.17 | O68: 0.6604 | P68: =IF($F$11="Contactor 100HD",'100HD-Imperial'!J58,IF($F$11="Recharger 150XLHD",'150XLHD-Imperial'!J58,IF($F$11="Recharger 280HD",'280HD-Imperial'!J58,IF($F$11="Recharger 330XLHD",'330XLHD-Imperial'!J58,IF($F$11="Recharger 902HD",'902HD-Imperial'!M58,IF($F$11="Recharger 180HD",'180HD-Imperial'!J58,IF($F$11='Chamber Images'!$A$9,'360HD-Imperial'!M58,IF($F$11='Chamber Images'!A44,'C-4HD-Imperial'!H58,"")))))))) -> 
B69: =IF($F$11="Contactor 100HD",'100HD-Imperial'!A59,IF($F$11="Recharger 150XLHD",'150XLHD-Imperial'!A59,IF($F$11="Recharger 280HD",'280HD-Imperial'!A59,IF($F$11="Recharger 330XLHD",'330XLHD-Imperial'!A59,IF($F$11="Recharger 902HD",'902HD-Imperial'!A59,IF($F$11="Contactor Field Drain C-4HD",'C-4HD-Imperial'!A59,IF($F$11="Recharger 180HD",'180HD-Imperial'!A59,IF($F$11='Chamber Images'!$A$9,'360HD-Imperial'!A59)))))))) -> 25 | C69: 635 | D69: =IF($F$11="Contactor 100HD",'100HD-Imperial'!D59,IF($F$11="Recharger 150XLHD",'150XLHD-Imperial'!D59,IF($F$11="Recharger 280HD",'280HD-Imperial'!D59,IF($F$11="Recharger 330XLHD",'330XLHD-Imperial'!D59,IF($F$11="Recharger 902HD",'902HD-Imperial'!G59,IF($F$11="Contactor Field Drain C-4HD",'C-4HD-Imperial'!C59,IF($F$11="Recharger 180HD",'180HD-Imperial'!D59,IF($F$11='Chamber Images'!$A$9,'360HD-Imperial'!G59,0)))))))) -> 155.2870019 | E69: 4.397230976 | F69: =IF($F$11="Contactor 100HD",'100HD-Imperial'!E59,IF($F$11="Recharger 150XLHD",'150XLHD-Imperial'!E59,IF($F$11="Recharger 280HD",'280HD-Imperial'!E59,IF($F$11="Recharger 330XLHD",'330XLHD-Imperial'!E59,IF($F$11="Recharger 902HD",'902HD-Imperial'!H59,IF($F$11="Recharger 180HD",'180HD-Imperial'!C59,IF($F$11='Chamber Images'!$A$9,'360HD-Imperial'!H59,""))))))) -> 0 | G69: 0 | H69: =IF($F$11="Contactor 100HD",'100HD-Imperial'!F59,IF($F$11="Recharger 150XLHD",'150XLHD-Imperial'!F59,IF($F$11="Recharger 280HD",'280HD-Imperial'!F59,IF($F$11="Recharger 330XLHD",'330XLHD-Imperial'!F59,IF($F$11="Recharger 902HD",'902HD-Imperial'!I59,IF($F$11="Contactor Field Drain C-4HD",'C-4HD-Imperial'!D59,IF($F$11="Recharger 180HD",'180HD-Imperial'!F59,IF($F$11='Chamber Images'!$A$9,'360HD-Imperial'!I59,0)))))))) -> 30.14228812 | I69: 0.8535331441 | J69: =IF($F$11="Contactor 100HD",'100HD-Imperial'!G59,IF($F$11="Recharger 150XLHD",'150XLHD-Imperial'!G59,IF($F$11="Recharger 280HD",'280HD-Imperial'!G59,IF($F$11="Recharger 330XLHD",'330XLHD-Imperial'!G59,IF($F$11="Recharger 902HD",'902HD-Imperial'!J59,IF($F$11="Contactor Field Drain C-4HD",'C-4HD-Imperial'!E59,IF($F$11="Recharger 180HD",'180HD-Imperial'!G59,IF($F$11='Chamber Images'!$A$9,'360HD-Imperial'!J59,0)))))))) -> 185.42929 | K69: 5.25076412 | L69: =IF($F$11="Contactor 100HD",'100HD-Imperial'!H59,IF($F$11="Recharger 150XLHD",'150XLHD-Imperial'!H59,IF($F$11="Recharger 280HD",'280HD-Imperial'!H59,IF($F$11="Recharger 330XLHD",'330XLHD-Imperial'!H59,IF($F$11="Recharger 902HD",'902HD-Imperial'!K59,IF($F$11="Contactor Field Drain C-4HD",'C-4HD-Imperial'!F59,IF($F$11="Recharger 180HD",'180HD-Imperial'!H59,IF($F$11='Chamber Images'!$A$9,'360HD-Imperial'!K59,0)))))))) -> 3870.529183 | M69: 109.6010008 | N69: =IF($F$11="Contactor 100HD",'100HD-Imperial'!I59,IF($F$11="Recharger 150XLHD",'150XLHD-Imperial'!I59,IF($F$11="Recharger 280HD",'280HD-Imperial'!I59,IF($F$11="Recharger 330XLHD",'330XLHD-Imperial'!I59,IF($F$11="Recharger 902HD",'902HD-Imperial'!L59,IF($F$11="Contactor Field Drain C-4HD",'C-4HD-Imperial'!G59,IF($F$11="Recharger 180HD",'180HD-Imperial'!I59,IF($F$11='Chamber Images'!$A$9,'360HD-Imperial'!L59,0)))))))) -> 2.08 | O69: 0.635 | P69: =IF($F$11="Contactor 100HD",'100HD-Imperial'!J59,IF($F$11="Recharger 150XLHD",'150XLHD-Imperial'!J59,IF($F$11="Recharger 280HD",'280HD-Imperial'!J59,IF($F$11="Recharger 330XLHD",'330XLHD-Imperial'!J59,IF($F$11="Recharger 902HD",'902HD-Imperial'!M59,IF($F$11="Recharger 180HD",'180HD-Imperial'!J59,IF($F$11='Chamber Images'!$A$9,'360HD-Imperial'!M59,IF($F$11='Chamber Images'!A45,'C-4HD-Imperial'!H59,"")))))))) -> 
B70: =IF($F$11="Contactor 100HD",'100HD-Imperial'!A60,IF($F$11="Recharger 150XLHD",'150XLHD-Imperial'!A60,IF($F$11="Recharger 280HD",'280HD-Imperial'!A60,IF($F$11="Recharger 330XLHD",'330XLHD-Imperial'!A60,IF($F$11="Recharger 902HD",'902HD-Imperial'!A60,IF($F$11="Contactor Field Drain C-4HD",'C-4HD-Imperial'!A60,IF($F$11="Recharger 180HD",'180HD-Imperial'!A60,IF($F$11='Chamber Images'!$A$9,'360HD-Imperial'!A60)))))))) -> 24 | C70: 609.6 | D70: =IF($F$11="Contactor 100HD",'100HD-Imperial'!D60,IF($F$11="Recharger 150XLHD",'150XLHD-Imperial'!D60,IF($F$11="Recharger 280HD",'280HD-Imperial'!D60,IF($F$11="Recharger 330XLHD",'330XLHD-Imperial'!D60,IF($F$11="Recharger 902HD",'902HD-Imperial'!G60,IF($F$11="Contactor Field Drain C-4HD",'C-4HD-Imperial'!C60,IF($F$11="Recharger 180HD",'180HD-Imperial'!D60,IF($F$11='Chamber Images'!$A$9,'360HD-Imperial'!G60,0)))))))) -> 155.2288588 | E70: 4.395584549 | F70: =IF($F$11="Contactor 100HD",'100HD-Imperial'!E60,IF($F$11="Recharger 150XLHD",'150XLHD-Imperial'!E60,IF($F$11="Recharger 280HD",'280HD-Imperial'!E60,IF($F$11="Recharger 330XLHD",'330XLHD-Imperial'!E60,IF($F$11="Recharger 902HD",'902HD-Imperial'!H60,IF($F$11="Recharger 180HD",'180HD-Imperial'!C60,IF($F$11='Chamber Images'!$A$9,'360HD-Imperial'!H60,""))))))) -> 0 | G70: 0 | H70: =IF($F$11="Contactor 100HD",'100HD-Imperial'!F60,IF($F$11="Recharger 150XLHD",'150XLHD-Imperial'!F60,IF($F$11="Recharger 280HD",'280HD-Imperial'!F60,IF($F$11="Recharger 330XLHD",'330XLHD-Imperial'!F60,IF($F$11="Recharger 902HD",'902HD-Imperial'!I60,IF($F$11="Contactor Field Drain C-4HD",'C-4HD-Imperial'!D60,IF($F$11="Recharger 180HD",'180HD-Imperial'!F60,IF($F$11='Chamber Images'!$A$9,'360HD-Imperial'!I60,0)))))))) -> 30.16554537 | I70: 0.8541917151 | J70: =IF($F$11="Contactor 100HD",'100HD-Imperial'!G60,IF($F$11="Recharger 150XLHD",'150XLHD-Imperial'!G60,IF($F$11="Recharger 280HD",'280HD-Imperial'!G60,IF($F$11="Recharger 330XLHD",'330XLHD-Imperial'!G60,IF($F$11="Recharger 902HD",'902HD-Imperial'!J60,IF($F$11="Contactor Field Drain C-4HD",'C-4HD-Imperial'!E60,IF($F$11="Recharger 180HD",'180HD-Imperial'!G60,IF($F$11='Chamber Images'!$A$9,'360HD-Imperial'!J60,0)))))))) -> 185.3944042 | K70: 5.249776264 | L70: =IF($F$11="Contactor 100HD",'100HD-Imperial'!H60,IF($F$11="Recharger 150XLHD",'150XLHD-Imperial'!H60,IF($F$11="Recharger 280HD",'280HD-Imperial'!H60,IF($F$11="Recharger 330XLHD",'330XLHD-Imperial'!H60,IF($F$11="Recharger 902HD",'902HD-Imperial'!K60,IF($F$11="Contactor Field Drain C-4HD",'C-4HD-Imperial'!F60,IF($F$11="Recharger 180HD",'180HD-Imperial'!H60,IF($F$11='Chamber Images'!$A$9,'360HD-Imperial'!K60,0)))))))) -> 3685.099893 | M70: 104.3502367 | N70: =IF($F$11="Contactor 100HD",'100HD-Imperial'!I60,IF($F$11="Recharger 150XLHD",'150XLHD-Imperial'!I60,IF($F$11="Recharger 280HD",'280HD-Imperial'!I60,IF($F$11="Recharger 330XLHD",'330XLHD-Imperial'!I60,IF($F$11="Recharger 902HD",'902HD-Imperial'!L60,IF($F$11="Contactor Field Drain C-4HD",'C-4HD-Imperial'!G60,IF($F$11="Recharger 180HD",'180HD-Imperial'!I60,IF($F$11='Chamber Images'!$A$9,'360HD-Imperial'!L60,0)))))))) -> 2 | O70: 0.6096 | P70: =IF($F$11="Contactor 100HD",'100HD-Imperial'!J60,IF($F$11="Recharger 150XLHD",'150XLHD-Imperial'!J60,IF($F$11="Recharger 280HD",'280HD-Imperial'!J60,IF($F$11="Recharger 330XLHD",'330XLHD-Imperial'!J60,IF($F$11="Recharger 902HD",'902HD-Imperial'!M60,IF($F$11="Recharger 180HD",'180HD-Imperial'!J60,IF($F$11='Chamber Images'!$A$9,'360HD-Imperial'!M60,IF($F$11='Chamber Images'!A46,'C-4HD-Imperial'!H60,"")))))))) -> 
B71: =IF($F$11="Contactor 100HD",'100HD-Imperial'!A61,IF($F$11="Recharger 150XLHD",'150XLHD-Imperial'!A61,IF($F$11="Recharger 280HD",'280HD-Imperial'!A61,IF($F$11="Recharger 330XLHD",'330XLHD-Imperial'!A61,IF($F$11="Recharger 902HD",'902HD-Imperial'!A61,IF($F$11="Contactor Field Drain C-4HD",'C-4HD-Imperial'!A61,IF($F$11="Recharger 180HD",'180HD-Imperial'!A61,IF($F$11='Chamber Images'!$A$9,'360HD-Imperial'!A61)))))))) -> 23 | C71: 584.2 | D71: =IF($F$11="Contactor 100HD",'100HD-Imperial'!D61,IF($F$11="Recharger 150XLHD",'150XLHD-Imperial'!D61,IF($F$11="Recharger 280HD",'280HD-Imperial'!D61,IF($F$11="Recharger 330XLHD",'330XLHD-Imperial'!D61,IF($F$11="Recharger 902HD",'902HD-Imperial'!G61,IF($F$11="Contactor Field Drain C-4HD",'C-4HD-Imperial'!C61,IF($F$11="Recharger 180HD",'180HD-Imperial'!D61,IF($F$11='Chamber Images'!$A$9,'360HD-Imperial'!G61,0)))))))) -> 158.7488588 | E71: 4.495259685 | F71: =IF($F$11="Contactor 100HD",'100HD-Imperial'!E61,IF($F$11="Recharger 150XLHD",'150XLHD-Imperial'!E61,IF($F$11="Recharger 280HD",'280HD-Imperial'!E61,IF($F$11="Recharger 330XLHD",'330XLHD-Imperial'!E61,IF($F$11="Recharger 902HD",'902HD-Imperial'!H61,IF($F$11="Recharger 180HD",'180HD-Imperial'!C61,IF($F$11='Chamber Images'!$A$9,'360HD-Imperial'!H61,""))))))) -> 0 | G71: 0 | H71: =IF($F$11="Contactor 100HD",'100HD-Imperial'!F61,IF($F$11="Recharger 150XLHD",'150XLHD-Imperial'!F61,IF($F$11="Recharger 280HD",'280HD-Imperial'!F61,IF($F$11="Recharger 330XLHD",'330XLHD-Imperial'!F61,IF($F$11="Recharger 902HD",'902HD-Imperial'!I61,IF($F$11="Contactor Field Drain C-4HD",'C-4HD-Imperial'!D61,IF($F$11="Recharger 180HD",'180HD-Imperial'!F61,IF($F$11='Chamber Images'!$A$9,'360HD-Imperial'!I61,0)))))))) -> 28.75754537 | I71: 0.8143216607 | J71: =IF($F$11="Contactor 100HD",'100HD-Imperial'!G61,IF($F$11="Recharger 150XLHD",'150XLHD-Imperial'!G61,IF($F$11="Recharger 280HD",'280HD-Imperial'!G61,IF($F$11="Recharger 330XLHD",'330XLHD-Imperial'!G61,IF($F$11="Recharger 902HD",'902HD-Imperial'!J61,IF($F$11="Contactor Field Drain C-4HD",'C-4HD-Imperial'!E61,IF($F$11="Recharger 180HD",'180HD-Imperial'!G61,IF($F$11='Chamber Images'!$A$9,'360HD-Imperial'!J61,0)))))))) -> 187.5064042 | K71: 5.309581346 | L71: =IF($F$11="Contactor 100HD",'100HD-Imperial'!H61,IF($F$11="Recharger 150XLHD",'150XLHD-Imperial'!H61,IF($F$11="Recharger 280HD",'280HD-Imperial'!H61,IF($F$11="Recharger 330XLHD",'330XLHD-Imperial'!H61,IF($F$11="Recharger 902HD",'902HD-Imperial'!K61,IF($F$11="Contactor Field Drain C-4HD",'C-4HD-Imperial'!F61,IF($F$11="Recharger 180HD",'180HD-Imperial'!H61,IF($F$11='Chamber Images'!$A$9,'360HD-Imperial'!K61,0)))))))) -> 3499.705489 | M71: 99.10046039 | N71: =IF($F$11="Contactor 100HD",'100HD-Imperial'!I61,IF($F$11="Recharger 150XLHD",'150XLHD-Imperial'!I61,IF($F$11="Recharger 280HD",'280HD-Imperial'!I61,IF($F$11="Recharger 330XLHD",'330XLHD-Imperial'!I61,IF($F$11="Recharger 902HD",'902HD-Imperial'!L61,IF($F$11="Contactor Field Drain C-4HD",'C-4HD-Imperial'!G61,IF($F$11="Recharger 180HD",'180HD-Imperial'!I61,IF($F$11='Chamber Images'!$A$9,'360HD-Imperial'!L61,0)))))))) -> 1.92 | O71: 0.5842 | P71: =IF($F$11="Contactor 100HD",'100HD-Imperial'!J61,IF($F$11="Recharger 150XLHD",'150XLHD-Imperial'!J61,IF($F$11="Recharger 280HD",'280HD-Imperial'!J61,IF($F$11="Recharger 330XLHD",'330XLHD-Imperial'!J61,IF($F$11="Recharger 902HD",'902HD-Imperial'!M61,IF($F$11="Recharger 180HD",'180HD-Imperial'!J61,IF($F$11='Chamber Images'!$A$9,'360HD-Imperial'!M61,IF($F$11='Chamber Images'!A47,'C-4HD-Imperial'!H61,"")))))))) -> 
B72: =IF($F$11="Contactor 100HD",'100HD-Imperial'!A62,IF($F$11="Recharger 150XLHD",'150XLHD-Imperial'!A62,IF($F$11="Recharger 280HD",'280HD-Imperial'!A62,IF($F$11="Recharger 330XLHD",'330XLHD-Imperial'!A62,IF($F$11="Recharger 902HD",'902HD-Imperial'!A62,IF($F$11="Contactor Field Drain C-4HD",'C-4HD-Imperial'!A62,IF($F$11="Recharger 180HD",'180HD-Imperial'!A62,IF($F$11='Chamber Images'!$A$9,'360HD-Imperial'!A62)))))))) -> 22 | C72: 558.8 | D72: =IF($F$11="Contactor 100HD",'100HD-Imperial'!D62,IF($F$11="Recharger 150XLHD",'150XLHD-Imperial'!D62,IF($F$11="Recharger 280HD",'280HD-Imperial'!D62,IF($F$11="Recharger 330XLHD",'330XLHD-Imperial'!D62,IF($F$11="Recharger 902HD",'902HD-Imperial'!G62,IF($F$11="Contactor Field Drain C-4HD",'C-4HD-Imperial'!C62,IF($F$11="Recharger 180HD",'180HD-Imperial'!D62,IF($F$11='Chamber Images'!$A$9,'360HD-Imperial'!G62,0)))))))) -> 158.7488588 | E72: 4.495259685 | F72: =IF($F$11="Contactor 100HD",'100HD-Imperial'!E62,IF($F$11="Recharger 150XLHD",'150XLHD-Imperial'!E62,IF($F$11="Recharger 280HD",'280HD-Imperial'!E62,IF($F$11="Recharger 330XLHD",'330XLHD-Imperial'!E62,IF($F$11="Recharger 902HD",'902HD-Imperial'!H62,IF($F$11="Recharger 180HD",'180HD-Imperial'!C62,IF($F$11='Chamber Images'!$A$9,'360HD-Imperial'!H62,""))))))) -> 0 | G72: 0 | H72: =IF($F$11="Contactor 100HD",'100HD-Imperial'!F62,IF($F$11="Recharger 150XLHD",'150XLHD-Imperial'!F62,IF($F$11="Recharger 280HD",'280HD-Imperial'!F62,IF($F$11="Recharger 330XLHD",'330XLHD-Imperial'!F62,IF($F$11="Recharger 902HD",'902HD-Imperial'!I62,IF($F$11="Contactor Field Drain C-4HD",'C-4HD-Imperial'!D62,IF($F$11="Recharger 180HD",'180HD-Imperial'!F62,IF($F$11='Chamber Images'!$A$9,'360HD-Imperial'!I62,0)))))))) -> 28.75754537 | I72: 0.8143216607 | J72: =IF($F$11="Contactor 100HD",'100HD-Imperial'!G62,IF($F$11="Recharger 150XLHD",'150XLHD-Imperial'!G62,IF($F$11="Recharger 280HD",'280HD-Imperial'!G62,IF($F$11="Recharger 330XLHD",'330XLHD-Imperial'!G62,IF($F$11="Recharger 902HD",'902HD-Imperial'!J62,IF($F$11="Contactor Field Drain C-4HD",'C-4HD-Imperial'!E62,IF($F$11="Recharger 180HD",'180HD-Imperial'!G62,IF($F$11='Chamber Images'!$A$9,'360HD-Imperial'!J62,0)))))))) -> 187.5064042 | K72: 5.309581346 | L72: =IF($F$11="Contactor 100HD",'100HD-Imperial'!H62,IF($F$11="Recharger 150XLHD",'150XLHD-Imperial'!H62,IF($F$11="Recharger 280HD",'280HD-Imperial'!H62,IF($F$11="Recharger 330XLHD",'330XLHD-Imperial'!H62,IF($F$11="Recharger 902HD",'902HD-Imperial'!K62,IF($F$11="Contactor Field Drain C-4HD",'C-4HD-Imperial'!F62,IF($F$11="Recharger 180HD",'180HD-Imperial'!H62,IF($F$11='Chamber Images'!$A$9,'360HD-Imperial'!K62,0)))))))) -> 3312.199085 | M72: 93.79087904 | N72: =IF($F$11="Contactor 100HD",'100HD-Imperial'!I62,IF($F$11="Recharger 150XLHD",'150XLHD-Imperial'!I62,IF($F$11="Recharger 280HD",'280HD-Imperial'!I62,IF($F$11="Recharger 330XLHD",'330XLHD-Imperial'!I62,IF($F$11="Recharger 902HD",'902HD-Imperial'!L62,IF($F$11="Contactor Field Drain C-4HD",'C-4HD-Imperial'!G62,IF($F$11="Recharger 180HD",'180HD-Imperial'!I62,IF($F$11='Chamber Images'!$A$9,'360HD-Imperial'!L62,0)))))))) -> 1.83 | O72: 0.5588 | P72: =IF($F$11="Contactor 100HD",'100HD-Imperial'!J62,IF($F$11="Recharger 150XLHD",'150XLHD-Imperial'!J62,IF($F$11="Recharger 280HD",'280HD-Imperial'!J62,IF($F$11="Recharger 330XLHD",'330XLHD-Imperial'!J62,IF($F$11="Recharger 902HD",'902HD-Imperial'!M62,IF($F$11="Recharger 180HD",'180HD-Imperial'!J62,IF($F$11='Chamber Images'!$A$9,'360HD-Imperial'!M62,IF($F$11='Chamber Images'!A48,'C-4HD-Imperial'!H62,"")))))))) -> 
B73: =IF($F$11="Contactor 100HD",'100HD-Imperial'!A63,IF($F$11="Recharger 150XLHD",'150XLHD-Imperial'!A63,IF($F$11="Recharger 280HD",'280HD-Imperial'!A63,IF($F$11="Recharger 330XLHD",'330XLHD-Imperial'!A63,IF($F$11="Recharger 902HD",'902HD-Imperial'!A63,IF($F$11="Contactor Field Drain C-4HD",'C-4HD-Imperial'!A63,IF($F$11="Recharger 180HD",'180HD-Imperial'!A63,IF($F$11='Chamber Images'!$A$9,'360HD-Imperial'!A63)))))))) -> 21 | C73: 533.4 | D73: =IF($F$11="Contactor 100HD",'100HD-Imperial'!D63,IF($F$11="Recharger 150XLHD",'150XLHD-Imperial'!D63,IF($F$11="Recharger 280HD",'280HD-Imperial'!D63,IF($F$11="Recharger 330XLHD",'330XLHD-Imperial'!D63,IF($F$11="Recharger 902HD",'902HD-Imperial'!G63,IF($F$11="Contactor Field Drain C-4HD",'C-4HD-Imperial'!C63,IF($F$11="Recharger 180HD",'180HD-Imperial'!D63,IF($F$11='Chamber Images'!$A$9,'360HD-Imperial'!G63,0)))))))) -> 158.8070019 | E73: 4.496906112 | F73: =IF($F$11="Contactor 100HD",'100HD-Imperial'!E63,IF($F$11="Recharger 150XLHD",'150XLHD-Imperial'!E63,IF($F$11="Recharger 280HD",'280HD-Imperial'!E63,IF($F$11="Recharger 330XLHD",'330XLHD-Imperial'!E63,IF($F$11="Recharger 902HD",'902HD-Imperial'!H63,IF($F$11="Recharger 180HD",'180HD-Imperial'!C63,IF($F$11='Chamber Images'!$A$9,'360HD-Imperial'!H63,""))))))) -> 0.012 | G73: 0.0003398016 | H73: =IF($F$11="Contactor 100HD",'100HD-Imperial'!F63,IF($F$11="Recharger 150XLHD",'150XLHD-Imperial'!F63,IF($F$11="Recharger 280HD",'280HD-Imperial'!F63,IF($F$11="Recharger 330XLHD",'330XLHD-Imperial'!F63,IF($F$11="Recharger 902HD",'902HD-Imperial'!I63,IF($F$11="Contactor Field Drain C-4HD",'C-4HD-Imperial'!D63,IF($F$11="Recharger 180HD",'180HD-Imperial'!F63,IF($F$11='Chamber Images'!$A$9,'360HD-Imperial'!I63,0)))))))) -> 28.72948812 | I73: 0.8135271691 | J73: =IF($F$11="Contactor 100HD",'100HD-Imperial'!G63,IF($F$11="Recharger 150XLHD",'150XLHD-Imperial'!G63,IF($F$11="Recharger 280HD",'280HD-Imperial'!G63,IF($F$11="Recharger 330XLHD",'330XLHD-Imperial'!G63,IF($F$11="Recharger 902HD",'902HD-Imperial'!J63,IF($F$11="Contactor Field Drain C-4HD",'C-4HD-Imperial'!E63,IF($F$11="Recharger 180HD",'180HD-Imperial'!G63,IF($F$11='Chamber Images'!$A$9,'360HD-Imperial'!J63,0)))))))) -> 187.54849 | K73: 5.310773083 | L73: =IF($F$11="Contactor 100HD",'100HD-Imperial'!H63,IF($F$11="Recharger 150XLHD",'150XLHD-Imperial'!H63,IF($F$11="Recharger 280HD",'280HD-Imperial'!H63,IF($F$11="Recharger 330XLHD",'330XLHD-Imperial'!H63,IF($F$11="Recharger 902HD",'902HD-Imperial'!K63,IF($F$11="Contactor Field Drain C-4HD",'C-4HD-Imperial'!F63,IF($F$11="Recharger 180HD",'180HD-Imperial'!H63,IF($F$11='Chamber Images'!$A$9,'360HD-Imperial'!K63,0)))))))) -> 3124.692681 | M73: 88.4812977 | N73: =IF($F$11="Contactor 100HD",'100HD-Imperial'!I63,IF($F$11="Recharger 150XLHD",'150XLHD-Imperial'!I63,IF($F$11="Recharger 280HD",'280HD-Imperial'!I63,IF($F$11="Recharger 330XLHD",'330XLHD-Imperial'!I63,IF($F$11="Recharger 902HD",'902HD-Imperial'!L63,IF($F$11="Contactor Field Drain C-4HD",'C-4HD-Imperial'!G63,IF($F$11="Recharger 180HD",'180HD-Imperial'!I63,IF($F$11='Chamber Images'!$A$9,'360HD-Imperial'!L63,0)))))))) -> 1.75 | O73: 0.5334 | P73: =IF($F$11="Contactor 100HD",'100HD-Imperial'!J63,IF($F$11="Recharger 150XLHD",'150XLHD-Imperial'!J63,IF($F$11="Recharger 280HD",'280HD-Imperial'!J63,IF($F$11="Recharger 330XLHD",'330XLHD-Imperial'!J63,IF($F$11="Recharger 902HD",'902HD-Imperial'!M63,IF($F$11="Recharger 180HD",'180HD-Imperial'!J63,IF($F$11='Chamber Images'!$A$9,'360HD-Imperial'!M63,IF($F$11='Chamber Images'!A49,'C-4HD-Imperial'!H63,"")))))))) -> 
B74: =IF($F$11="Contactor 100HD",'100HD-Imperial'!A64,IF($F$11="Recharger 150XLHD",'150XLHD-Imperial'!A64,IF($F$11="Recharger 280HD",'280HD-Imperial'!A64,IF($F$11="Recharger 330XLHD",'330XLHD-Imperial'!A64,IF($F$11="Recharger 902HD",'902HD-Imperial'!A64,IF($F$11="Contactor Field Drain C-4HD",'C-4HD-Imperial'!A64,IF($F$11="Recharger 180HD",'180HD-Imperial'!A64,IF($F$11='Chamber Images'!$A$9,'360HD-Imperial'!A64)))))))) -> 20 | C74: 508 | D74: =IF($F$11="Contactor 100HD",'100HD-Imperial'!D64,IF($F$11="Recharger 150XLHD",'150XLHD-Imperial'!D64,IF($F$11="Recharger 280HD",'280HD-Imperial'!D64,IF($F$11="Recharger 330XLHD",'330XLHD-Imperial'!D64,IF($F$11="Recharger 902HD",'902HD-Imperial'!G64,IF($F$11="Contactor Field Drain C-4HD",'C-4HD-Imperial'!C64,IF($F$11="Recharger 180HD",'180HD-Imperial'!D64,IF($F$11='Chamber Images'!$A$9,'360HD-Imperial'!G64,0)))))))) -> 158.7488588 | E74: 4.495259685 | F74: =IF($F$11="Contactor 100HD",'100HD-Imperial'!E64,IF($F$11="Recharger 150XLHD",'150XLHD-Imperial'!E64,IF($F$11="Recharger 280HD",'280HD-Imperial'!E64,IF($F$11="Recharger 330XLHD",'330XLHD-Imperial'!E64,IF($F$11="Recharger 902HD",'902HD-Imperial'!H64,IF($F$11="Recharger 180HD",'180HD-Imperial'!C64,IF($F$11='Chamber Images'!$A$9,'360HD-Imperial'!H64,""))))))) -> 0.093 | G74: 0.0026334624 | H74: =IF($F$11="Contactor 100HD",'100HD-Imperial'!F64,IF($F$11="Recharger 150XLHD",'150XLHD-Imperial'!F64,IF($F$11="Recharger 280HD",'280HD-Imperial'!F64,IF($F$11="Recharger 330XLHD",'330XLHD-Imperial'!F64,IF($F$11="Recharger 902HD",'902HD-Imperial'!I64,IF($F$11="Contactor Field Drain C-4HD",'C-4HD-Imperial'!D64,IF($F$11="Recharger 180HD",'180HD-Imperial'!F64,IF($F$11='Chamber Images'!$A$9,'360HD-Imperial'!I64,0)))))))) -> 28.72034537 | I74: 0.8132682757 | J74: =IF($F$11="Contactor 100HD",'100HD-Imperial'!G64,IF($F$11="Recharger 150XLHD",'150XLHD-Imperial'!G64,IF($F$11="Recharger 280HD",'280HD-Imperial'!G64,IF($F$11="Recharger 330XLHD",'330XLHD-Imperial'!G64,IF($F$11="Recharger 902HD",'902HD-Imperial'!J64,IF($F$11="Contactor Field Drain C-4HD",'C-4HD-Imperial'!E64,IF($F$11="Recharger 180HD",'180HD-Imperial'!G64,IF($F$11='Chamber Images'!$A$9,'360HD-Imperial'!J64,0)))))))) -> 187.5622042 | K74: 5.311161423 | L74: =IF($F$11="Contactor 100HD",'100HD-Imperial'!H64,IF($F$11="Recharger 150XLHD",'150XLHD-Imperial'!H64,IF($F$11="Recharger 280HD",'280HD-Imperial'!H64,IF($F$11="Recharger 330XLHD",'330XLHD-Imperial'!H64,IF($F$11="Recharger 902HD",'902HD-Imperial'!K64,IF($F$11="Contactor Field Drain C-4HD",'C-4HD-Imperial'!F64,IF($F$11="Recharger 180HD",'180HD-Imperial'!H64,IF($F$11='Chamber Images'!$A$9,'360HD-Imperial'!K64,0)))))))) -> 2937.144191 | M74: 83.17052461 | N74: =IF($F$11="Contactor 100HD",'100HD-Imperial'!I64,IF($F$11="Recharger 150XLHD",'150XLHD-Imperial'!I64,IF($F$11="Recharger 280HD",'280HD-Imperial'!I64,IF($F$11="Recharger 330XLHD",'330XLHD-Imperial'!I64,IF($F$11="Recharger 902HD",'902HD-Imperial'!L64,IF($F$11="Contactor Field Drain C-4HD",'C-4HD-Imperial'!G64,IF($F$11="Recharger 180HD",'180HD-Imperial'!I64,IF($F$11='Chamber Images'!$A$9,'360HD-Imperial'!L64,0)))))))) -> 1.67 | O74: 0.508 | P74: =IF($F$11="Contactor 100HD",'100HD-Imperial'!J64,IF($F$11="Recharger 150XLHD",'150XLHD-Imperial'!J64,IF($F$11="Recharger 280HD",'280HD-Imperial'!J64,IF($F$11="Recharger 330XLHD",'330XLHD-Imperial'!J64,IF($F$11="Recharger 902HD",'902HD-Imperial'!M64,IF($F$11="Recharger 180HD",'180HD-Imperial'!J64,IF($F$11='Chamber Images'!$A$9,'360HD-Imperial'!M64,IF($F$11='Chamber Images'!A50,'C-4HD-Imperial'!H64,"")))))))) -> 
B75: =IF($F$11="Contactor 100HD",'100HD-Imperial'!A65,IF($F$11="Recharger 150XLHD",'150XLHD-Imperial'!A65,IF($F$11="Recharger 280HD",'280HD-Imperial'!A65,IF($F$11="Recharger 330XLHD",'330XLHD-Imperial'!A65,IF($F$11="Recharger 902HD",'902HD-Imperial'!A65,IF($F$11="Contactor Field Drain C-4HD",'C-4HD-Imperial'!A65,IF($F$11="Recharger 180HD",'180HD-Imperial'!A65,IF($F$11='Chamber Images'!$A$9,'360HD-Imperial'!A65)))))))) -> 19 | C75: 482.6 | D75: =IF($F$11="Contactor 100HD",'100HD-Imperial'!D65,IF($F$11="Recharger 150XLHD",'150XLHD-Imperial'!D65,IF($F$11="Recharger 280HD",'280HD-Imperial'!D65,IF($F$11="Recharger 330XLHD",'330XLHD-Imperial'!D65,IF($F$11="Recharger 902HD",'902HD-Imperial'!G65,IF($F$11="Contactor Field Drain C-4HD",'C-4HD-Imperial'!C65,IF($F$11="Recharger 180HD",'180HD-Imperial'!D65,IF($F$11='Chamber Images'!$A$9,'360HD-Imperial'!G65,0)))))))) -> 162.3270019 | E75: 4.596581248 | F75: =IF($F$11="Contactor 100HD",'100HD-Imperial'!E65,IF($F$11="Recharger 150XLHD",'150XLHD-Imperial'!E65,IF($F$11="Recharger 280HD",'280HD-Imperial'!E65,IF($F$11="Recharger 330XLHD",'330XLHD-Imperial'!E65,IF($F$11="Recharger 902HD",'902HD-Imperial'!H65,IF($F$11="Recharger 180HD",'180HD-Imperial'!C65,IF($F$11='Chamber Images'!$A$9,'360HD-Imperial'!H65,""))))))) -> 0.18 | G75: 0.005097024 | H75: =IF($F$11="Contactor 100HD",'100HD-Imperial'!F65,IF($F$11="Recharger 150XLHD",'150XLHD-Imperial'!F65,IF($F$11="Recharger 280HD",'280HD-Imperial'!F65,IF($F$11="Recharger 330XLHD",'330XLHD-Imperial'!F65,IF($F$11="Recharger 902HD",'902HD-Imperial'!I65,IF($F$11="Contactor Field Drain C-4HD",'C-4HD-Imperial'!D65,IF($F$11="Recharger 180HD",'180HD-Imperial'!F65,IF($F$11='Chamber Images'!$A$9,'360HD-Imperial'!I65,0)))))))) -> 27.25428812 | I75: 0.7717542257 | J75: =IF($F$11="Contactor 100HD",'100HD-Imperial'!G65,IF($F$11="Recharger 150XLHD",'150XLHD-Imperial'!G65,IF($F$11="Recharger 280HD",'280HD-Imperial'!G65,IF($F$11="Recharger 330XLHD",'330XLHD-Imperial'!G65,IF($F$11="Recharger 902HD",'902HD-Imperial'!J65,IF($F$11="Contactor Field Drain C-4HD",'C-4HD-Imperial'!E65,IF($F$11="Recharger 180HD",'180HD-Imperial'!G65,IF($F$11='Chamber Images'!$A$9,'360HD-Imperial'!J65,0)))))))) -> 189.76129 | K75: 5.373432498 | L75: =IF($F$11="Contactor 100HD",'100HD-Imperial'!H65,IF($F$11="Recharger 150XLHD",'150XLHD-Imperial'!H65,IF($F$11="Recharger 280HD",'280HD-Imperial'!H65,IF($F$11="Recharger 330XLHD",'330XLHD-Imperial'!H65,IF($F$11="Recharger 902HD",'902HD-Imperial'!K65,IF($F$11="Contactor Field Drain C-4HD",'C-4HD-Imperial'!F65,IF($F$11="Recharger 180HD",'180HD-Imperial'!H65,IF($F$11='Chamber Images'!$A$9,'360HD-Imperial'!K65,0)))))))) -> 2749.581986 | M75: 77.85936319 | N75: =IF($F$11="Contactor 100HD",'100HD-Imperial'!I65,IF($F$11="Recharger 150XLHD",'150XLHD-Imperial'!I65,IF($F$11="Recharger 280HD",'280HD-Imperial'!I65,IF($F$11="Recharger 330XLHD",'330XLHD-Imperial'!I65,IF($F$11="Recharger 902HD",'902HD-Imperial'!L65,IF($F$11="Contactor Field Drain C-4HD",'C-4HD-Imperial'!G65,IF($F$11="Recharger 180HD",'180HD-Imperial'!I65,IF($F$11='Chamber Images'!$A$9,'360HD-Imperial'!L65,0)))))))) -> 1.58 | O75: 0.4826 | P75: =IF($F$11="Contactor 100HD",'100HD-Imperial'!J65,IF($F$11="Recharger 150XLHD",'150XLHD-Imperial'!J65,IF($F$11="Recharger 280HD",'280HD-Imperial'!J65,IF($F$11="Recharger 330XLHD",'330XLHD-Imperial'!J65,IF($F$11="Recharger 902HD",'902HD-Imperial'!M65,IF($F$11="Recharger 180HD",'180HD-Imperial'!J65,IF($F$11='Chamber Images'!$A$9,'360HD-Imperial'!M65,IF($F$11='Chamber Images'!A51,'C-4HD-Imperial'!H65,"")))))))) -> 
B76: =IF($F$11="Contactor 100HD",'100HD-Imperial'!A66,IF($F$11="Recharger 150XLHD",'150XLHD-Imperial'!A66,IF($F$11="Recharger 280HD",'280HD-Imperial'!A66,IF($F$11="Recharger 330XLHD",'330XLHD-Imperial'!A66,IF($F$11="Recharger 902HD",'902HD-Imperial'!A66,IF($F$11="Contactor Field Drain C-4HD",'C-4HD-Imperial'!A66,IF($F$11="Recharger 180HD",'180HD-Imperial'!A66,IF($F$11='Chamber Images'!$A$9,'360HD-Imperial'!A66)))))))) -> 18 | C76: 457.2 | D76: =IF($F$11="Contactor 100HD",'100HD-Imperial'!D66,IF($F$11="Recharger 150XLHD",'150XLHD-Imperial'!D66,IF($F$11="Recharger 280HD",'280HD-Imperial'!D66,IF($F$11="Recharger 330XLHD",'330XLHD-Imperial'!D66,IF($F$11="Recharger 902HD",'902HD-Imperial'!G66,IF($F$11="Contactor Field Drain C-4HD",'C-4HD-Imperial'!C66,IF($F$11="Recharger 180HD",'180HD-Imperial'!D66,IF($F$11='Chamber Images'!$A$9,'360HD-Imperial'!G66,0)))))))) -> 162.3270019 | E76: 4.596581248 | F76: =IF($F$11="Contactor 100HD",'100HD-Imperial'!E66,IF($F$11="Recharger 150XLHD",'150XLHD-Imperial'!E66,IF($F$11="Recharger 280HD",'280HD-Imperial'!E66,IF($F$11="Recharger 330XLHD",'330XLHD-Imperial'!E66,IF($F$11="Recharger 902HD",'902HD-Imperial'!H66,IF($F$11="Recharger 180HD",'180HD-Imperial'!C66,IF($F$11='Chamber Images'!$A$9,'360HD-Imperial'!H66,""))))))) -> 0.219 | G76: 0.0062013792 | H76: =IF($F$11="Contactor 100HD",'100HD-Imperial'!F66,IF($F$11="Recharger 150XLHD",'150XLHD-Imperial'!F66,IF($F$11="Recharger 280HD",'280HD-Imperial'!F66,IF($F$11="Recharger 330XLHD",'330XLHD-Imperial'!F66,IF($F$11="Recharger 902HD",'902HD-Imperial'!I66,IF($F$11="Contactor Field Drain C-4HD",'C-4HD-Imperial'!D66,IF($F$11="Recharger 180HD",'180HD-Imperial'!F66,IF($F$11='Chamber Images'!$A$9,'360HD-Imperial'!I66,0)))))))) -> 27.23868812 | I76: 0.7713124836 | J76: =IF($F$11="Contactor 100HD",'100HD-Imperial'!G66,IF($F$11="Recharger 150XLHD",'150XLHD-Imperial'!G66,IF($F$11="Recharger 280HD",'280HD-Imperial'!G66,IF($F$11="Recharger 330XLHD",'330XLHD-Imperial'!G66,IF($F$11="Recharger 902HD",'902HD-Imperial'!J66,IF($F$11="Contactor Field Drain C-4HD",'C-4HD-Imperial'!E66,IF($F$11="Recharger 180HD",'180HD-Imperial'!G66,IF($F$11='Chamber Images'!$A$9,'360HD-Imperial'!J66,0)))))))) -> 189.78469 | K76: 5.374095111 | L76: =IF($F$11="Contactor 100HD",'100HD-Imperial'!H66,IF($F$11="Recharger 150XLHD",'150XLHD-Imperial'!H66,IF($F$11="Recharger 280HD",'280HD-Imperial'!H66,IF($F$11="Recharger 330XLHD",'330XLHD-Imperial'!H66,IF($F$11="Recharger 902HD",'902HD-Imperial'!K66,IF($F$11="Contactor Field Drain C-4HD",'C-4HD-Imperial'!F66,IF($F$11="Recharger 180HD",'180HD-Imperial'!H66,IF($F$11='Chamber Images'!$A$9,'360HD-Imperial'!K66,0)))))))) -> 2559.820696 | M76: 72.48593069 | N76: =IF($F$11="Contactor 100HD",'100HD-Imperial'!I66,IF($F$11="Recharger 150XLHD",'150XLHD-Imperial'!I66,IF($F$11="Recharger 280HD",'280HD-Imperial'!I66,IF($F$11="Recharger 330XLHD",'330XLHD-Imperial'!I66,IF($F$11="Recharger 902HD",'902HD-Imperial'!L66,IF($F$11="Contactor Field Drain C-4HD",'C-4HD-Imperial'!G66,IF($F$11="Recharger 180HD",'180HD-Imperial'!I66,IF($F$11='Chamber Images'!$A$9,'360HD-Imperial'!L66,0)))))))) -> 1.5 | O76: 0.4572 | P76: =IF($F$11="Contactor 100HD",'100HD-Imperial'!J66,IF($F$11="Recharger 150XLHD",'150XLHD-Imperial'!J66,IF($F$11="Recharger 280HD",'280HD-Imperial'!J66,IF($F$11="Recharger 330XLHD",'330XLHD-Imperial'!J66,IF($F$11="Recharger 902HD",'902HD-Imperial'!M66,IF($F$11="Recharger 180HD",'180HD-Imperial'!J66,IF($F$11='Chamber Images'!$A$9,'360HD-Imperial'!M66,IF($F$11='Chamber Images'!A52,'C-4HD-Imperial'!H66,"")))))))) -> 
B77: =IF($F$11="Contactor 100HD",'100HD-Imperial'!A67,IF($F$11="Recharger 150XLHD",'150XLHD-Imperial'!A67,IF($F$11="Recharger 280HD",'280HD-Imperial'!A67,IF($F$11="Recharger 330XLHD",'330XLHD-Imperial'!A67,IF($F$11="Recharger 902HD",'902HD-Imperial'!A67,IF($F$11="Contactor Field Drain C-4HD",'C-4HD-Imperial'!A67,IF($F$11="Recharger 180HD",'180HD-Imperial'!A67,IF($F$11='Chamber Images'!$A$9,'360HD-Imperial'!A67)))))))) -> 17 | C77: 431.8 | D77: =IF($F$11="Contactor 100HD",'100HD-Imperial'!D67,IF($F$11="Recharger 150XLHD",'150XLHD-Imperial'!D67,IF($F$11="Recharger 280HD",'280HD-Imperial'!D67,IF($F$11="Recharger 330XLHD",'330XLHD-Imperial'!D67,IF($F$11="Recharger 902HD",'902HD-Imperial'!G67,IF($F$11="Contactor Field Drain C-4HD",'C-4HD-Imperial'!C67,IF($F$11="Recharger 180HD",'180HD-Imperial'!D67,IF($F$11='Chamber Images'!$A$9,'360HD-Imperial'!G67,0)))))))) -> 162.3270019 | E77: 4.596581248 | F77: =IF($F$11="Contactor 100HD",'100HD-Imperial'!E67,IF($F$11="Recharger 150XLHD",'150XLHD-Imperial'!E67,IF($F$11="Recharger 280HD",'280HD-Imperial'!E67,IF($F$11="Recharger 330XLHD",'330XLHD-Imperial'!E67,IF($F$11="Recharger 902HD",'902HD-Imperial'!H67,IF($F$11="Recharger 180HD",'180HD-Imperial'!C67,IF($F$11='Chamber Images'!$A$9,'360HD-Imperial'!H67,""))))))) -> 0.243 | G77: 0.0068809824 | H77: =IF($F$11="Contactor 100HD",'100HD-Imperial'!F67,IF($F$11="Recharger 150XLHD",'150XLHD-Imperial'!F67,IF($F$11="Recharger 280HD",'280HD-Imperial'!F67,IF($F$11="Recharger 330XLHD",'330XLHD-Imperial'!F67,IF($F$11="Recharger 902HD",'902HD-Imperial'!I67,IF($F$11="Contactor Field Drain C-4HD",'C-4HD-Imperial'!D67,IF($F$11="Recharger 180HD",'180HD-Imperial'!F67,IF($F$11='Chamber Images'!$A$9,'360HD-Imperial'!I67,0)))))))) -> 27.22908812 | I77: 0.7710406423 | J77: =IF($F$11="Contactor 100HD",'100HD-Imperial'!G67,IF($F$11="Recharger 150XLHD",'150XLHD-Imperial'!G67,IF($F$11="Recharger 280HD",'280HD-Imperial'!G67,IF($F$11="Recharger 330XLHD",'330XLHD-Imperial'!G67,IF($F$11="Recharger 902HD",'902HD-Imperial'!J67,IF($F$11="Contactor Field Drain C-4HD",'C-4HD-Imperial'!E67,IF($F$11="Recharger 180HD",'180HD-Imperial'!G67,IF($F$11='Chamber Images'!$A$9,'360HD-Imperial'!J67,0)))))))) -> 189.79909 | K77: 5.374502873 | L77: =IF($F$11="Contactor 100HD",'100HD-Imperial'!H67,IF($F$11="Recharger 150XLHD",'150XLHD-Imperial'!H67,IF($F$11="Recharger 280HD",'280HD-Imperial'!H67,IF($F$11="Recharger 330XLHD",'330XLHD-Imperial'!H67,IF($F$11="Recharger 902HD",'902HD-Imperial'!K67,IF($F$11="Contactor Field Drain C-4HD",'C-4HD-Imperial'!F67,IF($F$11="Recharger 180HD",'180HD-Imperial'!H67,IF($F$11='Chamber Images'!$A$9,'360HD-Imperial'!K67,0)))))))) -> 2370.036006 | M77: 67.11183558 | N77: =IF($F$11="Contactor 100HD",'100HD-Imperial'!I67,IF($F$11="Recharger 150XLHD",'150XLHD-Imperial'!I67,IF($F$11="Recharger 280HD",'280HD-Imperial'!I67,IF($F$11="Recharger 330XLHD",'330XLHD-Imperial'!I67,IF($F$11="Recharger 902HD",'902HD-Imperial'!L67,IF($F$11="Contactor Field Drain C-4HD",'C-4HD-Imperial'!G67,IF($F$11="Recharger 180HD",'180HD-Imperial'!I67,IF($F$11='Chamber Images'!$A$9,'360HD-Imperial'!L67,0)))))))) -> 1.42 | O77: 0.4318 | P77: =IF($F$11="Contactor 100HD",'100HD-Imperial'!J67,IF($F$11="Recharger 150XLHD",'150XLHD-Imperial'!J67,IF($F$11="Recharger 280HD",'280HD-Imperial'!J67,IF($F$11="Recharger 330XLHD",'330XLHD-Imperial'!J67,IF($F$11="Recharger 902HD",'902HD-Imperial'!M67,IF($F$11="Recharger 180HD",'180HD-Imperial'!J67,IF($F$11='Chamber Images'!$A$9,'360HD-Imperial'!M67,IF($F$11='Chamber Images'!A53,'C-4HD-Imperial'!H67,"")))))))) -> 
B78: =IF($F$11="Contactor 100HD",'100HD-Imperial'!A68,IF($F$11="Recharger 150XLHD",'150XLHD-Imperial'!A68,IF($F$11="Recharger 280HD",'280HD-Imperial'!A68,IF($F$11="Recharger 330XLHD",'330XLHD-Imperial'!A68,IF($F$11="Recharger 902HD",'902HD-Imperial'!A68,IF($F$11="Contactor Field Drain C-4HD",'C-4HD-Imperial'!A68,IF($F$11="Recharger 180HD",'180HD-Imperial'!A68,IF($F$11='Chamber Images'!$A$9,'360HD-Imperial'!A68)))))))) -> 16 | C78: 406.4 | D78: =IF($F$11="Contactor 100HD",'100HD-Imperial'!D68,IF($F$11="Recharger 150XLHD",'150XLHD-Imperial'!D68,IF($F$11="Recharger 280HD",'280HD-Imperial'!D68,IF($F$11="Recharger 330XLHD",'330XLHD-Imperial'!D68,IF($F$11="Recharger 902HD",'902HD-Imperial'!G68,IF($F$11="Contactor Field Drain C-4HD",'C-4HD-Imperial'!C68,IF($F$11="Recharger 180HD",'180HD-Imperial'!D68,IF($F$11='Chamber Images'!$A$9,'360HD-Imperial'!G68,0)))))))) -> 162.3270019 | E78: 4.596581248 | F78: =IF($F$11="Contactor 100HD",'100HD-Imperial'!E68,IF($F$11="Recharger 150XLHD",'150XLHD-Imperial'!E68,IF($F$11="Recharger 280HD",'280HD-Imperial'!E68,IF($F$11="Recharger 330XLHD",'330XLHD-Imperial'!E68,IF($F$11="Recharger 902HD",'902HD-Imperial'!H68,IF($F$11="Recharger 180HD",'180HD-Imperial'!C68,IF($F$11='Chamber Images'!$A$9,'360HD-Imperial'!H68,""))))))) -> 0.255 | G78: 0.007220784 | H78: =IF($F$11="Contactor 100HD",'100HD-Imperial'!F68,IF($F$11="Recharger 150XLHD",'150XLHD-Imperial'!F68,IF($F$11="Recharger 280HD",'280HD-Imperial'!F68,IF($F$11="Recharger 330XLHD",'330XLHD-Imperial'!F68,IF($F$11="Recharger 902HD",'902HD-Imperial'!I68,IF($F$11="Contactor Field Drain C-4HD",'C-4HD-Imperial'!D68,IF($F$11="Recharger 180HD",'180HD-Imperial'!F68,IF($F$11='Chamber Images'!$A$9,'360HD-Imperial'!I68,0)))))))) -> 27.22428812 | I78: 0.7709047217 | J78: =IF($F$11="Contactor 100HD",'100HD-Imperial'!G68,IF($F$11="Recharger 150XLHD",'150XLHD-Imperial'!G68,IF($F$11="Recharger 280HD",'280HD-Imperial'!G68,IF($F$11="Recharger 330XLHD",'330XLHD-Imperial'!G68,IF($F$11="Recharger 902HD",'902HD-Imperial'!J68,IF($F$11="Contactor Field Drain C-4HD",'C-4HD-Imperial'!E68,IF($F$11="Recharger 180HD",'180HD-Imperial'!G68,IF($F$11='Chamber Images'!$A$9,'360HD-Imperial'!J68,0)))))))) -> 189.80629 | K78: 5.374706754 | L78: =IF($F$11="Contactor 100HD",'100HD-Imperial'!H68,IF($F$11="Recharger 150XLHD",'150XLHD-Imperial'!H68,IF($F$11="Recharger 280HD",'280HD-Imperial'!H68,IF($F$11="Recharger 330XLHD",'330XLHD-Imperial'!H68,IF($F$11="Recharger 902HD",'902HD-Imperial'!K68,IF($F$11="Contactor Field Drain C-4HD",'C-4HD-Imperial'!F68,IF($F$11="Recharger 180HD",'180HD-Imperial'!H68,IF($F$11='Chamber Images'!$A$9,'360HD-Imperial'!K68,0)))))))) -> 2180.236916 | M78: 61.73733271 | N78: =IF($F$11="Contactor 100HD",'100HD-Imperial'!I68,IF($F$11="Recharger 150XLHD",'150XLHD-Imperial'!I68,IF($F$11="Recharger 280HD",'280HD-Imperial'!I68,IF($F$11="Recharger 330XLHD",'330XLHD-Imperial'!I68,IF($F$11="Recharger 902HD",'902HD-Imperial'!L68,IF($F$11="Contactor Field Drain C-4HD",'C-4HD-Imperial'!G68,IF($F$11="Recharger 180HD",'180HD-Imperial'!I68,IF($F$11='Chamber Images'!$A$9,'360HD-Imperial'!L68,0)))))))) -> 1.33 | O78: 0.4064 | P78: =IF($F$11="Contactor 100HD",'100HD-Imperial'!J68,IF($F$11="Recharger 150XLHD",'150XLHD-Imperial'!J68,IF($F$11="Recharger 280HD",'280HD-Imperial'!J68,IF($F$11="Recharger 330XLHD",'330XLHD-Imperial'!J68,IF($F$11="Recharger 902HD",'902HD-Imperial'!M68,IF($F$11="Recharger 180HD",'180HD-Imperial'!J68,IF($F$11='Chamber Images'!$A$9,'360HD-Imperial'!M68,IF($F$11='Chamber Images'!A54,'C-4HD-Imperial'!H68,"")))))))) -> 
B79: =IF($F$11="Contactor 100HD",'100HD-Imperial'!A69,IF($F$11="Recharger 150XLHD",'150XLHD-Imperial'!A69,IF($F$11="Recharger 280HD",'280HD-Imperial'!A69,IF($F$11="Recharger 330XLHD",'330XLHD-Imperial'!A69,IF($F$11="Recharger 902HD",'902HD-Imperial'!A69,IF($F$11="Contactor Field Drain C-4HD",'C-4HD-Imperial'!A69,IF($F$11="Recharger 180HD",'180HD-Imperial'!A69,IF($F$11='Chamber Images'!$A$9,'360HD-Imperial'!A69)))))))) -> 15 | C79: 381 | D79: =IF($F$11="Contactor 100HD",'100HD-Imperial'!D69,IF($F$11="Recharger 150XLHD",'150XLHD-Imperial'!D69,IF($F$11="Recharger 280HD",'280HD-Imperial'!D69,IF($F$11="Recharger 330XLHD",'330XLHD-Imperial'!D69,IF($F$11="Recharger 902HD",'902HD-Imperial'!G69,IF($F$11="Contactor Field Drain C-4HD",'C-4HD-Imperial'!C69,IF($F$11="Recharger 180HD",'180HD-Imperial'!D69,IF($F$11='Chamber Images'!$A$9,'360HD-Imperial'!G69,0)))))))) -> 165.7888588 | E79: 4.694609957 | F79: =IF($F$11="Contactor 100HD",'100HD-Imperial'!E69,IF($F$11="Recharger 150XLHD",'150XLHD-Imperial'!E69,IF($F$11="Recharger 280HD",'280HD-Imperial'!E69,IF($F$11="Recharger 330XLHD",'330XLHD-Imperial'!E69,IF($F$11="Recharger 902HD",'902HD-Imperial'!H69,IF($F$11="Recharger 180HD",'180HD-Imperial'!C69,IF($F$11='Chamber Images'!$A$9,'360HD-Imperial'!H69,""))))))) -> 0.267 | G79: 0.0075605856 | H79: =IF($F$11="Contactor 100HD",'100HD-Imperial'!F69,IF($F$11="Recharger 150XLHD",'150XLHD-Imperial'!F69,IF($F$11="Recharger 280HD",'280HD-Imperial'!F69,IF($F$11="Recharger 330XLHD",'330XLHD-Imperial'!F69,IF($F$11="Recharger 902HD",'902HD-Imperial'!I69,IF($F$11="Contactor Field Drain C-4HD",'C-4HD-Imperial'!D69,IF($F$11="Recharger 180HD",'180HD-Imperial'!F69,IF($F$11='Chamber Images'!$A$9,'360HD-Imperial'!I69,0)))))))) -> 25.83474537 | I79: 0.7315573177 | J79: =IF($F$11="Contactor 100HD",'100HD-Imperial'!G69,IF($F$11="Recharger 150XLHD",'150XLHD-Imperial'!G69,IF($F$11="Recharger 280HD",'280HD-Imperial'!G69,IF($F$11="Recharger 330XLHD",'330XLHD-Imperial'!G69,IF($F$11="Recharger 902HD",'902HD-Imperial'!J69,IF($F$11="Contactor Field Drain C-4HD",'C-4HD-Imperial'!E69,IF($F$11="Recharger 180HD",'180HD-Imperial'!G69,IF($F$11='Chamber Images'!$A$9,'360HD-Imperial'!J69,0)))))))) -> 191.8906042 | K79: 5.43372786 | L79: =IF($F$11="Contactor 100HD",'100HD-Imperial'!H69,IF($F$11="Recharger 150XLHD",'150XLHD-Imperial'!H69,IF($F$11="Recharger 280HD",'280HD-Imperial'!H69,IF($F$11="Recharger 330XLHD",'330XLHD-Imperial'!H69,IF($F$11="Recharger 902HD",'902HD-Imperial'!K69,IF($F$11="Contactor Field Drain C-4HD",'C-4HD-Imperial'!F69,IF($F$11="Recharger 180HD",'180HD-Imperial'!H69,IF($F$11='Chamber Images'!$A$9,'360HD-Imperial'!K69,0)))))))) -> 1990.430626 | M79: 56.36262596 | N79: =IF($F$11="Contactor 100HD",'100HD-Imperial'!I69,IF($F$11="Recharger 150XLHD",'150XLHD-Imperial'!I69,IF($F$11="Recharger 280HD",'280HD-Imperial'!I69,IF($F$11="Recharger 330XLHD",'330XLHD-Imperial'!I69,IF($F$11="Recharger 902HD",'902HD-Imperial'!L69,IF($F$11="Contactor Field Drain C-4HD",'C-4HD-Imperial'!G69,IF($F$11="Recharger 180HD",'180HD-Imperial'!I69,IF($F$11='Chamber Images'!$A$9,'360HD-Imperial'!L69,0)))))))) -> 1.25 | O79: 0.381 | P79: =IF($F$11="Contactor 100HD",'100HD-Imperial'!J69,IF($F$11="Recharger 150XLHD",'150XLHD-Imperial'!J69,IF($F$11="Recharger 280HD",'280HD-Imperial'!J69,IF($F$11="Recharger 330XLHD",'330XLHD-Imperial'!J69,IF($F$11="Recharger 902HD",'902HD-Imperial'!M69,IF($F$11="Recharger 180HD",'180HD-Imperial'!J69,IF($F$11='Chamber Images'!$A$9,'360HD-Imperial'!M69,IF($F$11='Chamber Images'!A55,'C-4HD-Imperial'!H69,"")))))))) -> 
B80: =IF($F$11="Contactor 100HD",'100HD-Imperial'!A70,IF($F$11="Recharger 150XLHD",'150XLHD-Imperial'!A70,IF($F$11="Recharger 280HD",'280HD-Imperial'!A70,IF($F$11="Recharger 330XLHD",'330XLHD-Imperial'!A70,IF($F$11="Recharger 902HD",'902HD-Imperial'!A70,IF($F$11="Contactor Field Drain C-4HD",'C-4HD-Imperial'!A70,IF($F$11="Recharger 180HD",'180HD-Imperial'!A70,IF($F$11='Chamber Images'!$A$9,'360HD-Imperial'!A70)))))))) -> 14 | C80: 355.6 | D80: =IF($F$11="Contactor 100HD",'100HD-Imperial'!D70,IF($F$11="Recharger 150XLHD",'150XLHD-Imperial'!D70,IF($F$11="Recharger 280HD",'280HD-Imperial'!D70,IF($F$11="Recharger 330XLHD",'330XLHD-Imperial'!D70,IF($F$11="Recharger 902HD",'902HD-Imperial'!G70,IF($F$11="Contactor Field Drain C-4HD",'C-4HD-Imperial'!C70,IF($F$11="Recharger 180HD",'180HD-Imperial'!D70,IF($F$11='Chamber Images'!$A$9,'360HD-Imperial'!G70,0)))))))) -> 165.8470019 | E80: 4.696256384 | F80: =IF($F$11="Contactor 100HD",'100HD-Imperial'!E70,IF($F$11="Recharger 150XLHD",'150XLHD-Imperial'!E70,IF($F$11="Recharger 280HD",'280HD-Imperial'!E70,IF($F$11="Recharger 330XLHD",'330XLHD-Imperial'!E70,IF($F$11="Recharger 902HD",'902HD-Imperial'!H70,IF($F$11="Recharger 180HD",'180HD-Imperial'!C70,IF($F$11='Chamber Images'!$A$9,'360HD-Imperial'!H70,""))))))) -> 0.279 | G80: 0.0079003872 | H80: =IF($F$11="Contactor 100HD",'100HD-Imperial'!F70,IF($F$11="Recharger 150XLHD",'150XLHD-Imperial'!F70,IF($F$11="Recharger 280HD",'280HD-Imperial'!F70,IF($F$11="Recharger 330XLHD",'330XLHD-Imperial'!F70,IF($F$11="Recharger 902HD",'902HD-Imperial'!I70,IF($F$11="Contactor Field Drain C-4HD",'C-4HD-Imperial'!D70,IF($F$11="Recharger 180HD",'180HD-Imperial'!F70,IF($F$11='Chamber Images'!$A$9,'360HD-Imperial'!I70,0)))))))) -> 25.80668812 | I80: 0.730762826 | J80: =IF($F$11="Contactor 100HD",'100HD-Imperial'!G70,IF($F$11="Recharger 150XLHD",'150XLHD-Imperial'!G70,IF($F$11="Recharger 280HD",'280HD-Imperial'!G70,IF($F$11="Recharger 330XLHD",'330XLHD-Imperial'!G70,IF($F$11="Recharger 902HD",'902HD-Imperial'!J70,IF($F$11="Contactor Field Drain C-4HD",'C-4HD-Imperial'!E70,IF($F$11="Recharger 180HD",'180HD-Imperial'!G70,IF($F$11='Chamber Images'!$A$9,'360HD-Imperial'!J70,0)))))))) -> 191.93269 | K80: 5.434919598 | L80: =IF($F$11="Contactor 100HD",'100HD-Imperial'!H70,IF($F$11="Recharger 150XLHD",'150XLHD-Imperial'!H70,IF($F$11="Recharger 280HD",'280HD-Imperial'!H70,IF($F$11="Recharger 330XLHD",'330XLHD-Imperial'!H70,IF($F$11="Recharger 902HD",'902HD-Imperial'!K70,IF($F$11="Contactor Field Drain C-4HD",'C-4HD-Imperial'!F70,IF($F$11="Recharger 180HD",'180HD-Imperial'!H70,IF($F$11='Chamber Images'!$A$9,'360HD-Imperial'!K70,0)))))))) -> 1798.540022 | M80: 50.9288981 | N80: =IF($F$11="Contactor 100HD",'100HD-Imperial'!I70,IF($F$11="Recharger 150XLHD",'150XLHD-Imperial'!I70,IF($F$11="Recharger 280HD",'280HD-Imperial'!I70,IF($F$11="Recharger 330XLHD",'330XLHD-Imperial'!I70,IF($F$11="Recharger 902HD",'902HD-Imperial'!L70,IF($F$11="Contactor Field Drain C-4HD",'C-4HD-Imperial'!G70,IF($F$11="Recharger 180HD",'180HD-Imperial'!I70,IF($F$11='Chamber Images'!$A$9,'360HD-Imperial'!L70,0)))))))) -> 1.17 | O80: 0.3556 | P80: =IF($F$11="Contactor 100HD",'100HD-Imperial'!J70,IF($F$11="Recharger 150XLHD",'150XLHD-Imperial'!J70,IF($F$11="Recharger 280HD",'280HD-Imperial'!J70,IF($F$11="Recharger 330XLHD",'330XLHD-Imperial'!J70,IF($F$11="Recharger 902HD",'902HD-Imperial'!M70,IF($F$11="Recharger 180HD",'180HD-Imperial'!J70,IF($F$11='Chamber Images'!$A$9,'360HD-Imperial'!M70,IF($F$11='Chamber Images'!A56,'C-4HD-Imperial'!H70,"")))))))) -> 
B81: =IF($F$11="Contactor 100HD",'100HD-Imperial'!A71,IF($F$11="Recharger 150XLHD",'150XLHD-Imperial'!A71,IF($F$11="Recharger 280HD",'280HD-Imperial'!A71,IF($F$11="Recharger 330XLHD",'330XLHD-Imperial'!A71,IF($F$11="Recharger 902HD",'902HD-Imperial'!A71,IF($F$11="Contactor Field Drain C-4HD",'C-4HD-Imperial'!A71,IF($F$11="Recharger 180HD",'180HD-Imperial'!A71,IF($F$11='Chamber Images'!$A$9,'360HD-Imperial'!A71)))))))) -> 13 | C81: 330.2 | D81: =IF($F$11="Contactor 100HD",'100HD-Imperial'!D71,IF($F$11="Recharger 150XLHD",'150XLHD-Imperial'!D71,IF($F$11="Recharger 280HD",'280HD-Imperial'!D71,IF($F$11="Recharger 330XLHD",'330XLHD-Imperial'!D71,IF($F$11="Recharger 902HD",'902HD-Imperial'!G71,IF($F$11="Contactor Field Drain C-4HD",'C-4HD-Imperial'!C71,IF($F$11="Recharger 180HD",'180HD-Imperial'!D71,IF($F$11='Chamber Images'!$A$9,'360HD-Imperial'!G71,0)))))))) -> 169.3670019 | E81: 4.79593152 | F81: =IF($F$11="Contactor 100HD",'100HD-Imperial'!E71,IF($F$11="Recharger 150XLHD",'150XLHD-Imperial'!E71,IF($F$11="Recharger 280HD",'280HD-Imperial'!E71,IF($F$11="Recharger 330XLHD",'330XLHD-Imperial'!E71,IF($F$11="Recharger 902HD",'902HD-Imperial'!H71,IF($F$11="Recharger 180HD",'180HD-Imperial'!C71,IF($F$11='Chamber Images'!$A$9,'360HD-Imperial'!H71,""))))))) -> 0.285 | G81: 0.008070288 | H81: =IF($F$11="Contactor 100HD",'100HD-Imperial'!F71,IF($F$11="Recharger 150XLHD",'150XLHD-Imperial'!F71,IF($F$11="Recharger 280HD",'280HD-Imperial'!F71,IF($F$11="Recharger 330XLHD",'330XLHD-Imperial'!F71,IF($F$11="Recharger 902HD",'902HD-Imperial'!I71,IF($F$11="Contactor Field Drain C-4HD",'C-4HD-Imperial'!D71,IF($F$11="Recharger 180HD",'180HD-Imperial'!F71,IF($F$11='Chamber Images'!$A$9,'360HD-Imperial'!I71,0)))))))) -> 24.39628812 | I81: 0.6908248113 | J81: =IF($F$11="Contactor 100HD",'100HD-Imperial'!G71,IF($F$11="Recharger 150XLHD",'150XLHD-Imperial'!G71,IF($F$11="Recharger 280HD",'280HD-Imperial'!G71,IF($F$11="Recharger 330XLHD",'330XLHD-Imperial'!G71,IF($F$11="Recharger 902HD",'902HD-Imperial'!J71,IF($F$11="Contactor Field Drain C-4HD",'C-4HD-Imperial'!E71,IF($F$11="Recharger 180HD",'180HD-Imperial'!G71,IF($F$11='Chamber Images'!$A$9,'360HD-Imperial'!J71,0)))))))) -> 194.04829 | K81: 5.49482662 | L81: =IF($F$11="Contactor 100HD",'100HD-Imperial'!H71,IF($F$11="Recharger 150XLHD",'150XLHD-Imperial'!H71,IF($F$11="Recharger 280HD",'280HD-Imperial'!H71,IF($F$11="Recharger 330XLHD",'330XLHD-Imperial'!H71,IF($F$11="Recharger 902HD",'902HD-Imperial'!K71,IF($F$11="Contactor Field Drain C-4HD",'C-4HD-Imperial'!F71,IF($F$11="Recharger 180HD",'180HD-Imperial'!H71,IF($F$11='Chamber Images'!$A$9,'360HD-Imperial'!K71,0)))))))) -> 1606.607332 | M81: 45.4939785 | N81: =IF($F$11="Contactor 100HD",'100HD-Imperial'!I71,IF($F$11="Recharger 150XLHD",'150XLHD-Imperial'!I71,IF($F$11="Recharger 280HD",'280HD-Imperial'!I71,IF($F$11="Recharger 330XLHD",'330XLHD-Imperial'!I71,IF($F$11="Recharger 902HD",'902HD-Imperial'!L71,IF($F$11="Contactor Field Drain C-4HD",'C-4HD-Imperial'!G71,IF($F$11="Recharger 180HD",'180HD-Imperial'!I71,IF($F$11='Chamber Images'!$A$9,'360HD-Imperial'!L71,0)))))))) -> 1.08 | O81: 0.3302 | P81: =IF($F$11="Contactor 100HD",'100HD-Imperial'!J71,IF($F$11="Recharger 150XLHD",'150XLHD-Imperial'!J71,IF($F$11="Recharger 280HD",'280HD-Imperial'!J71,IF($F$11="Recharger 330XLHD",'330XLHD-Imperial'!J71,IF($F$11="Recharger 902HD",'902HD-Imperial'!M71,IF($F$11="Recharger 180HD",'180HD-Imperial'!J71,IF($F$11='Chamber Images'!$A$9,'360HD-Imperial'!M71,IF($F$11='Chamber Images'!A57,'C-4HD-Imperial'!H71,"")))))))) -> 
B82: =IF($F$11="Contactor 100HD",'100HD-Imperial'!A72,IF($F$11="Recharger 150XLHD",'150XLHD-Imperial'!A72,IF($F$11="Recharger 280HD",'280HD-Imperial'!A72,IF($F$11="Recharger 330XLHD",'330XLHD-Imperial'!A72,IF($F$11="Recharger 902HD",'902HD-Imperial'!A72,IF($F$11="Contactor Field Drain C-4HD",'C-4HD-Imperial'!A72,IF($F$11="Recharger 180HD",'180HD-Imperial'!A72,IF($F$11='Chamber Images'!$A$9,'360HD-Imperial'!A72)))))))) -> 12 | C82: 304.8 | D82: =IF($F$11="Contactor 100HD",'100HD-Imperial'!D72,IF($F$11="Recharger 150XLHD",'150XLHD-Imperial'!D72,IF($F$11="Recharger 280HD",'280HD-Imperial'!D72,IF($F$11="Recharger 330XLHD",'330XLHD-Imperial'!D72,IF($F$11="Recharger 902HD",'902HD-Imperial'!G72,IF($F$11="Contactor Field Drain C-4HD",'C-4HD-Imperial'!C72,IF($F$11="Recharger 180HD",'180HD-Imperial'!D72,IF($F$11='Chamber Images'!$A$9,'360HD-Imperial'!G72,0)))))))) -> 169.4251451 | E82: 4.797577948 | F82: =IF($F$11="Contactor 100HD",'100HD-Imperial'!E72,IF($F$11="Recharger 150XLHD",'150XLHD-Imperial'!E72,IF($F$11="Recharger 280HD",'280HD-Imperial'!E72,IF($F$11="Recharger 330XLHD",'330XLHD-Imperial'!E72,IF($F$11="Recharger 902HD",'902HD-Imperial'!H72,IF($F$11="Recharger 180HD",'180HD-Imperial'!C72,IF($F$11='Chamber Images'!$A$9,'360HD-Imperial'!H72,""))))))) -> 0.291 | G82: 0.0082401888 | H82: =IF($F$11="Contactor 100HD",'100HD-Imperial'!F72,IF($F$11="Recharger 150XLHD",'150XLHD-Imperial'!F72,IF($F$11="Recharger 280HD",'280HD-Imperial'!F72,IF($F$11="Recharger 330XLHD",'330XLHD-Imperial'!F72,IF($F$11="Recharger 902HD",'902HD-Imperial'!I72,IF($F$11="Contactor Field Drain C-4HD",'C-4HD-Imperial'!D72,IF($F$11="Recharger 180HD",'180HD-Imperial'!F72,IF($F$11='Chamber Images'!$A$9,'360HD-Imperial'!I72,0)))))))) -> 24.37063086 | I82: 0.69009828 | J82: =IF($F$11="Contactor 100HD",'100HD-Imperial'!G72,IF($F$11="Recharger 150XLHD",'150XLHD-Imperial'!G72,IF($F$11="Recharger 280HD",'280HD-Imperial'!G72,IF($F$11="Recharger 330XLHD",'330XLHD-Imperial'!G72,IF($F$11="Recharger 902HD",'902HD-Imperial'!J72,IF($F$11="Contactor Field Drain C-4HD",'C-4HD-Imperial'!E72,IF($F$11="Recharger 180HD",'180HD-Imperial'!G72,IF($F$11='Chamber Images'!$A$9,'360HD-Imperial'!J72,0)))))))) -> 194.0867759 | K82: 5.495916417 | L82: =IF($F$11="Contactor 100HD",'100HD-Imperial'!H72,IF($F$11="Recharger 150XLHD",'150XLHD-Imperial'!H72,IF($F$11="Recharger 280HD",'280HD-Imperial'!H72,IF($F$11="Recharger 330XLHD",'330XLHD-Imperial'!H72,IF($F$11="Recharger 902HD",'902HD-Imperial'!K72,IF($F$11="Contactor Field Drain C-4HD",'C-4HD-Imperial'!F72,IF($F$11="Recharger 180HD",'180HD-Imperial'!H72,IF($F$11='Chamber Images'!$A$9,'360HD-Imperial'!K72,0)))))))) -> 1412.559042 | M82: 39.99915188 | N82: =IF($F$11="Contactor 100HD",'100HD-Imperial'!I72,IF($F$11="Recharger 150XLHD",'150XLHD-Imperial'!I72,IF($F$11="Recharger 280HD",'280HD-Imperial'!I72,IF($F$11="Recharger 330XLHD",'330XLHD-Imperial'!I72,IF($F$11="Recharger 902HD",'902HD-Imperial'!L72,IF($F$11="Contactor Field Drain C-4HD",'C-4HD-Imperial'!G72,IF($F$11="Recharger 180HD",'180HD-Imperial'!I72,IF($F$11='Chamber Images'!$A$9,'360HD-Imperial'!L72,0)))))))) -> 1 | O82: 0.3048 | P82: =IF($F$11="Contactor 100HD",'100HD-Imperial'!J72,IF($F$11="Recharger 150XLHD",'150XLHD-Imperial'!J72,IF($F$11="Recharger 280HD",'280HD-Imperial'!J72,IF($F$11="Recharger 330XLHD",'330XLHD-Imperial'!J72,IF($F$11="Recharger 902HD",'902HD-Imperial'!M72,IF($F$11="Recharger 180HD",'180HD-Imperial'!J72,IF($F$11='Chamber Images'!$A$9,'360HD-Imperial'!M72,IF($F$11='Chamber Images'!A58,'C-4HD-Imperial'!H72,"")))))))) -> 
B83: =IF($F$11="Contactor 100HD",'100HD-Imperial'!A73,IF($F$11="Recharger 150XLHD",'150XLHD-Imperial'!A73,IF($F$11="Recharger 280HD",'280HD-Imperial'!A73,IF($F$11="Recharger 330XLHD",'330XLHD-Imperial'!A73,IF($F$11="Recharger 902HD",'902HD-Imperial'!A73,IF($F$11="Contactor Field Drain C-4HD",'C-4HD-Imperial'!A73,IF($F$11="Recharger 180HD",'180HD-Imperial'!A73,IF($F$11='Chamber Images'!$A$9,'360HD-Imperial'!A73)))))))) -> 11 | C83: 279.4 | D83: =IF($F$11="Contactor 100HD",'100HD-Imperial'!D73,IF($F$11="Recharger 150XLHD",'150XLHD-Imperial'!D73,IF($F$11="Recharger 280HD",'280HD-Imperial'!D73,IF($F$11="Recharger 330XLHD",'330XLHD-Imperial'!D73,IF($F$11="Recharger 902HD",'902HD-Imperial'!G73,IF($F$11="Contactor Field Drain C-4HD",'C-4HD-Imperial'!C73,IF($F$11="Recharger 180HD",'180HD-Imperial'!D73,IF($F$11='Chamber Images'!$A$9,'360HD-Imperial'!G73,0)))))))) -> 169.3670019 | E83: 4.79593152 | F83: =IF($F$11="Contactor 100HD",'100HD-Imperial'!E73,IF($F$11="Recharger 150XLHD",'150XLHD-Imperial'!E73,IF($F$11="Recharger 280HD",'280HD-Imperial'!E73,IF($F$11="Recharger 330XLHD",'330XLHD-Imperial'!E73,IF($F$11="Recharger 902HD",'902HD-Imperial'!H73,IF($F$11="Recharger 180HD",'180HD-Imperial'!C73,IF($F$11='Chamber Images'!$A$9,'360HD-Imperial'!H73,""))))))) -> 0.297 | G83: 0.0084100896 | H83: =IF($F$11="Contactor 100HD",'100HD-Imperial'!F73,IF($F$11="Recharger 150XLHD",'150XLHD-Imperial'!F73,IF($F$11="Recharger 280HD",'280HD-Imperial'!F73,IF($F$11="Recharger 330XLHD",'330XLHD-Imperial'!F73,IF($F$11="Recharger 902HD",'902HD-Imperial'!I73,IF($F$11="Contactor Field Drain C-4HD",'C-4HD-Imperial'!D73,IF($F$11="Recharger 180HD",'180HD-Imperial'!F73,IF($F$11='Chamber Images'!$A$9,'360HD-Imperial'!I73,0)))))))) -> 24.39148812 | I83: 0.6906888907 | J83: =IF($F$11="Contactor 100HD",'100HD-Imperial'!G73,IF($F$11="Recharger 150XLHD",'150XLHD-Imperial'!G73,IF($F$11="Recharger 280HD",'280HD-Imperial'!G73,IF($F$11="Recharger 330XLHD",'330XLHD-Imperial'!G73,IF($F$11="Recharger 902HD",'902HD-Imperial'!J73,IF($F$11="Contactor Field Drain C-4HD",'C-4HD-Imperial'!E73,IF($F$11="Recharger 180HD",'180HD-Imperial'!G73,IF($F$11='Chamber Images'!$A$9,'360HD-Imperial'!J73,0)))))))) -> 194.05549 | K83: 5.495030501 | L83: =IF($F$11="Contactor 100HD",'100HD-Imperial'!H73,IF($F$11="Recharger 150XLHD",'150XLHD-Imperial'!H73,IF($F$11="Recharger 280HD",'280HD-Imperial'!H73,IF($F$11="Recharger 330XLHD",'330XLHD-Imperial'!H73,IF($F$11="Recharger 902HD",'902HD-Imperial'!K73,IF($F$11="Contactor Field Drain C-4HD",'C-4HD-Imperial'!F73,IF($F$11="Recharger 180HD",'180HD-Imperial'!H73,IF($F$11='Chamber Images'!$A$9,'360HD-Imperial'!K73,0)))))))) -> 1218.472266 | M83: 34.50323546 | N83: =IF($F$11="Contactor 100HD",'100HD-Imperial'!I73,IF($F$11="Recharger 150XLHD",'150XLHD-Imperial'!I73,IF($F$11="Recharger 280HD",'280HD-Imperial'!I73,IF($F$11="Recharger 330XLHD",'330XLHD-Imperial'!I73,IF($F$11="Recharger 902HD",'902HD-Imperial'!L73,IF($F$11="Contactor Field Drain C-4HD",'C-4HD-Imperial'!G73,IF($F$11="Recharger 180HD",'180HD-Imperial'!I73,IF($F$11='Chamber Images'!$A$9,'360HD-Imperial'!L73,0)))))))) -> 0.92 | O83: 0.2794 | P83: =IF($F$11="Contactor 100HD",'100HD-Imperial'!J73,IF($F$11="Recharger 150XLHD",'150XLHD-Imperial'!J73,IF($F$11="Recharger 280HD",'280HD-Imperial'!J73,IF($F$11="Recharger 330XLHD",'330XLHD-Imperial'!J73,IF($F$11="Recharger 902HD",'902HD-Imperial'!M73,IF($F$11="Recharger 180HD",'180HD-Imperial'!J73,IF($F$11='Chamber Images'!$A$9,'360HD-Imperial'!M73,IF($F$11='Chamber Images'!A59,'C-4HD-Imperial'!H73,"")))))))) -> 
B84: =IF($F$11="Contactor 100HD",'100HD-Imperial'!A74,IF($F$11="Recharger 150XLHD",'150XLHD-Imperial'!A74,IF($F$11="Recharger 280HD",'280HD-Imperial'!A74,IF($F$11="Recharger 330XLHD",'330XLHD-Imperial'!A74,IF($F$11="Recharger 902HD",'902HD-Imperial'!A74,IF($F$11="Contactor Field Drain C-4HD",'C-4HD-Imperial'!A74,IF($F$11="Recharger 180HD",'180HD-Imperial'!A74,IF($F$11='Chamber Images'!$A$9,'360HD-Imperial'!A74)))))))) -> 10 | C84: 254 | D84: =IF($F$11="Contactor 100HD",'100HD-Imperial'!D74,IF($F$11="Recharger 150XLHD",'150XLHD-Imperial'!D74,IF($F$11="Recharger 280HD",'280HD-Imperial'!D74,IF($F$11="Recharger 330XLHD",'330XLHD-Imperial'!D74,IF($F$11="Recharger 902HD",'902HD-Imperial'!G74,IF($F$11="Contactor Field Drain C-4HD",'C-4HD-Imperial'!C74,IF($F$11="Recharger 180HD",'180HD-Imperial'!D74,IF($F$11='Chamber Images'!$A$9,'360HD-Imperial'!G74,0)))))))) -> 169.4251451 | E84: 4.797577948 | F84: =IF($F$11="Contactor 100HD",'100HD-Imperial'!E74,IF($F$11="Recharger 150XLHD",'150XLHD-Imperial'!E74,IF($F$11="Recharger 280HD",'280HD-Imperial'!E74,IF($F$11="Recharger 330XLHD",'330XLHD-Imperial'!E74,IF($F$11="Recharger 902HD",'902HD-Imperial'!H74,IF($F$11="Recharger 180HD",'180HD-Imperial'!C74,IF($F$11='Chamber Images'!$A$9,'360HD-Imperial'!H74,""))))))) -> 0.318 | G84: 0.0090047424 | H84: =IF($F$11="Contactor 100HD",'100HD-Imperial'!F74,IF($F$11="Recharger 150XLHD",'150XLHD-Imperial'!F74,IF($F$11="Recharger 280HD",'280HD-Imperial'!F74,IF($F$11="Recharger 330XLHD",'330XLHD-Imperial'!F74,IF($F$11="Recharger 902HD",'902HD-Imperial'!I74,IF($F$11="Contactor Field Drain C-4HD",'C-4HD-Imperial'!D74,IF($F$11="Recharger 180HD",'180HD-Imperial'!F74,IF($F$11='Chamber Images'!$A$9,'360HD-Imperial'!I74,0)))))))) -> 24.35983086 | I84: 0.6897924585 | J84: =IF($F$11="Contactor 100HD",'100HD-Imperial'!G74,IF($F$11="Recharger 150XLHD",'150XLHD-Imperial'!G74,IF($F$11="Recharger 280HD",'280HD-Imperial'!G74,IF($F$11="Recharger 330XLHD",'330XLHD-Imperial'!G74,IF($F$11="Recharger 902HD",'902HD-Imperial'!J74,IF($F$11="Contactor Field Drain C-4HD",'C-4HD-Imperial'!E74,IF($F$11="Recharger 180HD",'180HD-Imperial'!G74,IF($F$11='Chamber Images'!$A$9,'360HD-Imperial'!J74,0)))))))) -> 194.1029759 | K84: 5.496375149 | L84: =IF($F$11="Contactor 100HD",'100HD-Imperial'!H74,IF($F$11="Recharger 150XLHD",'150XLHD-Imperial'!H74,IF($F$11="Recharger 280HD",'280HD-Imperial'!H74,IF($F$11="Recharger 330XLHD",'330XLHD-Imperial'!H74,IF($F$11="Recharger 902HD",'902HD-Imperial'!K74,IF($F$11="Contactor Field Drain C-4HD",'C-4HD-Imperial'!F74,IF($F$11="Recharger 180HD",'180HD-Imperial'!H74,IF($F$11='Chamber Images'!$A$9,'360HD-Imperial'!K74,0)))))))) -> 1024.416776 | M84: 29.00820496 | N84: =IF($F$11="Contactor 100HD",'100HD-Imperial'!I74,IF($F$11="Recharger 150XLHD",'150XLHD-Imperial'!I74,IF($F$11="Recharger 280HD",'280HD-Imperial'!I74,IF($F$11="Recharger 330XLHD",'330XLHD-Imperial'!I74,IF($F$11="Recharger 902HD",'902HD-Imperial'!L74,IF($F$11="Contactor Field Drain C-4HD",'C-4HD-Imperial'!G74,IF($F$11="Recharger 180HD",'180HD-Imperial'!I74,IF($F$11='Chamber Images'!$A$9,'360HD-Imperial'!L74,0)))))))) -> 0.83 | O84: 0.254 | P84: =IF($F$11="Contactor 100HD",'100HD-Imperial'!J74,IF($F$11="Recharger 150XLHD",'150XLHD-Imperial'!J74,IF($F$11="Recharger 280HD",'280HD-Imperial'!J74,IF($F$11="Recharger 330XLHD",'330XLHD-Imperial'!J74,IF($F$11="Recharger 902HD",'902HD-Imperial'!M74,IF($F$11="Recharger 180HD",'180HD-Imperial'!J74,IF($F$11='Chamber Images'!$A$9,'360HD-Imperial'!M74,IF($F$11='Chamber Images'!A60,'C-4HD-Imperial'!H74,"")))))))) -> 
B85: =IF($F$11="Contactor 100HD",'100HD-Imperial'!A75,IF($F$11="Recharger 150XLHD",'150XLHD-Imperial'!A75,IF($F$11="Recharger 280HD",'280HD-Imperial'!A75,IF($F$11="Recharger 330XLHD",'330XLHD-Imperial'!A75,IF($F$11="Recharger 902HD",'902HD-Imperial'!A75,IF($F$11="Contactor Field Drain C-4HD",'C-4HD-Imperial'!A75,IF($F$11="Recharger 180HD",'180HD-Imperial'!A75,IF($F$11='Chamber Images'!$A$9,'360HD-Imperial'!A75)))))))) -> 9 | C85: 228.6 | D85: =IF($F$11="Contactor 100HD",'100HD-Imperial'!D75,IF($F$11="Recharger 150XLHD",'150XLHD-Imperial'!D75,IF($F$11="Recharger 280HD",'280HD-Imperial'!D75,IF($F$11="Recharger 330XLHD",'330XLHD-Imperial'!D75,IF($F$11="Recharger 902HD",'902HD-Imperial'!G75,IF($F$11="Contactor Field Drain C-4HD",'C-4HD-Imperial'!C75,IF($F$11="Recharger 180HD",'180HD-Imperial'!D75,IF($F$11='Chamber Images'!$A$9,'360HD-Imperial'!G75,0)))))))) -> 0 | E85: 0 | F85: =IF($F$11="Contactor 100HD",'100HD-Imperial'!E75,IF($F$11="Recharger 150XLHD",'150XLHD-Imperial'!E75,IF($F$11="Recharger 280HD",'280HD-Imperial'!E75,IF($F$11="Recharger 330XLHD",'330XLHD-Imperial'!E75,IF($F$11="Recharger 902HD",'902HD-Imperial'!H75,IF($F$11="Recharger 180HD",'180HD-Imperial'!C75,IF($F$11='Chamber Images'!$A$9,'360HD-Imperial'!H75,""))))))) -> 0 | G85: 0 | H85: =IF($F$11="Contactor 100HD",'100HD-Imperial'!F75,IF($F$11="Recharger 150XLHD",'150XLHD-Imperial'!F75,IF($F$11="Recharger 280HD",'280HD-Imperial'!F75,IF($F$11="Recharger 330XLHD",'330XLHD-Imperial'!F75,IF($F$11="Recharger 902HD",'902HD-Imperial'!I75,IF($F$11="Contactor Field Drain C-4HD",'C-4HD-Imperial'!D75,IF($F$11="Recharger 180HD",'180HD-Imperial'!F75,IF($F$11='Chamber Images'!$A$9,'360HD-Imperial'!I75,0)))))))) -> 92.25708889 | I85: 2.612425535 | J85: =IF($F$11="Contactor 100HD",'100HD-Imperial'!G75,IF($F$11="Recharger 150XLHD",'150XLHD-Imperial'!G75,IF($F$11="Recharger 280HD",'280HD-Imperial'!G75,IF($F$11="Recharger 330XLHD",'330XLHD-Imperial'!G75,IF($F$11="Recharger 902HD",'902HD-Imperial'!J75,IF($F$11="Contactor Field Drain C-4HD",'C-4HD-Imperial'!E75,IF($F$11="Recharger 180HD",'180HD-Imperial'!G75,IF($F$11='Chamber Images'!$A$9,'360HD-Imperial'!J75,0)))))))) -> 92.25708889 | K85: 2.612425535 | L85: =IF($F$11="Contactor 100HD",'100HD-Imperial'!H75,IF($F$11="Recharger 150XLHD",'150XLHD-Imperial'!H75,IF($F$11="Recharger 280HD",'280HD-Imperial'!H75,IF($F$11="Recharger 330XLHD",'330XLHD-Imperial'!H75,IF($F$11="Recharger 902HD",'902HD-Imperial'!K75,IF($F$11="Contactor Field Drain C-4HD",'C-4HD-Imperial'!F75,IF($F$11="Recharger 180HD",'180HD-Imperial'!H75,IF($F$11='Chamber Images'!$A$9,'360HD-Imperial'!K75,0)))))))) -> 830.3138 | M85: 23.51182981 | N85: =IF($F$11="Contactor 100HD",'100HD-Imperial'!I75,IF($F$11="Recharger 150XLHD",'150XLHD-Imperial'!I75,IF($F$11="Recharger 280HD",'280HD-Imperial'!I75,IF($F$11="Recharger 330XLHD",'330XLHD-Imperial'!I75,IF($F$11="Recharger 902HD",'902HD-Imperial'!L75,IF($F$11="Contactor Field Drain C-4HD",'C-4HD-Imperial'!G75,IF($F$11="Recharger 180HD",'180HD-Imperial'!I75,IF($F$11='Chamber Images'!$A$9,'360HD-Imperial'!L75,0)))))))) -> 0.75 | O85: 0.2286 | P85: =IF($F$11="Contactor 100HD",'100HD-Imperial'!J75,IF($F$11="Recharger 150XLHD",'150XLHD-Imperial'!J75,IF($F$11="Recharger 280HD",'280HD-Imperial'!J75,IF($F$11="Recharger 330XLHD",'330XLHD-Imperial'!J75,IF($F$11="Recharger 902HD",'902HD-Imperial'!M75,IF($F$11="Recharger 180HD",'180HD-Imperial'!J75,IF($F$11='Chamber Images'!$A$9,'360HD-Imperial'!M75,IF($F$11='Chamber Images'!A61,'C-4HD-Imperial'!H75,"")))))))) -> Bottom of Chamber Elevation
B86: =IF($F$11="Contactor 100HD",'100HD-Imperial'!A76,IF($F$11="Recharger 150XLHD",'150XLHD-Imperial'!A76,IF($F$11="Recharger 280HD",'280HD-Imperial'!A76,IF($F$11="Recharger 330XLHD",'330XLHD-Imperial'!A76,IF($F$11="Recharger 902HD",'902HD-Imperial'!A76,IF($F$11="Contactor Field Drain C-4HD",'C-4HD-Imperial'!A76,IF($F$11="Recharger 180HD",'180HD-Imperial'!A76,IF($F$11='Chamber Images'!$A$9,'360HD-Imperial'!A76)))))))) -> 8 | C86: 203.2 | D86: =IF($F$11="Contactor 100HD",'100HD-Imperial'!D76,IF($F$11="Recharger 150XLHD",'150XLHD-Imperial'!D76,IF($F$11="Recharger 280HD",'280HD-Imperial'!D76,IF($F$11="Recharger 330XLHD",'330XLHD-Imperial'!D76,IF($F$11="Recharger 902HD",'902HD-Imperial'!G76,IF($F$11="Contactor Field Drain C-4HD",'C-4HD-Imperial'!C76,IF($F$11="Recharger 180HD",'180HD-Imperial'!D76,IF($F$11='Chamber Images'!$A$9,'360HD-Imperial'!G76,0)))))))) -> 0 | E86: 0 | F86: =IF($F$11="Contactor 100HD",'100HD-Imperial'!E76,IF($F$11="Recharger 150XLHD",'150XLHD-Imperial'!E76,IF($F$11="Recharger 280HD",'280HD-Imperial'!E76,IF($F$11="Recharger 330XLHD",'330XLHD-Imperial'!E76,IF($F$11="Recharger 902HD",'902HD-Imperial'!H76,IF($F$11="Recharger 180HD",'180HD-Imperial'!C76,IF($F$11='Chamber Images'!$A$9,'360HD-Imperial'!H76,""))))))) -> 0 | G86: 0 | H86: =IF($F$11="Contactor 100HD",'100HD-Imperial'!F76,IF($F$11="Recharger 150XLHD",'150XLHD-Imperial'!F76,IF($F$11="Recharger 280HD",'280HD-Imperial'!F76,IF($F$11="Recharger 330XLHD",'330XLHD-Imperial'!F76,IF($F$11="Recharger 902HD",'902HD-Imperial'!I76,IF($F$11="Contactor Field Drain C-4HD",'C-4HD-Imperial'!D76,IF($F$11="Recharger 180HD",'180HD-Imperial'!F76,IF($F$11='Chamber Images'!$A$9,'360HD-Imperial'!I76,0)))))))) -> 92.25708889 | I86: 2.612425535 | J86: =IF($F$11="Contactor 100HD",'100HD-Imperial'!G76,IF($F$11="Recharger 150XLHD",'150XLHD-Imperial'!G76,IF($F$11="Recharger 280HD",'280HD-Imperial'!G76,IF($F$11="Recharger 330XLHD",'330XLHD-Imperial'!G76,IF($F$11="Recharger 902HD",'902HD-Imperial'!J76,IF($F$11="Contactor Field Drain C-4HD",'C-4HD-Imperial'!E76,IF($F$11="Recharger 180HD",'180HD-Imperial'!G76,IF($F$11='Chamber Images'!$A$9,'360HD-Imperial'!J76,0)))))))) -> 92.25708889 | K86: 2.612425535 | L86: =IF($F$11="Contactor 100HD",'100HD-Imperial'!H76,IF($F$11="Recharger 150XLHD",'150XLHD-Imperial'!H76,IF($F$11="Recharger 280HD",'280HD-Imperial'!H76,IF($F$11="Recharger 330XLHD",'330XLHD-Imperial'!H76,IF($F$11="Recharger 902HD",'902HD-Imperial'!K76,IF($F$11="Contactor Field Drain C-4HD",'C-4HD-Imperial'!F76,IF($F$11="Recharger 180HD",'180HD-Imperial'!H76,IF($F$11='Chamber Images'!$A$9,'360HD-Imperial'!K76,0)))))))) -> 738.0567111 | M86: 20.89940428 | N86: =IF($F$11="Contactor 100HD",'100HD-Imperial'!I76,IF($F$11="Recharger 150XLHD",'150XLHD-Imperial'!I76,IF($F$11="Recharger 280HD",'280HD-Imperial'!I76,IF($F$11="Recharger 330XLHD",'330XLHD-Imperial'!I76,IF($F$11="Recharger 902HD",'902HD-Imperial'!L76,IF($F$11="Contactor Field Drain C-4HD",'C-4HD-Imperial'!G76,IF($F$11="Recharger 180HD",'180HD-Imperial'!I76,IF($F$11='Chamber Images'!$A$9,'360HD-Imperial'!L76,0)))))))) -> 0.67 | O86: 0.2032 | P86: =IF($F$11="Contactor 100HD",'100HD-Imperial'!J76,IF($F$11="Recharger 150XLHD",'150XLHD-Imperial'!J76,IF($F$11="Recharger 280HD",'280HD-Imperial'!J76,IF($F$11="Recharger 330XLHD",'330XLHD-Imperial'!J76,IF($F$11="Recharger 902HD",'902HD-Imperial'!M76,IF($F$11="Recharger 180HD",'180HD-Imperial'!J76,IF($F$11='Chamber Images'!$A$9,'360HD-Imperial'!M76,IF($F$11='Chamber Images'!A62,'C-4HD-Imperial'!H76,"")))))))) -> 
B87: =IF($F$11="Contactor 100HD",'100HD-Imperial'!A77,IF($F$11="Recharger 150XLHD",'150XLHD-Imperial'!A77,IF($F$11="Recharger 280HD",'280HD-Imperial'!A77,IF($F$11="Recharger 330XLHD",'330XLHD-Imperial'!A77,IF($F$11="Recharger 902HD",'902HD-Imperial'!A77,IF($F$11="Contactor Field Drain C-4HD",'C-4HD-Imperial'!A77,IF($F$11="Recharger 180HD",'180HD-Imperial'!A77,IF($F$11='Chamber Images'!$A$9,'360HD-Imperial'!A77)))))))) -> 7 | C87: 177.8 | D87: =IF($F$11="Contactor 100HD",'100HD-Imperial'!D77,IF($F$11="Recharger 150XLHD",'150XLHD-Imperial'!D77,IF($F$11="Recharger 280HD",'280HD-Imperial'!D77,IF($F$11="Recharger 330XLHD",'330XLHD-Imperial'!D77,IF($F$11="Recharger 902HD",'902HD-Imperial'!G77,IF($F$11="Contactor Field Drain C-4HD",'C-4HD-Imperial'!C77,IF($F$11="Recharger 180HD",'180HD-Imperial'!D77,IF($F$11='Chamber Images'!$A$9,'360HD-Imperial'!G77,0)))))))) -> 0 | E87: 0 | F87: =IF($F$11="Contactor 100HD",'100HD-Imperial'!E77,IF($F$11="Recharger 150XLHD",'150XLHD-Imperial'!E77,IF($F$11="Recharger 280HD",'280HD-Imperial'!E77,IF($F$11="Recharger 330XLHD",'330XLHD-Imperial'!E77,IF($F$11="Recharger 902HD",'902HD-Imperial'!H77,IF($F$11="Recharger 180HD",'180HD-Imperial'!C77,IF($F$11='Chamber Images'!$A$9,'360HD-Imperial'!H77,""))))))) -> 0 | G87: 0 | H87: =IF($F$11="Contactor 100HD",'100HD-Imperial'!F77,IF($F$11="Recharger 150XLHD",'150XLHD-Imperial'!F77,IF($F$11="Recharger 280HD",'280HD-Imperial'!F77,IF($F$11="Recharger 330XLHD",'330XLHD-Imperial'!F77,IF($F$11="Recharger 902HD",'902HD-Imperial'!I77,IF($F$11="Contactor Field Drain C-4HD",'C-4HD-Imperial'!D77,IF($F$11="Recharger 180HD",'180HD-Imperial'!F77,IF($F$11='Chamber Images'!$A$9,'360HD-Imperial'!I77,0)))))))) -> 92.25708889 | I87: 2.612425535 | J87: =IF($F$11="Contactor 100HD",'100HD-Imperial'!G77,IF($F$11="Recharger 150XLHD",'150XLHD-Imperial'!G77,IF($F$11="Recharger 280HD",'280HD-Imperial'!G77,IF($F$11="Recharger 330XLHD",'330XLHD-Imperial'!G77,IF($F$11="Recharger 902HD",'902HD-Imperial'!J77,IF($F$11="Contactor Field Drain C-4HD",'C-4HD-Imperial'!E77,IF($F$11="Recharger 180HD",'180HD-Imperial'!G77,IF($F$11='Chamber Images'!$A$9,'360HD-Imperial'!J77,0)))))))) -> 92.25708889 | K87: 2.612425535 | L87: =IF($F$11="Contactor 100HD",'100HD-Imperial'!H77,IF($F$11="Recharger 150XLHD",'150XLHD-Imperial'!H77,IF($F$11="Recharger 280HD",'280HD-Imperial'!H77,IF($F$11="Recharger 330XLHD",'330XLHD-Imperial'!H77,IF($F$11="Recharger 902HD",'902HD-Imperial'!K77,IF($F$11="Contactor Field Drain C-4HD",'C-4HD-Imperial'!F77,IF($F$11="Recharger 180HD",'180HD-Imperial'!H77,IF($F$11='Chamber Images'!$A$9,'360HD-Imperial'!K77,0)))))))) -> 645.7996222 | M87: 18.28697874 | N87: =IF($F$11="Contactor 100HD",'100HD-Imperial'!I77,IF($F$11="Recharger 150XLHD",'150XLHD-Imperial'!I77,IF($F$11="Recharger 280HD",'280HD-Imperial'!I77,IF($F$11="Recharger 330XLHD",'330XLHD-Imperial'!I77,IF($F$11="Recharger 902HD",'902HD-Imperial'!L77,IF($F$11="Contactor Field Drain C-4HD",'C-4HD-Imperial'!G77,IF($F$11="Recharger 180HD",'180HD-Imperial'!I77,IF($F$11='Chamber Images'!$A$9,'360HD-Imperial'!L77,0)))))))) -> 0.58 | O87: 0.1778 | P87: =IF($F$11="Contactor 100HD",'100HD-Imperial'!J77,IF($F$11="Recharger 150XLHD",'150XLHD-Imperial'!J77,IF($F$11="Recharger 280HD",'280HD-Imperial'!J77,IF($F$11="Recharger 330XLHD",'330XLHD-Imperial'!J77,IF($F$11="Recharger 902HD",'902HD-Imperial'!M77,IF($F$11="Recharger 180HD",'180HD-Imperial'!J77,IF($F$11='Chamber Images'!$A$9,'360HD-Imperial'!M77,IF($F$11='Chamber Images'!A63,'C-4HD-Imperial'!H77,"")))))))) -> 
B88: =IF($F$11="Contactor 100HD",'100HD-Imperial'!A78,IF($F$11="Recharger 150XLHD",'150XLHD-Imperial'!A78,IF($F$11="Recharger 280HD",'280HD-Imperial'!A78,IF($F$11="Recharger 330XLHD",'330XLHD-Imperial'!A78,IF($F$11="Recharger 902HD",'902HD-Imperial'!A78,IF($F$11="Contactor Field Drain C-4HD",'C-4HD-Imperial'!A78,IF($F$11="Recharger 180HD",'180HD-Imperial'!A78,IF($F$11='Chamber Images'!$A$9,'360HD-Imperial'!A78)))))))) -> 6 | C88: 152.4 | D88: =IF($F$11="Contactor 100HD",'100HD-Imperial'!D78,IF($F$11="Recharger 150XLHD",'150XLHD-Imperial'!D78,IF($F$11="Recharger 280HD",'280HD-Imperial'!D78,IF($F$11="Recharger 330XLHD",'330XLHD-Imperial'!D78,IF($F$11="Recharger 902HD",'902HD-Imperial'!G78,IF($F$11="Contactor Field Drain C-4HD",'C-4HD-Imperial'!C78,IF($F$11="Recharger 180HD",'180HD-Imperial'!D78,IF($F$11='Chamber Images'!$A$9,'360HD-Imperial'!G78,0)))))))) -> 0 | E88: 0 | F88: =IF($F$11="Contactor 100HD",'100HD-Imperial'!E78,IF($F$11="Recharger 150XLHD",'150XLHD-Imperial'!E78,IF($F$11="Recharger 280HD",'280HD-Imperial'!E78,IF($F$11="Recharger 330XLHD",'330XLHD-Imperial'!E78,IF($F$11="Recharger 902HD",'902HD-Imperial'!H78,IF($F$11="Recharger 180HD",'180HD-Imperial'!C78,IF($F$11='Chamber Images'!$A$9,'360HD-Imperial'!H78,""))))))) -> 0 | G88: 0 | H88: =IF($F$11="Contactor 100HD",'100HD-Imperial'!F78,IF($F$11="Recharger 150XLHD",'150XLHD-Imperial'!F78,IF($F$11="Recharger 280HD",'280HD-Imperial'!F78,IF($F$11="Recharger 330XLHD",'330XLHD-Imperial'!F78,IF($F$11="Recharger 902HD",'902HD-Imperial'!I78,IF($F$11="Contactor Field Drain C-4HD",'C-4HD-Imperial'!D78,IF($F$11="Recharger 180HD",'180HD-Imperial'!F78,IF($F$11='Chamber Images'!$A$9,'360HD-Imperial'!I78,0)))))))) -> 92.25708889 | I88: 2.612425535 | J88: =IF($F$11="Contactor 100HD",'100HD-Imperial'!G78,IF($F$11="Recharger 150XLHD",'150XLHD-Imperial'!G78,IF($F$11="Recharger 280HD",'280HD-Imperial'!G78,IF($F$11="Recharger 330XLHD",'330XLHD-Imperial'!G78,IF($F$11="Recharger 902HD",'902HD-Imperial'!J78,IF($F$11="Contactor Field Drain C-4HD",'C-4HD-Imperial'!E78,IF($F$11="Recharger 180HD",'180HD-Imperial'!G78,IF($F$11='Chamber Images'!$A$9,'360HD-Imperial'!J78,0)))))))) -> 92.25708889 | K88: 2.612425535 | L88: =IF($F$11="Contactor 100HD",'100HD-Imperial'!H78,IF($F$11="Recharger 150XLHD",'150XLHD-Imperial'!H78,IF($F$11="Recharger 280HD",'280HD-Imperial'!H78,IF($F$11="Recharger 330XLHD",'330XLHD-Imperial'!H78,IF($F$11="Recharger 902HD",'902HD-Imperial'!K78,IF($F$11="Contactor Field Drain C-4HD",'C-4HD-Imperial'!F78,IF($F$11="Recharger 180HD",'180HD-Imperial'!H78,IF($F$11='Chamber Images'!$A$9,'360HD-Imperial'!K78,0)))))))) -> 553.5425333 | M88: 15.67455321 | N88: =IF($F$11="Contactor 100HD",'100HD-Imperial'!I78,IF($F$11="Recharger 150XLHD",'150XLHD-Imperial'!I78,IF($F$11="Recharger 280HD",'280HD-Imperial'!I78,IF($F$11="Recharger 330XLHD",'330XLHD-Imperial'!I78,IF($F$11="Recharger 902HD",'902HD-Imperial'!L78,IF($F$11="Contactor Field Drain C-4HD",'C-4HD-Imperial'!G78,IF($F$11="Recharger 180HD",'180HD-Imperial'!I78,IF($F$11='Chamber Images'!$A$9,'360HD-Imperial'!L78,0)))))))) -> 0.5 | O88: 0.1524 | P88: =IF($F$11="Contactor 100HD",'100HD-Imperial'!J78,IF($F$11="Recharger 150XLHD",'150XLHD-Imperial'!J78,IF($F$11="Recharger 280HD",'280HD-Imperial'!J78,IF($F$11="Recharger 330XLHD",'330XLHD-Imperial'!J78,IF($F$11="Recharger 902HD",'902HD-Imperial'!M78,IF($F$11="Recharger 180HD",'180HD-Imperial'!J78,IF($F$11='Chamber Images'!$A$9,'360HD-Imperial'!M78,IF($F$11='Chamber Images'!A64,'C-4HD-Imperial'!H78,"")))))))) -> 
B89: =IF($F$11="Contactor 100HD",'100HD-Imperial'!A79,IF($F$11="Recharger 150XLHD",'150XLHD-Imperial'!A79,IF($F$11="Recharger 280HD",'280HD-Imperial'!A79,IF($F$11="Recharger 330XLHD",'330XLHD-Imperial'!A79,IF($F$11="Recharger 902HD",'902HD-Imperial'!A79,IF($F$11="Contactor Field Drain C-4HD",'C-4HD-Imperial'!A79,IF($F$11="Recharger 180HD",'180HD-Imperial'!A79,IF($F$11='Chamber Images'!$A$9,'360HD-Imperial'!A79)))))))) -> 5 | C89: 127 | D89: =IF($F$11="Contactor 100HD",'100HD-Imperial'!D79,IF($F$11="Recharger 150XLHD",'150XLHD-Imperial'!D79,IF($F$11="Recharger 280HD",'280HD-Imperial'!D79,IF($F$11="Recharger 330XLHD",'330XLHD-Imperial'!D79,IF($F$11="Recharger 902HD",'902HD-Imperial'!G79,IF($F$11="Contactor Field Drain C-4HD",'C-4HD-Imperial'!C79,IF($F$11="Recharger 180HD",'180HD-Imperial'!D79,IF($F$11='Chamber Images'!$A$9,'360HD-Imperial'!G79,0)))))))) -> 0 | E89: 0 | F89: =IF($F$11="Contactor 100HD",'100HD-Imperial'!E79,IF($F$11="Recharger 150XLHD",'150XLHD-Imperial'!E79,IF($F$11="Recharger 280HD",'280HD-Imperial'!E79,IF($F$11="Recharger 330XLHD",'330XLHD-Imperial'!E79,IF($F$11="Recharger 902HD",'902HD-Imperial'!H79,IF($F$11="Recharger 180HD",'180HD-Imperial'!C79,IF($F$11='Chamber Images'!$A$9,'360HD-Imperial'!H79,""))))))) -> 0 | G89: =IF($F$11="Contactor Field Drain C-4HD","",IF(B89=0,0,IF(B89<0,"",F89*0.0283168))) -> 0 | H89: =IF($F$11="Contactor 100HD",'100HD-Imperial'!F79,IF($F$11="Recharger 150XLHD",'150XLHD-Imperial'!F79,IF($F$11="Recharger 280HD",'280HD-Imperial'!F79,IF($F$11="Recharger 330XLHD",'330XLHD-Imperial'!F79,IF($F$11="Recharger 902HD",'902HD-Imperial'!I79,IF($F$11="Contactor Field Drain C-4HD",'C-4HD-Imperial'!D79,IF($F$11="Recharger 180HD",'180HD-Imperial'!F79,IF($F$11='Chamber Images'!$A$9,'360HD-Imperial'!I79,0)))))))) -> 92.25708889 | I89: 2.612425535 | J89: =IF($F$11="Contactor 100HD",'100HD-Imperial'!G79,IF($F$11="Recharger 150XLHD",'150XLHD-Imperial'!G79,IF($F$11="Recharger 280HD",'280HD-Imperial'!G79,IF($F$11="Recharger 330XLHD",'330XLHD-Imperial'!G79,IF($F$11="Recharger 902HD",'902HD-Imperial'!J79,IF($F$11="Contactor Field Drain C-4HD",'C-4HD-Imperial'!E79,IF($F$11="Recharger 180HD",'180HD-Imperial'!G79,IF($F$11='Chamber Images'!$A$9,'360HD-Imperial'!J79,0)))))))) -> 92.25708889 | K89: 2.612425535 | L89: =IF($F$11="Contactor 100HD",'100HD-Imperial'!H79,IF($F$11="Recharger 150XLHD",'150XLHD-Imperial'!H79,IF($F$11="Recharger 280HD",'280HD-Imperial'!H79,IF($F$11="Recharger 330XLHD",'330XLHD-Imperial'!H79,IF($F$11="Recharger 902HD",'902HD-Imperial'!K79,IF($F$11="Contactor Field Drain C-4HD",'C-4HD-Imperial'!F79,IF($F$11="Recharger 180HD",'180HD-Imperial'!H79,IF($F$11='Chamber Images'!$A$9,'360HD-Imperial'!K79,0)))))))) -> 461.2854444 | M89: 13.06212767 | N89: =IF($F$11="Contactor 100HD",'100HD-Imperial'!I79,IF($F$11="Recharger 150XLHD",'150XLHD-Imperial'!I79,IF($F$11="Recharger 280HD",'280HD-Imperial'!I79,IF($F$11="Recharger 330XLHD",'330XLHD-Imperial'!I79,IF($F$11="Recharger 902HD",'902HD-Imperial'!L79,IF($F$11="Contactor Field Drain C-4HD",'C-4HD-Imperial'!G79,IF($F$11="Recharger 180HD",'180HD-Imperial'!I79,IF($F$11='Chamber Images'!$A$9,'360HD-Imperial'!L79,0)))))))) -> 0.42 | O89: =IF(B89<0,"",F$19+C89/1000) -> 0.127 | P89: =IF($F$11="Contactor 100HD",'100HD-Imperial'!J79,IF($F$11="Recharger 150XLHD",'150XLHD-Imperial'!J79,IF($F$11="Recharger 280HD",'280HD-Imperial'!J79,IF($F$11="Recharger 330XLHD",'330XLHD-Imperial'!J79,IF($F$11="Recharger 902HD",'902HD-Imperial'!M79,IF($F$11="Recharger 180HD",'180HD-Imperial'!J79,IF($F$11='Chamber Images'!$A$9,'360HD-Imperial'!M79,IF($F$11='Chamber Images'!A65,'C-4HD-Imperial'!H79,"")))))))) -> 
B90: =IF($F$11="Contactor 100HD",'100HD-Imperial'!A80,IF($F$11="Recharger 150XLHD",'150XLHD-Imperial'!A80,IF($F$11="Recharger 280HD",'280HD-Imperial'!A80,IF($F$11="Recharger 330XLHD",'330XLHD-Imperial'!A80,IF($F$11="Recharger 902HD",'902HD-Imperial'!A80,IF($F$11="Contactor Field Drain C-4HD",'C-4HD-Imperial'!A80,IF($F$11="Recharger 180HD",'180HD-Imperial'!A80,IF($F$11='Chamber Images'!$A$9,'360HD-Imperial'!A80)))))))) -> 4 | C90: =B90*25.4 -> 101.6 | D90: =IF($F$11="Contactor 100HD",'100HD-Imperial'!D80,IF($F$11="Recharger 150XLHD",'150XLHD-Imperial'!D80,IF($F$11="Recharger 280HD",'280HD-Imperial'!D80,IF($F$11="Recharger 330XLHD",'330XLHD-Imperial'!D80,IF($F$11="Recharger 902HD",'902HD-Imperial'!G80,IF($F$11="Contactor Field Drain C-4HD",'C-4HD-Imperial'!C80,IF($F$11="Recharger 180HD",'180HD-Imperial'!D80,IF($F$11='Chamber Images'!$A$9,'360HD-Imperial'!G80,0)))))))) -> 0 | E90: =IF(B90=0,0,IF(B90<0,"",D90*0.0283168)) -> 0 | F90: =IF($F$11="Contactor 100HD",'100HD-Imperial'!E80,IF($F$11="Recharger 150XLHD",'150XLHD-Imperial'!E80,IF($F$11="Recharger 280HD",'280HD-Imperial'!E80,IF($F$11="Recharger 330XLHD",'330XLHD-Imperial'!E80,IF($F$11="Recharger 902HD",'902HD-Imperial'!H80,IF($F$11="Recharger 180HD",'180HD-Imperial'!C80,IF($F$11='Chamber Images'!$A$9,'360HD-Imperial'!H80,""))))))) -> 0 | G90: 0 | H90: =IF($F$11="Contactor 100HD",'100HD-Imperial'!F80,IF($F$11="Recharger 150XLHD",'150XLHD-Imperial'!F80,IF($F$11="Recharger 280HD",'280HD-Imperial'!F80,IF($F$11="Recharger 330XLHD",'330XLHD-Imperial'!F80,IF($F$11="Recharger 902HD",'902HD-Imperial'!I80,IF($F$11="Contactor Field Drain C-4HD",'C-4HD-Imperial'!D80,IF($F$11="Recharger 180HD",'180HD-Imperial'!F80,IF($F$11='Chamber Images'!$A$9,'360HD-Imperial'!I80,0)))))))) -> 92.25708889 | I90: =IF(B90=0,0,IF(B90<0,"",H90*0.0283168)) -> 2.612425535 | J90: =IF($F$11="Contactor 100HD",'100HD-Imperial'!G80,IF($F$11="Recharger 150XLHD",'150XLHD-Imperial'!G80,IF($F$11="Recharger 280HD",'280HD-Imperial'!G80,IF($F$11="Recharger 330XLHD",'330XLHD-Imperial'!G80,IF($F$11="Recharger 902HD",'902HD-Imperial'!J80,IF($F$11="Contactor Field Drain C-4HD",'C-4HD-Imperial'!E80,IF($F$11="Recharger 180HD",'180HD-Imperial'!G80,IF($F$11='Chamber Images'!$A$9,'360HD-Imperial'!J80,0)))))))) -> 92.25708889 | K90: =IF(B90=0,0,IF(B90<0,"",J90*0.0283168)) -> 2.612425535 | L90: =IF($F$11="Contactor 100HD",'100HD-Imperial'!H80,IF($F$11="Recharger 150XLHD",'150XLHD-Imperial'!H80,IF($F$11="Recharger 280HD",'280HD-Imperial'!H80,IF($F$11="Recharger 330XLHD",'330XLHD-Imperial'!H80,IF($F$11="Recharger 902HD",'902HD-Imperial'!K80,IF($F$11="Contactor Field Drain C-4HD",'C-4HD-Imperial'!F80,IF($F$11="Recharger 180HD",'180HD-Imperial'!H80,IF($F$11='Chamber Images'!$A$9,'360HD-Imperial'!K80,0)))))))) -> 369.0283556 | M90: =IF(B90=0,0,IF(B90<0,"",L90*0.0283168)) -> 10.44970214 | N90: =IF($F$11="Contactor 100HD",'100HD-Imperial'!I80,IF($F$11="Recharger 150XLHD",'150XLHD-Imperial'!I80,IF($F$11="Recharger 280HD",'280HD-Imperial'!I80,IF($F$11="Recharger 330XLHD",'330XLHD-Imperial'!I80,IF($F$11="Recharger 902HD",'902HD-Imperial'!L80,IF($F$11="Contactor Field Drain C-4HD",'C-4HD-Imperial'!G80,IF($F$11="Recharger 180HD",'180HD-Imperial'!I80,IF($F$11='Chamber Images'!$A$9,'360HD-Imperial'!L80,0)))))))) -> 0.33 | O90: 0.1016 | P90: =IF($F$11="Contactor 100HD",'100HD-Imperial'!J80,IF($F$11="Recharger 150XLHD",'150XLHD-Imperial'!J80,IF($F$11="Recharger 280HD",'280HD-Imperial'!J80,IF($F$11="Recharger 330XLHD",'330XLHD-Imperial'!J80,IF($F$11="Recharger 902HD",'902HD-Imperial'!M80,IF($F$11="Recharger 180HD",'180HD-Imperial'!J80,IF($F$11='Chamber Images'!$A$9,'360HD-Imperial'!M80,IF($F$11='Chamber Images'!A66,'C-4HD-Imperial'!H80,"")))))))) -> 
B91: =IF($F$11="Contactor 100HD",'100HD-Imperial'!A81,IF($F$11="Recharger 150XLHD",'150XLHD-Imperial'!A81,IF($F$11="Recharger 280HD",'280HD-Imperial'!A81,IF($F$11="Recharger 330XLHD",'330XLHD-Imperial'!A81,IF($F$11="Recharger 902HD",'902HD-Imperial'!A81,IF($F$11="Contactor Field Drain C-4HD",'C-4HD-Imperial'!A81,IF($F$11="Recharger 180HD",'180HD-Imperial'!A81,IF($F$11='Chamber Images'!$A$9,'360HD-Imperial'!A81)))))))) -> 3 | C91: 76.2 | D91: =IF($F$11="Contactor 100HD",'100HD-Imperial'!D81,IF($F$11="Recharger 150XLHD",'150XLHD-Imperial'!D81,IF($F$11="Recharger 280HD",'280HD-Imperial'!D81,IF($F$11="Recharger 330XLHD",'330XLHD-Imperial'!D81,IF($F$11="Recharger 902HD",'902HD-Imperial'!G81,IF($F$11="Contactor Field Drain C-4HD",'C-4HD-Imperial'!C81,IF($F$11="Recharger 180HD",'180HD-Imperial'!D81,IF($F$11='Chamber Images'!$A$9,'360HD-Imperial'!G81,0)))))))) -> 0 | E91: 0 | F91: =IF($F$11="Contactor 100HD",'100HD-Imperial'!E81,IF($F$11="Recharger 150XLHD",'150XLHD-Imperial'!E81,IF($F$11="Recharger 280HD",'280HD-Imperial'!E81,IF($F$11="Recharger 330XLHD",'330XLHD-Imperial'!E81,IF($F$11="Recharger 902HD",'902HD-Imperial'!H81,IF($F$11="Recharger 180HD",'180HD-Imperial'!C81,IF($F$11='Chamber Images'!$A$9,'360HD-Imperial'!H81,""))))))) -> 0 | G91: 0 | H91: =IF($F$11="Contactor 100HD",'100HD-Imperial'!F81,IF($F$11="Recharger 150XLHD",'150XLHD-Imperial'!F81,IF($F$11="Recharger 280HD",'280HD-Imperial'!F81,IF($F$11="Recharger 330XLHD",'330XLHD-Imperial'!F81,IF($F$11="Recharger 902HD",'902HD-Imperial'!I81,IF($F$11="Contactor Field Drain C-4HD",'C-4HD-Imperial'!D81,IF($F$11="Recharger 180HD",'180HD-Imperial'!F81,IF($F$11='Chamber Images'!$A$9,'360HD-Imperial'!I81,0)))))))) -> 92.25708889 | I91: 2.612425535 | J91: =IF($F$11="Contactor 100HD",'100HD-Imperial'!G81,IF($F$11="Recharger 150XLHD",'150XLHD-Imperial'!G81,IF($F$11="Recharger 280HD",'280HD-Imperial'!G81,IF($F$11="Recharger 330XLHD",'330XLHD-Imperial'!G81,IF($F$11="Recharger 902HD",'902HD-Imperial'!J81,IF($F$11="Contactor Field Drain C-4HD",'C-4HD-Imperial'!E81,IF($F$11="Recharger 180HD",'180HD-Imperial'!G81,IF($F$11='Chamber Images'!$A$9,'360HD-Imperial'!J81,0)))))))) -> 92.25708889 | K91: 2.612425535 | L91: =IF($F$11="Contactor 100HD",'100HD-Imperial'!H81,IF($F$11="Recharger 150XLHD",'150XLHD-Imperial'!H81,IF($F$11="Recharger 280HD",'280HD-Imperial'!H81,IF($F$11="Recharger 330XLHD",'330XLHD-Imperial'!H81,IF($F$11="Recharger 902HD",'902HD-Imperial'!K81,IF($F$11="Contactor Field Drain C-4HD",'C-4HD-Imperial'!F81,IF($F$11="Recharger 180HD",'180HD-Imperial'!H81,IF($F$11='Chamber Images'!$A$9,'360HD-Imperial'!K81,0)))))))) -> 276.7712667 | M91: 7.837276604 | N91: =IF($F$11="Contactor 100HD",'100HD-Imperial'!I81,IF($F$11="Recharger 150XLHD",'150XLHD-Imperial'!I81,IF($F$11="Recharger 280HD",'280HD-Imperial'!I81,IF($F$11="Recharger 330XLHD",'330XLHD-Imperial'!I81,IF($F$11="Recharger 902HD",'902HD-Imperial'!L81,IF($F$11="Contactor Field Drain C-4HD",'C-4HD-Imperial'!G81,IF($F$11="Recharger 180HD",'180HD-Imperial'!I81,IF($F$11='Chamber Images'!$A$9,'360HD-Imperial'!L81,0)))))))) -> 0.25 | O91: 0.0762 | P91: =IF($F$11="Contactor 100HD",'100HD-Imperial'!J81,IF($F$11="Recharger 150XLHD",'150XLHD-Imperial'!J81,IF($F$11="Recharger 280HD",'280HD-Imperial'!J81,IF($F$11="Recharger 330XLHD",'330XLHD-Imperial'!J81,IF($F$11="Recharger 902HD",'902HD-Imperial'!M81,IF($F$11="Recharger 180HD",'180HD-Imperial'!J81,IF($F$11='Chamber Images'!$A$9,'360HD-Imperial'!M81,IF($F$11='Chamber Images'!A67,'C-4HD-Imperial'!H81,"")))))))) -> 
B92: =IF($F$11="Contactor 100HD",'100HD-Imperial'!A82,IF($F$11="Recharger 150XLHD",'150XLHD-Imperial'!A82,IF($F$11="Recharger 280HD",'280HD-Imperial'!A82,IF($F$11="Recharger 330XLHD",'330XLHD-Imperial'!A82,IF($F$11="Recharger 902HD",'902HD-Imperial'!A82,IF($F$11="Contactor Field Drain C-4HD",'C-4HD-Imperial'!A82,IF($F$11="Recharger 180HD",'180HD-Imperial'!A82,IF($F$11='Chamber Images'!$A$9,'360HD-Imperial'!A82)))))))) -> 2 | C92: 50.8 | D92: =IF($F$11="Contactor 100HD",'100HD-Imperial'!D82,IF($F$11="Recharger 150XLHD",'150XLHD-Imperial'!D82,IF($F$11="Recharger 280HD",'280HD-Imperial'!D82,IF($F$11="Recharger 330XLHD",'330XLHD-Imperial'!D82,IF($F$11="Recharger 902HD",'902HD-Imperial'!G82,IF($F$11="Contactor Field Drain C-4HD",'C-4HD-Imperial'!C82,IF($F$11="Recharger 180HD",'180HD-Imperial'!D82,IF($F$11='Chamber Images'!$A$9,'360HD-Imperial'!G82,0)))))))) -> 0 | E92: 0 | F92: =IF($F$11="Contactor 100HD",'100HD-Imperial'!E82,IF($F$11="Recharger 150XLHD",'150XLHD-Imperial'!E82,IF($F$11="Recharger 280HD",'280HD-Imperial'!E82,IF($F$11="Recharger 330XLHD",'330XLHD-Imperial'!E82,IF($F$11="Recharger 902HD",'902HD-Imperial'!H82,IF($F$11="Recharger 180HD",'180HD-Imperial'!C82,IF($F$11='Chamber Images'!$A$9,'360HD-Imperial'!H82,""))))))) -> 0 | G92: 0 | H92: =IF($F$11="Contactor 100HD",'100HD-Imperial'!F82,IF($F$11="Recharger 150XLHD",'150XLHD-Imperial'!F82,IF($F$11="Recharger 280HD",'280HD-Imperial'!F82,IF($F$11="Recharger 330XLHD",'330XLHD-Imperial'!F82,IF($F$11="Recharger 902HD",'902HD-Imperial'!I82,IF($F$11="Contactor Field Drain C-4HD",'C-4HD-Imperial'!D82,IF($F$11="Recharger 180HD",'180HD-Imperial'!F82,IF($F$11='Chamber Images'!$A$9,'360HD-Imperial'!I82,0)))))))) -> 92.25708889 | I92: 2.612425535 | J92: =IF($F$11="Contactor 100HD",'100HD-Imperial'!G82,IF($F$11="Recharger 150XLHD",'150XLHD-Imperial'!G82,IF($F$11="Recharger 280HD",'280HD-Imperial'!G82,IF($F$11="Recharger 330XLHD",'330XLHD-Imperial'!G82,IF($F$11="Recharger 902HD",'902HD-Imperial'!J82,IF($F$11="Contactor Field Drain C-4HD",'C-4HD-Imperial'!E82,IF($F$11="Recharger 180HD",'180HD-Imperial'!G82,IF($F$11='Chamber Images'!$A$9,'360HD-Imperial'!J82,0)))))))) -> 92.25708889 | K92: 2.612425535 | L92: =IF($F$11="Contactor 100HD",'100HD-Imperial'!H82,IF($F$11="Recharger 150XLHD",'150XLHD-Imperial'!H82,IF($F$11="Recharger 280HD",'280HD-Imperial'!H82,IF($F$11="Recharger 330XLHD",'330XLHD-Imperial'!H82,IF($F$11="Recharger 902HD",'902HD-Imperial'!K82,IF($F$11="Contactor Field Drain C-4HD",'C-4HD-Imperial'!F82,IF($F$11="Recharger 180HD",'180HD-Imperial'!H82,IF($F$11='Chamber Images'!$A$9,'360HD-Imperial'!K82,0)))))))) -> 184.5141778 | M92: 5.224851069 | N92: =IF($F$11="Contactor 100HD",'100HD-Imperial'!I82,IF($F$11="Recharger 150XLHD",'150XLHD-Imperial'!I82,IF($F$11="Recharger 280HD",'280HD-Imperial'!I82,IF($F$11="Recharger 330XLHD",'330XLHD-Imperial'!I82,IF($F$11="Recharger 902HD",'902HD-Imperial'!L82,IF($F$11="Contactor Field Drain C-4HD",'C-4HD-Imperial'!G82,IF($F$11="Recharger 180HD",'180HD-Imperial'!I82,IF($F$11='Chamber Images'!$A$9,'360HD-Imperial'!L82,0)))))))) -> 0.17 | O92: 0.0508 | P92: =IF($F$11="Contactor 100HD",'100HD-Imperial'!J82,IF($F$11="Recharger 150XLHD",'150XLHD-Imperial'!J82,IF($F$11="Recharger 280HD",'280HD-Imperial'!J82,IF($F$11="Recharger 330XLHD",'330XLHD-Imperial'!J82,IF($F$11="Recharger 902HD",'902HD-Imperial'!M82,IF($F$11="Recharger 180HD",'180HD-Imperial'!J82,IF($F$11='Chamber Images'!$A$9,'360HD-Imperial'!M82,IF($F$11='Chamber Images'!A68,'C-4HD-Imperial'!H82,"")))))))) -> 
B93: =IF($F$11="Contactor 100HD",'100HD-Imperial'!A83,IF($F$11="Recharger 150XLHD",'150XLHD-Imperial'!A83,IF($F$11="Recharger 280HD",'280HD-Imperial'!A83,IF($F$11="Recharger 330XLHD",'330XLHD-Imperial'!A83,IF($F$11="Recharger 902HD",'902HD-Imperial'!A83,IF($F$11="Contactor Field Drain C-4HD",'C-4HD-Imperial'!A83,IF($F$11="Recharger 180HD",'180HD-Imperial'!A83,IF($F$11='Chamber Images'!$A$9,'360HD-Imperial'!A83)))))))) -> 1 | C93: 25.4 | D93: =IF($F$11="Contactor 100HD",'100HD-Imperial'!D83,IF($F$11="Recharger 150XLHD",'150XLHD-Imperial'!D83,IF($F$11="Recharger 280HD",'280HD-Imperial'!D83,IF($F$11="Recharger 330XLHD",'330XLHD-Imperial'!D83,IF($F$11="Recharger 902HD",'902HD-Imperial'!G83,IF($F$11="Contactor Field Drain C-4HD",'C-4HD-Imperial'!C83,IF($F$11="Recharger 180HD",'180HD-Imperial'!D83,IF($F$11='Chamber Images'!$A$9,'360HD-Imperial'!G83,0)))))))) -> 0 | E93: 0 | F93: =IF($F$11="Contactor 100HD",'100HD-Imperial'!E83,IF($F$11="Recharger 150XLHD",'150XLHD-Imperial'!E83,IF($F$11="Recharger 280HD",'280HD-Imperial'!E83,IF($F$11="Recharger 330XLHD",'330XLHD-Imperial'!E83,IF($F$11="Recharger 902HD",'902HD-Imperial'!H83,IF($F$11="Recharger 180HD",'180HD-Imperial'!C83,IF($F$11='Chamber Images'!$A$9,'360HD-Imperial'!H83,""))))))) -> 0 | G93: 0 | H93: =IF($F$11="Contactor 100HD",'100HD-Imperial'!F83,IF($F$11="Recharger 150XLHD",'150XLHD-Imperial'!F83,IF($F$11="Recharger 280HD",'280HD-Imperial'!F83,IF($F$11="Recharger 330XLHD",'330XLHD-Imperial'!F83,IF($F$11="Recharger 902HD",'902HD-Imperial'!I83,IF($F$11="Contactor Field Drain C-4HD",'C-4HD-Imperial'!D83,IF($F$11="Recharger 180HD",'180HD-Imperial'!F83,IF($F$11='Chamber Images'!$A$9,'360HD-Imperial'!I83,0)))))))) -> 92.25708889 | I93: 2.612425535 | J93: =IF($F$11="Contactor 100HD",'100HD-Imperial'!G83,IF($F$11="Recharger 150XLHD",'150XLHD-Imperial'!G83,IF($F$11="Recharger 280HD",'280HD-Imperial'!G83,IF($F$11="Recharger 330XLHD",'330XLHD-Imperial'!G83,IF($F$11="Recharger 902HD",'902HD-Imperial'!J83,IF($F$11="Contactor Field Drain C-4HD",'C-4HD-Imperial'!E83,IF($F$11="Recharger 180HD",'180HD-Imperial'!G83,IF($F$11='Chamber Images'!$A$9,'360HD-Imperial'!J83,0)))))))) -> 92.25708889 | K93: 2.612425535 | L93: =IF($F$11="Contactor 100HD",'100HD-Imperial'!H83,IF($F$11="Recharger 150XLHD",'150XLHD-Imperial'!H83,IF($F$11="Recharger 280HD",'280HD-Imperial'!H83,IF($F$11="Recharger 330XLHD",'330XLHD-Imperial'!H83,IF($F$11="Recharger 902HD",'902HD-Imperial'!K83,IF($F$11="Contactor Field Drain C-4HD",'C-4HD-Imperial'!F83,IF($F$11="Recharger 180HD",'180HD-Imperial'!H83,IF($F$11='Chamber Images'!$A$9,'360HD-Imperial'!K83,0)))))))) -> 92.25708889 | M93: 2.612425535 | N93: =IF($F$11="Contactor 100HD",'100HD-Imperial'!I83,IF($F$11="Recharger 150XLHD",'150XLHD-Imperial'!I83,IF($F$11="Recharger 280HD",'280HD-Imperial'!I83,IF($F$11="Recharger 330XLHD",'330XLHD-Imperial'!I83,IF($F$11="Recharger 902HD",'902HD-Imperial'!L83,IF($F$11="Contactor Field Drain C-4HD",'C-4HD-Imperial'!G83,IF($F$11="Recharger 180HD",'180HD-Imperial'!I83,IF($F$11='Chamber Images'!$A$9,'360HD-Imperial'!L83,0)))))))) -> 0.08 | O93: 0.0254 | P93: =IF($F$11="Contactor 100HD",'100HD-Imperial'!J83,IF($F$11="Recharger 150XLHD",'150XLHD-Imperial'!J83,IF($F$11="Recharger 280HD",'280HD-Imperial'!J83,IF($F$11="Recharger 330XLHD",'330XLHD-Imperial'!J83,IF($F$11="Recharger 902HD",'902HD-Imperial'!M83,IF($F$11="Recharger 180HD",'180HD-Imperial'!J83,IF($F$11='Chamber Images'!$A$9,'360HD-Imperial'!M83,IF($F$11='Chamber Images'!A69,'C-4HD-Imperial'!H83,"")))))))) -> 
B94: =IF($F$11="Contactor 100HD",'100HD-Imperial'!A84,IF($F$11="Recharger 150XLHD",'150XLHD-Imperial'!A84,IF($F$11="Recharger 280HD",'280HD-Imperial'!A84,IF($F$11="Recharger 330XLHD",'330XLHD-Imperial'!A84,IF($F$11="Recharger 902HD",'902HD-Imperial'!A84,IF($F$11="Contactor Field Drain C-4HD",'C-4HD-Imperial'!A84,IF($F$11="Recharger 180HD",'180HD-Imperial'!A84,IF($F$11='Chamber Images'!$A$9,'360HD-Imperial'!A84)))))))) -> 0 | C94: 0 | D94: =IF($F$11="Contactor 100HD",'100HD-Imperial'!D84,IF($F$11="Recharger 150XLHD",'150XLHD-Imperial'!D84,IF($F$11="Recharger 280HD",'280HD-Imperial'!D84,IF($F$11="Recharger 330XLHD",'330XLHD-Imperial'!D84,IF($F$11="Recharger 902HD",'902HD-Imperial'!G84,IF($F$11="Contactor Field Drain C-4HD",'C-4HD-Imperial'!C84,IF($F$11="Recharger 180HD",'180HD-Imperial'!D84,IF($F$11='Chamber Images'!$A$9,'360HD-Imperial'!G84,0)))))))) -> 0 | E94: 0 | F94: =IF($F$11="Contactor 100HD",'100HD-Imperial'!E84,IF($F$11="Recharger 150XLHD",'150XLHD-Imperial'!E84,IF($F$11="Recharger 280HD",'280HD-Imperial'!E84,IF($F$11="Recharger 330XLHD",'330XLHD-Imperial'!E84,IF($F$11="Recharger 902HD",'902HD-Imperial'!H84,IF($F$11="Recharger 180HD",'180HD-Imperial'!C84,IF($F$11='Chamber Images'!$A$9,'360HD-Imperial'!H84,""))))))) -> 0 | G94: 0 | H94: =IF($F$11="Contactor 100HD",'100HD-Imperial'!F84,IF($F$11="Recharger 150XLHD",'150XLHD-Imperial'!F84,IF($F$11="Recharger 280HD",'280HD-Imperial'!F84,IF($F$11="Recharger 330XLHD",'330XLHD-Imperial'!F84,IF($F$11="Recharger 902HD",'902HD-Imperial'!I84,IF($F$11="Contactor Field Drain C-4HD",'C-4HD-Imperial'!D84,IF($F$11="Recharger 180HD",'180HD-Imperial'!F84,IF($F$11='Chamber Images'!$A$9,'360HD-Imperial'!I84,0)))))))) -> 0 | I94: 0 | J94: =IF($F$11="Contactor 100HD",'100HD-Imperial'!G84,IF($F$11="Recharger 150XLHD",'150XLHD-Imperial'!G84,IF($F$11="Recharger 280HD",'280HD-Imperial'!G84,IF($F$11="Recharger 330XLHD",'330XLHD-Imperial'!G84,IF($F$11="Recharger 902HD",'902HD-Imperial'!J84,IF($F$11="Contactor Field Drain C-4HD",'C-4HD-Imperial'!E84,IF($F$11="Recharger 180HD",'180HD-Imperial'!G84,IF($F$11='Chamber Images'!$A$9,'360HD-Imperial'!J84,0)))))))) -> 0 | K94: 0 | L94: =IF($F$11="Contactor 100HD",'100HD-Imperial'!H84,IF($F$11="Recharger 150XLHD",'150XLHD-Imperial'!H84,IF($F$11="Recharger 280HD",'280HD-Imperial'!H84,IF($F$11="Recharger 330XLHD",'330XLHD-Imperial'!H84,IF($F$11="Recharger 902HD",'902HD-Imperial'!K84,IF($F$11="Contactor Field Drain C-4HD",'C-4HD-Imperial'!F84,IF($F$11="Recharger 180HD",'180HD-Imperial'!H84,IF($F$11='Chamber Images'!$A$9,'360HD-Imperial'!K84,0)))))))) -> 0 | M94: 0 | N94: =IF($F$11="Contactor 100HD",'100HD-Imperial'!I84,IF($F$11="Recharger 150XLHD",'150XLHD-Imperial'!I84,IF($F$11="Recharger 280HD",'280HD-Imperial'!I84,IF($F$11="Recharger 330XLHD",'330XLHD-Imperial'!I84,IF($F$11="Recharger 902HD",'902HD-Imperial'!L84,IF($F$11="Contactor Field Drain C-4HD",'C-4HD-Imperial'!G84,IF($F$11="Recharger 180HD",'180HD-Imperial'!I84,IF($F$11='Chamber Images'!$A$9,'360HD-Imperial'!L84,0)))))))) -> 0 | O94: 0 | P94: =IF($F$11="Contactor 100HD",'100HD-Imperial'!J84,IF($F$11="Recharger 150XLHD",'150XLHD-Imperial'!J84,IF($F$11="Recharger 280HD",'280HD-Imperial'!J84,IF($F$11="Recharger 330XLHD",'330XLHD-Imperial'!J84,IF($F$11="Recharger 902HD",'902HD-Imperial'!M84,IF($F$11="Recharger 180HD",'180HD-Imperial'!J84,IF($F$11='Chamber Images'!$A$9,'360HD-Imperial'!M84,IF($F$11='Chamber Images'!A70,'C-4HD-Imperial'!H84,"")))))))) -> Bottom of Stone Elevation
B95: =IF($F$11="Contactor 100HD",'100HD-Imperial'!A85,IF($F$11="Recharger 150XLHD",'150XLHD-Imperial'!A85,IF($F$11="Recharger 280HD",'280HD-Imperial'!A85,IF($F$11="Recharger 330XLHD",'330XLHD-Imperial'!A85,IF($F$11="Recharger 902HD",'902HD-Imperial'!A85,IF($F$11="Contactor Field Drain C-4HD",'C-4HD-Imperial'!A85,IF($F$11="Recharger 180HD",'180HD-Imperial'!A85,IF($F$11='Chamber Images'!$A$9,'360HD-Imperial'!A85)))))))) -> -1 | C95: -25.4 | D95: =IF($F$11="Contactor 100HD",'100HD-Imperial'!D85,IF($F$11="Recharger 150XLHD",'150XLHD-Imperial'!D85,IF($F$11="Recharger 280HD",'280HD-Imperial'!D85,IF($F$11="Recharger 330XLHD",'330XLHD-Imperial'!D85,IF($F$11="Recharger 902HD",'902HD-Imperial'!G85,IF($F$11="Contactor Field Drain C-4HD",'C-4HD-Imperial'!C85,IF($F$11="Recharger 180HD",'180HD-Imperial'!D85,IF($F$11='Chamber Images'!$A$9,'360HD-Imperial'!G85,0)))))))) ->  | F95: =IF($F$11="Contactor 100HD",'100HD-Imperial'!E85,IF($F$11="Recharger 150XLHD",'150XLHD-Imperial'!E85,IF($F$11="Recharger 280HD",'280HD-Imperial'!E85,IF($F$11="Recharger 330XLHD",'330XLHD-Imperial'!E85,IF($F$11="Recharger 902HD",'902HD-Imperial'!H85,IF($F$11="Recharger 180HD",'180HD-Imperial'!C85,IF($F$11='Chamber Images'!$A$9,'360HD-Imperial'!H85,""))))))) ->  | H95: =IF($F$11="Contactor 100HD",'100HD-Imperial'!F85,IF($F$11="Recharger 150XLHD",'150XLHD-Imperial'!F85,IF($F$11="Recharger 280HD",'280HD-Imperial'!F85,IF($F$11="Recharger 330XLHD",'330XLHD-Imperial'!F85,IF($F$11="Recharger 902HD",'902HD-Imperial'!I85,IF($F$11="Contactor Field Drain C-4HD",'C-4HD-Imperial'!D85,IF($F$11="Recharger 180HD",'180HD-Imperial'!F85,IF($F$11='Chamber Images'!$A$9,'360HD-Imperial'!I85,0)))))))) ->  | J95: =IF($F$11="Contactor 100HD",'100HD-Imperial'!G85,IF($F$11="Recharger 150XLHD",'150XLHD-Imperial'!G85,IF($F$11="Recharger 280HD",'280HD-Imperial'!G85,IF($F$11="Recharger 330XLHD",'330XLHD-Imperial'!G85,IF($F$11="Recharger 902HD",'902HD-Imperial'!J85,IF($F$11="Contactor Field Drain C-4HD",'C-4HD-Imperial'!E85,IF($F$11="Recharger 180HD",'180HD-Imperial'!G85,IF($F$11='Chamber Images'!$A$9,'360HD-Imperial'!J85,0)))))))) ->  | L95: =IF($F$11="Contactor 100HD",'100HD-Imperial'!H85,IF($F$11="Recharger 150XLHD",'150XLHD-Imperial'!H85,IF($F$11="Recharger 280HD",'280HD-Imperial'!H85,IF($F$11="Recharger 330XLHD",'330XLHD-Imperial'!H85,IF($F$11="Recharger 902HD",'902HD-Imperial'!K85,IF($F$11="Contactor Field Drain C-4HD",'C-4HD-Imperial'!F85,IF($F$11="Recharger 180HD",'180HD-Imperial'!H85,IF($F$11='Chamber Images'!$A$9,'360HD-Imperial'!K85,0)))))))) ->  | N95: =IF($F$11="Contactor 100HD",'100HD-Imperial'!I85,IF($F$11="Recharger 150XLHD",'150XLHD-Imperial'!I85,IF($F$11="Recharger 280HD",'280HD-Imperial'!I85,IF($F$11="Recharger 330XLHD",'330XLHD-Imperial'!I85,IF($F$11="Recharger 902HD",'902HD-Imperial'!L85,IF($F$11="Contactor Field Drain C-4HD",'C-4HD-Imperial'!G85,IF($F$11="Recharger 180HD",'180HD-Imperial'!I85,IF($F$11='Chamber Images'!$A$9,'360HD-Imperial'!L85,0)))))))) ->  | P95: =IF($F$11="Contactor 100HD",'100HD-Imperial'!J85,IF($F$11="Recharger 150XLHD",'150XLHD-Imperial'!J85,IF($F$11="Recharger 280HD",'280HD-Imperial'!J85,IF($F$11="Recharger 330XLHD",'330XLHD-Imperial'!J85,IF($F$11="Recharger 902HD",'902HD-Imperial'!M85,IF($F$11="Recharger 180HD",'180HD-Imperial'!J85,IF($F$11='Chamber Images'!$A$9,'360HD-Imperial'!M85,IF($F$11='Chamber Images'!A71,'C-4HD-Imperial'!H85,"")))))))) -> 
B96: =IF($F$11="Contactor 100HD",'100HD-Imperial'!A86,IF($F$11="Recharger 150XLHD",'150XLHD-Imperial'!A86,IF($F$11="Recharger 280HD",'280HD-Imperial'!A86,IF($F$11="Recharger 330XLHD",'330XLHD-Imperial'!A86,IF($F$11="Recharger 902HD",'902HD-Imperial'!A86,IF($F$11="Contactor Field Drain C-4HD",'C-4HD-Imperial'!A86,IF($F$11="Recharger 180HD",'180HD-Imperial'!A86,IF($F$11='Chamber Images'!$A$9,'360HD-Imperial'!A86)))))))) -> -2 | C96: -50.8 | D96: =IF($F$11="Contactor 100HD",'100HD-Imperial'!D86,IF($F$11="Recharger 150XLHD",'150XLHD-Imperial'!D86,IF($F$11="Recharger 280HD",'280HD-Imperial'!D86,IF($F$11="Recharger 330XLHD",'330XLHD-Imperial'!D86,IF($F$11="Recharger 902HD",'902HD-Imperial'!G86,IF($F$11="Contactor Field Drain C-4HD",'C-4HD-Imperial'!C86,IF($F$11="Recharger 180HD",'180HD-Imperial'!D86,IF($F$11='Chamber Images'!$A$9,'360HD-Imperial'!G86,0)))))))) ->  | F96: =IF($F$11="Contactor 100HD",'100HD-Imperial'!E86,IF($F$11="Recharger 150XLHD",'150XLHD-Imperial'!E86,IF($F$11="Recharger 280HD",'280HD-Imperial'!E86,IF($F$11="Recharger 330XLHD",'330XLHD-Imperial'!E86,IF($F$11="Recharger 902HD",'902HD-Imperial'!H86,IF($F$11="Recharger 180HD",'180HD-Imperial'!C86,IF($F$11='Chamber Images'!$A$9,'360HD-Imperial'!H86,""))))))) ->  | H96: =IF($F$11="Contactor 100HD",'100HD-Imperial'!F86,IF($F$11="Recharger 150XLHD",'150XLHD-Imperial'!F86,IF($F$11="Recharger 280HD",'280HD-Imperial'!F86,IF($F$11="Recharger 330XLHD",'330XLHD-Imperial'!F86,IF($F$11="Recharger 902HD",'902HD-Imperial'!I86,IF($F$11="Contactor Field Drain C-4HD",'C-4HD-Imperial'!D86,IF($F$11="Recharger 180HD",'180HD-Imperial'!F86,IF($F$11='Chamber Images'!$A$9,'360HD-Imperial'!I86,0)))))))) ->  | J96: =IF($F$11="Contactor 100HD",'100HD-Imperial'!G86,IF($F$11="Recharger 150XLHD",'150XLHD-Imperial'!G86,IF($F$11="Recharger 280HD",'280HD-Imperial'!G86,IF($F$11="Recharger 330XLHD",'330XLHD-Imperial'!G86,IF($F$11="Recharger 902HD",'902HD-Imperial'!J86,IF($F$11="Contactor Field Drain C-4HD",'C-4HD-Imperial'!E86,IF($F$11="Recharger 180HD",'180HD-Imperial'!G86,IF($F$11='Chamber Images'!$A$9,'360HD-Imperial'!J86,0)))))))) ->  | L96: =IF($F$11="Contactor 100HD",'100HD-Imperial'!H86,IF($F$11="Recharger 150XLHD",'150XLHD-Imperial'!H86,IF($F$11="Recharger 280HD",'280HD-Imperial'!H86,IF($F$11="Recharger 330XLHD",'330XLHD-Imperial'!H86,IF($F$11="Recharger 902HD",'902HD-Imperial'!K86,IF($F$11="Contactor Field Drain C-4HD",'C-4HD-Imperial'!F86,IF($F$11="Recharger 180HD",'180HD-Imperial'!H86,IF($F$11='Chamber Images'!$A$9,'360HD-Imperial'!K86,0)))))))) ->  | N96: =IF($F$11="Contactor 100HD",'100HD-Imperial'!I86,IF($F$11="Recharger 150XLHD",'150XLHD-Imperial'!I86,IF($F$11="Recharger 280HD",'280HD-Imperial'!I86,IF($F$11="Recharger 330XLHD",'330XLHD-Imperial'!I86,IF($F$11="Recharger 902HD",'902HD-Imperial'!L86,IF($F$11="Contactor Field Drain C-4HD",'C-4HD-Imperial'!G86,IF($F$11="Recharger 180HD",'180HD-Imperial'!I86,IF($F$11='Chamber Images'!$A$9,'360HD-Imperial'!L86,0)))))))) ->  | P96: =IF($F$11="Contactor 100HD",'100HD-Imperial'!J86,IF($F$11="Recharger 150XLHD",'150XLHD-Imperial'!J86,IF($F$11="Recharger 280HD",'280HD-Imperial'!J86,IF($F$11="Recharger 330XLHD",'330XLHD-Imperial'!J86,IF($F$11="Recharger 902HD",'902HD-Imperial'!M86,IF($F$11="Recharger 180HD",'180HD-Imperial'!J86,IF($F$11='Chamber Images'!$A$9,'360HD-Imperial'!M86,IF($F$11='Chamber Images'!A72,'C-4HD-Imperial'!H86,"")))))))) -> 
B97: =IF($F$11="Contactor 100HD",'100HD-Imperial'!A87,IF($F$11="Recharger 150XLHD",'150XLHD-Imperial'!A87,IF($F$11="Recharger 280HD",'280HD-Imperial'!A87,IF($F$11="Recharger 330XLHD",'330XLHD-Imperial'!A87,IF($F$11="Recharger 902HD",'902HD-Imperial'!A87,IF($F$11="Contactor Field Drain C-4HD",'C-4HD-Imperial'!A87,IF($F$11="Recharger 180HD",'180HD-Imperial'!A87,IF($F$11='Chamber Images'!$A$9,'360HD-Imperial'!A87)))))))) -> -3 | C97: -76.2 | D97: =IF($F$11="Contactor 100HD",'100HD-Imperial'!D87,IF($F$11="Recharger 150XLHD",'150XLHD-Imperial'!D87,IF($F$11="Recharger 280HD",'280HD-Imperial'!D87,IF($F$11="Recharger 330XLHD",'330XLHD-Imperial'!D87,IF($F$11="Recharger 902HD",'902HD-Imperial'!G87,IF($F$11="Contactor Field Drain C-4HD",'C-4HD-Imperial'!C87,IF($F$11="Recharger 180HD",'180HD-Imperial'!D87,IF($F$11='Chamber Images'!$A$9,'360HD-Imperial'!G87,0)))))))) ->  | F97: =IF($F$11="Contactor 100HD",'100HD-Imperial'!E87,IF($F$11="Recharger 150XLHD",'150XLHD-Imperial'!E87,IF($F$11="Recharger 280HD",'280HD-Imperial'!E87,IF($F$11="Recharger 330XLHD",'330XLHD-Imperial'!E87,IF($F$11="Recharger 902HD",'902HD-Imperial'!H87,IF($F$11="Recharger 180HD",'180HD-Imperial'!C87,IF($F$11='Chamber Images'!$A$9,'360HD-Imperial'!H87,""))))))) ->  | H97: =IF($F$11="Contactor 100HD",'100HD-Imperial'!F87,IF($F$11="Recharger 150XLHD",'150XLHD-Imperial'!F87,IF($F$11="Recharger 280HD",'280HD-Imperial'!F87,IF($F$11="Recharger 330XLHD",'330XLHD-Imperial'!F87,IF($F$11="Recharger 902HD",'902HD-Imperial'!I87,IF($F$11="Contactor Field Drain C-4HD",'C-4HD-Imperial'!D87,IF($F$11="Recharger 180HD",'180HD-Imperial'!F87,IF($F$11='Chamber Images'!$A$9,'360HD-Imperial'!I87,0)))))))) ->  | J97: =IF($F$11="Contactor 100HD",'100HD-Imperial'!G87,IF($F$11="Recharger 150XLHD",'150XLHD-Imperial'!G87,IF($F$11="Recharger 280HD",'280HD-Imperial'!G87,IF($F$11="Recharger 330XLHD",'330XLHD-Imperial'!G87,IF($F$11="Recharger 902HD",'902HD-Imperial'!J87,IF($F$11="Contactor Field Drain C-4HD",'C-4HD-Imperial'!E87,IF($F$11="Recharger 180HD",'180HD-Imperial'!G87,IF($F$11='Chamber Images'!$A$9,'360HD-Imperial'!J87,0)))))))) ->  | L97: =IF($F$11="Contactor 100HD",'100HD-Imperial'!H87,IF($F$11="Recharger 150XLHD",'150XLHD-Imperial'!H87,IF($F$11="Recharger 280HD",'280HD-Imperial'!H87,IF($F$11="Recharger 330XLHD",'330XLHD-Imperial'!H87,IF($F$11="Recharger 902HD",'902HD-Imperial'!K87,IF($F$11="Contactor Field Drain C-4HD",'C-4HD-Imperial'!F87,IF($F$11="Recharger 180HD",'180HD-Imperial'!H87,IF($F$11='Chamber Images'!$A$9,'360HD-Imperial'!K87,0)))))))) ->  | N97: =IF($F$11="Contactor 100HD",'100HD-Imperial'!I87,IF($F$11="Recharger 150XLHD",'150XLHD-Imperial'!I87,IF($F$11="Recharger 280HD",'280HD-Imperial'!I87,IF($F$11="Recharger 330XLHD",'330XLHD-Imperial'!I87,IF($F$11="Recharger 902HD",'902HD-Imperial'!L87,IF($F$11="Contactor Field Drain C-4HD",'C-4HD-Imperial'!G87,IF($F$11="Recharger 180HD",'180HD-Imperial'!I87,IF($F$11='Chamber Images'!$A$9,'360HD-Imperial'!L87,0)))))))) ->  | P97: =IF($F$11="Contactor 100HD",'100HD-Imperial'!J87,IF($F$11="Recharger 150XLHD",'150XLHD-Imperial'!J87,IF($F$11="Recharger 280HD",'280HD-Imperial'!J87,IF($F$11="Recharger 330XLHD",'330XLHD-Imperial'!J87,IF($F$11="Recharger 902HD",'902HD-Imperial'!M87,IF($F$11="Recharger 180HD",'180HD-Imperial'!J87,IF($F$11='Chamber Images'!$A$9,'360HD-Imperial'!M87,IF($F$11='Chamber Images'!A73,'C-4HD-Imperial'!H87,"")))))))) -> 
B98: =IF($F$11="Contactor 100HD",'100HD-Imperial'!A88,IF($F$11="Recharger 150XLHD",'150XLHD-Imperial'!A88,IF($F$11="Recharger 280HD",'280HD-Imperial'!A88,IF($F$11="Recharger 330XLHD",'330XLHD-Imperial'!A88,IF($F$11="Recharger 902HD",'902HD-Imperial'!A88,IF($F$11="Contactor Field Drain C-4HD",'C-4HD-Imperial'!A88,IF($F$11="Recharger 180HD",'180HD-Imperial'!A88,IF($F$11='Chamber Images'!$A$9,'360HD-Imperial'!A88)))))))) -> -4 | C98: -101.6 | D98: =IF($F$11="Contactor 100HD",'100HD-Imperial'!D88,IF($F$11="Recharger 150XLHD",'150XLHD-Imperial'!D88,IF($F$11="Recharger 280HD",'280HD-Imperial'!D88,IF($F$11="Recharger 330XLHD",'330XLHD-Imperial'!D88,IF($F$11="Recharger 902HD",'902HD-Imperial'!G88,IF($F$11="Contactor Field Drain C-4HD",'C-4HD-Imperial'!C88,IF($F$11="Recharger 180HD",'180HD-Imperial'!D88,IF($F$11='Chamber Images'!$A$9,'360HD-Imperial'!G88,0)))))))) ->  | F98: =IF($F$11="Contactor 100HD",'100HD-Imperial'!E88,IF($F$11="Recharger 150XLHD",'150XLHD-Imperial'!E88,IF($F$11="Recharger 280HD",'280HD-Imperial'!E88,IF($F$11="Recharger 330XLHD",'330XLHD-Imperial'!E88,IF($F$11="Recharger 902HD",'902HD-Imperial'!H88,IF($F$11="Recharger 180HD",'180HD-Imperial'!C88,IF($F$11='Chamber Images'!$A$9,'360HD-Imperial'!H88,""))))))) ->  | H98: =IF($F$11="Contactor 100HD",'100HD-Imperial'!F88,IF($F$11="Recharger 150XLHD",'150XLHD-Imperial'!F88,IF($F$11="Recharger 280HD",'280HD-Imperial'!F88,IF($F$11="Recharger 330XLHD",'330XLHD-Imperial'!F88,IF($F$11="Recharger 902HD",'902HD-Imperial'!I88,IF($F$11="Contactor Field Drain C-4HD",'C-4HD-Imperial'!D88,IF($F$11="Recharger 180HD",'180HD-Imperial'!F88,IF($F$11='Chamber Images'!$A$9,'360HD-Imperial'!I88,0)))))))) ->  | J98: =IF($F$11="Contactor 100HD",'100HD-Imperial'!G88,IF($F$11="Recharger 150XLHD",'150XLHD-Imperial'!G88,IF($F$11="Recharger 280HD",'280HD-Imperial'!G88,IF($F$11="Recharger 330XLHD",'330XLHD-Imperial'!G88,IF($F$11="Recharger 902HD",'902HD-Imperial'!J88,IF($F$11="Contactor Field Drain C-4HD",'C-4HD-Imperial'!E88,IF($F$11="Recharger 180HD",'180HD-Imperial'!G88,IF($F$11='Chamber Images'!$A$9,'360HD-Imperial'!J88,0)))))))) ->  | L98: =IF($F$11="Contactor 100HD",'100HD-Imperial'!H88,IF($F$11="Recharger 150XLHD",'150XLHD-Imperial'!H88,IF($F$11="Recharger 280HD",'280HD-Imperial'!H88,IF($F$11="Recharger 330XLHD",'330XLHD-Imperial'!H88,IF($F$11="Recharger 902HD",'902HD-Imperial'!K88,IF($F$11="Contactor Field Drain C-4HD",'C-4HD-Imperial'!F88,IF($F$11="Recharger 180HD",'180HD-Imperial'!H88,IF($F$11='Chamber Images'!$A$9,'360HD-Imperial'!K88,0)))))))) ->  | N98: =IF($F$11="Contactor 100HD",'100HD-Imperial'!I88,IF($F$11="Recharger 150XLHD",'150XLHD-Imperial'!I88,IF($F$11="Recharger 280HD",'280HD-Imperial'!I88,IF($F$11="Recharger 330XLHD",'330XLHD-Imperial'!I88,IF($F$11="Recharger 902HD",'902HD-Imperial'!L88,IF($F$11="Contactor Field Drain C-4HD",'C-4HD-Imperial'!G88,IF($F$11="Recharger 180HD",'180HD-Imperial'!I88,IF($F$11='Chamber Images'!$A$9,'360HD-Imperial'!L88,0)))))))) ->  | P98: =IF($F$11="Contactor 100HD",'100HD-Imperial'!J88,IF($F$11="Recharger 150XLHD",'150XLHD-Imperial'!J88,IF($F$11="Recharger 280HD",'280HD-Imperial'!J88,IF($F$11="Recharger 330XLHD",'330XLHD-Imperial'!J88,IF($F$11="Recharger 902HD",'902HD-Imperial'!M88,IF($F$11="Recharger 180HD",'180HD-Imperial'!J88,IF($F$11='Chamber Images'!$A$9,'360HD-Imperial'!M88,IF($F$11='Chamber Images'!A74,'C-4HD-Imperial'!H88,"")))))))) -> 
B99: =IF($F$11="Contactor 100HD",'100HD-Imperial'!A89,IF($F$11="Recharger 150XLHD",'150XLHD-Imperial'!A89,IF($F$11="Recharger 280HD",'280HD-Imperial'!A89,IF($F$11="Recharger 330XLHD",'330XLHD-Imperial'!A89,IF($F$11="Recharger 902HD",'902HD-Imperial'!A89,IF($F$11="Contactor Field Drain C-4HD",'C-4HD-Imperial'!A89,IF($F$11="Recharger 180HD",'180HD-Imperial'!A89,IF($F$11='Chamber Images'!$A$9,'360HD-Imperial'!A89)))))))) -> -5 | C99: -127 | D99: =IF($F$11="Contactor 100HD",'100HD-Imperial'!D89,IF($F$11="Recharger 150XLHD",'150XLHD-Imperial'!D89,IF($F$11="Recharger 280HD",'280HD-Imperial'!D89,IF($F$11="Recharger 330XLHD",'330XLHD-Imperial'!D89,IF($F$11="Recharger 902HD",'902HD-Imperial'!G89,IF($F$11="Contactor Field Drain C-4HD",'C-4HD-Imperial'!C89,IF($F$11="Recharger 180HD",'180HD-Imperial'!D89,IF($F$11='Chamber Images'!$A$9,'360HD-Imperial'!G89,0)))))))) ->  | F99: =IF($F$11="Contactor 100HD",'100HD-Imperial'!E89,IF($F$11="Recharger 150XLHD",'150XLHD-Imperial'!E89,IF($F$11="Recharger 280HD",'280HD-Imperial'!E89,IF($F$11="Recharger 330XLHD",'330XLHD-Imperial'!E89,IF($F$11="Recharger 902HD",'902HD-Imperial'!H89,IF($F$11="Recharger 180HD",'180HD-Imperial'!C89,IF($F$11='Chamber Images'!$A$9,'360HD-Imperial'!H89,""))))))) ->  | H99: =IF($F$11="Contactor 100HD",'100HD-Imperial'!F89,IF($F$11="Recharger 150XLHD",'150XLHD-Imperial'!F89,IF($F$11="Recharger 280HD",'280HD-Imperial'!F89,IF($F$11="Recharger 330XLHD",'330XLHD-Imperial'!F89,IF($F$11="Recharger 902HD",'902HD-Imperial'!I89,IF($F$11="Contactor Field Drain C-4HD",'C-4HD-Imperial'!D89,IF($F$11="Recharger 180HD",'180HD-Imperial'!F89,IF($F$11='Chamber Images'!$A$9,'360HD-Imperial'!I89,0)))))))) ->  | J99: =IF($F$11="Contactor 100HD",'100HD-Imperial'!G89,IF($F$11="Recharger 150XLHD",'150XLHD-Imperial'!G89,IF($F$11="Recharger 280HD",'280HD-Imperial'!G89,IF($F$11="Recharger 330XLHD",'330XLHD-Imperial'!G89,IF($F$11="Recharger 902HD",'902HD-Imperial'!J89,IF($F$11="Contactor Field Drain C-4HD",'C-4HD-Imperial'!E89,IF($F$11="Recharger 180HD",'180HD-Imperial'!G89,IF($F$11='Chamber Images'!$A$9,'360HD-Imperial'!J89,0)))))))) ->  | L99: =IF($F$11="Contactor 100HD",'100HD-Imperial'!H89,IF($F$11="Recharger 150XLHD",'150XLHD-Imperial'!H89,IF($F$11="Recharger 280HD",'280HD-Imperial'!H89,IF($F$11="Recharger 330XLHD",'330XLHD-Imperial'!H89,IF($F$11="Recharger 902HD",'902HD-Imperial'!K89,IF($F$11="Contactor Field Drain C-4HD",'C-4HD-Imperial'!F89,IF($F$11="Recharger 180HD",'180HD-Imperial'!H89,IF($F$11='Chamber Images'!$A$9,'360HD-Imperial'!K89,0)))))))) ->  | N99: =IF($F$11="Contactor 100HD",'100HD-Imperial'!I89,IF($F$11="Recharger 150XLHD",'150XLHD-Imperial'!I89,IF($F$11="Recharger 280HD",'280HD-Imperial'!I89,IF($F$11="Recharger 330XLHD",'330XLHD-Imperial'!I89,IF($F$11="Recharger 902HD",'902HD-Imperial'!L89,IF($F$11="Contactor Field Drain C-4HD",'C-4HD-Imperial'!G89,IF($F$11="Recharger 180HD",'180HD-Imperial'!I89,IF($F$11='Chamber Images'!$A$9,'360HD-Imperial'!L89,0)))))))) ->  | P99: =IF($F$11="Contactor 100HD",'100HD-Imperial'!J89,IF($F$11="Recharger 150XLHD",'150XLHD-Imperial'!J89,IF($F$11="Recharger 280HD",'280HD-Imperial'!J89,IF($F$11="Recharger 330XLHD",'330XLHD-Imperial'!J89,IF($F$11="Recharger 902HD",'902HD-Imperial'!M89,IF($F$11="Recharger 180HD",'180HD-Imperial'!J89,IF($F$11='Chamber Images'!$A$9,'360HD-Imperial'!M89,IF($F$11='Chamber Images'!A75,'C-4HD-Imperial'!H89,"")))))))) -> 
B100: =IF($F$11="Contactor 100HD",'100HD-Imperial'!A90,IF($F$11="Recharger 150XLHD",'150XLHD-Imperial'!A90,IF($F$11="Recharger 280HD",'280HD-Imperial'!A90,IF($F$11="Recharger 330XLHD",'330XLHD-Imperial'!A90,IF($F$11="Recharger 902HD",'902HD-Imperial'!A90,IF($F$11="Contactor Field Drain C-4HD",'C-4HD-Imperial'!A90,IF($F$11="Recharger 180HD",'180HD-Imperial'!A90,IF($F$11='Chamber Images'!$A$9,'360HD-Imperial'!A90)))))))) -> -6 | C100: -152.4 | D100: =IF($F$11="Contactor 100HD",'100HD-Imperial'!D90,IF($F$11="Recharger 150XLHD",'150XLHD-Imperial'!D90,IF($F$11="Recharger 280HD",'280HD-Imperial'!D90,IF($F$11="Recharger 330XLHD",'330XLHD-Imperial'!D90,IF($F$11="Recharger 902HD",'902HD-Imperial'!G90,IF($F$11="Contactor Field Drain C-4HD",'C-4HD-Imperial'!C90,IF($F$11="Recharger 180HD",'180HD-Imperial'!D90,IF($F$11='Chamber Images'!$A$9,'360HD-Imperial'!G90,0)))))))) ->  | F100: =IF($F$11="Contactor 100HD",'100HD-Imperial'!E90,IF($F$11="Recharger 150XLHD",'150XLHD-Imperial'!E90,IF($F$11="Recharger 280HD",'280HD-Imperial'!E90,IF($F$11="Recharger 330XLHD",'330XLHD-Imperial'!E90,IF($F$11="Recharger 902HD",'902HD-Imperial'!H90,IF($F$11="Recharger 180HD",'180HD-Imperial'!C90,IF($F$11='Chamber Images'!$A$9,'360HD-Imperial'!H90,""))))))) ->  | H100: =IF($F$11="Contactor 100HD",'100HD-Imperial'!F90,IF($F$11="Recharger 150XLHD",'150XLHD-Imperial'!F90,IF($F$11="Recharger 280HD",'280HD-Imperial'!F90,IF($F$11="Recharger 330XLHD",'330XLHD-Imperial'!F90,IF($F$11="Recharger 902HD",'902HD-Imperial'!I90,IF($F$11="Contactor Field Drain C-4HD",'C-4HD-Imperial'!D90,IF($F$11="Recharger 180HD",'180HD-Imperial'!F90,IF($F$11='Chamber Images'!$A$9,'360HD-Imperial'!I90,0)))))))) ->  | J100: =IF($F$11="Contactor 100HD",'100HD-Imperial'!G90,IF($F$11="Recharger 150XLHD",'150XLHD-Imperial'!G90,IF($F$11="Recharger 280HD",'280HD-Imperial'!G90,IF($F$11="Recharger 330XLHD",'330XLHD-Imperial'!G90,IF($F$11="Recharger 902HD",'902HD-Imperial'!J90,IF($F$11="Contactor Field Drain C-4HD",'C-4HD-Imperial'!E90,IF($F$11="Recharger 180HD",'180HD-Imperial'!G90,IF($F$11='Chamber Images'!$A$9,'360HD-Imperial'!J90,0)))))))) ->  | L100: =IF($F$11="Contactor 100HD",'100HD-Imperial'!H90,IF($F$11="Recharger 150XLHD",'150XLHD-Imperial'!H90,IF($F$11="Recharger 280HD",'280HD-Imperial'!H90,IF($F$11="Recharger 330XLHD",'330XLHD-Imperial'!H90,IF($F$11="Recharger 902HD",'902HD-Imperial'!K90,IF($F$11="Contactor Field Drain C-4HD",'C-4HD-Imperial'!F90,IF($F$11="Recharger 180HD",'180HD-Imperial'!H90,IF($F$11='Chamber Images'!$A$9,'360HD-Imperial'!K90,0)))))))) ->  | N100: =IF($F$11="Contactor 100HD",'100HD-Imperial'!I90,IF($F$11="Recharger 150XLHD",'150XLHD-Imperial'!I90,IF($F$11="Recharger 280HD",'280HD-Imperial'!I90,IF($F$11="Recharger 330XLHD",'330XLHD-Imperial'!I90,IF($F$11="Recharger 902HD",'902HD-Imperial'!L90,IF($F$11="Contactor Field Drain C-4HD",'C-4HD-Imperial'!G90,IF($F$11="Recharger 180HD",'180HD-Imperial'!I90,IF($F$11='Chamber Images'!$A$9,'360HD-Imperial'!L90,0)))))))) ->  | P100: =IF($F$11="Contactor 100HD",'100HD-Imperial'!J90,IF($F$11="Recharger 150XLHD",'150XLHD-Imperial'!J90,IF($F$11="Recharger 280HD",'280HD-Imperial'!J90,IF($F$11="Recharger 330XLHD",'330XLHD-Imperial'!J90,IF($F$11="Recharger 902HD",'902HD-Imperial'!M90,IF($F$11="Recharger 180HD",'180HD-Imperial'!J90,IF($F$11='Chamber Images'!$A$9,'360HD-Imperial'!M90,IF($F$11='Chamber Images'!A76,'C-4HD-Imperial'!H90,"")))))))) -> 
B101: =IF($F$11="Contactor 100HD",'100HD-Imperial'!A91,IF($F$11="Recharger 150XLHD",'150XLHD-Imperial'!A91,IF($F$11="Recharger 280HD",'280HD-Imperial'!A91,IF($F$11="Recharger 330XLHD",'330XLHD-Imperial'!A91,IF($F$11="Recharger 902HD",'902HD-Imperial'!A91,IF($F$11="Contactor Field Drain C-4HD",'C-4HD-Imperial'!A91,IF($F$11="Recharger 180HD",'180HD-Imperial'!A91,IF($F$11='Chamber Images'!$A$9,'360HD-Imperial'!A91)))))))) -> -7 | C101: -177.8 | D101: =IF($F$11="Contactor 100HD",'100HD-Imperial'!D91,IF($F$11="Recharger 150XLHD",'150XLHD-Imperial'!D91,IF($F$11="Recharger 280HD",'280HD-Imperial'!D91,IF($F$11="Recharger 330XLHD",'330XLHD-Imperial'!D91,IF($F$11="Recharger 902HD",'902HD-Imperial'!G91,IF($F$11="Contactor Field Drain C-4HD",'C-4HD-Imperial'!C91,IF($F$11="Recharger 180HD",'180HD-Imperial'!D91,IF($F$11='Chamber Images'!$A$9,'360HD-Imperial'!G91,0)))))))) ->  | F101: =IF($F$11="Contactor 100HD",'100HD-Imperial'!E91,IF($F$11="Recharger 150XLHD",'150XLHD-Imperial'!E91,IF($F$11="Recharger 280HD",'280HD-Imperial'!E91,IF($F$11="Recharger 330XLHD",'330XLHD-Imperial'!E91,IF($F$11="Recharger 902HD",'902HD-Imperial'!H91,IF($F$11="Recharger 180HD",'180HD-Imperial'!C91,IF($F$11='Chamber Images'!$A$9,'360HD-Imperial'!H91,""))))))) ->  | H101: =IF($F$11="Contactor 100HD",'100HD-Imperial'!F91,IF($F$11="Recharger 150XLHD",'150XLHD-Imperial'!F91,IF($F$11="Recharger 280HD",'280HD-Imperial'!F91,IF($F$11="Recharger 330XLHD",'330XLHD-Imperial'!F91,IF($F$11="Recharger 902HD",'902HD-Imperial'!I91,IF($F$11="Contactor Field Drain C-4HD",'C-4HD-Imperial'!D91,IF($F$11="Recharger 180HD",'180HD-Imperial'!F91,IF($F$11='Chamber Images'!$A$9,'360HD-Imperial'!I91,0)))))))) ->  | J101: =IF($F$11="Contactor 100HD",'100HD-Imperial'!G91,IF($F$11="Recharger 150XLHD",'150XLHD-Imperial'!G91,IF($F$11="Recharger 280HD",'280HD-Imperial'!G91,IF($F$11="Recharger 330XLHD",'330XLHD-Imperial'!G91,IF($F$11="Recharger 902HD",'902HD-Imperial'!J91,IF($F$11="Contactor Field Drain C-4HD",'C-4HD-Imperial'!E91,IF($F$11="Recharger 180HD",'180HD-Imperial'!G91,IF($F$11='Chamber Images'!$A$9,'360HD-Imperial'!J91,0)))))))) ->  | L101: =IF($F$11="Contactor 100HD",'100HD-Imperial'!H91,IF($F$11="Recharger 150XLHD",'150XLHD-Imperial'!H91,IF($F$11="Recharger 280HD",'280HD-Imperial'!H91,IF($F$11="Recharger 330XLHD",'330XLHD-Imperial'!H91,IF($F$11="Recharger 902HD",'902HD-Imperial'!K91,IF($F$11="Contactor Field Drain C-4HD",'C-4HD-Imperial'!F91,IF($F$11="Recharger 180HD",'180HD-Imperial'!H91,IF($F$11='Chamber Images'!$A$9,'360HD-Imperial'!K91,0)))))))) ->  | N101: =IF($F$11="Contactor 100HD",'100HD-Imperial'!I91,IF($F$11="Recharger 150XLHD",'150XLHD-Imperial'!I91,IF($F$11="Recharger 280HD",'280HD-Imperial'!I91,IF($F$11="Recharger 330XLHD",'330XLHD-Imperial'!I91,IF($F$11="Recharger 902HD",'902HD-Imperial'!L91,IF($F$11="Contactor Field Drain C-4HD",'C-4HD-Imperial'!G91,IF($F$11="Recharger 180HD",'180HD-Imperial'!I91,IF($F$11='Chamber Images'!$A$9,'360HD-Imperial'!L91,0)))))))) ->  | P101: =IF($F$11="Contactor 100HD",'100HD-Imperial'!J91,IF($F$11="Recharger 150XLHD",'150XLHD-Imperial'!J91,IF($F$11="Recharger 280HD",'280HD-Imperial'!J91,IF($F$11="Recharger 330XLHD",'330XLHD-Imperial'!J91,IF($F$11="Recharger 902HD",'902HD-Imperial'!M91,IF($F$11="Recharger 180HD",'180HD-Imperial'!J91,IF($F$11='Chamber Images'!$A$9,'360HD-Imperial'!M91,IF($F$11='Chamber Images'!A77,'C-4HD-Imperial'!H91,"")))))))) -> 
